Workbook

Sheet 0. Intro
B2: If you are seeing this page, it means Excel Macro's have not been enabled.
B4: Excel Macros provide improved functionality for this file, and it will not work properly unless they are enabled.
B8: This may be caused by one of the following warnings:
C9: Follow the steps below each warning to enable Macros.
C15: Simply click 'Enable Content'
C22: Find out more here: | E22: https://docs.microsoft.com/en-us/deployoffice/security/internet-macros-blocked#remove-mark-of-the-web-from-a-file
C24: 1. Close workbook
C25: 2. Right click on the Excel file and click 'Properties'
C26: 3. Tick 'Unblock' and click 'OK'
C27: 4. Re-open file

Sheet Inputs
A1: 1 | B1: 1 | C1: 1 | D1: 1 | E1: 1 | F1: 1 | G1: 1 | H1: 1 | I1: 1 | J1: 1 | K1: 1 | L1: 1 | M1: 1 | N1: 1 | O1: 1
A2: macro disabled | B2: FALSE
A3: Row # of First Flag | C3: =ROW(INDEX(A7:OFFSET(A7,options_count-1,0),MATCH(FALSE,ISBLANK(A7:OFFSET(A7,options_count-1,0)),0))) -> 9
A4: Number of Options | C4: =COUNTA(Q7:Q37) -> 30 | I4: is open but not extreme | U4: Release
A5: =SUM(A7:OFFSET(A7,options_count-1,0)) -> 16 | B5: =COUNTIF(B7:OFFSET(B7,options_count-1,0),1) -> 0 | C5: =SUM(C7:OFFSET(C7,options_count-1,0)) -> 4 | N5: ="Col: " &COLUMN(N6) -> Col: 14 | V5: Last Updated: 8 September 2023
A6: Must Fill Flag | B6: Check error Flag | C6: Check Fill Flag | D6: Condition_1 | F6: Condition_2 | H6: Optional? | I6: Enter Precedent | K6: Check For_1 | L6: Check For_2 | M6: Row Outcome* | N6: WarningCol | Q6: OPTIONS | R6: INPUT | T6: INSTRUCTIONS | V6: COMMENTS
D7: i_SystemType | F7: i_InstallationType | Q7: Customer's Name | T7: ← Enter Name (Optional)
Q8: Customer's Job Number | T8: ← Enter Job Number (Optional)
A9: 1 | C9: =IF(AND(LEN(R9)>0,M9<>"HIDE"),1,0) -> 0 | Q9: Region | S9: =HYPERLINK("#"&ADDRESS(ROW(),COLUMN()-1),CHAR(128)) -> € | T9: ← Select Region (US) | V9: =IF(i_Location="","Please select a Region.","") -> Please select a Region.
A10: 1 | C10: =IF(AND(LEN(R10)>0,M10<>"HIDE"),1,0) -> 0 | Q10: Units | S10: =HYPERLINK("#"&ADDRESS(ROW(),COLUMN()-1),CHAR(128)) -> € | T10: ← Select Units (Metric/Imperial)
M11: HIDE | Q11: Fabric | S11: =HYPERLINK("#"&ADDRESS(ROW(),COLUMN()-1),CHAR(128)) -> € | T11: ← Select Fabric
A12: 1 | C12: =IF(AND(R12>0,M12<>"HIDE"),1,0) -> 0 | N12: =IFERROR(IF(SEARCH("Warning",V12)>0,1,0),0) -> 0 | Q12: Blind Width | T12: =_xlfn.IFNA("← Enter Total Blind Width ("&INDEX(T_UnitSelection[Units],MATCH(i_Units,T_UnitSelection[UnitSelection],0))&")","← Enter Blind Width") -> ← Enter Blind Width | V12: =IFERROR(IF(SUM(Ctrl_Recommendations!$T$12:$T$13)>0,INDEX(Ctrl_Recommendations!$W$12:$W$13,MATCH(1,Ctrl_Recommendations!$T$12:$T$13)),""),"") -> 
A13: =IF(M13="HIDE",0,1) -> 1 | C13: =IF(AND(R13>0,M13<>"HIDE"),1,0) -> 0 | I13: i_SystemType | K13: VEUE - Pivot Arm | M13: =IF(ISNUMBER(SEARCH(K13,INDIRECT(I13))),"HIDE","SHOW") -> SHOW | N13: =IFERROR(IF(SEARCH("Warning",V13)>0,1,0),0) -> 0 | Q13: Blind Drop | T13: =_xlfn.IFNA("← Enter Total Blind Drop ("&INDEX(T_UnitSelection[Units],MATCH(i_Units,T_UnitSelection[UnitSelection],0))&")","← Enter Blind Drop") -> ← Enter Blind Drop | V13: =IFERROR(IF(w_BlindDrop>0,INDEX(Ctrl_Recommendations!$W$6:$W$8,MATCH("on",Ctrl_Recommendations!$V$6:$V$8,0)),""),"") -> 
A14: =IF(M14="HIDE",0,1) -> 0 | C14: =IF(AND(LEN(R14)>0,M14<>"HIDE"),1,0) -> 0 | M14: HIDE | N14: =IFERROR(IF(SEARCH("Warning",V14)>0,1,0),0) -> 0 | Q14: System Type | S14: =HYPERLINK("#"&ADDRESS(ROW(),COLUMN()-1),CHAR(128)) -> € | T14: ="← Select "&Q14 -> ← Select System Type | V14: =IFERROR(IF(AND(i_Tube<>"",i_SystemType<>"",w_MaxArea="On"),OFFSET(w_MaxArea,0,1,),""),"") -> 
A15: =IF(M15="HIDE",0,1) -> 1 | C15: 0 | N15: =IFERROR(IF(SEARCH("Warning",V15)>0,1,0),0) -> 0 | Q15: Installation Type | S15: =HYPERLINK("#"&ADDRESS(ROW(),COLUMN()-1),CHAR(128)) -> € | T15: ← Select Installation Type | V15: Refer to Catalog for available System Upgrades.
A16: =IF(M16="HIDE",0,1) -> 1 | C16: =IF(AND(LEN(R16)>0,M16<>"HIDE"),1,0) -> 0 | I16: i_InstallationType | J16: != | K16: Recess | M16: =IF(ISNUMBER(SEARCH(K16,INDIRECT(I16))),"HIDE","SHOW") -> SHOW | Q16: Bracket Fix Orientation | S16: € | T16: ="← Select "&Q16 -> ← Select Bracket Fix Orientation
A17: =IF(M17="HIDE",0,1) -> 1 | C17: =IF(AND(LEN(R17)>0,M17<>"HIDE"),1,0) -> 0 | D17: =IFERROR(IF(FIND("EXTREME",i_SystemType)>0,"",i_SystemType),i_SystemType) -> 0 | I17: i_installationType | K17: Open | M17: SHOW | Q17: Open Bracket Style | S17: € | T17: ← Select Open Bracket Style
A18: =IF(M18="HIDE",0,1) -> 1 | C18: 0 | D18: =IFERROR(IF(FIND("EXTREME",i_SystemType)>0,"",i_SystemType),i_SystemType) -> 0 | I18: i_installationType | K18: Open | M18: SHOW | Q18: Open Bracket Covers | S18: € | T18: ← Select Open Bracket Covers
A19: =IF(M19="HIDE",0,1) -> 0 | C19: =IF(AND(LEN(R19)>0,M19<>"HIDE"),1,0) -> 0 | M19: =IF(ISNUMBER(SEARCH(K19,INDIRECT(I19))),"SHOW","HIDE") -> HIDE | Q19: Wire Guide Top Terminal | S19: € | T19: ← Select Wire Guide Top Terminal
A20: 1 | C20: 0 | N20: =IFERROR(IF(SEARCH("Warning",V20)>0,1,0),0) -> 0 | Q20: Spring Size | S20: =HYPERLINK("#"&ADDRESS(ROW(),COLUMN()-1),CHAR(128)) -> € | T20: ← Select Spring Size | V20: Refer to Product Specifications for spring selection guidance.
A21: =IF(M21="HIDE",0,1) -> 1 | C21: =IF(AND(LEN(R21)>0,M21<>"HIDE"),1,0) -> 0 | I21: i_Booster | J21: != | K21: Dual Heavy | M21: =IF(ISNUMBER(SEARCH(K21,INDIRECT(I21))),"HIDE","SHOW") -> SHOW | Q21: Idler Type | S21: =HYPERLINK("#"&ADDRESS(ROW(),COLUMN()-1),CHAR(128)) -> € | T21: ="← Select "&Q21 -> ← Select Idler Type
A22: 0 | C22: =IF(AND(H22=1,M22="SHOW"),1,IF(AND(LEN(R22)>0,M22<>"HIDE"),1,0)) -> 0 | H22: 1 | I22: i_motor | K22: AUTOMATE | M22: =IF(ISNUMBER(SEARCH(K22,INDIRECT(I22))),"SHOW","HIDE") -> HIDE | Q22: Remote | S22: =HYPERLINK("#"&ADDRESS(ROW(),COLUMN()-1),CHAR(128)) -> € | T22: ="← Select "&Q22 -> ← Select Remote
A23: 0 | C23: =IF(AND(H23=1,M23="SHOW"),1,IF(AND(LEN(R23)>0,M23<>"HIDE"),1,0)) -> 0 | H23: 1 | I23: i_motor | K23: AUTOMATE | M23: =IF(ISNUMBER(SEARCH(K23,INDIRECT(I23))),"SHOW","HIDE") -> HIDE | Q23: Sensor | S23: =HYPERLINK("#"&ADDRESS(ROW(),COLUMN()-1),CHAR(128)) -> € | T23: ="← Select "&Q23 -> ← Select Sensor
A24: =IF(M24="HIDE",0,1) -> 1 | C24: 0 | N24: =IFERROR(IF(SEARCH("Warning",V24)>0,1,0),0) -> 0 | Q24: Tube | S24: € | T24: ="← Select "&Q24 -> ← Select Tube
A25: 0 | C25: 0 | M25: HIDE | Q25: Tube Extras | S25: € | T25: ← Select Tube Extras
A26: =IF(M26="HIDE",0,1) -> 1 | C26: =IF(AND(LEN(R26)>0,M26<>"HIDE"),1,0) -> 0 | M26: =IF(ISNUMBER(SEARCH(K26,INDIRECT(I26))),"HIDE","SHOW") -> SHOW | Q26: =IF(i_Location="AU","Weight Bar Bar","Hem Bar") -> Hem Bar | S26: € | T26: ← Select Hem Bar
A27: =IF(M27="HIDE",0,1) -> 0 | C27: =IF(AND(H27=1,M27="SHOW"),1,IF(AND(LEN(R27)>0,M27<>"HIDE"),1,0)) -> 0 | H27: 1 | I27: i_SystemType | J27: != | K27: Pivot | M27: HIDE | Q27: =IF(i_Location="US","Hem Bar Lock","Weight Bar Lock") -> Weight Bar Lock | S27: € | T27: ="← Select "&Q27 -> ← Select Weight Bar Lock
A28: =IF(M28="HIDE",0,1) -> 0 | C28: =IF(AND(LEN(R28)>0,M28<>"HIDE"),1,0) -> 0 | M28: =IF(ISERROR(INDEX(L_wbStrap,1)),"HIDE","SHOW") -> HIDE | Q28: =IF(i_Location="US","Hem Bar Spline","Weight Bar Strap") -> Weight Bar Strap | S28: € | T28: ="← Select "&Q28 -> ← Select Weight Bar Strap
A29: =IF(M29="HIDE",0,1) -> 1 | C29: =IF(AND(H29=1,M29="SHOW"),1,IF(AND(LEN(#REF!)>0,M29<>"HIDE"),1,0)) -> 1 | H29: 1 | I29: i_SystemType | J29: != | K29: VEUE - Pivot Arm | M29: =IF(ISNUMBER(SEARCH(K29,INDIRECT(I29))),"HIDE","SHOW") -> SHOW | Q29: =IF(i_Location="AU","Weight Bar Spline Type","Hem Bar Spline Type") -> Hem Bar Spline Type | S29: € | T29: ← Select Hem Bar Spline Type
A30: =IF(M30="HIDE",0,1) -> 1 | C30: =IF(AND(H30=1,M30="SHOW"),1,IF(AND(LEN(R30)>0,M30<>"HIDE"),1,0)) -> 1 | H30: 1 | M30: SHOW | Q30: =IF(i_Location="US","Hem Bar Accessories","Weight Bar Accessories") -> Weight Bar Accessories | S30: € | T30: ← Select Weight Bar Accessories
A31: 0 | C31: =IF(AND(LEN(R30)>0,M31<>"HIDE"),1,0) -> 0 | M31: HIDE | Q31: Weight Bar Spline | S31: € | T31: ← Select Weight Bar Spline
A32: =IF(M32="HIDE",0,1) -> 1 | C32: =IF(AND(H32=1,M32="SHOW"),1,IF(AND(LEN(R32)>0,M32<>"HIDE"),1,0)) -> 1 | H32: 1 | M32: SHOW | Q32: Accessories | S32: € | T32: ← Select Accessories
A33: 0 | C33: 0 | M33: HIDE | Q33: Finish | S33: € | T33: ="← Select "&Q33 -> ← Select Finish
A34: =IF(M34="HIDE",0,1) -> 0 | C34: =IF(AND(H34=1,M34="SHOW"),1,IF(AND(LEN(R34)>0,M34<>"HIDE"),1,0)) -> 0 | H34: 1 | I34: i_Finish | K34: Powdercoat | M34: =IF(ISNUMBER(SEARCH(K34,INDIRECT(I34))),"SHOW","HIDE") -> HIDE | Q34: Colour | S34: € | T34: ="← Select "&Q34 -> ← Select Colour
A35: 1 | C35: 1 | R35: 0
A36: =IF(M36="HIDE",0,1) -> 0 | C36: =IF(AND(LEN(R36)>0,M36<>"HIDE"),1,0) -> 0 | I36: i_Location | K36: AU | M36: =IF(SUMPRODUCT(--ISNUMBER(SEARCH(K36,INDIRECT(I36)))),"SHOW","HIDE") -> HIDE | Q36: HARDWARE DISCOUNT | R36: 0 | T36: ← Enter Discount %
A37: =IF(M37="HIDE",0,1) -> 0 | C37: =IF(AND(LEN(R37)>0,M37<>"HIDE"),1,0) -> 0 | I37: i_Location | K37: AU | M37: =IF(SUMPRODUCT(--ISNUMBER(SEARCH(K37,INDIRECT(I37)))),"SHOW","HIDE") -> HIDE | Q37: AUTOMATE DISCOUNT | R37: 0 | T37: ← Enter Discount %
M38: HIDE | Q38: SHOW PRICING | R38: No | T38: ← Select if pricing is to be shown on BOM
A39: 0 | C39: 0 | M39: HIDE | Q39: SYSTEM QTY | R39: 1 | T39: ← Enter QTY Required
M41: HIDE | Q41: CALCULATOR
M42: HIDE | Q42: Booster Pre-turns | R42: =IF(i_ControlType="Spring",Calc_Reference!BA38,"") ->  | T42: Turns
M43: HIDE | Q43: Motor cycle time (1-way) | T43: sec
M44: HIDE | Q44: Tube Deflection | R44: =(5/384)*((g*(Fabric_Density*o_BlindDropm+Tube_UnitMass+wb_UnitMass)*o_BlindWidthm^4)/Tube_IE)*1000 ->  | T44: mm
M45: HIDE | Q45: Roll Diameter | T45: mm | V45: including zip (if applicable) - data bar needs to be box/open bracket limit
M46: SHOW
Q47: LEGEND | R47: INSTRUCTIONS
Q48: OPTIONAL FIELD | R48: STEP 1: In order to obtain cutting lists, ensure all required fields are filled in
A49: Row # of First Option | C49: =ROW(Q7) -> 7 | Q49: REQUIRED FIELD | R49: STEP 2: Once Inputs are completed, click SUBMIT button to generate Bill of Materials & Cutting List | V49: For other fabrics, refer to Pre-tension Charts for Booster and Pre-turn recommendations.
A50: Row # of Last Option | C50: =ROW(i_Finish) -> 33
Q51: NOTE: Microsoft Excel 2007 or later required for complete functionality. MACROS MUST BE ENABLED.
L52: =IF(SUM(N9:N36)>=1,"Warnings","No Warnings") -> No Warnings | Q52: DISCLAIMER: Rollease Acmeda has used reasonable care in preparing the information included in this workbook, but makes no representations or warranties as to the completeness or accuracy of the information. Information is supplied upon the condition that the persons receiving the information will make their own determination as to is suitability for their purposes prior to use. Rollease Acmeda assumes no liability whatsoever for any damages incurred by you resulting from errors in or omissions from the information included herein. The pricing tool is an indicative estimation only based on selections and does not account for indicidental wastage. Rollease Acmeda reserves the right to make changes without further notice to any products to improve the reliability, function or design.
C54: ={IF(SUMPRODUCT(--ISNUMBER(SEARCH(E42,INDIRECT(D42)))),"HIDE","SHOW")}
C55: =IF(AND(ISNUMBER(SEARCH(K20,@INDIRECT(I20))),(D20=@INDIRECT($D$7))),"SHOW","HIDE")

Sheet BOM (hidden)
A1: HIDE | B1: HIDE | C1: HIDE | D1: HIDE | E1: HIDE | F1: HIDE | G1: HIDE | H1: HIDE | I1: HIDE | J1: HIDE | K1: HIDE | L1: HIDE | M1: HIDE | N1: HIDE | O1: HIDE | P1: HIDE | Q1: HIDE | R1: HIDE | S1: HIDE | T1: HIDE | U1: HIDE | V1: HIDE | W1: HIDE | X1: HIDE | Y1: HIDE | Z1: HIDE | AA1: HIDE | AB1: HIDE | AC1: HIDE | AD1: HIDE | AE1: HIDE | AF1: HIDE | AG1: HIDE | AH1: HIDE | AI1: HIDE | AJ1: HIDE | AK1: HIDE | AL1: HIDE | AM1: HIDE | AN1: HIDE | AO1: HIDE | AP1: HIDE | AQ1: HIDE | AR1: HIDE | AS1: HIDE | AT1: HIDE | AU1: HIDE | AV1: HIDE | AW1: HIDE | AX1: HIDE | AY1: HIDE | AZ1: HIDE | BA1: HIDE | BB1: HIDE | BC1: HIDE | BG1: HIDE | BH1: HIDE | BI1: HIDE | BJ1: HIDE | BK1: HIDE | BL1: HIDE | BM1: =IF(i_Units="Metric","SHOW","HIDE") -> HIDE | BN1: =IF(i_Units="Imperial","SHOW","HIDE") -> HIDE | BP1: HIDE | BQ1: HIDE | BR1: HIDE | BS1: HIDE | BT1: HIDE | BU1: HIDE | BW1: HIDE | BX1: HIDE | BY1: HIDE | BZ1: =IF(i_Pricing="Yes","SHOW","HIDE") -> HIDE | CB1: HIDE | CC1: HIDE | CD1: HIDE | CE1: HIDE | CF1: HIDE | CG1: HIDE | CH1: HIDE
AY2: SHOW
C3: CONDITIONS | Z3: QTY | AH3: COLOURS | AY3: SHOW | BF3: Customers Name: | BM3: =IF(i_CustName=0,"",i_CustName) ->  | BN3: =IF(i_CustName=0,"",i_CustName) -> 
AY4: SHOW | BF4: Job Number: | BM4: =IF(i_JobNumber=0,"",i_JobNumber) ->  | BN4: =IF(i_JobNumber=0,"",i_JobNumber) -> 
AY5: SHOW | BF5: Blind Width: | BM5: =o_Widthmm -> 0 | BN5: =TEXT(o_Widthin,"0"&IF(ABS(o_Widthin-ROUND(o_Widthin,0))>1/32,"-0/"&CHOOSE(ROUND(MOD(o_Widthin,1)*16,0),16,8,16,4,16,8,16,2,16,8,16,4,16,8,16),"")) -> 0 | BO5: =INDEX(T_UnitSelection[Units],MATCH(i_Units,T_UnitSelection[UnitSelection],0)) -> 
AY6: SHOW | BF6: Blind Drop: | BM6: =o_Dropmm -> 0 | BN6: =TEXT(o_Dropin,"0"&IF(ABS(o_Dropin-ROUND(o_Dropin,0))>1/32,"-0/"&CHOOSE(ROUND(MOD(o_Dropin,1)*16,0),16,8,16,4,16,8,16,2,16,8,16,4,16,8,16),"")) -> 0 | BO6: =INDEX(T_UnitSelection[Units],MATCH(i_Units,T_UnitSelection[UnitSelection],0)) -> 
AY7: SHOW | BE7: =i_InstallationType&", "&i_WeightBar&", "&i_ControlType -> , ,
AY8: SHOW
D9: ROW HIDE/SHOW CONDITIONS | AA9: QTY Modifiers | AI9: Colour Selection | AY9: SHOW | BC9: PART NUMBER for NAV costs | BE9: PART NUMBER | BF9: DESCRIPTION | BG9: Std Lengths (meters) | BH9: CutList? | BI9: Deduction Type | BJ9: Deduction Lookup | BK9: Deduc Type | BL9: Cut length (mm) | BM9: CUT LENGTH (mm) | BN9: CUT LENGTH (in) | BO9: U.O.M | BP9: Supplied UOM | BQ9: secondary UoM | BR9: UoM SWAP? | BS9: Discount | BT9: QTY (Base) | BU9: QTY / SYSTEM | BV9: Total QTY | BW9: unit/metre lookup cost | BX9: ="LINE COST ("&i_Currency&")" ->  | BY9: ="$ Discount ("&i_Currency&")" ->  | BZ9: ="LINE COST ("&i_Currency&")" -> 
C10: RowCtrl | D10: Condition_1 | F10: Condition_2 | H10: Condition_3 | J10: Condition_4 | L10: Condition_5 | N10: Condition_6 | P10: Condition_7 | R10: Condition_8 | T10: Condition_9 | V10: Condition_10 | AA10: Links | AB10: Distance | AC10: Other Rules_1 | AD10: Other Rules_x | AE10: QTY Factor. | AF10: Comments | AS10: System Default | AY10: SHOW | BW10: COST $$$
AI11: Fallback | AS11: Black | AY11: =IF(AND(ISBLANK(BC11),ISBLANK(C11)),"HIDE",_xlfn.SWITCH(PRODUCT(C11:Z11,B11),2,"HEADING",1,"SHOW",0,"HIDE")) -> HIDE
B12: 2=heading | AB12: i_Width | AC12: i_Drop | AI12: Colour | AY12: =IF(AND(ISBLANK(BC12),ISBLANK(C12)),"HIDE",_xlfn.SWITCH(PRODUCT(C12:Z12,B12),2,"HEADING",1,"SHOW",0,"HIDE")) -> HIDE | BM12: &" (x"&BT17&")"
AB13: =IF(i_Units="Metric",i_Width,CONVERT(i_Width,"in","mm")) -> 0 | AC13: =IF(i_Units="Metric",i_Drop,CONVERT(i_Drop,"in","mm")) -> 0 | AI13: 1 | AJ13: 2 | AK13: 3 | AL13: 4 | AM13: 5 | AN13: 6 | AO13: 7 | AP13: 8 | AQ13: 9 | AY13: =IF(AND(ISBLANK(BC13),ISBLANK(C13)),"HIDE",_xlfn.SWITCH(PRODUCT(C13:Z13,B13),2,"HEADING",1,"SHOW",0,"HIDE")) -> HIDE | BM13: mm | BN13: in
AI14: COLOUR OPTIONS | AR14: LOC. | AS14: DEFAULT | AT14: Col_IN Selec | AV14: Col_OUT Desc | AW14: Col_OUT Code | AY14: =IF(AND(ISBLANK(BC14),ISBLANK(C14)),"HIDE",_xlfn.SWITCH(PRODUCT(C14:Z14,B14),2,"HEADING",1,"SHOW",0,"HIDE")) -> HIDE | BM14: potential QTY column
B15: 2 | C15: =C16 -> 0 | AE15: =IFERROR(_xlfn.SINGLE(IF(AND(AA15="Y",PRODUCT(AB15:AD15)=0),o_nScreens,IF(PRODUCT(AB15:AD15)=0,"",PRODUCT(AB15:AD15)))),"") ->  | AS15: =IF(ISNUMBER(FIND("x",BE15)),IFERROR(INDEX(AI15:AQ15,0,MATCH(AT15,AI15:AQ15,0)),IF(AI15<>"",AI15,i_DefaultColour)),"") ->  | AV15: =IF(ISNUMBER(FIND("x",BE15)),IFERROR(INDEX(AI15:AQ15,0,MATCH(AT15,AI15:AQ15,0)),AS15),"") ->  | AW15: =IF(ISNUMBER(FIND("x",BE15)),IFERROR(INDEX(INDIRECT("T_FinishColour[ColourCode-"&IF(ISNUMBER(FIND("xxx",BE15)),"xxx",IF(ISNUMBER(FIND("xx",BE15)),"xx","error"))&AR15&"]"),MATCH(AV15,T_FinishColour[Finish / Colour],0)),""),"") ->  | AY15: =IF(AND(ISBLANK(BC15),ISBLANK(C15)),"HIDE",_xlfn.SWITCH(PRODUCT(C15:Z15,B15),2,"HEADING",1,"SHOW",0,"HIDE")) -> HIDE | BC15: =_xlfn.IFNA(SUBSTITUTE(IF(AR15="AU",SUBSTITUTE(BE15,"xxx",AW15),SUBSTITUTE(SUBSTITUTE(BE15,"xx",AW15),"x","")),"LLL","580"),BE15) ->  | BH15: =IF(ISBLANK(BO15),"",IF(OR(BO15=L_Units),"Y","N")) ->  | BJ15: =IFERROR(_xlfn.SINGLE(IF(BH15="Y",((INDEX(#REF!,MATCH(BI15,#REF!,0),0))),"")),"") ->  | BL15: =IFERROR(IF(BH15="Y",INDIRECT(BK15)-BJ15,""),"") ->  | BM15: =IFERROR(IF(BH15="Y",BL15,""),"") ->  | BN15: =IFERROR(IF(BH15="Y",TEXT(BL15/25.4,"0"&IF(ABS(BL15/25.4-ROUND(BL15/25.4,0))>1/32,"-0/"&CHOOSE(ROUND(MOD(BL15/25.4,1)*16,0),16,8,16,4,16,8,16,2,16,8,16,4,16,8,16),"")),""),"") ->  | BP15: =IFERROR(IF(ISBLANK(BC15),"",INDEX(T_NAV_AU[Base Unit of Measure],MATCH(BC15,T_NAV_AU[No.],0))),"") ->  | BU15: =IF(ISBLANK(BT15),"",PRODUCT(AE15,BT15)) ->  | BV15: =IF(ISBLANK(BT15),"",PRODUCT(AE15,BT15,i_systemQTY)) ->  | BW15: =IFERROR(INDEX(INDIRECT("T_NAV_"&i_Location&"["&i_Location&"]"),MATCH(1,--(BC15=INDIRECT("T_NAV_"&i_Location&"[No.]"))*--((INDIRECT("T_NAV_"&i_Location&"["&i_Location&"]"))<>""),0))/IF(AND(BQ15="METRE",BG15<>"",BR15=""),BG15,1),"") ->  | BX15: =IFERROR(IF(AND(AY15="SHOW",BW15<>""),BW15*BV15*IF(AND(BM15<>"",OR(BP15="LENGTH",BP15="METRE",BP15="ROLL")),(BL15/1000),1),""),"") ->  | BY15: =IF(BX15<>"",(INDIRECT("i_"&BS15&"discount"))*BX15,"") ->  | BZ15: =IFERROR(IF(BX15<>"",BX15-BY15,""),"") -> 
B16: 2 | C16: =IF(COUNTIF(AY17:AY20,"SHOW")>0,1,0) -> 0 | D16: i_InstallationType | F16: i_OpenBktCovers | H16: i_OpenBktStyle | AS16: =IF(ISNUMBER(FIND("x",BE16)),IFERROR(INDEX(AI16:AQ16,0,MATCH(AT16,AI16:AQ16,0)),IF(AI16<>"",AI16,i_DefaultColour)),"") ->  | AV16: =IF(ISNUMBER(FIND("x",BE16)),IFERROR(INDEX(AI16:AQ16,0,MATCH(AT16,AI16:AQ16,0)),AS16),"") ->  | AW16: =IF(ISNUMBER(FIND("x",BE16)),IFERROR(INDEX(INDIRECT("T_FinishColour[ColourCode-"&IF(ISNUMBER(FIND("xxx",BE16)),"xxx",IF(ISNUMBER(FIND("xx",BE16)),"xx","error"))&AR16&"]"),MATCH(AV16,T_FinishColour[Finish / Colour],0)),""),"") ->  | AY16: =IF(AND(ISBLANK(BC16),ISBLANK(C16)),"HIDE",_xlfn.SWITCH(PRODUCT(C16:Z16,B16),2,"HEADING",1,"SHOW",0,"HIDE")) -> HIDE | BC16: =_xlfn.IFNA(SUBSTITUTE(IF(AR16="AU",SUBSTITUTE(BE16,"xxx",AW16),SUBSTITUTE(SUBSTITUTE(BE16,"xx",AW16),"x","")),"LLL","580"),BE16) -> BRACKETS | BE16: BRACKETS | BJ16: =IFERROR(_xlfn.SINGLE(IF(BH16="Y",((INDEX(#REF!,MATCH(BI16,#REF!,0),0))),"")),"") ->  | BP16: =IFERROR(IF(ISBLANK(BC16),"",INDEX(T_NAV_AU[Base Unit of Measure],MATCH(BC16,T_NAV_AU[No.],0))),"") ->  | BW16: =IFERROR(INDEX(INDIRECT("T_NAV_"&i_Location&"["&i_Location&"]"),MATCH(1,--(BC16=INDIRECT("T_NAV_"&i_Location&"[No.]"))*--((INDIRECT("T_NAV_"&i_Location&"["&i_Location&"]"))<>""),0))/IF(AND(BQ16="METRE",BG16<>"",BR16=""),BG16,1),"") -> 
D17: Open | E17: =IFERROR(IF(ISBLANK(D17),"",IF(FIND(D17,INDIRECT($D$16))>0,1,0)),0) -> 0 | G17: =IFERROR(IF(ISBLANK(F17),"",IF(FIND(F17,INDIRECT($F$16))>0,1,0)),0) ->  | H17: 1.5" | I17: =IFERROR(IF(ISBLANK(H17),"",IF(FIND(H17,INDIRECT($H$16))>0,1,0)),0) -> 0 | AI17: White | AR17: AU | AS17: White | AT17: =i_Finish -> 0 | AV17: White | AW17: =IF(ISNUMBER(FIND("x",BE17)),IFERROR(INDEX(INDIRECT("T_FinishColour[ColourCode-"&IF(ISNUMBER(FIND("xxx",BE17)),"xxx",IF(ISNUMBER(FIND("xx",BE17)),"xx","error"))&AR17&"]"),MATCH(AV17,T_FinishColour[Finish / Colour],0)),""),"") ->  | AY17: =IF(AND(ISBLANK(BC17),ISBLANK(C17)),"HIDE",_xlfn.SWITCH(PRODUCT(C17:Z17,B17),2,"HEADING",1,"SHOW",0,"HIDE")) -> HIDE | BC17: =_xlfn.IFNA(SUBSTITUTE(IF(AR17="AU",SUBSTITUTE(BE17,"xxx",AW17),SUBSTITUTE(SUBSTITUTE(BE17,"xx",AW17),"x","")),"LLL",BG17*100),BE17) -> SLB660xx | BE17: SLB660xx | BF17: Skyline 1.5" Brackets | BH17: =IF(ISBLANK(BO17),"",IF(OR(BO17=L_Units),"Y","N")) -> N | BJ17: =IFERROR(_xlfn.SINGLE(IF(BH17="Y",((INDEX(#REF!,MATCH(BI17,#REF!,0),0))),"")),"") ->  | BO17: Piece | BP17: =IFERROR(IF(ISBLANK(BC17),"",INDEX(T_NAV_AU[Base Unit of Measure],MATCH(BC17,T_NAV_AU[No.],0))),"") ->  | BS17: HW | BT17: 2 | BU17: 2 | BV17: 2 | BW17: =IFERROR(INDEX(INDIRECT("T_NAV_"&i_Location&"["&i_Location&"]"),MATCH(1,--(BC17=INDIRECT("T_NAV_"&i_Location&"[No.]"))*--((INDIRECT("T_NAV_"&i_Location&"["&i_Location&"]"))<>""),0))/IF(AND(BQ17="METRE",BG17<>"",BR17=""),BG17,1),"") -> 
D18: Open | E18: =IFERROR(IF(ISBLANK(D18),"",IF(FIND(D18,INDIRECT($D$16))>0,1,0)),0) -> 0 | F18: Yes | G18: =IFERROR(IF(ISBLANK(F18),"",IF(FIND(F18,INDIRECT($F$16))>0,1,0)),0) -> 0 | H18: 1.5" | I18: =IFERROR(IF(ISBLANK(H18),"",IF(FIND(H18,INDIRECT($H$16))>0,1,0)),0) -> 0 | AI18: White | AR18: AU | AS18: =IF(ISNUMBER(FIND("x",BE18)),IFERROR(INDEX(AI18:AQ18,0,MATCH(AT18,AI18:AQ18,0)),IF(AI18<>"",AI18,i_DefaultColour)),"") -> White | AT18: =i_Finish -> 0 | AV18: =IF(ISNUMBER(FIND("x",BE18)),IFERROR(INDEX(AI18:AQ18,0,MATCH(AT18,AI18:AQ18,0)),AS18),"") -> White | AW18: =IF(ISNUMBER(FIND("x",BE18)),IFERROR(INDEX(INDIRECT("T_FinishColour[ColourCode-"&IF(ISNUMBER(FIND("xxx",BE18)),"xxx",IF(ISNUMBER(FIND("xx",BE18)),"xx","error"))&AR18&"]"),MATCH(AV18,T_FinishColour[Finish / Colour],0)),""),"") ->  | AY18: =IF(AND(ISBLANK(BC18),ISBLANK(C18)),"HIDE",_xlfn.SWITCH(PRODUCT(C18:Z18,B18),2,"HEADING",1,"SHOW",0,"HIDE")) -> HIDE | BC18: =_xlfn.IFNA(SUBSTITUTE(IF(AR18="AU",SUBSTITUTE(BE18,"xxx",AW18),SUBSTITUTE(SUBSTITUTE(BE18,"xx",AW18),"x","")),"LLL",BG18*100),BE18) -> SLBCxx | BE18: SLBCxx | BF18: Skyline 1.5" Bracket Covers | BH18: =IF(ISBLANK(BO18),"",IF(OR(BO18=L_Units),"Y","N")) -> N | BJ18: =IFERROR(_xlfn.SINGLE(IF(BH18="Y",((INDEX(#REF!,MATCH(BI18,#REF!,0),0))),"")),"") ->  | BL18: =IFERROR(IF(BH18="Y",INDIRECT(BK18)-BJ18,""),"") ->  | BM18: =IFERROR(IF(BH18="Y",BL18,""),"") ->  | BN18: =IFERROR(IF(BH18="Y",TEXT(BL18/25.4,"0"&IF(ABS(BL18/25.4-ROUND(BL18/25.4,0))>1/32,"-0/"&CHOOSE(ROUND(MOD(BL18/25.4,1)*16,0),16,8,16,4,16,8,16,2,16,8,16,4,16,8,16),"")),""),"") ->  | BO18: Piece | BP18: =IFERROR(IF(ISBLANK(BC18),"",INDEX(T_NAV_AU[Base Unit of Measure],MATCH(BC18,T_NAV_AU[No.],0))),"") ->  | BS18: HW | BT18: 2 | BU18: =IF(ISBLANK(BT18),"",PRODUCT(AE18,BT18)) -> 2 | BV18: =IF(ISBLANK(BT18),"",PRODUCT(AE18,BT18,i_systemQTY)) -> 2 | BW18: =IFERROR(INDEX(INDIRECT("T_NAV_"&i_Location&"["&i_Location&"]"),MATCH(1,--(BC18=INDIRECT("T_NAV_"&i_Location&"[No.]"))*--((INDIRECT("T_NAV_"&i_Location&"["&i_Location&"]"))<>""),0))/IF(AND(BQ18="METRE",BG18<>"",BR18=""),BG18,1),"") ->  | BX18: =IFERROR(IF(AND(AY18="SHOW",BW18<>""),BW18*BV18*IF(AND(BM18<>"",OR(BP18="LENGTH",BP18="METRE",BP18="ROLL")),(BL18/1000),1),""),"") ->  | BY18: =IF(BX18<>"",(INDIRECT("i_"&BS18&"discount"))*BX18,"") ->  | BZ18: =IFERROR(IF(BX18<>"",BX18-BY18,""),"") -> 
D19: Open | E19: =IFERROR(IF(ISBLANK(D19),"",IF(FIND(D19,INDIRECT($D$16))>0,1,0)),0) -> 0 | G19: =IFERROR(IF(ISBLANK(F19),"",IF(FIND(F19,INDIRECT($F$16))>0,1,0)),0) ->  | H19: LX | I19: =IFERROR(IF(ISBLANK(H19),"",IF(FIND(H19,INDIRECT($H$16))>0,1,0)),0) -> 0 | AI19: White | AR19: AU | AS19: White | AT19: =i_Finish -> 0 | AV19: White | AW19: =IF(ISNUMBER(FIND("x",BE19)),IFERROR(INDEX(INDIRECT("T_FinishColour[ColourCode-"&IF(ISNUMBER(FIND("xxx",BE19)),"xxx",IF(ISNUMBER(FIND("xx",BE19)),"xx","error"))&AR19&"]"),MATCH(AV19,T_FinishColour[Finish / Colour],0)),""),"") -> 069 | AY19: =IF(AND(ISBLANK(BC19),ISBLANK(C19)),"HIDE",_xlfn.SWITCH(PRODUCT(C19:Z19,B19),2,"HEADING",1,"SHOW",0,"HIDE")) -> HIDE | BC19: =_xlfn.IFNA(SUBSTITUTE(IF(AR19="AU",SUBSTITUTE(BE19,"xxx",AW19),SUBSTITUTE(SUBSTITUTE(BE19,"xx",AW19),"x","")),"LLL",BG19*100),BE19) -> SL01-0306-069040 | BE19: SL01-0306-xxx040 | BF19: LX Skyline Brackets | BH19: =IF(ISBLANK(BO19),"",IF(OR(BO19=L_Units),"Y","N")) -> N | BJ19: =IFERROR(_xlfn.SINGLE(IF(BH19="Y",((INDEX(#REF!,MATCH(BI19,#REF!,0),0))),"")),"") ->  | BO19: Piece | BP19: =IFERROR(IF(ISBLANK(BC19),"",INDEX(T_NAV_AU[Base Unit of Measure],MATCH(BC19,T_NAV_AU[No.],0))),"") ->  | BS19: HW | BT19: 2 | BU19: 2 | BV19: 2 | BW19: =IFERROR(INDEX(INDIRECT("T_NAV_"&i_Location&"["&i_Location&"]"),MATCH(1,--(BC19=INDIRECT("T_NAV_"&i_Location&"[No.]"))*--((INDIRECT("T_NAV_"&i_Location&"["&i_Location&"]"))<>""),0))/IF(AND(BQ19="METRE",BG19<>"",BR19=""),BG19,1),"") -> 
D20: Open | E20: =IFERROR(IF(ISBLANK(D20),"",IF(FIND(D20,INDIRECT($D$16))>0,1,0)),0) -> 0 | F20: Yes | G20: =IFERROR(IF(ISBLANK(F20),"",IF(FIND(F20,INDIRECT($F$16))>0,1,0)),0) -> 0 | H20: LX | I20: =IFERROR(IF(ISBLANK(H20),"",IF(FIND(H20,INDIRECT($H$16))>0,1,0)),0) -> 0 | AI20: White | AR20: AU | AS20: =IF(ISNUMBER(FIND("x",BE20)),IFERROR(INDEX(AI20:AQ20,0,MATCH(AT20,AI20:AQ20,0)),IF(AI20<>"",AI20,i_DefaultColour)),"") -> White | AT20: =i_Finish -> 0 | AV20: =IF(ISNUMBER(FIND("x",BE20)),IFERROR(INDEX(AI20:AQ20,0,MATCH(AT20,AI20:AQ20,0)),AS20),"") -> White | AW20: =IF(ISNUMBER(FIND("x",BE20)),IFERROR(INDEX(INDIRECT("T_FinishColour[ColourCode-"&IF(ISNUMBER(FIND("xxx",BE20)),"xxx",IF(ISNUMBER(FIND("xx",BE20)),"xx","error"))&AR20&"]"),MATCH(AV20,T_FinishColour[Finish / Colour],0)),""),"") -> 069 | AY20: =IF(AND(ISBLANK(BC20),ISBLANK(C20)),"HIDE",_xlfn.SWITCH(PRODUCT(C20:Z20,B20),2,"HEADING",1,"SHOW",0,"HIDE")) -> HIDE | BC20: =_xlfn.IFNA(SUBSTITUTE(IF(AR20="AU",SUBSTITUTE(BE20,"xxx",AW20),SUBSTITUTE(SUBSTITUTE(BE20,"xx",AW20),"x","")),"LLL",BG20*100),BE20) -> RB08-4151-069040 | BE20: RB08-4151-xxx040 | BF20: LX Bracket Covers | BH20: =IF(ISBLANK(BO20),"",IF(OR(BO20=L_Units),"Y","N")) -> N | BJ20: =IFERROR(_xlfn.SINGLE(IF(BH20="Y",((INDEX(#REF!,MATCH(BI20,#REF!,0),0))),"")),"") ->  | BL20: =IFERROR(IF(BH20="Y",INDIRECT(BK20)-BJ20,""),"") ->  | BM20: =IFERROR(IF(BH20="Y",BL20,""),"") ->  | BN20: =IFERROR(IF(BH20="Y",TEXT(BL20/25.4,"0"&IF(ABS(BL20/25.4-ROUND(BL20/25.4,0))>1/32,"-0/"&CHOOSE(ROUND(MOD(BL20/25.4,1)*16,0),16,8,16,4,16,8,16,2,16,8,16,4,16,8,16),"")),""),"") ->  | BO20: Piece | BP20: =IFERROR(IF(ISBLANK(BC20),"",INDEX(T_NAV_AU[Base Unit of Measure],MATCH(BC20,T_NAV_AU[No.],0))),"") ->  | BS20: HW | BT20: 2 | BU20: =IF(ISBLANK(BT20),"",PRODUCT(AE20,BT20)) -> 2 | BV20: =IF(ISBLANK(BT20),"",PRODUCT(AE20,BT20,i_systemQTY)) -> 2 | BW20: =IFERROR(INDEX(INDIRECT("T_NAV_"&i_Location&"["&i_Location&"]"),MATCH(1,--(BC20=INDIRECT("T_NAV_"&i_Location&"[No.]"))*--((INDIRECT("T_NAV_"&i_Location&"["&i_Location&"]"))<>""),0))/IF(AND(BQ20="METRE",BG20<>"",BR20=""),BG20,1),"") ->  | BX20: =IFERROR(IF(AND(AY20="SHOW",BW20<>""),BW20*BV20*IF(AND(BM20<>"",OR(BP20="LENGTH",BP20="METRE",BP20="ROLL")),(BL20/1000),1),""),"") ->  | BY20: =IF(BX20<>"",(INDIRECT("i_"&BS20&"discount"))*BX20,"") ->  | BZ20: =IFERROR(IF(BX20<>"",BX20-BY20,""),"") -> 
B21: 2 | C21: =C22 -> 0 | AW21: =IF(ISNUMBER(FIND("x",BE21)),IFERROR(INDEX(INDIRECT("T_FinishColour[ColourCode-"&IF(ISNUMBER(FIND("xxx",BE21)),"xxx",IF(ISNUMBER(FIND("xx",BE21)),"xx","error"))&AR21&"]"),MATCH(AV21,T_FinishColour[Finish / Colour],0)),""),"") ->  | AY21: =IF(AND(ISBLANK(BC21),ISBLANK(C21)),"HIDE",_xlfn.SWITCH(PRODUCT(C21:Z21,B21),2,"HEADING",1,"SHOW",0,"HIDE")) -> HIDE | BC21: =_xlfn.IFNA(SUBSTITUTE(IF(AR21="AU",SUBSTITUTE(BE21,"xxx",AW21),SUBSTITUTE(SUBSTITUTE(BE21,"xx",AW21),"x","")),"LLL","580"),BE21) ->  | BH21: =IF(ISBLANK(BO21),"",IF(OR(BO21=L_Units),"Y","N")) ->  | BJ21: =IFERROR(_xlfn.SINGLE(IF(BH21="Y",((INDEX(#REF!,MATCH(BI21,#REF!,0),0))),"")),"") ->  | BL21: =IFERROR(IF(BH21="Y",INDIRECT(BK21)-BJ21,""),"") ->  | BP21: =IFERROR(IF(ISBLANK(BC21),"",INDEX(T_NAV_AU[Base Unit of Measure],MATCH(BC21,T_NAV_AU[No.],0))),"") ->  | BW21: =IFERROR(INDEX(INDIRECT("T_NAV_"&i_Location&"["&i_Location&"]"),MATCH(1,--(BC21=INDIRECT("T_NAV_"&i_Location&"[No.]"))*--((INDIRECT("T_NAV_"&i_Location&"["&i_Location&"]"))<>""),0))/IF(AND(BQ21="METRE",BG21<>"",BR21=""),BG21,1),"") ->  | BX21: =IFERROR(IF(AND(AY21="SHOW",BW21<>""),BW21*BV21*IF(AND(BM21<>"",OR(BP21="LENGTH",BP21="METRE",BP21="ROLL")),(BL21/1000),1),""),"") ->  | BY21: =IF(BX21<>"",(INDIRECT("i_"&BS21&"discount"))*BX21,"") ->  | BZ21: =IFERROR(IF(BX21<>"",BX21-BY21,""),"") -> 
B22: 2 | C22: =IF(COUNTIF(AY23:AY29,"SHOW")>0,1,0) -> 0 | D22: i_ControlType | F22: i_Tube | AW22: =IF(ISNUMBER(FIND("x",BE22)),IFERROR(INDEX(INDIRECT("T_FinishColour[ColourCode-"&IF(ISNUMBER(FIND("xxx",BE22)),"xxx",IF(ISNUMBER(FIND("xx",BE22)),"xx","error"))&AR22&"]"),MATCH(AV22,T_FinishColour[Finish / Colour],0)),""),"") ->  | AY22: =IF(AND(ISBLANK(BC22),ISBLANK(C22)),"HIDE",_xlfn.SWITCH(PRODUCT(C22:Z22,B22),2,"HEADING",1,"SHOW",0,"HIDE")) -> HIDE | BC22: EASY SPRING AIR | BE22: EASY SPRING AIR | BJ22: =IFERROR(_xlfn.SINGLE(IF(BH22="Y",((INDEX(#REF!,MATCH(BI22,#REF!,0),0))),"")),"") ->  | BP22: =IFERROR(IF(ISBLANK(BC22),"",INDEX(T_NAV_AU[Base Unit of Measure],MATCH(BC22,T_NAV_AU[No.],0))),"") ->  | BV22: =IF(ISBLANK(BT22),"",PRODUCT(AE22,BT22,i_systemQTY)) ->  | BW22: =IFERROR(INDEX(INDIRECT("T_NAV_"&i_Location&"["&i_Location&"]"),MATCH(1,--(BC22=INDIRECT("T_NAV_"&i_Location&"[No.]"))*--((INDIRECT("T_NAV_"&i_Location&"["&i_Location&"]"))<>""),0))/IF(AND(BQ22="METRE",BG22<>"",BR22=""),BG22,1),"") -> 
D23: MICRO | E23: =IFERROR(IF(ISBLANK(D23),"",IF(FIND(D23,INDIRECT($D$22))>0,1,0)),0) -> 0 | G23: =IFERROR(IF(ISBLANK(F23),"",IF(FIND(F23,INDIRECT($F$22))>0,1,0)),0) ->  | I23: =IFERROR(IF(ISBLANK(H23),"",IF(FIND(H23,INDIRECT($H$22))>0,1,0)),0) ->  | K23: =IFERROR(IF(ISBLANK(J23),"",IF(FIND(J23,INDIRECT($J$22))>0,1,0)),0) ->  | M23: =IFERROR(IF(ISBLANK(L23),"",IF(FIND(L23,INDIRECT($L$22))>0,1,0)),0) ->  | AI23: White | AR23: AU | AS23: =IF(ISNUMBER(FIND("x",BE23)),IFERROR(INDEX(AI23:AQ23,0,MATCH(AT23,AI23:AQ23,0)),IF(AI23<>"",AI23,i_DefaultColour)),"") -> White | AT23: =i_Finish -> 0 | AV23: =IF(ISNUMBER(FIND("x",BE23)),IFERROR(INDEX(AI23:AQ23,0,MATCH(AT23,AI23:AQ23,0)),AS23),"") -> White | AW23: =IF(ISNUMBER(FIND("x",BE23)),IFERROR(INDEX(INDIRECT("T_FinishColour[ColourCode-"&IF(ISNUMBER(FIND("xxx",BE23)),"xxx",IF(ISNUMBER(FIND("xx",BE23)),"xx","error"))&AR23&"]"),MATCH(AV23,T_FinishColour[Finish / Colour],0)),""),"") -> 069 | AY23: =IF(AND(ISBLANK(BC23),ISBLANK(C23)),"HIDE",_xlfn.SWITCH(PRODUCT(C23:Z23,B23),2,"HEADING",1,"SHOW",0,"HIDE")) -> HIDE | BC23: RB12-3828-069038 | BE23: RB12-3828-xxx038 | BF23: Easy Spring Air MICRO w. Adjust - 1.5" LH | BH23: =IF(ISBLANK(BO23),"",IF(OR(BO23=L_Units),"Y","N")) -> N | BJ23: =IFERROR(_xlfn.SINGLE(IF(BH23="Y",((INDEX(#REF!,MATCH(BI23,#REF!,0),0))),"")),"") ->  | BM23: =IFERROR(IF(BH23="Y",BL23,""),"") ->  | BN23: =IFERROR(IF(BH23="Y",TEXT(BL23/25.4,"0"&IF(ABS(BL23/25.4-ROUND(BL23/25.4,0))>1/32,"-0/"&CHOOSE(ROUND(MOD(BL23/25.4,1)*16,0),16,8,16,4,16,8,16,2,16,8,16,4,16,8,16),"")),""),"") ->  | BO23: Set | BP23: =IFERROR(IF(ISBLANK(BC23),"",INDEX(T_NAV_AU[Base Unit of Measure],MATCH(BC23,T_NAV_AU[No.],0))),"") ->  | BS23: HW | BT23: 1 | BU23: 1 | BV23: 1 | BW23: =IFERROR(INDEX(INDIRECT("T_NAV_"&i_Location&"["&i_Location&"]"),MATCH(1,--(BC23=INDIRECT("T_NAV_"&i_Location&"[No.]"))*--((INDIRECT("T_NAV_"&i_Location&"["&i_Location&"]"))<>""),0))/IF(AND(BQ23="METRE",BG23<>"",BR23=""),BG23,1),"") -> 
D24: SMALL | E24: 0 | AI24: White | AR24: AU | AS24: =IF(ISNUMBER(FIND("x",BE24)),IFERROR(INDEX(AI24:AQ24,0,MATCH(AT24,AI24:AQ24,0)),IF(AI24<>"",AI24,i_DefaultColour)),"") -> White | AT24: 0 | AV24: =IF(ISNUMBER(FIND("x",BE24)),IFERROR(INDEX(AI24:AQ24,0,MATCH(AT24,AI24:AQ24,0)),AS24),"") -> White | AW24: =IF(ISNUMBER(FIND("x",BE24)),IFERROR(INDEX(INDIRECT("T_FinishColour[ColourCode-"&IF(ISNUMBER(FIND("xxx",BE24)),"xxx",IF(ISNUMBER(FIND("xx",BE24)),"xx","error"))&AR24&"]"),MATCH(AV24,T_FinishColour[Finish / Colour],0)),""),"") -> 069 | AY24: =IF(AND(ISBLANK(BC24),ISBLANK(C24)),"HIDE",_xlfn.SWITCH(PRODUCT(C24:Z24,B24),2,"HEADING",1,"SHOW",0,"HIDE")) -> HIDE | BC24: =_xlfn.IFNA(SUBSTITUTE(IF(AR24="AU",SUBSTITUTE(BE24,"xxx",AW24),SUBSTITUTE(SUBSTITUTE(BE24,"xx",AW24),"x","")),"LLL","580"),BE24) -> RB12-3829-069038 | BE24: RB12-3829-xxx038 | BF24: Easy Spring Air SMALL w. Adjust - 1.5" LH | BH24: =IF(ISBLANK(BO24),"",IF(OR(BO24=L_Units),"Y","N")) -> N | BJ24: =IFERROR(_xlfn.SINGLE(IF(BH24="Y",((INDEX(#REF!,MATCH(BI24,#REF!,0),0))),"")),"") ->  | BL24: =IFERROR(IF(BH24="Y",INDIRECT(BK24)-BJ24,""),"") ->  | BM24: =IFERROR(IF(BH24="Y",BL24,""),"") ->  | BN24: =IFERROR(IF(BH24="Y",TEXT(BL24/25.4,"0"&IF(ABS(BL24/25.4-ROUND(BL24/25.4,0))>1/32,"-0/"&CHOOSE(ROUND(MOD(BL24/25.4,1)*16,0),16,8,16,4,16,8,16,2,16,8,16,4,16,8,16),"")),""),"") ->  | BO24: Set | BP24: =IFERROR(IF(ISBLANK(BC24),"",INDEX(T_NAV_AU[Base Unit of Measure],MATCH(BC24,T_NAV_AU[No.],0))),"") ->  | BS24: HW | BT24: 1 | BU24: =IF(ISBLANK(BT24),"",PRODUCT(AE24,BT24)) -> 1 | BV24: =IF(ISBLANK(BT24),"",PRODUCT(AE24,BT24,i_systemQTY)) -> 1 | BW24: =IFERROR(INDEX(INDIRECT("T_NAV_"&i_Location&"["&i_Location&"]"),MATCH(1,--(BC24=INDIRECT("T_NAV_"&i_Location&"[No.]"))*--((INDIRECT("T_NAV_"&i_Location&"["&i_Location&"]"))<>""),0))/IF(AND(BQ24="METRE",BG24<>"",BR24=""),BG24,1),"") ->  | BX24: =IFERROR(IF(AND(AY24="SHOW",BW24<>""),BW24*BV24*IF(AND(BM24<>"",OR(BP24="LENGTH",BP24="METRE",BP24="ROLL")),(BL24/1000),1),""),"") ->  | BY24: =IF(BX24<>"",(INDIRECT("i_"&BS24&"discount"))*BX24,"") ->  | BZ24: =IFERROR(IF(BX24<>"",BX24-BY24,""),"") -> 
D25: MINI | E25: 0 | AI25: White | AR25: AU | AS25: White | AT25: 0 | AV25: White | AW25: =IF(ISNUMBER(FIND("x",BE25)),IFERROR(INDEX(INDIRECT("T_FinishColour[ColourCode-"&IF(ISNUMBER(FIND("xxx",BE25)),"xxx",IF(ISNUMBER(FIND("xx",BE25)),"xx","error"))&AR25&"]"),MATCH(AV25,T_FinishColour[Finish / Colour],0)),""),"") -> 069 | AY25: =IF(AND(ISBLANK(BC25),ISBLANK(C25)),"HIDE",_xlfn.SWITCH(PRODUCT(C25:Z25,B25),2,"HEADING",1,"SHOW",0,"HIDE")) -> HIDE | BC25: RB12-3831-069038 | BE25: RB12-3831-xxx038 | BF25: Easy Spring Air MINI w. Adjust - 1.5" LH | BH25: =IF(ISBLANK(BO25),"",IF(OR(BO25=L_Units),"Y","N")) -> N | BJ25: =IFERROR(_xlfn.SINGLE(IF(BH25="Y",((INDEX(#REF!,MATCH(BI25,#REF!,0),0))),"")),"") ->  | BO25: Set | BP25: =IFERROR(IF(ISBLANK(BC25),"",INDEX(T_NAV_AU[Base Unit of Measure],MATCH(BC25,T_NAV_AU[No.],0))),"") ->  | BS25: HW | BT25: 1 | BU25: 1 | BV25: 1 | BW25: =IFERROR(INDEX(INDIRECT("T_NAV_"&i_Location&"["&i_Location&"]"),MATCH(1,--(BC25=INDIRECT("T_NAV_"&i_Location&"[No.]"))*--((INDIRECT("T_NAV_"&i_Location&"["&i_Location&"]"))<>""),0))/IF(AND(BQ25="METRE",BG25<>"",BR25=""),BG25,1),"") -> 
D26: LIGHT | E26: 0 | AI26: White | AR26: AU | AS26: White | AT26: 0 | AV26: White | AW26: =IF(ISNUMBER(FIND("x",BE26)),IFERROR(INDEX(INDIRECT("T_FinishColour[ColourCode-"&IF(ISNUMBER(FIND("xxx",BE26)),"xxx",IF(ISNUMBER(FIND("xx",BE26)),"xx","error"))&AR26&"]"),MATCH(AV26,T_FinishColour[Finish / Colour],0)),""),"") -> 069 | AY26: =IF(AND(ISBLANK(BC26),ISBLANK(C26)),"HIDE",_xlfn.SWITCH(PRODUCT(C26:Z26,B26),2,"HEADING",1,"SHOW",0,"HIDE")) -> HIDE | BC26: RB12-3832-069038 | BE26: RB12-3832-xxx038 | BF26: Easy Spring Air LIGHT w. Adjust - 1.5" LH | BH26: =IF(ISBLANK(BO26),"",IF(OR(BO26=L_Units),"Y","N")) -> N | BJ26: =IFERROR(_xlfn.SINGLE(IF(BH26="Y",((INDEX(#REF!,MATCH(BI26,#REF!,0),0))),"")),"") ->  | BO26: Set | BP26: =IFERROR(IF(ISBLANK(BC26),"",INDEX(T_NAV_AU[Base Unit of Measure],MATCH(BC26,T_NAV_AU[No.],0))),"") ->  | BS26: HW | BT26: 1 | BU26: 1 | BV26: 1 | BW26: =IFERROR(INDEX(INDIRECT("T_NAV_"&i_Location&"["&i_Location&"]"),MATCH(1,--(BC26=INDIRECT("T_NAV_"&i_Location&"[No.]"))*--((INDIRECT("T_NAV_"&i_Location&"["&i_Location&"]"))<>""),0))/IF(AND(BQ26="METRE",BG26<>"",BR26=""),BG26,1),"") -> 
D27: MED | E27: 0 | AI27: White | AR27: AU | AS27: White | AT27: 0 | AV27: White | AW27: =IF(ISNUMBER(FIND("x",BE27)),IFERROR(INDEX(INDIRECT("T_FinishColour[ColourCode-"&IF(ISNUMBER(FIND("xxx",BE27)),"xxx",IF(ISNUMBER(FIND("xx",BE27)),"xx","error"))&AR27&"]"),MATCH(AV27,T_FinishColour[Finish / Colour],0)),""),"") -> 069 | AY27: =IF(AND(ISBLANK(BC27),ISBLANK(C27)),"HIDE",_xlfn.SWITCH(PRODUCT(C27:Z27,B27),2,"HEADING",1,"SHOW",0,"HIDE")) -> HIDE | BC27: RB12-3833-069038 | BE27: RB12-3833-xxx038 | BF27: Easy Spring Air MEDIUM w. Adjust - 1.5" LH | BH27: =IF(ISBLANK(BO27),"",IF(OR(BO27=L_Units),"Y","N")) -> N | BJ27: =IFERROR(_xlfn.SINGLE(IF(BH27="Y",((INDEX(#REF!,MATCH(BI27,#REF!,0),0))),"")),"") ->  | BO27: Set | BP27: =IFERROR(IF(ISBLANK(BC27),"",INDEX(T_NAV_AU[Base Unit of Measure],MATCH(BC27,T_NAV_AU[No.],0))),"") ->  | BS27: HW | BT27: 1 | BU27: =IF(ISBLANK(BT27),"",PRODUCT(AE27,BT27)) -> 1 | BV27: 1 | BW27: =IFERROR(INDEX(INDIRECT("T_NAV_"&i_Location&"["&i_Location&"]"),MATCH(1,--(BC27=INDIRECT("T_NAV_"&i_Location&"[No.]"))*--((INDIRECT("T_NAV_"&i_Location&"["&i_Location&"]"))<>""),0))/IF(AND(BQ27="METRE",BG27<>"",BR27=""),BG27,1),"") -> 
D28: HEAVY | E28: 0 | AI28: White | AR28: AU | AS28: White | AT28: 0 | AV28: White | AW28: =IF(ISNUMBER(FIND("x",BE28)),IFERROR(INDEX(INDIRECT("T_FinishColour[ColourCode-"&IF(ISNUMBER(FIND("xxx",BE28)),"xxx",IF(ISNUMBER(FIND("xx",BE28)),"xx","error"))&AR28&"]"),MATCH(AV28,T_FinishColour[Finish / Colour],0)),""),"") -> 069 | AY28: =IF(AND(ISBLANK(BC28),ISBLANK(C28)),"HIDE",_xlfn.SWITCH(PRODUCT(C28:Z28,B28),2,"HEADING",1,"SHOW",0,"HIDE")) -> HIDE | BC28: RB12-3834-069038 | BE28: RB12-3834-xxx038 | BF28: Easy Spring Air HEAVY w. Adjust - 1.5" LH | BH28: =IF(ISBLANK(BO28),"",IF(OR(BO28=L_Units),"Y","N")) -> N | BJ28: =IFERROR(_xlfn.SINGLE(IF(BH28="Y",((INDEX(#REF!,MATCH(BI28,#REF!,0),0))),"")),"") ->  | BO28: Set | BP28: =IFERROR(IF(ISBLANK(BC28),"",INDEX(T_NAV_AU[Base Unit of Measure],MATCH(BC28,T_NAV_AU[No.],0))),"") ->  | BS28: HW | BT28: 1 | BU28: 1 | BV28: 1 | BW28: =IFERROR(INDEX(INDIRECT("T_NAV_"&i_Location&"["&i_Location&"]"),MATCH(1,--(BC28=INDIRECT("T_NAV_"&i_Location&"[No.]"))*--((INDIRECT("T_NAV_"&i_Location&"["&i_Location&"]"))<>""),0))/IF(AND(BQ28="METRE",BG28<>"",BR28=""),BG28,1),"") -> 
E29: =IFERROR(IF(ISBLANK(D29),"",IF(FIND(D29,INDIRECT($D$31))>0,1,0)),0) ->  | F29: 2" | G29: =IFERROR(IF(ISBLANK(F29),"",IF(FIND(F29,INDIRECT($F$22))>0,1,0)),0) -> 0 | AR29: AU | AS29: White | AV29: White | AW29: 069 | AY29: =IF(AND(ISBLANK(BC29),ISBLANK(C29)),"HIDE",_xlfn.SWITCH(PRODUCT(C29:Z29,B29),2,"HEADING",1,"SHOW",0,"HIDE")) -> HIDE | BC29: RB01-0107-069050 | BE29: RB01-0107-xxx050 | BF29: Easy Spring Air Adapter kit, 2" | BH29: N | BO29: Set | BP29: =IFERROR(IF(ISBLANK(BC29),"",INDEX(T_NAV_AU[Base Unit of Measure],MATCH(BC29,T_NAV_AU[No.],0))),"") ->  | BS29: HW | BT29: 1 | BU29: 1 | BV29: 1
B30: 2 | C30: =C31 -> 0 | AS30: =IF(ISNUMBER(FIND("x",BE30)),IFERROR(INDEX(AI30:AQ30,0,MATCH(AT30,AI30:AQ30,0)),IF(AI30<>"",AI30,i_DefaultColour)),"") ->  | AV30: =IF(ISNUMBER(FIND("x",BE30)),IFERROR(INDEX(AI30:AQ30,0,MATCH(AT30,AI30:AQ30,0)),AS30),"") ->  | AW30: =IF(ISNUMBER(FIND("x",BE30)),IFERROR(INDEX(INDIRECT("T_FinishColour[ColourCode-"&IF(ISNUMBER(FIND("xxx",BE30)),"xxx",IF(ISNUMBER(FIND("xx",BE30)),"xx","error"))&AR30&"]"),MATCH(AV30,T_FinishColour[Finish / Colour],0)),""),"") ->  | AY30: =IF(AND(ISBLANK(BC30),ISBLANK(C30)),"HIDE",_xlfn.SWITCH(PRODUCT(C30:Z30,B30),2,"HEADING",1,"SHOW",0,"HIDE")) -> HIDE | BC30: =_xlfn.IFNA(SUBSTITUTE(IF(AR30="AU",SUBSTITUTE(BE30,"xxx",AW30),SUBSTITUTE(SUBSTITUTE(BE30,"xx",AW30),"x","")),"LLL","580"),BE30) ->  | BJ30: =IFERROR(_xlfn.SINGLE(IF(BH30="Y",((INDEX(#REF!,MATCH(BI30,#REF!,0),0))),"")),"") ->  | BL30: =IFERROR(IF(BH30="Y",INDIRECT(BK30)-BJ30,""),"") ->  | BM30: =IFERROR(IF(BH30="Y",BL30,""),"") ->  | BN30: =IFERROR(IF(BH30="Y",TEXT(BL30/25.4,"0"&IF(ABS(BL30/25.4-ROUND(BL30/25.4,0))>1/32,"-0/"&CHOOSE(ROUND(MOD(BL30/25.4,1)*16,0),16,8,16,4,16,8,16,2,16,8,16,4,16,8,16),"")),""),"") ->  | BP30: =IFERROR(IF(ISBLANK(BC30),"",INDEX(T_NAV_AU[Base Unit of Measure],MATCH(BC30,T_NAV_AU[No.],0))),"") ->  | BU30: =IF(ISBLANK(BT30),"",PRODUCT(AE30,BT30)) ->  | BV30: =IF(ISBLANK(BT30),"",PRODUCT(AE30,BT30,i_systemQTY)) ->  | BW30: =IFERROR(INDEX(INDIRECT("T_NAV_"&i_Location&"["&i_Location&"]"),MATCH(1,--(BC30=INDIRECT("T_NAV_"&i_Location&"[No.]"))*--((INDIRECT("T_NAV_"&i_Location&"["&i_Location&"]"))<>""),0))/IF(AND(BQ30="METRE",BG30<>"",BR30=""),BG30,1),"") ->  | BX30: =IFERROR(IF(AND(AY30="SHOW",BW30<>""),BW30*BV30*IF(AND(BM30<>"",OR(BP30="LENGTH",BP30="METRE",BP30="ROLL")),(BL30/1000),1),""),"") ->  | BY30: =IF(BX30<>"",(INDIRECT("i_"&BS30&"discount"))*BX30,"") ->  | BZ30: =IFERROR(IF(BX30<>"",BX30-BY30,""),"") -> 
B31: 2 | C31: =IF(COUNTIF(AY32:AY36,"SHOW")>0,1,0) -> 0 | D31: i_Tube | F31: i_IdlerType | AS31: =IF(ISNUMBER(FIND("x",BE31)),IFERROR(INDEX(AI31:AQ31,0,MATCH(AT31,AI31:AQ31,0)),IF(AI31<>"",AI31,i_DefaultColour)),"") ->  | AV31: =IF(ISNUMBER(FIND("x",BE31)),IFERROR(INDEX(AI31:AQ31,0,MATCH(AT31,AI31:AQ31,0)),AS31),"") ->  | AW31: =IF(ISNUMBER(FIND("x",BE31)),IFERROR(INDEX(INDIRECT("T_FinishColour[ColourCode-"&IF(ISNUMBER(FIND("xxx",BE31)),"xxx",IF(ISNUMBER(FIND("xx",BE31)),"xx","error"))&AR31&"]"),MATCH(AV31,T_FinishColour[Finish / Colour],0)),""),"") ->  | AY31: =IF(AND(ISBLANK(BC31),ISBLANK(C31)),"HIDE",_xlfn.SWITCH(PRODUCT(C31:Z31,B31),2,"HEADING",1,"SHOW",0,"HIDE")) -> HIDE | BC31: IDLER | BE31: IDLER | BJ31: =IFERROR(_xlfn.SINGLE(IF(BH31="Y",((INDEX(#REF!,MATCH(BI31,#REF!,0),0))),"")),"") ->  | BL31: =IFERROR(IF(BH31="Y",INDIRECT(BK31)-BJ31,""),"") ->  | BM31: =IFERROR(IF(BH31="Y",BL31,""),"") ->  | BN31: =IFERROR(IF(BH31="Y",TEXT(BL31/25.4,"0"&IF(ABS(BL31/25.4-ROUND(BL31/25.4,0))>1/32,"-0/"&CHOOSE(ROUND(MOD(BL31/25.4,1)*16,0),16,8,16,4,16,8,16,2,16,8,16,4,16,8,16),"")),""),"") ->  | BP31: =IFERROR(IF(ISBLANK(BC31),"",INDEX(T_NAV_AU[Base Unit of Measure],MATCH(BC31,T_NAV_AU[No.],0))),"") ->  | BU31: =IF(ISBLANK(BT31),"",PRODUCT(AE31,BT31)) ->  | BV31: =IF(ISBLANK(BT31),"",PRODUCT(AE31,BT31,i_systemQTY)) ->  | BW31: =IFERROR(INDEX(INDIRECT("T_NAV_"&i_Location&"["&i_Location&"]"),MATCH(1,--(BC31=INDIRECT("T_NAV_"&i_Location&"[No.]"))*--((INDIRECT("T_NAV_"&i_Location&"["&i_Location&"]"))<>""),0))/IF(AND(BQ31="METRE",BG31<>"",BR31=""),BG31,1),"") ->  | BX31: =IFERROR(IF(AND(AY31="SHOW",BW31<>""),BW31*BV31*IF(AND(BM31<>"",OR(BP31="LENGTH",BP31="METRE",BP31="ROLL")),(BL31/1000),1),""),"") ->  | BY31: =IF(BX31<>"",(INDIRECT("i_"&BS31&"discount"))*BX31,"") ->  | BZ31: =IFERROR(IF(BX31<>"",BX31-BY31,""),"") -> 
E32: =IFERROR(IF(ISBLANK(D32),"",IF(FIND(D32,INDIRECT($D$31))>0,1,0)),0) ->  | F32: Skyline Pin End | G32: =IFERROR(IF(ISBLANK(F32),"",IF(FIND(F32,INDIRECT($F$31))>0,1,0)),0) -> 0 | I32: =IFERROR(IF(ISBLANK(H32),"",IF(FIND(H32,INDIRECT($H$31))>0,1,0)),0) ->  | K32: =IFERROR(IF(ISBLANK(J32),"",IF(FIND(J32,INDIRECT($J$31))>0,1,0)),0) ->  | M32: =IFERROR(IF(ISBLANK(L32),"",IF(FIND(L32,INDIRECT($L$31))>0,1,0)),0) ->  | O32: =IFERROR(IF(ISBLANK(N32),"",IF(FIND(N32,INDIRECT($N$31))>0,1,0)),0) ->  | Q32: =IFERROR(IF(ISBLANK(P32),"",IF(FIND(P32,INDIRECT($P$31))>0,1,0)),0) ->  | S32: =IFERROR(IF(ISBLANK(R32),"",IF(FIND(R32,INDIRECT($R$31))>0,1,0)),0) ->  | U32: =IFERROR(IF(ISBLANK(T32),"",IF(FIND(T32,INDIRECT($T$31))>0,1,0)),0) ->  | W32: =IFERROR(IF(ISBLANK(V32),"",IF(FIND(V32,INDIRECT($V$31))>0,1,0)),0) ->  | AR32: AU | AS32: =IF(ISNUMBER(FIND("x",BE32)),IFERROR(INDEX(AI32:AQ32,0,MATCH(AT32,AI32:AQ32,0)),IF(AI32<>"",AI32,i_DefaultColour)),"") -> Black | AT32: =i_Finish -> 0 | AV32: =IF(ISNUMBER(FIND("x",BE32)),IFERROR(INDEX(AI32:AQ32,0,MATCH(AT32,AI32:AQ32,0)),AS32),"") -> Black | AW32: =IF(ISNUMBER(FIND("x",BE32)),IFERROR(INDEX(INDIRECT("T_FinishColour[ColourCode-"&IF(ISNUMBER(FIND("xxx",BE32)),"xxx",IF(ISNUMBER(FIND("xx",BE32)),"xx","error"))&AR32&"]"),MATCH(AV32,T_FinishColour[Finish / Colour],0)),""),"") ->  | AY32: =IF(AND(ISBLANK(BC32),ISBLANK(C32)),"HIDE",_xlfn.SWITCH(PRODUCT(C32:Z32,B32),2,"HEADING",1,"SHOW",0,"HIDE")) -> HIDE | BC32: SLPEV653xx | BE32: SLPEV653xx | BF32: Skyline Pin End 1.5" | BH32: =IF(ISBLANK(BO32),"",IF(OR(BO32=L_Units),"Y","N")) -> N | BJ32: =IFERROR(_xlfn.SINGLE(IF(BH32="Y",((INDEX(#REF!,MATCH(BI32,#REF!,0),0))),"")),"") ->  | BL32: =IFERROR(IF(BH32="Y",INDIRECT(BK32)-BJ32,""),"") ->  | BM32: =IFERROR(IF(BH32="Y",BL32,""),"") ->  | BN32: =IFERROR(IF(BH32="Y",TEXT(BL32/25.4,"0"&IF(ABS(BL32/25.4-ROUND(BL32/25.4,0))>1/32,"-0/"&CHOOSE(ROUND(MOD(BL32/25.4,1)*16,0),16,8,16,4,16,8,16,2,16,8,16,4,16,8,16),"")),""),"") ->  | BO32: Set | BP32: =IFERROR(IF(ISBLANK(BC32),"",INDEX(T_NAV_AU[Base Unit of Measure],MATCH(BC32,T_NAV_AU[No.],0))),"") ->  | BS32: HW | BT32: 1 | BU32: =IF(ISBLANK(BT32),"",PRODUCT(AE32,BT32)) -> 1 | BV32: =IF(ISBLANK(BT32),"",PRODUCT(AE32,BT32,i_systemQTY)) -> 1 | BW32: =IFERROR(INDEX(INDIRECT("T_NAV_"&i_Location&"["&i_Location&"]"),MATCH(1,--(BC32=INDIRECT("T_NAV_"&i_Location&"[No.]"))*--((INDIRECT("T_NAV_"&i_Location&"["&i_Location&"]"))<>""),0))/IF(AND(BQ32="METRE",BG32<>"",BR32=""),BG32,1),"") ->  | BX32: =IFERROR(IF(AND(AY32="SHOW",BW32<>""),BW32*BV32*IF(AND(BM32<>"",OR(BP32="LENGTH",BP32="METRE",BP32="ROLL")),(BL32/1000),1),""),"") ->  | BY32: =IF(BX32<>"",(INDIRECT("i_"&BS32&"discount"))*BX32,"") ->  | BZ32: =IFERROR(IF(BX32<>"",BX32-BY32,""),"") -> 
E33: =IFERROR(IF(ISBLANK(D33),"",IF(FIND(D33,INDIRECT($D$31))>0,1,0)),0) ->  | F33: Heavy | G33: =IFERROR(IF(ISBLANK(F33),"",IF(FIND(F33,INDIRECT($F$31))>0,1,0)),0) -> 0 | I33: =IFERROR(IF(ISBLANK(H33),"",IF(FIND(H33,INDIRECT($H$31))>0,1,0)),0) ->  | K33: =IFERROR(IF(ISBLANK(J33),"",IF(FIND(J33,INDIRECT($J$31))>0,1,0)),0) ->  | M33: =IFERROR(IF(ISBLANK(L33),"",IF(FIND(L33,INDIRECT($L$31))>0,1,0)),0) ->  | O33: =IFERROR(IF(ISBLANK(N33),"",IF(FIND(N33,INDIRECT($N$31))>0,1,0)),0) ->  | Q33: =IFERROR(IF(ISBLANK(P33),"",IF(FIND(P33,INDIRECT($P$31))>0,1,0)),0) ->  | S33: =IFERROR(IF(ISBLANK(R33),"",IF(FIND(R33,INDIRECT($R$31))>0,1,0)),0) ->  | U33: =IFERROR(IF(ISBLANK(T33),"",IF(FIND(T33,INDIRECT($T$31))>0,1,0)),0) ->  | W33: =IFERROR(IF(ISBLANK(V33),"",IF(FIND(V33,INDIRECT($V$31))>0,1,0)),0) ->  | AR33: AU | AS33: =IF(ISNUMBER(FIND("x",BE33)),IFERROR(INDEX(AI33:AQ33,0,MATCH(AT33,AI33:AQ33,0)),IF(AI33<>"",AI33,i_DefaultColour)),"") -> Black | AT33: =i_Finish -> 0 | AV33: =IF(ISNUMBER(FIND("x",BE33)),IFERROR(INDEX(AI33:AQ33,0,MATCH(AT33,AI33:AQ33,0)),AS33),"") -> Black | AW33: =IF(ISNUMBER(FIND("x",BE33)),IFERROR(INDEX(INDIRECT("T_FinishColour[ColourCode-"&IF(ISNUMBER(FIND("xxx",BE33)),"xxx",IF(ISNUMBER(FIND("xx",BE33)),"xx","error"))&AR33&"]"),MATCH(AV33,T_FinishColour[Finish / Colour],0)),""),"") ->  | AY33: =IF(AND(ISBLANK(BC33),ISBLANK(C33)),"HIDE",_xlfn.SWITCH(PRODUCT(C33:Z33,B33),2,"HEADING",1,"SHOW",0,"HIDE")) -> HIDE | BC33: SLPEHD53xx | BE33: SLPEHD53xx | BF33: Skyline Heavy Duty Pin End 1.5" | BH33: =IF(ISBLANK(BO33),"",IF(OR(BO33=L_Units),"Y","N")) -> N | BJ33: =IFERROR(_xlfn.SINGLE(IF(BH33="Y",((INDEX(#REF!,MATCH(BI33,#REF!,0),0))),"")),"") ->  | BL33: =IFERROR(IF(BH33="Y",INDIRECT(BK33)-BJ33,""),"") ->  | BM33: =IFERROR(IF(BH33="Y",BL33,""),"") ->  | BN33: =IFERROR(IF(BH33="Y",TEXT(BL33/25.4,"0"&IF(ABS(BL33/25.4-ROUND(BL33/25.4,0))>1/32,"-0/"&CHOOSE(ROUND(MOD(BL33/25.4,1)*16,0),16,8,16,4,16,8,16,2,16,8,16,4,16,8,16),"")),""),"") ->  | BO33: Set | BP33: =IFERROR(IF(ISBLANK(BC33),"",INDEX(T_NAV_AU[Base Unit of Measure],MATCH(BC33,T_NAV_AU[No.],0))),"") ->  | BS33: HW | BT33: 1 | BU33: =IF(ISBLANK(BT33),"",PRODUCT(AE33,BT33)) -> 1 | BV33: =IF(ISBLANK(BT33),"",PRODUCT(AE33,BT33,i_systemQTY)) -> 1 | BW33: =IFERROR(INDEX(INDIRECT("T_NAV_"&i_Location&"["&i_Location&"]"),MATCH(1,--(BC33=INDIRECT("T_NAV_"&i_Location&"[No.]"))*--((INDIRECT("T_NAV_"&i_Location&"["&i_Location&"]"))<>""),0))/IF(AND(BQ33="METRE",BG33<>"",BR33=""),BG33,1),"") ->  | BX33: =IFERROR(IF(AND(AY33="SHOW",BW33<>""),BW33*BV33*IF(AND(BM33<>"",OR(BP33="LENGTH",BP33="METRE",BP33="ROLL")),(BL33/1000),1),""),"") ->  | BY33: =IF(BX33<>"",(INDIRECT("i_"&BS33&"discount"))*BX33,"") ->  | BZ33: =IFERROR(IF(BX33<>"",BX33-BY33,""),"") -> 
D34: 1.5" | E34: =IFERROR(IF(ISBLANK(D34),"",IF(FIND(D34,INDIRECT($D$31))>0,1,0)),0) -> 0 | F34: Universal | G34: =IFERROR(IF(ISBLANK(F34),"",IF(FIND(F34,INDIRECT($F$31))>0,1,0)),0) -> 0 | I34: =IFERROR(IF(ISBLANK(H34),"",IF(FIND(H34,INDIRECT($H$31))>0,1,0)),0) ->  | K34: =IFERROR(IF(ISBLANK(J34),"",IF(FIND(J34,INDIRECT($J$31))>0,1,0)),0) ->  | M34: =IFERROR(IF(ISBLANK(L34),"",IF(FIND(L34,INDIRECT($L$31))>0,1,0)),0) ->  | O34: =IFERROR(IF(ISBLANK(N34),"",IF(FIND(N34,INDIRECT($N$31))>0,1,0)),0) ->  | Q34: =IFERROR(IF(ISBLANK(P34),"",IF(FIND(P34,INDIRECT($P$31))>0,1,0)),0) ->  | S34: =IFERROR(IF(ISBLANK(R34),"",IF(FIND(R34,INDIRECT($R$31))>0,1,0)),0) ->  | U34: =IFERROR(IF(ISBLANK(T34),"",IF(FIND(T34,INDIRECT($T$31))>0,1,0)),0) ->  | W34: =IFERROR(IF(ISBLANK(V34),"",IF(FIND(V34,INDIRECT($V$31))>0,1,0)),0) ->  | AR34: AU | AS34: =IF(ISNUMBER(FIND("x",BE34)),IFERROR(INDEX(AI34:AQ34,0,MATCH(AT34,AI34:AQ34,0)),IF(AI34<>"",AI34,i_DefaultColour)),"") ->  | AT34: =i_Finish -> 0 | AV34: =IF(ISNUMBER(FIND("x",BE34)),IFERROR(INDEX(AI34:AQ34,0,MATCH(AT34,AI34:AQ34,0)),AS34),"") ->  | AW34: =IF(ISNUMBER(FIND("x",BE34)),IFERROR(INDEX(INDIRECT("T_FinishColour[ColourCode-"&IF(ISNUMBER(FIND("xxx",BE34)),"xxx",IF(ISNUMBER(FIND("xx",BE34)),"xx","error"))&AR34&"]"),MATCH(AV34,T_FinishColour[Finish / Colour],0)),""),"") ->  | AY34: =IF(AND(ISBLANK(BC34),ISBLANK(C34)),"HIDE",_xlfn.SWITCH(PRODUCT(C34:Z34,B34),2,"HEADING",1,"SHOW",0,"HIDE")) -> HIDE | BC34: RB12-6101-069038 | BE34: RB12-6101-069038 | BF34: Single Limiter | Universal 1.5" | BH34: =IF(ISBLANK(BO34),"",IF(OR(BO34=L_Units),"Y","N")) -> N | BJ34: =IFERROR(_xlfn.SINGLE(IF(BH34="Y",((INDEX(#REF!,MATCH(BI34,#REF!,0),0))),"")),"") ->  | BL34: =IFERROR(IF(BH34="Y",INDIRECT(BK34)-BJ34,""),"") ->  | BM34: =IFERROR(IF(BH34="Y",BL34,""),"") ->  | BN34: =IFERROR(IF(BH34="Y",TEXT(BL34/25.4,"0"&IF(ABS(BL34/25.4-ROUND(BL34/25.4,0))>1/32,"-0/"&CHOOSE(ROUND(MOD(BL34/25.4,1)*16,0),16,8,16,4,16,8,16,2,16,8,16,4,16,8,16),"")),""),"") ->  | BO34: Set | BP34: =IFERROR(IF(ISBLANK(BC34),"",INDEX(T_NAV_AU[Base Unit of Measure],MATCH(BC34,T_NAV_AU[No.],0))),"") ->  | BS34: HW | BT34: 1 | BU34: =IF(ISBLANK(BT34),"",PRODUCT(AE34,BT34)) -> 1 | BV34: =IF(ISBLANK(BT34),"",PRODUCT(AE34,BT34,i_systemQTY)) -> 1 | BW34: =IFERROR(INDEX(INDIRECT("T_NAV_"&i_Location&"["&i_Location&"]"),MATCH(1,--(BC34=INDIRECT("T_NAV_"&i_Location&"[No.]"))*--((INDIRECT("T_NAV_"&i_Location&"["&i_Location&"]"))<>""),0))/IF(AND(BQ34="METRE",BG34<>"",BR34=""),BG34,1),"") ->  | BX34: =IFERROR(IF(AND(AY34="SHOW",BW34<>""),BW34*BV34*IF(AND(BM34<>"",OR(BP34="LENGTH",BP34="METRE",BP34="ROLL")),(BL34/1000),1),""),"") ->  | BY34: =IF(BX34<>"",(INDIRECT("i_"&BS34&"discount"))*BX34,"") ->  | BZ34: =IFERROR(IF(BX34<>"",BX34-BY34,""),"") -> 
D35: 1.5" | E35: =IFERROR(IF(ISBLANK(D35),"",IF(FIND(D35,INDIRECT($D$31))>0,1,0)),0) -> 0 | F35: Short | G35: =IFERROR(IF(ISBLANK(F35),"",IF(FIND(F35,INDIRECT($F$31))>0,1,0)),0) -> 0 | I35: =IFERROR(IF(ISBLANK(H35),"",IF(FIND(H35,INDIRECT($H$31))>0,1,0)),0) ->  | AR35: AU | AY35: =IF(AND(ISBLANK(BC35),ISBLANK(C35)),"HIDE",_xlfn.SWITCH(PRODUCT(C35:Z35,B35),2,"HEADING",1,"SHOW",0,"HIDE")) -> HIDE | BC35: RB12-6102-069038 | BE35: RB12-6102-069038 | BF35: Single Stop Limiter | Short 1.5" | BH35: N | BL35: =IFERROR(IF(BH35="Y",INDIRECT(BK35)-BJ35,""),"") ->  | BM35: =IFERROR(IF(BH35="Y",BL35,""),"") ->  | BN35: =IFERROR(IF(BH35="Y",TEXT(BL35/25.4,"0"&IF(ABS(BL35/25.4-ROUND(BL35/25.4,0))>1/32,"-0/"&CHOOSE(ROUND(MOD(BL35/25.4,1)*16,0),16,8,16,4,16,8,16,2,16,8,16,4,16,8,16),"")),""),"") ->  | BO35: Set | BP35: =IFERROR(IF(ISBLANK(BC35),"",INDEX(T_NAV_AU[Base Unit of Measure],MATCH(BC35,T_NAV_AU[No.],0))),"") ->  | BS35: HW | BT35: 1 | BU35: =IF(ISBLANK(BT35),"",PRODUCT(AE35,BT35)) -> 1 | BV35: =IF(ISBLANK(BT35),"",PRODUCT(AE35,BT35,i_systemQTY)) -> 1 | BW35: =IFERROR(INDEX(INDIRECT("T_NAV_"&i_Location&"["&i_Location&"]"),MATCH(1,--(BC35=INDIRECT("T_NAV_"&i_Location&"[No.]"))*--((INDIRECT("T_NAV_"&i_Location&"["&i_Location&"]"))<>""),0))/IF(AND(BQ35="METRE",BG35<>"",BR35=""),BG35,1),"") ->  | BX35: =IFERROR(IF(AND(AY35="SHOW",BW35<>""),BW35*BV35*IF(AND(BM35<>"",OR(BP35="LENGTH",BP35="METRE",BP35="ROLL")),(BL35/1000),1),""),"") ->  | BY35: =IF(BX35<>"",(INDIRECT("i_"&BS35&"discount"))*BX35,"") ->  | BZ35: =IFERROR(IF(BX35<>"",BX35-BY35,""),"") -> 
D36: 2" | E36: =IFERROR(IF(ISBLANK(D36),"",IF(FIND(D36,INDIRECT($D$31))>0,1,0)),0) -> 0 | AY36: =IF(AND(ISBLANK(BC36),ISBLANK(C36)),"HIDE",_xlfn.SWITCH(PRODUCT(C36:Z36,B36),2,"HEADING",1,"SHOW",0,"HIDE")) -> HIDE | BC36: RA2 | BE36: RA2xx | BF36: 2" Adapter | BH36: N | BL36: =IFERROR(IF(BH36="Y",INDIRECT(BK36)-BJ36,""),"") ->  | BM36: =IFERROR(IF(BH36="Y",BL36,""),"") ->  | BN36: =IFERROR(IF(BH36="Y",TEXT(BL36/25.4,"0"&IF(ABS(BL36/25.4-ROUND(BL36/25.4,0))>1/32,"-0/"&CHOOSE(ROUND(MOD(BL36/25.4,1)*16,0),16,8,16,4,16,8,16,2,16,8,16,4,16,8,16),"")),""),"") ->  | BO36: Set | BP36: =IFERROR(IF(ISBLANK(BC36),"",INDEX(T_NAV_AU[Base Unit of Measure],MATCH(BC36,T_NAV_AU[No.],0))),"") ->  | BS36: HW | BT36: 1 | BU36: =IF(ISBLANK(BT36),"",PRODUCT(AE36,BT36)) -> 1 | BV36: =IF(ISBLANK(BT36),"",PRODUCT(AE36,BT36,i_systemQTY)) -> 1
AY37: =IF(AND(ISBLANK(BC37),ISBLANK(C37)),"HIDE",_xlfn.SWITCH(PRODUCT(C37:Z37,B37),2,"HEADING",1,"SHOW",0,"HIDE")) -> HIDE
B38: 2 | C38: =C39 -> 0 | AE38: =IFERROR(_xlfn.SINGLE(IF(AND(AA38="Y",PRODUCT(AB38:AD38)=0),o_nScreens,IF(PRODUCT(AB38:AD38)=0,"",PRODUCT(AB38:AD38)))),"") ->  | AS38: =IF(ISNUMBER(FIND("x",BE38)),IFERROR(INDEX(AI38:AQ38,0,MATCH(AT38,AI38:AQ38,0)),IF(AI38<>"",AI38,i_DefaultColour)),"") ->  | AV38: =IF(ISNUMBER(FIND("x",BE38)),IFERROR(INDEX(AI38:AQ38,0,MATCH(AT38,AI38:AQ38,0)),AS38),"") ->  | AW38: =IF(ISNUMBER(FIND("x",BE38)),IFERROR(INDEX(INDIRECT("T_FinishColour[ColourCode-"&IF(ISNUMBER(FIND("xxx",BE38)),"xxx",IF(ISNUMBER(FIND("xx",BE38)),"xx","error"))&AR38&"]"),MATCH(AV38,T_FinishColour[Finish / Colour],0)),""),"") ->  | AY38: =IF(AND(ISBLANK(BC38),ISBLANK(C38)),"HIDE",_xlfn.SWITCH(PRODUCT(C38:Z38,B38),2,"HEADING",1,"SHOW",0,"HIDE")) -> HIDE | BC38: =_xlfn.IFNA(SUBSTITUTE(IF(AR38="AU",SUBSTITUTE(BE38,"xxx",AW38),SUBSTITUTE(SUBSTITUTE(BE38,"xx",AW38),"x","")),"LLL","580"),BE38) ->  | BH38: =IF(ISBLANK(BO38),"",IF(OR(BO38=L_Units),"Y","N")) ->  | BJ38: =IFERROR(_xlfn.SINGLE(IF(BH38="Y",((INDEX(#REF!,MATCH(BI38,#REF!,0),0))),"")),"") ->  | BL38: =IFERROR(IF(BH38="Y",INDIRECT(BK38)-BJ38,""),"") ->  | BP38: =IFERROR(IF(ISBLANK(BC38),"",INDEX(T_NAV_AU[Base Unit of Measure],MATCH(BC38,T_NAV_AU[No.],0))),"") ->  | BV38: =IF(ISBLANK(BT38),"",PRODUCT(AE38,BT38,i_systemQTY)) ->  | BW38: =IFERROR(INDEX(INDIRECT("T_NAV_"&i_Location&"["&i_Location&"]"),MATCH(1,--(BC38=INDIRECT("T_NAV_"&i_Location&"[No.]"))*--((INDIRECT("T_NAV_"&i_Location&"["&i_Location&"]"))<>""),0))/IF(AND(BQ38="METRE",BG38<>"",BR38=""),BG38,1),"") ->  | BX38: =IFERROR(IF(AND(AY38="SHOW",BW38<>""),BW38*BV38*IF(AND(BM38<>"",OR(BP38="LENGTH",BP38="METRE",BP38="ROLL")),(BL38/1000),1),""),"") ->  | BY38: =IF(BX38<>"",(INDIRECT("i_"&BS38&"discount"))*BX38,"") ->  | BZ38: =IFERROR(IF(BX38<>"",BX38-BY38,""),"") -> 
B39: 2 | C39: =IF(COUNTIF(AY40:AY54,"SHOW")>0,1,0) -> 0 | D39: i_WeightBar | F39: i_wbSpline | H39: i_wbAccessories | J39: i_wbSplineTape | L39: i_Location | AW39: =IF(ISNUMBER(FIND("x",BE39)),IFERROR(INDEX(INDIRECT("T_FinishColour[ColourCode-"&IF(ISNUMBER(FIND("xxx",BE39)),"xxx",IF(ISNUMBER(FIND("xx",BE39)),"xx","error"))&AR39&"]"),MATCH(AV39,T_FinishColour[Finish / Colour],0)),""),"") ->  | AY39: =IF(AND(ISBLANK(BC39),ISBLANK(C39)),"HIDE",_xlfn.SWITCH(PRODUCT(C39:Z39,B39),2,"HEADING",1,"SHOW",0,"HIDE")) -> HIDE | BC39: WEIGHT BAR | BE39: =IF(i_Location="US","HEM BAR","WEIGHT BAR") -> WEIGHT BAR | BJ39: =IFERROR(_xlfn.SINGLE(IF(BH39="Y",((INDEX(#REF!,MATCH(BI39,#REF!,0),0))),"")),"") ->  | BP39: =IFERROR(IF(ISBLANK(BC39),"",INDEX(T_NAV_AU[Base Unit of Measure],MATCH(BC39,T_NAV_AU[No.],0))),"") ->  | BW39: =IFERROR(INDEX(INDIRECT("T_NAV_"&i_Location&"["&i_Location&"]"),MATCH(1,--(BC39=INDIRECT("T_NAV_"&i_Location&"[No.]"))*--((INDIRECT("T_NAV_"&i_Location&"["&i_Location&"]"))<>""),0))/IF(AND(BQ39="METRE",BG39<>"",BR39=""),BG39,1),"") -> 
D40: D30 | E40: =IFERROR(IF(ISBLANK(D40),"",IF(FIND(D40,INDIRECT($D$39))>0,1,0)),0) -> 0 | G40: =IFERROR(IF(ISBLANK(F40),"",IF(FIND(F40,INDIRECT($F$39))>0,1,0)),0) ->  | I40: =IFERROR(IF(ISBLANK(H40),"",IF(FIND(H40,INDIRECT($H$39))>0,1,0)),0) ->  | K40: =IFERROR(IF(ISBLANK(J40),"",IF(FIND(J40,INDIRECT($J$39))>0,1,0)),0) ->  | M40: =IFERROR(IF(ISBLANK(L40),"",IF(FIND(L40,INDIRECT($L$39))>0,1,0)),0) ->  | AI40: White | AJ40: Mill | AK40: Anodised | AR40: AU | AS40: White | AT40: =i_Finish -> 0 | AV40: White | AW40: =IF(ISNUMBER(FIND("x",BE40)),IFERROR(INDEX(INDIRECT("T_FinishColour[ColourCode-"&IF(ISNUMBER(FIND("xxx",BE40)),"xxx",IF(ISNUMBER(FIND("xx",BE40)),"xx","error"))&AR40&"]"),MATCH(AV40,T_FinishColour[Finish / Colour],0)),""),"") -> 069 | AY40: =IF(AND(ISBLANK(BC40),ISBLANK(C40)),"HIDE",_xlfn.SWITCH(PRODUCT(C40:Z40,B40),2,"HEADING",1,"SHOW",0,"HIDE")) -> HIDE | BC40: RE15-0101-069580 | BE40: ="RE15-0101-xxxLLL"&IF(i_Finish="Powdercoat","-PF","") -> RE15-0101-xxxLLL | BF40: D30 Medium Bottom Rail | BG40: 5.8 | BH40: =IF(ISBLANK(BO40),"",IF(OR(BO40=L_Units),"Y","N")) ->  | BI40: wb | BJ40: =IFERROR(IF(BH40="Y",((INDEX(T_Deduc18[Deduction],MATCH(BI40,T_Deduc18[Type],0),0))),""),"") ->  | BK40: o_widthmm | BL40: =IFERROR(IF(BH40="Y",INDIRECT(BK40)-BJ40,""),"") ->  | BN40: =IFERROR(IF(BH40="Y",TEXT(BL40/25.4,"0"&IF(ABS(BL40/25.4-ROUND(BL40/25.4,0))>1/32,"-0/"&CHOOSE(ROUND(MOD(BL40/25.4,1)*16,0),16,8,16,4,16,8,16,2,16,8,16,4,16,8,16),"")),""),"") ->  | BO40: =INDEX(T_UnitSelection[Units],MATCH(i_Units,T_UnitSelection[UnitSelection],0)) ->  | BP40: =IFERROR(IF(ISBLANK(BC40),"",INDEX(T_NAV_AU[Base Unit of Measure],MATCH(BC40,T_NAV_AU[No.],0))),"") ->  | BQ40: METRE | BS40: HW | BT40: 1 | BU40: 1 | BV40: 1 | BW40: =IFERROR(INDEX(INDIRECT("T_NAV_"&i_Location&"["&i_Location&"]"),MATCH(1,--(BC40=INDIRECT("T_NAV_"&i_Location&"[No.]"))*--((INDIRECT("T_NAV_"&i_Location&"["&i_Location&"]"))<>""),0))/IF(AND(BQ40="METRE",BG40<>"",BR40=""),BG40,1),"") -> 
D41: D30 | E41: 0 | G41: =IFERROR(IF(ISBLANK(F41),"",IF(FIND(F41,INDIRECT($F$39))>0,1,0)),0) ->  | I41: =IFERROR(IF(ISBLANK(H41),"",IF(FIND(H41,INDIRECT($H$39))>0,1,0)),0) ->  | AR41: AU | AS41: Black | AT41: 0 | AV41: Black | AW41: =IF(ISNUMBER(FIND("x",BE41)),IFERROR(INDEX(INDIRECT("T_FinishColour[ColourCode-"&IF(ISNUMBER(FIND("xxx",BE41)),"xxx",IF(ISNUMBER(FIND("xx",BE41)),"xx","error"))&AR41&"]"),MATCH(AV41,T_FinishColour[Finish / Colour],0)),""),"") -> 050 | AY41: =IF(AND(ISBLANK(BC41),ISBLANK(C41)),"HIDE",_xlfn.SWITCH(PRODUCT(C41:Z41,B41),2,"HEADING",1,"SHOW",0,"HIDE")) -> HIDE | BC41: RE15-0501-050000 | BE41: RE15-0501-xxx000 | BF41: D30 Medium Bottom Rail End Caps LH & RH | BH41: =IF(ISBLANK(BO41),"",IF(OR(BO41=L_Units),"Y","N")) -> N | BJ41: =IFERROR(_xlfn.SINGLE(IF(BH41="Y",((INDEX(#REF!,MATCH(BI41,#REF!,0),0))),"")),"") ->  | BO41: Set | BP41: =IFERROR(IF(ISBLANK(BC41),"",INDEX(T_NAV_AU[Base Unit of Measure],MATCH(BC41,T_NAV_AU[No.],0))),"") -> SET | BS41: HW | BT41: 1 | BU41: 1 | BV41: 1 | BW41: =IFERROR(INDEX(INDIRECT("T_NAV_"&i_Location&"["&i_Location&"]"),MATCH(1,--(BC41=INDIRECT("T_NAV_"&i_Location&"[No.]"))*--((INDIRECT("T_NAV_"&i_Location&"["&i_Location&"]"))<>""),0))/IF(AND(BQ41="METRE",BG41<>"",BR41=""),BG41,1),"") -> 
D42: D30 | E42: 0 | F42: NO | G42: =IFERROR(IF(ISBLANK(F42),"",IF(FIND(F42,INDIRECT($F$39))>0,1,0)),0) -> 0 | I42: =IFERROR(IF(ISBLANK(H42),"",IF(FIND(H42,INDIRECT($H$39))>0,1,0)),0) ->  | O42: =IFERROR(IF(ISBLANK(N42),"",IF(FIND(N42,INDIRECT($N$31))>0,1,0)),0) ->  | Q42: =IFERROR(IF(ISBLANK(P42),"",IF(FIND(P42,INDIRECT($P$31))>0,1,0)),0) ->  | S42: =IFERROR(IF(ISBLANK(R42),"",IF(FIND(R42,INDIRECT($R$31))>0,1,0)),0) ->  | U42: =IFERROR(IF(ISBLANK(T42),"",IF(FIND(T42,INDIRECT($T$31))>0,1,0)),0) ->  | W42: =IFERROR(IF(ISBLANK(V42),"",IF(FIND(V42,INDIRECT($V$31))>0,1,0)),0) ->  | AI42: White | AR42: AU | AS42: White | AT42: 0 | AV42: White | AW42: =IF(ISNUMBER(FIND("x",BE42)),IFERROR(INDEX(INDIRECT("T_FinishColour[ColourCode-"&IF(ISNUMBER(FIND("xxx",BE42)),"xxx",IF(ISNUMBER(FIND("xx",BE42)),"xx","error"))&AR42&"]"),MATCH(AV42,T_FinishColour[Finish / Colour],0)),""),"") -> 069 | AY42: =IF(AND(ISBLANK(BC42),ISBLANK(C42)),"HIDE",_xlfn.SWITCH(PRODUCT(C42:Z42,B42),2,"HEADING",1,"SHOW",0,"HIDE")) -> HIDE | BC42: RE15-0601-069001 | BE42: RE15-0601-xxx001 | BF42: 15mm Flat Spline | BH42: =IF(ISBLANK(BO42),"",IF(OR(BO42=L_Units),"Y","N")) ->  | BI42: wbSeal | BJ42: =IFERROR(IF(BH42="Y",((INDEX(T_Deduc18[Deduction],MATCH(BI42,T_Deduc18[Type],0),0))),""),"") ->  | BK42: o_widthmm | BL42: =IFERROR(IF(BH42="Y",INDIRECT(BK42)-BJ42,""),"") ->  | BO42: =INDEX(T_UnitSelection[Units],MATCH(i_Units,T_UnitSelection[UnitSelection],0)) ->  | BP42: =IFERROR(IF(ISBLANK(BC42),"",INDEX(T_NAV_AU[Base Unit of Measure],MATCH(BC42,T_NAV_AU[No.],0))),"") -> SET | BQ42: METRE | BS42: HW | BT42: 1 | BU42: 1 | BV42: =IF(ISBLANK(BT42),"",PRODUCT(AE42,BT42,i_systemQTY)) -> 1 | BW42: =IFERROR(INDEX(INDIRECT("T_NAV_"&i_Location&"["&i_Location&"]"),MATCH(1,--(BC42=INDIRECT("T_NAV_"&i_Location&"[No.]"))*--((INDIRECT("T_NAV_"&i_Location&"["&i_Location&"]"))<>""),0))/IF(AND(BQ42="METRE",BG42<>"",BR42=""),BG42,1),"") -> 
D43: D30 | E43: 0 | F43: MP | G43: =(IFERROR(IF(ISBLANK(F43),"",IF(FIND(F43,INDIRECT($F$39))>0,1,0)),0)+IF(G44=1,-1,0)) -> 0 | I43: =IFERROR(IF(ISBLANK(H43),"",IF(FIND(H43,INDIRECT($H$39))>0,1,0)),0) ->  | AR43: AU | AT43: 0 | AW43: =IF(ISNUMBER(FIND("x",BE43)),IFERROR(INDEX(INDIRECT("T_FinishColour[ColourCode-"&IF(ISNUMBER(FIND("xxx",BE43)),"xxx",IF(ISNUMBER(FIND("xx",BE43)),"xx","error"))&AR43&"]"),MATCH(AV43,T_FinishColour[Finish / Colour],0)),""),"") ->  | AY43: =IF(AND(ISBLANK(BC43),ISBLANK(C43)),"HIDE",_xlfn.SWITCH(PRODUCT(C43:Z43,B43),2,"HEADING",1,"SHOW",0,"HIDE")) -> HIDE | BC43: RE91-2001-050000 | BE43: RE91-2001-050000 | BF43: 15mm Flat Spline - D/S MP-HR TAPE | BH43: =IF(ISBLANK(BO43),"",IF(OR(BO43=L_Units),"Y","N")) ->  | BI43: wbSeal | BJ43: =IFERROR(IF(BH43="Y",((INDEX(T_Deduc18[Deduction],MATCH(BI43,T_Deduc18[Type],0),0))),""),"") ->  | BK43: o_widthmm | BO43: =INDEX(T_UnitSelection[Units],MATCH(i_Units,T_UnitSelection[UnitSelection],0)) ->  | BP43: =IFERROR(IF(ISBLANK(BC43),"",INDEX(T_NAV_AU[Base Unit of Measure],MATCH(BC43,T_NAV_AU[No.],0))),"") -> SET | BQ43: METRE | BS43: HW | BT43: 1 | BU43: 1 | BV43: 1 | BW43: =IFERROR(INDEX(INDIRECT("T_NAV_"&i_Location&"["&i_Location&"]"),MATCH(1,--(BC43=INDIRECT("T_NAV_"&i_Location&"[No.]"))*--((INDIRECT("T_NAV_"&i_Location&"["&i_Location&"]"))<>""),0))/IF(AND(BQ43="METRE",BG43<>"",BR43=""),BG43,1),"") -> 
D44: D30 | E44: 0 | F44: B/SIDES | G44: =IFERROR(IF(ISBLANK(F44),"",IF(FIND(F44,INDIRECT($F$39))>0,1,0)),0) -> 0 | I44: =IFERROR(IF(ISBLANK(H44),"",IF(FIND(H44,INDIRECT($H$39))>0,1,0)),0) ->  | AI44: White | AJ44: Black | AR44: AU | AS44: White | AT44: 0 | AV44: White | AW44: =IF(ISNUMBER(FIND("x",BE44)),IFERROR(INDEX(INDIRECT("T_FinishColour[ColourCode-"&IF(ISNUMBER(FIND("xxx",BE44)),"xxx",IF(ISNUMBER(FIND("xx",BE44)),"xx","error"))&AR44&"]"),MATCH(AV44,T_FinishColour[Finish / Colour],0)),""),"") -> 069 | AY44: =IF(AND(ISBLANK(BC44),ISBLANK(C44)),"HIDE",_xlfn.SWITCH(PRODUCT(C44:Z44,B44),2,"HEADING",1,"SHOW",0,"HIDE")) -> HIDE | BC44: RE20-0303-069002 | BE44: RE20-0303-xxx002 | BF44: 15mm Flat Spline - D/S MP-HR TAPE B/SIDES | BH44: =IF(ISBLANK(BO44),"",IF(OR(BO44=L_Units),"Y","N")) ->  | BI44: wbSeal | BJ44: =IFERROR(IF(BH44="Y",((INDEX(T_Deduc18[Deduction],MATCH(BI44,T_Deduc18[Type],0),0))),""),"") ->  | BK44: o_widthmm | BL44: =IFERROR(IF(BH44="Y",INDIRECT(BK44)-BJ44,""),"") ->  | BO44: =INDEX(T_UnitSelection[Units],MATCH(i_Units,T_UnitSelection[UnitSelection],0)) ->  | BP44: =IFERROR(IF(ISBLANK(BC44),"",INDEX(T_NAV_AU[Base Unit of Measure],MATCH(BC44,T_NAV_AU[No.],0))),"") -> SET | BQ44: METRE | BS44: HW | BT44: 1 | BU44: 1 | BV44: =IF(ISBLANK(BT44),"",PRODUCT(AE44,BT44,i_systemQTY)) -> 1 | BW44: =IFERROR(INDEX(INDIRECT("T_NAV_"&i_Location&"["&i_Location&"]"),MATCH(1,--(BC44=INDIRECT("T_NAV_"&i_Location&"[No.]"))*--((INDIRECT("T_NAV_"&i_Location&"["&i_Location&"]"))<>""),0))/IF(AND(BQ44="METRE",BG44<>"",BR44=""),BG44,1),"") -> 
D45: Fabric Wrap | E45: 0 | G45: =IFERROR(IF(ISBLANK(F45),"",IF(FIND(F45,INDIRECT($F$39))>0,1,0)),0) ->  | AY45: =IF(AND(ISBLANK(BC45),ISBLANK(C45)),"HIDE",_xlfn.SWITCH(PRODUCT(C45:Z45,B45),2,"HEADING",1,"SHOW",0,"HIDE")) -> HIDE | BC45: RB91-1236-490 | BE45: RB91-1236-xxx490 | BF45: Fabric Wrap Hem Bar 16' | BG45: 4.9 | BH45: Y | BI45: wb | BJ45: =IFERROR(IF(BH45="Y",((INDEX(T_Deduc18[Deduction],MATCH(BI45,T_Deduc18[Type],0),0))),""),"") -> 24 | BK45: o_widthmm | BL45: =IFERROR(IF(BH45="Y",INDIRECT(BK45)-BJ45,""),"") -> -24 | BM45: =IFERROR(IF(BH45="Y",BL45,""),"") -> -24 | BN45: =IFERROR(IF(BH45="Y",TEXT(BL45/25.4,"0"&IF(ABS(BL45/25.4-ROUND(BL45/25.4,0))>1/32,"-0/"&CHOOSE(ROUND(MOD(BL45/25.4,1)*16,0),16,8,16,4,16,8,16,2,16,8,16,4,16,8,16),"")),""),"") -> -0-15/16 | BO45: =INDEX(T_UnitSelection[Units],MATCH(i_Units,T_UnitSelection[UnitSelection],0)) ->  | BP45: LENGTH | BQ45: METRE | BS45: HW | BT45: 1 | BU45: =IF(ISBLANK(BT45),"",PRODUCT(AE45,BT45,ShadeQuantity)) -> 1 | BV45: 1
D46: Fabric Wrap | E46: 0 | AY46: =IF(AND(ISBLANK(BC46),ISBLANK(C46)),"HIDE",_xlfn.SWITCH(PRODUCT(C46:Z46,B46),2,"HEADING",1,"SHOW",0,"HIDE")) -> HIDE | BC46: =_xlfn.IFNA(SUBSTITUTE(IF(AR46="AU",SUBSTITUTE(BE46,"xxx",AW46),SUBSTITUTE(SUBSTITUTE(BE46,"xx",AW46),"x","")),"LLL","580"),BE46) -> RB91-2136-001 | BE46: RB91-2136-xxx001 | BF46: Fabric Wrap Hem Bar End Cap | BH46: =IF(ISBLANK(BO46),"",IF(OR(BO46=L_Units),"Y","N")) -> N | BJ46: =IFERROR(IF(BH46="Y",((INDEX(T_Deduc18[Deduction],MATCH(BI46,T_Deduc18[Type],0),0))),""),"") ->  | BL46: =IFERROR(IF(BH46="Y",(INDIRECT(BK46)-BJ46)/IF(AA46="",1,o_nScreens),""),"") ->  | BO46: Piece | BP46: =IFERROR(IF(ISBLANK(BC46),"",INDEX([1]!T_NAV[Base Unit of Measure],MATCH(BC46,[1]!T_NAV[No.],0))),"") ->  | BS46: HW | BT46: 2 | BU46: =IF(ISBLANK(BT46),"",PRODUCT(AE46,BT46,ShadeQuantity)) -> 2 | BV46: 2
D47: Fabric Wrap | E47: 0 | H47: Handle | I47: =IFERROR(IF(ISBLANK(H47),"",IF(FIND(H47,INDIRECT($H$39))>0,1,0)),0) -> 0 | AY47: =IF(AND(ISBLANK(BC47),ISBLANK(C47)),"HIDE",_xlfn.SWITCH(PRODUCT(C47:Z47,B47),2,"HEADING",1,"SHOW",0,"HIDE")) -> HIDE | BC47: =_xlfn.IFNA(SUBSTITUTE(IF(AR47="AU",SUBSTITUTE(BE47,"xxx",AW47),SUBSTITUTE(SUBSTITUTE(BE47,"xx",AW47),"x","")),"LLL","580"),BE47) -> RB91-2336-001000 | BE47: RB91-2336-001000 | BF47: Fabric Wrap Hem Bar Handle | BH47: =IF(ISBLANK(BO47),"",IF(OR(BO47=L_Units),"Y","N")) -> N | BJ47: =IFERROR(IF(BH47="Y",((INDEX(T_Deduc18[Deduction],MATCH(BI47,T_Deduc18[Type],0),0))),""),"") ->  | BL47: =IFERROR(IF(BH47="Y",(INDIRECT(BK47)-BJ47)/IF(AA47="",1,o_nScreens),""),"") ->  | BO47: Set | BP47: =IFERROR(IF(ISBLANK(BC47),"",INDEX([1]!T_NAV[Base Unit of Measure],MATCH(BC47,[1]!T_NAV[No.],0))),"") ->  | BS47: HW | BT47: 1 | BU47: =IF(ISBLANK(BT47),"",PRODUCT(AE47,BT47,ShadeQuantity)) -> 1 | BV47: 1
D48: Fabric Wrap | E48: 0 | H48: Pull | I48: =IFERROR(IF(ISBLANK(H48),"",IF(FIND(H48,INDIRECT($H$39))>0,1,0)),0) -> 0 | AY48: =IF(AND(ISBLANK(BC48),ISBLANK(C48)),"HIDE",_xlfn.SWITCH(PRODUCT(C48:Z48,B48),2,"HEADING",1,"SHOW",0,"HIDE")) -> HIDE | BC48: =_xlfn.IFNA(SUBSTITUTE(IF(AR48="AU",SUBSTITUTE(BE48,"xxx",AW48),SUBSTITUTE(SUBSTITUTE(BE48,"xx",AW48),"x","")),"LLL","580"),BE48) -> RB91-2536-069000 | BE48: RB91-2536-069000 | BF48: Hem Bar Pull Hook 2ft/4ft Extn | BH48: =IF(ISBLANK(BO48),"",IF(OR(BO48=L_Units),"Y","N")) -> N | BJ48: =IFERROR(IF(BH48="Y",((INDEX(T_Deduc18[Deduction],MATCH(BI48,T_Deduc18[Type],0),0))),""),"") ->  | BL48: =IFERROR(IF(BH48="Y",(INDIRECT(BK48)-BJ48)/IF(AA48="",1,o_nScreens),""),"") ->  | BO48: Set | BP48: =IFERROR(IF(ISBLANK(BC48),"",INDEX([1]!T_NAV[Base Unit of Measure],MATCH(BC48,[1]!T_NAV[No.],0))),"") ->  | BS48: HW | BT48: 1 | BU48: =IF(ISBLANK(BT48),"",PRODUCT(AE48,BT48,ShadeQuantity)) -> 1 | BV48: 1
D49: Fabric Wrap | E49: 0 | F49: Wrap | G49: 0 | AA49: i_wbSpline | AC49: No Wrap | AE49: =IFERROR(IF(ISBLANK(AC49),1,IF(FIND(AC49,INDIRECT($AA$49))>0,2,1)),1) -> 1 | AY49: =IF(AND(ISBLANK(BC49),ISBLANK(C49)),"HIDE",_xlfn.SWITCH(PRODUCT(C49:Z49,B49),2,"HEADING",1,"SHOW",0,"HIDE")) -> HIDE | BC49: SS91-5350-069000 | BE49: SS91-5350-069000 | BF49: Smooth Round Spline | 5.0mm x 820ft Roll | BH49: Y | BI49: wb | BJ49: =IFERROR(IF(BH49="Y",((INDEX(T_Deduc18[Deduction],MATCH(BI49,T_Deduc18[Type],0),0))),""),"") -> 24 | BK49: o_widthmm | BL49: =IFERROR(IF(BH49="Y",INDIRECT(BK49)-BJ49,""),"") -> -24 | BM49: =IFERROR(IF(BH49="Y",BL49,""),"") -> -24 | BN49: =IFERROR(IF(BH49="Y",TEXT(BL49/25.4,"0"&IF(ABS(BL49/25.4-ROUND(BL49/25.4,0))>1/32,"-0/"&CHOOSE(ROUND(MOD(BL49/25.4,1)*16,0),16,8,16,4,16,8,16,2,16,8,16,4,16,8,16),"")),""),"") -> -0-15/16 | BO49: =INDEX(T_UnitSelection[Units],MATCH(i_Units,T_UnitSelection[UnitSelection],0)) ->  | BP49: ROLL | BS49: HW | BT49: 1 | BU49: =IF(ISBLANK(BT49),"",PRODUCT(AE49,BT49,ShadeQuantity)) -> 1 | BV49: =IF(ISBLANK(BT49),"",PRODUCT(AE49,BT49,i_systemQTY)) -> 1
E50: 1 | H50: Ballast | I50: 0 | L50: US | M50: =IFERROR(IF(ISBLANK(L50),"",IF(FIND(L50,INDIRECT($L$39))>0,1,0)),0) -> 0 | AY50: =IF(AND(ISBLANK(BC50),ISBLANK(C50)),"HIDE",_xlfn.SWITCH(PRODUCT(C50:Z50,B50),2,"HEADING",1,"SHOW",0,"HIDE")) -> HIDE | BC50: VB05-0301-025000 | BE50: VB05-0301-025000 | BF50: Oval Ballast 0.2" x 0.3" x 10ft Length | BH50: Y | BI50: Ballast | BJ50: =IFERROR(IF(BH50="Y",((INDEX(T_Deduc18[Deduction],MATCH(BI50,T_Deduc18[Type],0),0))),""),"") -> 0 | BK50: o_widthmm | BL50: 0 | BM50: 0 | BN50: 0 | BO50: =INDEX(T_UnitSelection[Units],MATCH(i_Units,T_UnitSelection[UnitSelection],0)) ->  | BP50: LENGTH | BS50: HW | BT50: 1 | BU50: 1 | BV50: 1
D51: Fabric Wrap | E51: 0 | F51: One Side | G51: 0 | AY51: =IF(AND(ISBLANK(BC51),ISBLANK(C51)),"HIDE",_xlfn.SWITCH(PRODUCT(C51:Z51,B51),2,"HEADING",1,"SHOW",0,"HIDE")) -> HIDE | BC51: RB92-0901-001100 | BE51: RB92-0901-001100 | BF51: 9mm ACM Flat Spline - No Tape | BG51: 100 | BH51: Y | BI51: wb | BJ51: 40 | BK51: o_widthmm | BL51: -40 | BM51: -40 | BN51: -1-9/16 | BO51: =INDEX(T_UnitSelection[Units],MATCH(i_Units,T_UnitSelection[UnitSelection],0)) ->  | BP51: ROLL | BS51: HW | BT51: 1 | BU51: 1 | BV51: 1
D52: Fabric Wrap | E52: 0 | F52: NO | G52: =IFERROR(IF(ISBLANK(F52),"",IF(FIND(F52,INDIRECT($F$39))>0,1,0)),0) -> 0 | I52: =IFERROR(IF(ISBLANK(H52),"",IF(FIND(H52,INDIRECT($H$39))>0,1,0)),0) ->  | AE52: =IFERROR(_xlfn.SINGLE(IF(AND(AA52="Y",PRODUCT(AB52:AD52)=0),o_nScreens,IF(PRODUCT(AB52:AD52)=0,"",PRODUCT(AB52:AD52)))),"") ->  | AR52: AU | AS52: =IF(ISNUMBER(FIND("x",BE52)),IFERROR(INDEX(AI52:AQ52,0,MATCH(AT52,AI52:AQ52,0)),IF(AI52<>"",AI52,i_DefaultColour)),"") ->  | AT52: 0 | AV52: =IF(ISNUMBER(FIND("x",BE52)),IFERROR(INDEX(AI52:AQ52,0,MATCH(AT52,AI52:AQ52,0)),AS52),"") ->  | AW52: =IF(ISNUMBER(FIND("x",BE52)),IFERROR(INDEX(INDIRECT("T_FinishColour[ColourCode-"&IF(ISNUMBER(FIND("xxx",BE52)),"xxx",IF(ISNUMBER(FIND("xx",BE52)),"xx","error"))&AR52&"]"),MATCH(AV52,T_FinishColour[Finish / Colour],0)),""),"") ->  | AY52: =IF(AND(ISBLANK(BC52),ISBLANK(C52)),"HIDE",_xlfn.SWITCH(PRODUCT(C52:Z52,B52),2,"HEADING",1,"SHOW",0,"HIDE")) -> HIDE | BC52: SB91-0018-050040 | BE52: SB91-0018-050040 | BF52: 9mm Flat Spline | BG52: 1 | BH52: =IF(ISBLANK(BO52),"",IF(OR(BO52=L_Units),"Y","N")) ->  | BI52: wbSeal | BJ52: =IFERROR(IF(BH52="Y",((INDEX(T_Deduc18[Deduction],MATCH(BI52,T_Deduc18[Type],0),0))),""),"") ->  | BK52: o_widthmm | BL52: =IFERROR(IF(BH52="Y",INDIRECT(BK52)-BJ52,""),"") ->  | BM52: =IFERROR(IF(BH52="Y",BL52,""),"") ->  | BN52: =IFERROR(IF(BH52="Y",TEXT(BL52/25.4,"0"&IF(ABS(BL52/25.4-ROUND(BL52/25.4,0))>1/32,"-0/"&CHOOSE(ROUND(MOD(BL52/25.4,1)*16,0),16,8,16,4,16,8,16,2,16,8,16,4,16,8,16),"")),""),"") ->  | BO52: =INDEX(T_UnitSelection[Units],MATCH(i_Units,T_UnitSelection[UnitSelection],0)) ->  | BP52: =IFERROR(IF(ISBLANK(BC52),"",INDEX(T_NAV_AU[Base Unit of Measure],MATCH(BC52,T_NAV_AU[No.],0))),"") -> METRE | BQ52: METRE | BS52: HW | BT52: 1 | BU52: =IF(ISBLANK(BT52),"",PRODUCT(AE52,BT52)) -> 1 | BV52: 1 | BW52: =IFERROR(INDEX(INDIRECT("T_NAV_"&i_Location&"["&i_Location&"]"),MATCH(1,--(BC52=INDIRECT("T_NAV_"&i_Location&"[No.]"))*--((INDIRECT("T_NAV_"&i_Location&"["&i_Location&"]"))<>""),0))/IF(AND(BQ52="METRE",BG52<>"",BR52=""),BG52,1),"") ->  | BX52: =IFERROR(IF(AND(AY52="SHOW",BW52<>""),BW52*BV52*IF(AND(BM52<>"",OR(BP52="LENGTH",BP52="METRE",BP52="ROLL")),(BL52/1000),1),""),"") -> 
D53: Fabric Wrap | E53: 0 | F53: MP | G53: =(IFERROR(IF(ISBLANK(F53),"",IF(FIND(F53,INDIRECT($F$39))>0,1,0)),0)+IF(G54=1,-1,0)) -> 0 | AE53: =IFERROR(_xlfn.SINGLE(IF(AND(AA53="Y",PRODUCT(AB53:AD53)=0),o_nScreens,IF(PRODUCT(AB53:AD53)=0,"",PRODUCT(AB53:AD53)))),"") ->  | AR53: AU | AS53: =IF(ISNUMBER(FIND("x",BE53)),IFERROR(INDEX(AI53:AQ53,0,MATCH(AT53,AI53:AQ53,0)),IF(AI53<>"",AI53,i_DefaultColour)),"") ->  | AT53: 0 | AV53: =IF(ISNUMBER(FIND("x",BE53)),IFERROR(INDEX(AI53:AQ53,0,MATCH(AT53,AI53:AQ53,0)),AS53),"") ->  | AW53: =IF(ISNUMBER(FIND("x",BE53)),IFERROR(INDEX(INDIRECT("T_FinishColour[ColourCode-"&IF(ISNUMBER(FIND("xxx",BE53)),"xxx",IF(ISNUMBER(FIND("xx",BE53)),"xx","error"))&AR53&"]"),MATCH(AV53,T_FinishColour[Finish / Colour],0)),""),"") ->  | AY53: =IF(AND(ISBLANK(BC53),ISBLANK(C53)),"HIDE",_xlfn.SWITCH(PRODUCT(C53:Z53,B53),2,"HEADING",1,"SHOW",0,"HIDE")) -> HIDE | BC53: SB91-0019-050580 | BE53: SB91-0019-050580 | BF53: 9mm Flat Spline - D/S MP-HR TAPE | BG53: 5.8 | BH53: =IF(ISBLANK(BO53),"",IF(OR(BO53=L_Units),"Y","N")) ->  | BI53: wbSeal | BJ53: =IFERROR(IF(BH53="Y",((INDEX(T_Deduc18[Deduction],MATCH(BI53,T_Deduc18[Type],0),0))),""),"") ->  | BK53: o_widthmm | BO53: =INDEX(T_UnitSelection[Units],MATCH(i_Units,T_UnitSelection[UnitSelection],0)) ->  | BP53: =IFERROR(IF(ISBLANK(BC53),"",INDEX(T_NAV_AU[Base Unit of Measure],MATCH(BC53,T_NAV_AU[No.],0))),"") -> LENGTH | BQ53: METRE | BS53: HW | BT53: 1 | BU53: 1 | BV53: 1 | BW53: =IFERROR(INDEX(INDIRECT("T_NAV_"&i_Location&"["&i_Location&"]"),MATCH(1,--(BC53=INDIRECT("T_NAV_"&i_Location&"[No.]"))*--((INDIRECT("T_NAV_"&i_Location&"["&i_Location&"]"))<>""),0))/IF(AND(BQ53="METRE",BG53<>"",BR53=""),BG53,1),"") -> 
D54: Fabric Wrap | E54: 0 | F54: B/SIDES | G54: =IFERROR(IF(ISBLANK(F54),"",IF(FIND(F54,INDIRECT($F$39))>0,1,0)),0) -> 0 | O54: =IFERROR(IF(ISBLANK(N54),"",IF(FIND(N54,INDIRECT($N$39))>0,1,0)),0) ->  | AE54: =IFERROR(MID(i_wbHandle,10,1)*1,"") ->  | AT54: 0 | AW54: =IF(ISNUMBER(FIND("x",BE54)),IFERROR(INDEX(INDIRECT("T_FinishColour[ColourCode-"&IF(ISNUMBER(FIND("xxx",BE54)),"xxx",IF(ISNUMBER(FIND("xx",BE54)),"xx","error"))&AR54&"]"),MATCH(AV54,T_FinishColour[Finish / Colour],0)),""),"") ->  | AY54: =IF(AND(ISBLANK(BC54),ISBLANK(C54)),"HIDE",_xlfn.SWITCH(PRODUCT(C54:Z54,B54),2,"HEADING",1,"SHOW",0,"HIDE")) -> HIDE | BC54: =_xlfn.IFNA(SUBSTITUTE(IF(AR54="AU",SUBSTITUTE(BE54,"xxx",AW54),SUBSTITUTE(SUBSTITUTE(BE54,"xx",AW54),"x","")),"LLL","580"),BE54) -> SB07-2201-022001 | BE54: SB07-2201-022001 | BF54: 9mm Flat Spline - D/S MP-HR TAPE B/SIDES | BG54: 5.8 | BH54: =IF(ISBLANK(BO54),"",IF(OR(BO54=L_Units),"Y","N")) ->  | BI54: wbSeal | BJ54: =IFERROR(IF(BH54="Y",((INDEX(T_Deduc18[Deduction],MATCH(BI54,T_Deduc18[Type],0),0))),""),"") ->  | BK54: o_widthmm | BO54: =INDEX(T_UnitSelection[Units],MATCH(i_Units,T_UnitSelection[UnitSelection],0)) ->  | BP54: =IFERROR(IF(ISBLANK(BC54),"",INDEX(T_NAV_AU[Base Unit of Measure],MATCH(BC54,T_NAV_AU[No.],0))),"") -> SET | BQ54: METRE | BS54: HW | BT54: 1 | BU54: 1 | BV54: 1 | BW54: =IFERROR(INDEX(INDIRECT("T_NAV_"&i_Location&"["&i_Location&"]"),MATCH(1,--(BC54=INDIRECT("T_NAV_"&i_Location&"[No.]"))*--((INDIRECT("T_NAV_"&i_Location&"["&i_Location&"]"))<>""),0))/IF(AND(BQ54="METRE",BG54<>"",BR54=""),BG54,1),"") -> 
D55: Fabric Wrap | E55: 0 | F55: 5mm | G55: =IFERROR(IF(ISBLANK(F55),"",IF(FIND(F55,INDIRECT($F$39))>0,1,0)),0) -> 0 | AE55: =IFERROR(_xlfn.SINGLE(IF(AND(AA55="Y",PRODUCT(AB55:AD55)=0),o_nScreens,IF(PRODUCT(AB55:AD55)=0,"",PRODUCT(AB55:AD55)))),"") ->  | AR55: AU | AT55: 0 | AW55: =IF(ISNUMBER(FIND("x",BE55)),IFERROR(INDEX(INDIRECT("T_FinishColour[ColourCode-"&IF(ISNUMBER(FIND("xxx",BE55)),"xxx",IF(ISNUMBER(FIND("xx",BE55)),"xx","error"))&AR55&"]"),MATCH(AV55,T_FinishColour[Finish / Colour],0)),""),"") ->  | AY55: =IF(AND(ISBLANK(BC55),ISBLANK(C55)),"HIDE",_xlfn.SWITCH(PRODUCT(C55:Z55,B55),2,"HEADING",1,"SHOW",0,"HIDE")) -> HIDE | BC55: =_xlfn.IFNA(SUBSTITUTE(IF(AR55="AU",SUBSTITUTE(BE55,"xxx",AW55),SUBSTITUTE(SUBSTITUTE(BE55,"xx",AW55),"x","")),"LLL","580"),BE55) -> SB91-0018-050040 | BE55: SB91-0018-050040 | BF55: 5mm Round Spline | BG55: 1 | BH55: =IF(ISBLANK(BO55),"",IF(OR(BO55=L_Units),"Y","N")) ->  | BI55: wbSeal | BJ55: =IFERROR(IF(BH55="Y",((INDEX(T_Deduc18[Deduction],MATCH(BI55,T_Deduc18[Type],0),0))),""),"") ->  | BK55: o_widthmm | BO55: =INDEX(T_UnitSelection[Units],MATCH(i_Units,T_UnitSelection[UnitSelection],0)) ->  | BP55: =IFERROR(IF(ISBLANK(BC55),"",INDEX(T_NAV_AU[Base Unit of Measure],MATCH(BC55,T_NAV_AU[No.],0))),"") -> METRE | BQ55: METRE | BS55: HW | BT55: 1 | BU55: 1 | BV55: 1 | BW55: =IFERROR(INDEX(INDIRECT("T_NAV_"&i_Location&"["&i_Location&"]"),MATCH(1,--(BC55=INDIRECT("T_NAV_"&i_Location&"[No.]"))*--((INDIRECT("T_NAV_"&i_Location&"["&i_Location&"]"))<>""),0))/IF(AND(BQ55="METRE",BG55<>"",BR55=""),BG55,1),"") ->  | BY55: =IF(BX55<>"",(INDIRECT("i_"&BS55&"discount"))*BX55,"") ->  | BZ55: =IFERROR(IF(BX55<>"",BX55-BY55,""),"") -> 
E56: 1 | G56: =IFERROR(IF(ISBLANK(F56),"",IF(FIND(F56,INDIRECT($F$39))>0,1,0)),0) ->  | H56: Ballast | I56: 0 | L56: AU | M56: =IFERROR(IF(ISBLANK(L56),"",IF(FIND(L56,INDIRECT($L$39))>0,1,0)),0) -> 0 | AR56: AU | AS56: =IF(ISNUMBER(FIND("x",BE56)),IFERROR(INDEX(AI56:AQ56,0,MATCH(AT56,AI56:AQ56,0)),IF(AI56<>"",AI56,i_DefaultColour)),"") -> Black | AT56: 0 | AV56: =IF(ISNUMBER(FIND("x",BE56)),IFERROR(INDEX(AI56:AQ56,0,MATCH(AT56,AI56:AQ56,0)),AS56),"") -> Black | AW56: =IF(ISNUMBER(FIND("x",BE56)),IFERROR(INDEX(INDIRECT("T_FinishColour[ColourCode-"&IF(ISNUMBER(FIND("xxx",BE56)),"xxx",IF(ISNUMBER(FIND("xx",BE56)),"xx","error"))&AR56&"]"),MATCH(AV56,T_FinishColour[Finish / Colour],0)),""),"") -> 050 | AY56: =IF(AND(ISBLANK(BC56),ISBLANK(C56)),"HIDE",_xlfn.SWITCH(PRODUCT(C56:Z56,B56),2,"HEADING",1,"SHOW",0,"HIDE")) -> HIDE | BC56: =_xlfn.IFNA(SUBSTITUTE(IF(AR56="AU",SUBSTITUTE(BE56,"xxx",AW56),SUBSTITUTE(SUBSTITUTE(BE56,"xx",AW56),"x","")),"LLL","580"),BE56) -> VB05-0301-050580 | BE56: VB05-0301-xxxLLL | BF56: Base Rail Weight Rod | BG56: 1 | BH56: =IF(ISBLANK(BO56),"",IF(OR(BO56=L_Units),"Y","N")) ->  | BI56: Ballast | BJ56: =IFERROR(IF(BH56="Y",((INDEX(T_Deduc18[Deduction],MATCH(BI56,T_Deduc18[Type],0),0))),""),"") ->  | BK56: o_widthmm | BO56: =INDEX(T_UnitSelection[Units],MATCH(i_Units,T_UnitSelection[UnitSelection],0)) ->  | BP56: =IFERROR(IF(ISBLANK(BC56),"",INDEX(T_NAV_AU[Base Unit of Measure],MATCH(BC56,T_NAV_AU[No.],0))),"") ->  | BQ56: METRE | BS56: HW | BT56: 1 | BU56: 1 | BV56: 1 | BW56: =IFERROR(INDEX(INDIRECT("T_NAV_"&i_Location&"["&i_Location&"]"),MATCH(1,--(BC56=INDIRECT("T_NAV_"&i_Location&"[No.]"))*--((INDIRECT("T_NAV_"&i_Location&"["&i_Location&"]"))<>""),0))/IF(AND(BQ56="METRE",BG56<>"",BR56=""),BG56,1),"") ->  | BY56: =IF(BX56<>"",(INDIRECT("i_"&BS56&"discount"))*BX56,"") ->  | BZ56: =IFERROR(IF(BX56<>"",BX56-BY56,""),"") -> 
B57: 2 | C57: 1 | AW57: =IF(ISNUMBER(FIND("x",BE57)),IFERROR(INDEX(INDIRECT("T_FinishColour[ColourCode-"&IF(ISNUMBER(FIND("xxx",BE57)),"xxx",IF(ISNUMBER(FIND("xx",BE57)),"xx","error"))&AR57&"]"),MATCH(AV57,T_FinishColour[Finish / Colour],0)),""),"") ->  | AY57: =IF(AND(ISBLANK(BC57),ISBLANK(C57)),"HIDE",_xlfn.SWITCH(PRODUCT(C57:Z57,B57),2,"HEADING",1,"SHOW",0,"HIDE")) -> HEADING | BC57: =_xlfn.IFNA(SUBSTITUTE(IF(AR57="AU",SUBSTITUTE(BE57,"xxx",AW57),SUBSTITUTE(SUBSTITUTE(BE57,"xx",AW57),"x","")),"LLL","580"),BE57) ->  | BH57: =IF(ISBLANK(BO57),"",IF(OR(BO57=L_Units),"Y","N")) ->  | BJ57: =IFERROR(_xlfn.SINGLE(IF(BH57="Y",((INDEX(#REF!,MATCH(BI57,#REF!,0),0))),"")),"") ->  | BM57: =IFERROR(IF(BH57="Y",BL57,""),"") ->  | BP57: =IFERROR(IF(ISBLANK(BC57),"",INDEX(T_NAV_AU[Base Unit of Measure],MATCH(BC57,T_NAV_AU[No.],0))),"") ->  | BW57: =IFERROR(INDEX(INDIRECT("T_NAV_"&i_Location&"["&i_Location&"]"),MATCH(1,--(BC57=INDIRECT("T_NAV_"&i_Location&"[No.]"))*--((INDIRECT("T_NAV_"&i_Location&"["&i_Location&"]"))<>""),0))/IF(AND(BQ57="METRE",BG57<>"",BR57=""),BG57,1),"") ->  | BZ57: =IFERROR(IF(BX57<>"",BX57-BY57,""),"") -> 
B58: 2 | C58: 1 | D58: i_Tube | F58: i_SystemType | H58: i_TubeExtras | J58: i_ControlType | L58: i_Location | AW58: =IF(ISNUMBER(FIND("x",BE58)),IFERROR(INDEX(INDIRECT("T_FinishColour[ColourCode-"&IF(ISNUMBER(FIND("xxx",BE58)),"xxx",IF(ISNUMBER(FIND("xx",BE58)),"xx","error"))&AR58&"]"),MATCH(AV58,T_FinishColour[Finish / Colour],0)),""),"") ->  | AY58: =IF(AND(ISBLANK(BC58),ISBLANK(C58)),"HIDE",_xlfn.SWITCH(PRODUCT(C58:Z58,B58),2,"HEADING",1,"SHOW",0,"HIDE")) -> HEADING | BC58: TUBE | BE58: TUBE | BJ58: =IFERROR(_xlfn.SINGLE(IF(BH58="Y",((INDEX(#REF!,MATCH(BI58,#REF!,0),0))),"")),"") ->  | BP58: =IFERROR(IF(ISBLANK(BC58),"",INDEX(T_NAV_AU[Base Unit of Measure],MATCH(BC58,T_NAV_AU[No.],0))),"") ->  | BW58: =IFERROR(INDEX(INDIRECT("T_NAV_"&i_Location&"["&i_Location&"]"),MATCH(1,--(BC58=INDIRECT("T_NAV_"&i_Location&"[No.]"))*--((INDIRECT("T_NAV_"&i_Location&"["&i_Location&"]"))<>""),0))/IF(AND(BQ58="METRE",BG58<>"",BR58=""),BG58,1),"") -> 
D59: 1.5" | E59: =IFERROR(IF(ISBLANK(D59),"",IF(FIND(D59,INDIRECT($D$58))>0,1,0)),0) -> 0 | G59: =IFERROR(IF(ISBLANK(F59),"",IF(FIND(F59,INDIRECT($F$58))>0,1,0)),0) ->  | I59: =IFERROR(IF(ISBLANK(H59),"",IF(FIND(H59,INDIRECT($H$58))>0,1,0)),0) ->  | K59: =IFERROR(IF(ISBLANK(J59),"",IF(FIND(J59,INDIRECT($J$58))>0,1,0)),0) ->  | AS59: =IF(ISNUMBER(FIND("x",BE59)),IFERROR(INDEX(AI59:AQ59,0,MATCH(AT59,AI59:AQ59,0)),IF(AI59<>"",AI59,i_DefaultColour)),"") ->  | AV59: =IF(ISNUMBER(FIND("x",BE59)),IFERROR(INDEX(AI59:AQ59,0,MATCH(AT59,AI59:AQ59,0)),AS59),"") ->  | AW59: =IF(ISNUMBER(FIND("x",BE59)),IFERROR(INDEX(INDIRECT("T_FinishColour[ColourCode-"&IF(ISNUMBER(FIND("xxx",BE59)),"xxx",IF(ISNUMBER(FIND("xx",BE59)),"xx","error"))&AR59&"]"),MATCH(AV59,T_FinishColour[Finish / Colour],0)),""),"") ->  | AY59: =IF(AND(ISBLANK(BC59),ISBLANK(C59)),"HIDE",_xlfn.SWITCH(PRODUCT(C59:Z59,B59),2,"HEADING",1,"SHOW",0,"HIDE")) -> HIDE | BC59: =_xlfn.IFNA(SUBSTITUTE(IF(AR59="AU",SUBSTITUTE(BE59,"xxx",AW59),SUBSTITUTE(SUBSTITUTE(BE59,"xx",AW59),"x","")),"LLL","015"),BE59) -> RTEA4T16 | BE59: RTEA4T16 | BF59: Aluminum Tube 1.5" Taped | BG59: 100 | BH59: =IF(ISBLANK(BO59),"",IF(OR(BO59=L_Units),"Y","N")) ->  | BI59: Tube | BJ59: =IFERROR(IF(BH59="Y",((INDEX(T_Deduc18[Deduction],MATCH(BI59,T_Deduc18[Type],0),0))),""),"") ->  | BK59: o_widthmm | BL59: =IFERROR(IF(BH59="Y",INDIRECT(BK59)-BJ59,""),"") ->  | BO59: =INDEX(T_UnitSelection[Units],MATCH(i_Units,T_UnitSelection[UnitSelection],0)) ->  | BP59: =IFERROR(IF(ISBLANK(BC59),"",INDEX(T_NAV_AU[Base Unit of Measure],MATCH(BC59,T_NAV_AU[No.],0))),"") ->  | BQ59: METRE | BS59: HW | BT59: 1 | BU59: 1 | BV59: 1 | BW59: =IFERROR(INDEX(INDIRECT("T_NAV_"&i_Location&"["&i_Location&"]"),MATCH(1,--(BC59=INDIRECT("T_NAV_"&i_Location&"[No.]"))*--((INDIRECT("T_NAV_"&i_Location&"["&i_Location&"]"))<>""),0))/IF(AND(BQ59="METRE",BG59<>"",BR59=""),BG59,1),"") -> 
D60: 2" | E60: =IFERROR(IF(ISBLANK(D60),"",IF(FIND(D60,INDIRECT($D$58))>0,1,0)),0) -> 0 | AY60: =IF(AND(ISBLANK(BC60),ISBLANK(C60)),"HIDE",_xlfn.SWITCH(PRODUCT(C60:Z60,B60),2,"HEADING",1,"SHOW",0,"HIDE")) -> HIDE | BC60: RTEA5T16 | BE60: RTEA5T16 | BF60: Aluminum Tube 2" Taped | BG60: 100 | BH60: =IF(ISBLANK(BO60),"",IF(OR(BO60=L_Units),"Y","N")) ->  | BI60: Tube | BJ60: =IFERROR(IF(BH60="Y",((INDEX(T_Deduc18[Deduction],MATCH(BI60,T_Deduc18[Type],0),0))),""),"") ->  | BK60: o_widthmm | BL60: =IFERROR(IF(BH60="Y",INDIRECT(BK60)-BJ60,""),"") ->  | BM60: =IFERROR(IF(BH60="Y",BL60,""),"") ->  | BN60: =IFERROR(IF(BH60="Y",TEXT(BL60/25.4,"0"&IF(ABS(BL60/25.4-ROUND(BL60/25.4,0))>1/32,"-0/"&CHOOSE(ROUND(MOD(BL60/25.4,1)*16,0),16,8,16,4,16,8,16,2,16,8,16,4,16,8,16),"")),""),"") ->  | BO60: =INDEX(T_UnitSelection[Units],MATCH(i_Units,T_UnitSelection[UnitSelection],0)) ->  | BP60: =IFERROR(IF(ISBLANK(BC60),"",INDEX(T_NAV_AU[Base Unit of Measure],MATCH(BC60,T_NAV_AU[No.],0))),"") ->  | BQ60: METRE | BS60: HW | BT60: 1 | BU60: =IF(ISBLANK(BT60),"",PRODUCT(AE60,BT60)) -> 1 | BV60: =IF(ISBLANK(BT60),"",PRODUCT(AE60,BT60,i_systemQTY)) -> 1
B61: 2 | C61: =C62 -> 0 | AS61: =IF(ISNUMBER(FIND("x",BE61)),IFERROR(INDEX(AI61:AQ61,0,MATCH(AT61,AI61:AQ61,0)),IF(AI61<>"",AI61,i_DefaultColour)),"") ->  | AV61: =IF(ISNUMBER(FIND("x",BE61)),IFERROR(INDEX(AI61:AQ61,0,MATCH(AT61,AI61:AQ61,0)),AS61),"") ->  | AW61: =IF(ISNUMBER(FIND("x",BE61)),IFERROR(INDEX(INDIRECT("T_FinishColour[ColourCode-"&IF(ISNUMBER(FIND("xxx",BE61)),"xxx",IF(ISNUMBER(FIND("xx",BE61)),"xx","error"))&AR61&"]"),MATCH(AV61,T_FinishColour[Finish / Colour],0)),""),"") ->  | AY61: =IF(AND(ISBLANK(BC61),ISBLANK(C61)),"HIDE",_xlfn.SWITCH(PRODUCT(C61:Z61,B61),2,"HEADING",1,"SHOW",0,"HIDE")) -> HIDE | BC61: =_xlfn.IFNA(SUBSTITUTE(IF(AR61="AU",SUBSTITUTE(BE61,"xxx",AW61),SUBSTITUTE(SUBSTITUTE(BE61,"xx",AW61),"x","")),"LLL","580"),BE61) ->  | BH61: =IF(ISBLANK(BO61),"",IF(OR(BO61=L_Units),"Y","N")) ->  | BJ61: =IFERROR(_xlfn.SINGLE(IF(BH61="Y",((INDEX(#REF!,MATCH(BI61,#REF!,0),0))),"")),"") ->  | BP61: =IFERROR(IF(ISBLANK(BC61),"",INDEX(T_NAV_AU[Base Unit of Measure],MATCH(BC61,T_NAV_AU[No.],0))),"") ->  | BW61: =IFERROR(INDEX(INDIRECT("T_NAV_"&i_Location&"["&i_Location&"]"),MATCH(1,--(BC61=INDIRECT("T_NAV_"&i_Location&"[No.]"))*--((INDIRECT("T_NAV_"&i_Location&"["&i_Location&"]"))<>""),0))/IF(AND(BQ61="METRE",BG61<>"",BR61=""),BG61,1),"") ->  | BY61: =IF(BX61<>"",(INDIRECT("i_"&BS61&"discount"))*BX61,"") ->  | BZ61: =IFERROR(IF(BX61<>"",BX61-BY61,""),"") -> 
B62: 2 | C62: =IF(COUNTIF(AY63:AY65,"SHOW")>0,1,0) -> 0 | D62: i_TensionTool | AW62: =IF(ISNUMBER(FIND("x",BE62)),IFERROR(INDEX(INDIRECT("T_FinishColour[ColourCode-"&IF(ISNUMBER(FIND("xxx",BE62)),"xxx",IF(ISNUMBER(FIND("xx",BE62)),"xx","error"))&AR62&"]"),MATCH(AV62,T_FinishColour[Finish / Colour],0)),""),"") ->  | AY62: =IF(AND(ISBLANK(BC62),ISBLANK(C62)),"HIDE",_xlfn.SWITCH(PRODUCT(C62:Z62,B62),2,"HEADING",1,"SHOW",0,"HIDE")) -> HIDE | BC62: =_xlfn.IFNA(SUBSTITUTE(IF(AR62="AU",SUBSTITUTE(BE62,"xxx",AW62),SUBSTITUTE(SUBSTITUTE(BE62,"xx",AW62),"x","")),"LLL","580"),BE62) -> TENSION TOOL | BE62: TENSION TOOL | BJ62: =IFERROR(_xlfn.SINGLE(IF(BH62="Y",((INDEX(#REF!,MATCH(BI62,#REF!,0),0))),"")),"") ->  | BP62: =IFERROR(IF(ISBLANK(BC62),"",INDEX(T_NAV_AU[Base Unit of Measure],MATCH(BC62,T_NAV_AU[No.],0))),"") ->  | BW62: =IFERROR(INDEX(INDIRECT("T_NAV_"&i_Location&"["&i_Location&"]"),MATCH(1,--(BC62=INDIRECT("T_NAV_"&i_Location&"[No.]"))*--((INDIRECT("T_NAV_"&i_Location&"["&i_Location&"]"))<>""),0))/IF(AND(BQ62="METRE",BG62<>"",BR62=""),BG62,1),"") ->  | BY62: =IF(BX62<>"",(INDIRECT("i_"&BS62&"discount"))*BX62,"") ->  | BZ62: =IFERROR(IF(BX62<>"",BX62-BY62,""),"") -> 
D63: Lock | E63: =IFERROR(IF(ISBLANK(D63),"",IF(FIND(D63,INDIRECT($D$62))>0,1,0)),0) -> 0 | AR63: AU | AT63: =i_Finish -> 0 | AW63: =IF(ISNUMBER(FIND("x",BE63)),IFERROR(INDEX(INDIRECT("T_FinishColour[ColourCode-"&IF(ISNUMBER(FIND("xxx",BE63)),"xxx",IF(ISNUMBER(FIND("xx",BE63)),"xx","error"))&AR63&"]"),MATCH(AV63,T_FinishColour[Finish / Colour],0)),""),"") ->  | AY63: =IF(AND(ISBLANK(BC63),ISBLANK(C63)),"HIDE",_xlfn.SWITCH(PRODUCT(C63:Z63,B63),2,"HEADING",1,"SHOW",0,"HIDE")) -> HIDE | BC63: =_xlfn.IFNA(SUBSTITUTE(IF(AR63="AU",SUBSTITUTE(BE63,"xxx",AW63),SUBSTITUTE(SUBSTITUTE(BE63,"xx",AW63),"x","")),"LLL",BG63*100),BE63) -> RB12-3835-503038 | BE63: RB12-3835-503038 | BF63: Easy Spring Air Tension Lock | BH63: =IF(ISBLANK(BO63),"",IF(OR(BO63=L_Units),"Y","N")) -> N | BJ63: =IFERROR(_xlfn.SINGLE(IF(BH63="Y",((INDEX(#REF!,MATCH(BI63,#REF!,0),0))),"")),"") ->  | BO63: Piece | BP63: =IFERROR(IF(ISBLANK(BC63),"",INDEX(T_NAV_AU[Base Unit of Measure],MATCH(BC63,T_NAV_AU[No.],0))),"") ->  | BS63: HW | BT63: 1 | BU63: 1 | BV63: 1 | BW63: =IFERROR(INDEX(INDIRECT("T_NAV_"&i_Location&"["&i_Location&"]"),MATCH(1,--(BC63=INDIRECT("T_NAV_"&i_Location&"[No.]"))*--((INDIRECT("T_NAV_"&i_Location&"["&i_Location&"]"))<>""),0))/IF(AND(BQ63="METRE",BG63<>"",BR63=""),BG63,1),"") ->  | BY63: =IF(BX63<>"",(INDIRECT("i_"&BS63&"discount"))*BX63,"") ->  | BZ63: =IFERROR(IF(BX63<>"",BX63-BY63,""),"") -> 
D64: Pre | E64: =IFERROR(IF(ISBLANK(D64),"",IF(FIND(D64,INDIRECT($D$62))>0,1,0)),0) -> 0 | AR64: AU | AW64: =IF(ISNUMBER(FIND("x",BE64)),IFERROR(INDEX(INDIRECT("T_FinishColour[ColourCode-"&IF(ISNUMBER(FIND("xxx",BE64)),"xxx",IF(ISNUMBER(FIND("xx",BE64)),"xx","error"))&AR64&"]"),MATCH(AV64,T_FinishColour[Finish / Colour],0)),""),"") ->  | AY64: =IF(AND(ISBLANK(BC64),ISBLANK(C64)),"HIDE",_xlfn.SWITCH(PRODUCT(C64:Z64,B64),2,"HEADING",1,"SHOW",0,"HIDE")) -> HIDE | BC64: =_xlfn.IFNA(SUBSTITUTE(IF(AR64="AU",SUBSTITUTE(BE64,"xxx",AW64),SUBSTITUTE(SUBSTITUTE(BE64,"xx",AW64),"x","")),"LLL","580"),BE64) -> RB12-3836-025000 | BE64: RB12-3836-025000 | BF64: Easy Spring Air - PreTension Tool | BH64: =IF(ISBLANK(BO64),"",IF(OR(BO64=L_Units),"Y","N")) -> N | BJ64: =IFERROR(_xlfn.SINGLE(IF(BH64="Y",((INDEX(#REF!,MATCH(BI64,#REF!,0),0))),"")),"") ->  | BO64: Piece | BP64: =IFERROR(IF(ISBLANK(BC64),"",INDEX(T_NAV_AU[Base Unit of Measure],MATCH(BC64,T_NAV_AU[No.],0))),"") ->  | BS64: HW | BT64: 1 | BU64: 1 | BV64: 1 | BW64: =IFERROR(INDEX(INDIRECT("T_NAV_"&i_Location&"["&i_Location&"]"),MATCH(1,--(BC64=INDIRECT("T_NAV_"&i_Location&"[No.]"))*--((INDIRECT("T_NAV_"&i_Location&"["&i_Location&"]"))<>""),0))/IF(AND(BQ64="METRE",BG64<>"",BR64=""),BG64,1),"") ->  | BY64: =IF(BX64<>"",(INDIRECT("i_"&BS64&"discount"))*BX64,"") ->  | BZ64: =IFERROR(IF(BX64<>"",BX64-BY64,""),"") -> 
D65: Spanner | E65: =IFERROR(IF(ISBLANK(D65),"",IF(FIND(D65,INDIRECT($D$62))>0,1,0)),0) -> 0 | AR65: AU | AW65: =IF(ISNUMBER(FIND("x",BE65)),IFERROR(INDEX(INDIRECT("T_FinishColour[ColourCode-"&IF(ISNUMBER(FIND("xxx",BE65)),"xxx",IF(ISNUMBER(FIND("xx",BE65)),"xx","error"))&AR65&"]"),MATCH(AV65,T_FinishColour[Finish / Colour],0)),""),"") ->  | AY65: =IF(AND(ISBLANK(BC65),ISBLANK(C65)),"HIDE",_xlfn.SWITCH(PRODUCT(C65:Z65,B65),2,"HEADING",1,"SHOW",0,"HIDE")) -> HIDE | BC65: =_xlfn.IFNA(SUBSTITUTE(IF(AR65="AU",SUBSTITUTE(BE65,"xxx",AW65),SUBSTITUTE(SUBSTITUTE(BE65,"xx",AW65),"x","")),"LLL","580"),BE65) -> RB12-3837-025000 | BE65: RB12-3837-025000 | BF65: Easy Spring Air - Spanner Tool | BH65: =IF(ISBLANK(BO65),"",IF(OR(BO65=L_Units),"Y","N")) -> N | BJ65: =IFERROR(_xlfn.SINGLE(IF(BH65="Y",((INDEX(#REF!,MATCH(BI65,#REF!,0),0))),"")),"") ->  | BO65: Piece | BP65: =IFERROR(IF(ISBLANK(BC65),"",INDEX(T_NAV_AU[Base Unit of Measure],MATCH(BC65,T_NAV_AU[No.],0))),"") ->  | BS65: HW | BT65: 1 | BU65: 1 | BV65: 1 | BW65: =IFERROR(INDEX(INDIRECT("T_NAV_"&i_Location&"["&i_Location&"]"),MATCH(1,--(BC65=INDIRECT("T_NAV_"&i_Location&"[No.]"))*--((INDIRECT("T_NAV_"&i_Location&"["&i_Location&"]"))<>""),0))/IF(AND(BQ65="METRE",BG65<>"",BR65=""),BG65,1),"") ->  | BY65: =IF(BX65<>"",(INDIRECT("i_"&BS65&"discount"))*BX65,"") ->  | BZ65: =IFERROR(IF(BX65<>"",BX65-BY65,""),"") -> 
B66: 2 | C66: 1 | K66: =IFERROR(IF(ISBLANK(J66),"",IF(FIND(J66,INDIRECT($J$58))>0,1,0)),0) ->  | AW66: =IF(ISNUMBER(FIND("x",BE66)),IFERROR(INDEX(INDIRECT("T_FinishColour[ColourCode-"&IF(ISNUMBER(FIND("xxx",BE66)),"xxx",IF(ISNUMBER(FIND("xx",BE66)),"xx","error"))&AR66&"]"),MATCH(AV66,T_FinishColour[Finish / Colour],0)),""),"") ->  | AY66: =IF(AND(ISBLANK(BC66),ISBLANK(C66)),"HIDE",_xlfn.SWITCH(PRODUCT(C66:Z66,B66),2,"HEADING",1,"SHOW",0,"HIDE")) -> HEADING | BC66: =_xlfn.IFNA(SUBSTITUTE(IF(AR66="AU",SUBSTITUTE(BE66,"xxx",AW66),SUBSTITUTE(SUBSTITUTE(BE66,"xx",AW66),"x","")),"LLL","580"),BE66) ->  | BH66: =IF(ISBLANK(BO66),"",IF(OR(BO66=L_Units),"Y","N")) ->  | BJ66: =IFERROR(_xlfn.SINGLE(IF(BH66="Y",((INDEX(#REF!,MATCH(BI66,#REF!,0),0))),"")),"") ->  | BP66: =IFERROR(IF(ISBLANK(BC66),"",INDEX(T_NAV_AU[Base Unit of Measure],MATCH(BC66,T_NAV_AU[No.],0))),"") ->  | BV66: =IF(ISBLANK(BT66),"",PRODUCT(AE31,BT66)) ->  | BW66: =IFERROR(INDEX(INDIRECT("T_NAV_"&i_Location&"["&i_Location&"]"),MATCH(1,--(BC66=INDIRECT("T_NAV_"&i_Location&"[No.]"))*--((INDIRECT("T_NAV_"&i_Location&"["&i_Location&"]"))<>""),0))/IF(AND(BQ66="METRE",BG66<>"",BR66=""),BG66,1),"") ->  | BY66: =IF(BX66<>"",(INDIRECT("i_"&BS66&"discount"))*BX66,"") -> 
B67: 2 | C67: 1 | AW67: =IF(ISNUMBER(FIND("x",BE67)),IFERROR(INDEX(INDIRECT("T_FinishColour[ColourCode-"&IF(ISNUMBER(FIND("xxx",BE67)),"xxx",IF(ISNUMBER(FIND("xx",BE67)),"xx","error"))&AR67&"]"),MATCH(AV67,T_FinishColour[Finish / Colour],0)),""),"") ->  | AY67: =IF(AND(ISBLANK(BC67),ISBLANK(C67)),"HIDE",_xlfn.SWITCH(PRODUCT(C67:Z67,B67),2,"HEADING",1,"SHOW",0,"HIDE")) -> HEADING | BC67: FABRIC | BE67: FABRIC | BJ67: =IFERROR(_xlfn.SINGLE(IF(BH67="Y",((INDEX(#REF!,MATCH(BI67,#REF!,0),0))),"")),"") ->  | BP67: =IFERROR(IF(ISBLANK(BC67),"",INDEX(T_NAV_AU[Base Unit of Measure],MATCH(BC67,T_NAV_AU[No.],0))),"") ->  | BW67: =IFERROR(INDEX(INDIRECT("T_NAV_"&i_Location&"["&i_Location&"]"),MATCH(1,--(BC67=INDIRECT("T_NAV_"&i_Location&"[No.]"))*--((INDIRECT("T_NAV_"&i_Location&"["&i_Location&"]"))<>""),0))/IF(AND(BQ67="METRE",BG67<>"",BR67=""),BG67,1),"") -> 
B68: 2 | C68: 1 | AW68: =IF(ISNUMBER(FIND("x",BE68)),IFERROR(INDEX(INDIRECT("T_FinishColour[ColourCode-"&IF(ISNUMBER(FIND("xxx",BE68)),"xxx",IF(ISNUMBER(FIND("xx",BE68)),"xx","error"))&AR68&"]"),MATCH(AV68,T_FinishColour[Finish / Colour],0)),""),"") ->  | AY68: =IF(AND(ISBLANK(BC68),ISBLANK(C68)),"HIDE",_xlfn.SWITCH(PRODUCT(C68:Z68,B68),2,"HEADING",1,"SHOW",0,"HIDE")) -> HEADING | BC68: NOT SUPPLIED | BE68: Not Supplied | BF68: Fabric Width | BH68: =IF(ISBLANK(BO68),"",IF(OR(BO68=L_Units),"Y","N")) ->  | BI68: Fabric | BJ68: =IFERROR(IF(BH68="Y",((INDEX(T_Deduc18[Deduction],MATCH(BI68,T_Deduc18[Type],0),0))),""),"") ->  | BK68: o_widthmm | BO68: =INDEX(T_UnitSelection[Units],MATCH(i_Units,T_UnitSelection[UnitSelection],0)) ->  | BP68: =IFERROR(IF(ISBLANK(BC68),"",INDEX(T_NAV_AU[Base Unit of Measure],MATCH(BC68,T_NAV_AU[No.],0))),"") ->  | BT68: 1 | BU68: 1 | BV68: =IF(ISBLANK(BT68),"",PRODUCT(AE68,BT68,i_systemQTY)) -> 1 | BW68: =IFERROR(INDEX(INDIRECT("T_NAV_"&i_Location&"["&i_Location&"]"),MATCH(1,--(BC68=INDIRECT("T_NAV_"&i_Location&"[No.]"))*--((INDIRECT("T_NAV_"&i_Location&"["&i_Location&"]"))<>""),0))/IF(AND(BQ68="METRE",BG68<>"",BR68=""),BG68,1),"") ->  | BZ68: =IFERROR(IF(BX68<>"",BX68-BY68,""),"") -> 
B69: 2 | C69: 1 | AW69: =IF(ISNUMBER(FIND("x",BE69)),IFERROR(INDEX(INDIRECT("T_FinishColour[ColourCode-"&IF(ISNUMBER(FIND("xxx",BE69)),"xxx",IF(ISNUMBER(FIND("xx",BE69)),"xx","error"))&AR69&"]"),MATCH(AV69,T_FinishColour[Finish / Colour],0)),""),"") ->  | AY69: =IF(AND(ISBLANK(BC69),ISBLANK(C69)),"HIDE",_xlfn.SWITCH(PRODUCT(C69:Z69,B69),2,"HEADING",1,"SHOW",0,"HIDE")) -> HEADING | BF69: Fabric Drop | BH69: =IF(ISBLANK(BO69),"",IF(OR(BO69=L_Units),"Y","N")) ->  | BI69: FabricDrop | BJ69: =IFERROR(IF(BH69="Y",((INDEX(T_Deduc18[Deduction],MATCH(BI69,T_Deduc18[Type],0),0))),""),"") ->  | BK69: o_dropmm | BO69: =INDEX(T_UnitSelection[Units],MATCH(i_Units,T_UnitSelection[UnitSelection],0)) ->  | BP69: =IFERROR(IF(ISBLANK(BC69),"",INDEX(T_NAV_AU[Base Unit of Measure],MATCH(BC69,T_NAV_AU[No.],0))),"") ->  | BW69: =IFERROR(INDEX(INDIRECT("T_NAV_"&i_Location&"["&i_Location&"]"),MATCH(1,--(BC69=INDIRECT("T_NAV_"&i_Location&"[No.]"))*--((INDIRECT("T_NAV_"&i_Location&"["&i_Location&"]"))<>""),0))/IF(AND(BQ69="METRE",BG69<>"",BR69=""),BG69,1),"") ->  | BZ69: =IFERROR(IF(BX69<>"",BX69-BY69,""),"") -> 
B70: 2 | C70: 1 | AY70: =IF(AND(ISBLANK(BC70),ISBLANK(C70)),"HIDE",_xlfn.SWITCH(PRODUCT(C70:Z70,B70),2,"HEADING",1,"SHOW",0,"HIDE")) -> HEADING
B71: 2 | C71: 1 | AY71: =IF(AND(ISBLANK(BC71),ISBLANK(C71)),"HIDE",_xlfn.SWITCH(PRODUCT(C71:Z71,B71),2,"HEADING",1,"SHOW",0,"HIDE")) -> HEADING | BE71: CUSTOM NOTES
C72: 1 | AY72: =IF(AND(ISBLANK(BC72),ISBLANK(C72)),"HIDE",_xlfn.SWITCH(PRODUCT(C72:Z72,B72),2,"HEADING",1,"SHOW",0,"HIDE")) -> SHOW | BE72: ="Recommended "&IF(i_Location="US","Hem Bar","Weight Bar")&" total mass: "&IF(i_Units="Metric",ROUND(o_wbRecMass_Metric,2)&" kg",ROUND(o_wbRecMass_Imperial,2)&" lbs") -> 
C73: 1 | AY73: =IF(AND(ISBLANK(BC73),ISBLANK(C73)),"HIDE",_xlfn.SWITCH(PRODUCT(C73:Z73,B73),2,"HEADING",1,"SHOW",0,"HIDE")) -> SHOW
C74: 1 | AY74: =IF(AND(ISBLANK(BC74),ISBLANK(C74)),"HIDE",_xlfn.SWITCH(PRODUCT(C74:Z74,B74),2,"HEADING",1,"SHOW",0,"HIDE")) -> SHOW
C75: 1 | K75: =IFERROR(IF(ISBLANK(J75),"",IF(FIND(J75,INDIRECT($J$58))>0,1,0)),0) ->  | AY75: =IF(AND(ISBLANK(BC75),ISBLANK(C75)),"HIDE",_xlfn.SWITCH(PRODUCT(C75:Z75,B75),2,"HEADING",1,"SHOW",0,"HIDE")) -> SHOW
C76: 1 | K76: =IFERROR(IF(ISBLANK(J76),"",IF(FIND(J76,INDIRECT($J$58))>0,1,0)),0) ->  | AY76: =IF(AND(ISBLANK(BC76),ISBLANK(C76)),"HIDE",_xlfn.SWITCH(PRODUCT(C76:Z76,B76),2,"HEADING",1,"SHOW",0,"HIDE")) -> SHOW
AS77: =IF(ISNUMBER(FIND("x",BE77)),IFERROR(INDEX(AI77:AQ77,0,MATCH(AT77,AI77:AQ77,0)),IF(AI77<>"",AI77,i_DefaultColour)),"") ->  | AV77: =IF(ISNUMBER(FIND("x",BE77)),IFERROR(INDEX(AI77:AQ77,0,MATCH(AT77,AI77:AQ77,0)),AS77),"") ->  | AW77: =IF(ISNUMBER(FIND("x",BE77)),IFERROR(INDEX(INDIRECT("T_FinishColour[ColourCode-"&IF(ISNUMBER(FIND("xxx",BE77)),"xxx",IF(ISNUMBER(FIND("xx",BE77)),"xx","error"))&AR77&"]"),MATCH(AV77,T_FinishColour[Finish / Colour],0)),""),"") ->  | AY77: =IF(AND(ISBLANK(BC77),ISBLANK(C77)),"HIDE",_xlfn.SWITCH(PRODUCT(C77:Z77,B77),2,"HEADING",1,"SHOW",0,"HIDE")) -> HIDE
AW78: =IF(ISNUMBER(FIND("x",BE78)),IFERROR(INDEX(INDIRECT("T_FinishColour[ColourCode-"&IF(ISNUMBER(FIND("xxx",BE78)),"xxx",IF(ISNUMBER(FIND("xx",BE78)),"xx","error"))&AR78&"]"),MATCH(AV78,T_FinishColour[Finish / Colour],0)),""),"") ->  | AY78: =IF(i_Pricing="No","HIDE","SHOW") -> HIDE
AW79: =IF(ISNUMBER(FIND("x",BE79)),IFERROR(INDEX(INDIRECT("T_FinishColour[ColourCode-"&IF(ISNUMBER(FIND("xxx",BE79)),"xxx",IF(ISNUMBER(FIND("xx",BE79)),"xx","error"))&AR79&"]"),MATCH(AV79,T_FinishColour[Finish / Colour],0)),""),"") ->  | AY79: =IF(i_Pricing="No","HIDE","SHOW") -> HIDE | BO79: ="LIST PRICE: ("&IF(CustomCurrency="",i_Currency,CustomCurrency)&")" ->  | BV79: =SUM(BX15:BX69)*(IF(CustomCurrencyRate<>"",CustomCurrencyRate,1)) -> 0
AW80: =IF(ISNUMBER(FIND("x",BE80)),IFERROR(INDEX(INDIRECT("T_FinishColour[ColourCode-"&IF(ISNUMBER(FIND("xxx",BE80)),"xxx",IF(ISNUMBER(FIND("xx",BE80)),"xx","error"))&AR80&"]"),MATCH(AV80,T_FinishColour[Finish / Colour],0)),""),"") ->  | AY80: =IF(i_Pricing="No","HIDE","SHOW") -> HIDE | BO80: ="Discounts Applied: " -> Discounts Applied: | BV80: =SUM(BY15:BY69) -> 0
AW81: =IF(ISNUMBER(FIND("x",BE81)),IFERROR(INDEX(INDIRECT("T_FinishColour[ColourCode-"&IF(ISNUMBER(FIND("xxx",BE81)),"xxx",IF(ISNUMBER(FIND("xx",BE81)),"xx","error"))&AR81&"]"),MATCH(AV81,T_FinishColour[Finish / Colour],0)),""),"") ->  | AY81: =IF(i_Pricing="No","HIDE","SHOW") -> HIDE | BO81: ="TOTAL ex. GST: ("&IF(CustomCurrency="",i_Currency,CustomCurrency)&")" ->  | BV81: =BV79-BV80 -> 0
AW82: =IF(ISNUMBER(FIND("x",BE82)),IFERROR(INDEX(INDIRECT("T_FinishColour[ColourCode-"&IF(ISNUMBER(FIND("xxx",BE82)),"xxx",IF(ISNUMBER(FIND("xx",BE82)),"xx","error"))&AR82&"]"),MATCH(AV82,T_FinishColour[Finish / Colour],0)),""),"") ->  | AY82: =IF(i_Pricing="No","HIDE","SHOW") -> HIDE
AW83: =IF(ISNUMBER(FIND("x",BE83)),IFERROR(INDEX(INDIRECT("T_FinishColour[ColourCode-"&IF(ISNUMBER(FIND("xxx",BE83)),"xxx",IF(ISNUMBER(FIND("xx",BE83)),"xx","error"))&AR83&"]"),MATCH(AV83,T_FinishColour[Finish / Colour],0)),""),"") ->  | AY83: =IF(AND(ISBLANK(BE83),ISBLANK(C83)),"HIDE",IF(PRODUCT(C83:Z83)=1,"SHOW","HIDE")) -> HIDE
AW84: =IF(ISNUMBER(FIND("x",BE84)),IFERROR(INDEX(INDIRECT("T_FinishColour[ColourCode-"&IF(ISNUMBER(FIND("xxx",BE84)),"xxx",IF(ISNUMBER(FIND("xx",BE84)),"xx","error"))&AR84&"]"),MATCH(AV84,T_FinishColour[Finish / Colour],0)),""),"") ->  | AY84: HIDE | BO84: System unit cost | BV84: =BV81/i_systemQTY -> 0
AW85: =IF(ISNUMBER(FIND("x",BE85)),IFERROR(INDEX(INDIRECT("T_FinishColour[ColourCode-"&IF(ISNUMBER(FIND("xxx",BE85)),"xxx",IF(ISNUMBER(FIND("xx",BE85)),"xx","error"))&AR85&"]"),MATCH(AV85,T_FinishColour[Finish / Colour],0)),""),"") ->  | AY85: HIDE
AW86: =IF(ISNUMBER(FIND("x",BE86)),IFERROR(INDEX(INDIRECT("T_FinishColour[ColourCode-"&IF(ISNUMBER(FIND("xxx",BE86)),"xxx",IF(ISNUMBER(FIND("xx",BE86)),"xx","error"))&AR86&"]"),MATCH(AV86,T_FinishColour[Finish / Colour],0)),""),"") ->  | AY86: HIDE
AW87: =IF(ISNUMBER(FIND("x",BE87)),IFERROR(INDEX(INDIRECT("T_FinishColour[ColourCode-"&IF(ISNUMBER(FIND("xxx",BE87)),"xxx",IF(ISNUMBER(FIND("xx",BE87)),"xx","error"))&AR87&"]"),MATCH(AV87,T_FinishColour[Finish / Colour],0)),""),"") ->  | AY87: HIDE
AW88: =IF(ISNUMBER(FIND("x",BE88)),IFERROR(INDEX(INDIRECT("T_FinishColour[ColourCode-"&IF(ISNUMBER(FIND("xxx",BE88)),"xxx",IF(ISNUMBER(FIND("xx",BE88)),"xx","error"))&AR88&"]"),MATCH(AV88,T_FinishColour[Finish / Colour],0)),""),"") ->  | AY88: HIDE
AW89: =IF(ISNUMBER(FIND("x",BE89)),IFERROR(INDEX(INDIRECT("T_FinishColour[ColourCode-"&IF(ISNUMBER(FIND("xxx",BE89)),"xxx",IF(ISNUMBER(FIND("xx",BE89)),"xx","error"))&AR89&"]"),MATCH(AV89,T_FinishColour[Finish / Colour],0)),""),"") ->  | AY89: HIDE
AY90: HIDE
E206: Ultra-Lock Wire Guide | F206: Ultra-Lock Zipscreen
F237: Ultra-Lock Zipscreen
E238: Ultra-Lock Wire Guide

Sheet Ctrl_Lists (hidden)
G1: TO BE FINISHED LATER>
A2: List Summary | U2: L_SelectUnitsSingle
D3: i_Currency | O3: o_nScreens | U3: =IF(i_Units="Metric","Imperial","Metric") -> Metric
D4: =INDEX(T_Currency[Currency],MATCH(i_Location,T_Location[Location],0)) ->  | O4: =IF(OR(i_LinkedScreens="No",i_LinkedScreens=""),1,i_nScreens) ->  | U4: =IF(i_Units="","Imperial",0) -> Imperial
B5: Activate List ->
B6: Table/List Name (MUST MATCH) -> | C6: ="T_"&SUBSTITUTE((OFFSET(C6,2,0))," ","") -> T_Installation | D6: T_Currency | E6: T_Location | F6: T_BlindType | G6: T_SystemType | H6: T_InstallationType | I6: T_ControlType | J6: T_SideGuideFixing | L6: ="T_"&SUBSTITUTE((OFFSET(L6,2,0))," ","") -> T_ControlSide | M6: T_YesNo | N6: T_BoxShape | O6: T_nScreens | P6: T_CassetteBrush | Q6: T_wbBallast | R6: T_PivotArmLength | T6: T_Linked | U6: ="T_"&SUBSTITUTE((OFFSET(U6,2,0))," ","") -> T_UnitSelection | X6: T_SheetStatus | Z6: T_Motor | AB6: ="T_"&SUBSTITUTE((OFFSET(AB6,2,0))," ","") -> T_RemoteList | AC6: T_ZipscreenSideGuides | AD6: T_WGTopTerminal | AE6: T_Booster | AF6: T_GearArm | AG6: T_GearRatio | AH6: T_BracketOptions | AI6: T_IdlerType | AJ6: T_OpenBktOrientation | AK6: T_Sensors
B7: List Test ->
B8: Header Name -> | C8: Installation | D8: Currency | E8: Location | F8: Blind Type | G8: System Type | H8: Installation Type | I8: Control Type | J8: SideGuideFixing | K8: Outcome | L8: Control Side | M8: YesNo | N8: Box Shape | O8: nScreens | P8: CassetteBrush | Q8: wbBallast | R8: PivotArmLength | S8: Converted | T8: Linked | U8: UnitSelection | V8: Units | W8: Fabric | X8: Status | Z8: Motor | AB8: RemoteList | AC8: ZipscreenSideGuides | AD8: WGTopTerminal | AE8: Booster | AF8: GearArm | AG8: GearRatio | AH8: BracketOptions | AI8: IdlerType | AJ8: OpenBktOrientation | AK8: Sensors
C9: Internal | D9: AUD | E9: US | F9: Single | G9: Zipscreen | H9: Open | I9: Spring | J9: Side Guide - Face Fix (Wall / Outside Mount) | K9: No Clip | L9: Left | M9: Yes | N9: Round | O9: 2 | P9: Yes | Q9: Yes | R9: 1.0m (40") | S9: 1000 | T9: No | U9: Metric | V9: mm | W9: gsm | X9: Development | Z9: AUTOMATE | ARC FT Motor | AB9: PUSH Five Ch. | White | AC9: L-Fixing Rail | AD9: Hook Saddle Bracket | AE9: Short | AF9: 1m (40") | AG9: 5:1 (7.5 Nm) | AH9: Mild Steel | AI9: Bearing Idler 63mm | AJ9: Bracket - Face Fix Orientation | AK9: No Sensor
C10: External | D10: USD | F10: Dual | G10: VEUE - Straight Drop | I10: Gear | J10: Side Guide - Recess Fix (Inside Mount) | K10: Top Fix | L10: Right | M10: No | N10: Square | O10: 3 | P10: No | Q10: No | R10: 1.4m (55") | S10: 1400 | T10: Easy Link | U10: Imperial | V10: in | W10: oz/yd² | X10: Release | Z10: Somfy Motor (Round Head) | AB10: PUSH Five Ch. | Black | AC10: Face Fix U-Rail (Wall Mount) | AD10: Round Clamp Terminal | AE10: Standard | AF10: 1.5m (60") | AG10: 8:1 (20 Nm) | AH10: Stainless Steel | AI10: Idler Housing & Pin Kit | AJ10: Bracket - Top Fix Orientation | AK10: AUTOMATE | ARC Solar Sun & Wind Sensor
D11: EUR | G11: VEUE - Wire Guide | I11: Motor | R11: 1.6m | S11: 1600 | T11: Multi Infinite Link | Z11: Somfy Motor (Star Head) | AB11: PUSH Fifteen Ch. | White | AE11: Heavy | AF11: 2m (80") | AI11: Extreme Bearing Idler
G12: VEUE - Pivot Arm | AB12: PUSH Fifteen Ch. | Black | AE12: Extra Heavy
G13: VEUE - Channel Guide | AB13: No Remote | AE13: Dual Heavy
E14: EU | G14: EXTREME - Zipscreen
G15: EXTREME - Wire Guide
C20: ="T_"&SUBSTITUTE((OFFSET(C20,2,0))," ","") -> T_Tube | D20: ="T_"&SUBSTITUTE((OFFSET(D20,2,0))," ","") -> T_WeightBar | E20: ="T_"&SUBSTITUTE((OFFSET(E20,2,0))," ","") -> T_wbSpline | F20: T_TubeExtras | G20: T_Chain | H20: T_Finish | I20: T_FinishColour | N20: T_Fabric | R20: ="T_"&SUBSTITUTE((OFFSET(R20,2,0))," ","") -> T_ChainTensioner | T20: T_ChainType | V20: T_CostCalc
E21: =INDEX(Ctrl_Lists!$E$23:$E$30,MATCH(i_WeightBar,T_WeightBar[],0)) ->  | N21: gsm | O21: oz/yd² | P21: mm | Z21: Translate | AC21: ="T_"&SUBSTITUTE((OFFSET(AC21,2,0))," ","") -> T_HandleOptions
C22: Tube | D22: WeightBar | E22: wbSpline | F22: TubeExtras | G22: Chain | H22: Finish | I22: Finish / Colour | J22: ColourCode-xxxAU | K22: ColourCode-xxUS | L22: ColourCode-xxxUS | N22: Metric | O22: Imperial | P22: Thickness | R22: ChainTensioner | T22: ChainType | V22: CostCalc | Z22: US | AA22: AU
C23: 1.5" | D23: D30 | E23: 9mm Flat Spline (D/S Tape) | F23: Spline | G23: 50 cm | H23: Mill | I23: =T_Finish[[#This Row],[Finish]] -> Mill | J23: 000 | K23: U | N23: 180 | O23: =ROUND(T_Fabric[[#This Row],[Metric]]/33.9,2) -> 5.31 | P23: 0.4 | R23: Face Fix | T23: Plastic | V23: Pro-rata'd lengths | Z23: Pin End | AA23: Idler End | AC23: HandleOptions
C24: S45 LT | D24: Fabric Wrap | E24: 7.2mm Round Spline w/ 15mm Tail | F24: D/S Tape | G24: 75 cm | H24: Anodised | I24: Anodised | J24: 018 | K24: A | N24: 320 | O24: =ROUND(T_Fabric[[#This Row],[Metric]]/33.9,2) -> 9.44 | P24: 0.55 | R24: Recess Fix | T24: Metal | V24: Charge full lengths | Z24: Edge | AA24: dim-OUT | AC24: No
C25: S45 STD | D25: F4115 | G25: 100 cm | H25: Power Coat | I25: Stainless | J25: 013 | N25: 420 | O25: =ROUND(T_Fabric[[#This Row],[Metric]]/33.9,2) -> 12.39 | P25: 0.55 | R25: Universal | V25: Minimum pack sizes??? | AC25: Handle (x1)
C26: S45 HD | D26: Oval | G26: 125 cm | I26: Black | J26: 050 | K26: BK | L26: 050 | N26: 500 | O26: =ROUND(T_Fabric[[#This Row],[Metric]]/33.9,2) -> 14.75 | P26: 0.9 | R26: Chain Hold | AC26: Handle (x2)
D27: Round | G27: 150 cm | I27: White | J27: 069 | K27: W | L27: 075
D28: No Weight Bar | G28: 175 cm | I28: Silver Grey | J28: 338
D29: HB16 | G29: 200 cm | I29: Bronze | J29: 082 | K29: BR | L29: 472
I30: Vanilla | K30: V | L30: 414
I31: Cream | K31: CR
I32: Sandstone | J32: 269
I33: Barley | J33: 283
I34: Gray | J34: 340 | K34: G
I35: Brown | K35: GR
I36: Zinc Plated | J36: 025 | K36: =1/0 ->  | L36: 025
I37: Monument
I38: Woodland Grey
J40: Test
I41: L_ColourList
I48: =_xlfn._xlws.FILTER(T_FinishColour[Finish / Colour],T_FinishColour[ColourCode-xxxUS]<>"") -> Black | N48: ="T_"&SUBSTITUTE((OFFSET(N48,2,0))," ","") -> T_wbBrush | O48: ="T_"&SUBSTITUTE((OFFSET(O48,2,0))," ","") -> T_wbBubbleSeal | Q48: ="T_"&SUBSTITUTE((OFFSET(Q48,2,0))," ","") -> T_ChainLength
I49: White
I50: Bronze | N50: wbBrush | O50: wbBubbleSeal | Q50: ChainLength
I51: Vanilla | N51: Yes | O51: No Bubble Seal | Q51: 50
I52: Zinc Plated | N52: No | O52: Yes - Bottom/Back Seal (1x) | Q52: 75
O53: Yes - Bottom + Back Seal (2x) | Q53: 100
Q54: 125
Q55: 150
Q56: 175
Q57: 200

Sheet Ctrl_Selections (hidden)
C1: =IF(INDIRECT("i_"&SUBSTITUTE(D55," ","")),0,"No") if a default value is required
A3: Configuration Matrix
C5: Enter DEPENDENCIES | D5: SELECTION OPTIONS | E5: CONFIGURATIONS
C6: Ref Position → | D6: =COUNTA(D7:D20) -> 2 | E6: =SUM(COUNTIF(E7:E20,$C7:$C20)) -> 0 | F6: =SUM(COUNTIF(F7:F20,$C7:$C20)) -> 0 | G6: =SUM(COUNTIF(G7:G20,$C7:$C20)) -> 0 | H6: =SUM(COUNTIF(H7:H20,$C7:$C20)) -> 0 | I6: =SUM(COUNTIF(I7:I20,$C7:$C20)) -> 0 | J6: =SUM(COUNTIF(J7:J20,$C7:$C20)) -> 0 | K6: =SUM(COUNTIF(K7:K20,$C7:$C20)) -> 0 | L6: =SUM(COUNTIF(L7:L20,$C7:$C20)) -> 0 | M6: =SUM(COUNTIF(M7:M20,$C7:$C20)) -> 0 | N6: =SUM(COUNTIF(N7:N20,$C7:$C20)) -> 0
B7: Enter Selection 1 -> | C7: =i_InstallationType -> 0 | D7: Installation Type | E7: Open
B12: Enter Selection 2-> | C12: =i_BktFixType -> 0 | D12: Bkt Fix Type | E12: Bracket - Face Fix Orientation
E13: Bracket - Top Fix Orientation
B19: Enter Selection 3->
B20: Enter Selection 4->
D22: =MAX(E22:N22) -> 0 | E22: =IF(E6<>$D6,0,COUNTA(E23:E27)) -> 0 | F22: 0 | G22: 0 | H22: 0 | I22: 0 | J22: 0 | K22: 0 | L22: 0 | M22: 0 | N22: 0
B23: Dependent (Output List) 1 -> | D23: OpenBktCovers | E23: Yes
E24: No
D28: DO NOT FILL
D30: =D23 -> OpenBktCovers | G30: =SUBSTITUTE(" ","",$D7) ->  | H30: =IFERROR(INDEX(#REF!, MATCH(0, COUNTIF($D30:G$445,#REF!) + ( COUNTIF(#REF!,#REF!)<>1), 0)), "") ->  | I30: =IFERROR(INDEX(#REF!, MATCH(0, COUNTIF($D30:H$445,#REF!) + ( COUNTIF(#REF!,#REF!)<>1), 0)), "") -> 
C31: row | D31: =MATCH(D30,$D6:$D29,0) -> 18
C32: column | D32: =MATCH(OFFSET($D6,MATCH(D30,$D6:$D29,0)-2,0),OFFSET($D6,MATCH(D30,$D6:$D29,0)-2,1,1,11),0)+1 -> 2
C33: Size | D33: =OFFSET($D6,MATCH(D30,$D6:$D29,0)-2,0,) -> 0
C34: Test →
C35: Data Validation Name | D35: ="L_"&SUBSTITUTE(D30," ","") -> L_OpenBktCovers
C38: Enter DEPENDENCIES | D38: SELECTION OPTIONS | E38: CONFIGURATIONS
C39: Ref Position → | D39: =COUNTA(D40:D51) -> 1 | E39: =SUM(COUNTIF(E40:E51,$C40:$C51)) -> 0 | F39: =SUM(COUNTIF(F40:F51,$C40:$C51)) -> 0 | G39: =SUM(COUNTIF(G40:G51,$C40:$C51)) -> 0 | H39: =SUM(COUNTIF(H40:H51,$C40:$C51)) -> 0 | I39: =SUM(COUNTIF(I40:I51,$C40:$C51)) -> 0 | J39: =SUM(COUNTIF(J40:J51,$C40:$C51)) -> 0 | K39: =SUM(COUNTIF(K40:K51,$C40:$C51)) -> 0 | L39: =SUM(COUNTIF(L40:L51,$C40:$C51)) -> 0 | M39: =SUM(COUNTIF(M40:M51,$C40:$C51)) -> 0 | N39: =SUM(COUNTIF(N40:N51,$C40:$C51)) -> 0
B40: Enter Selection 2-> | C40: =i_InstallationType -> 0 | D40: Installation Type | E40: Open | K40: Open
K46: Bracket - Recess Fix
B50: Enter Selection 3->
B51: Enter Selection 4->
D53: =MAX(E53:N53) -> 0 | E53: =IF(E39<>$D39,0,COUNTA(E54:E62)) -> 0 | F53: 0 | G53: 0 | H53: 0 | I53: 0 | J53: 0 | K53: 0 | L53: 0 | M53: 0 | N53: 0
B54: Dependent (Output List) 1 -> | D54: Tension Tool | E54: Not Required | K54: Side Guide - Recess Fix (Inside Mount)
E55: Tension Lock - 1.5"
E56: PreTension Tool 1.5"
E57: Spanner Tool
E58: Tension Lock + PreTension + Spanner
E59: Tension Lock + PreTension
E60: Tension Lock + Spanner
E61: PreTension + Spanner
D63: DO NOT FILL
D65: =MAX(E65:N65) -> 0 | E65: =IF(E39<>$D39,0,COUNTA(E66:E70)) -> 0 | F65: 0 | G65: 0 | H65: 0 | I65: 0 | J65: 0 | K65: 0 | L65: 0 | M65: 0 | N65: 0
B66: Dependent (Output List) 1 ->
D71: DO NOT FILL
D73: =D54 -> Tension Tool | E73: =D66 -> 0 | H73: =IFERROR(INDEX(#REF!, MATCH(0, COUNTIF($D73:G$445,#REF!) + ( COUNTIF(#REF!,#REF!)<>1), 0)), "") ->  | I73: =IFERROR(INDEX(#REF!, MATCH(0, COUNTIF($D73:H$445,#REF!) + ( COUNTIF(#REF!,#REF!)<>1), 0)), "") -> 
C74: row | D74: =MATCH(D73,$D39:$D71,0) -> 16 | E74: =MATCH(E73,$D39:$D71,0) -> 15
C75: column | D75: =MATCH(OFFSET($D39,MATCH(D73,$D39:$D64,0)-2,0),OFFSET($D39,MATCH(D73,$D39:$D64,0)-2,1,1,11),0)+1 -> 2 | E75: =MATCH(OFFSET($D39,MATCH(E73,$D39:$D71,0)-2,0),OFFSET($D39,MATCH(E73,$D39:$D71,0)-2,1,1,11),0)+1 -> 
C76: Size | D76: =OFFSET($D39,MATCH(D73,$D39:$D64,0)-2,0,) -> 0 | E76: =OFFSET($D39,MATCH(E73,$D39:$D71,0)-2,0,) -> 0
C77: Test →
C78: Data Validation Name | D78: ="L_"&SUBSTITUTE(D73," ","") -> L_TensionTool | E78: ="L_"&SUBSTITUTE(E73," ","") -> L_0
C83: Enter DEPENDENCIES | D83: SELECTION OPTIONS | E83: CONFIGURATIONS
C84: Ref Position → | D84: =COUNTA(D85:D91) -> 1 | E84: =SUM(COUNTIF(E85:E91,$C85:$C91)) -> 0 | F84: =SUM(COUNTIF(F85:F91,$C85:$C91)) -> 0 | G84: =SUM(COUNTIF(G85:G91,$C85:$C91)) -> 0 | H84: =SUM(COUNTIF(H85:H91,$C85:$C91)) -> 0 | I84: =SUM(COUNTIF(I85:I91,$C85:$C91)) -> 0 | J84: =SUM(COUNTIF(J85:J91,$C85:$C91)) -> 0 | K84: =SUM(COUNTIF(K85:K91,$C85:$C91)) -> 0 | L84: =SUM(COUNTIF(L85:L91,$C85:$C91)) -> 0 | M84: =SUM(COUNTIF(M85:M91,$C85:$C91)) -> 0 | N84: =SUM(COUNTIF(N85:N91,$C85:$C91)) -> 0
B85: Enter Selection 1 -> | C85: =i_Location -> 0 | D85: Location | E85: AU | F85: US
D93: =MAX(E93:N93) -> 0 | E93: =IF(E84<>$D84,0,COUNTA(E94:E99)) -> 0 | F93: =IF(F84<>$D84,0,COUNTA(F94:F99)) -> 0 | G93: 0 | H93: 0 | I93: 0 | J93: 0 | K93: 0 | L93: 0 | M93: 0 | N93: 0
B94: Dependent (Output List) 1 -> | D94: Booster | E94: Compact | F94: Short
E95: Short | F95: Standard
E96: Standard | F96: Heavy
E97: Heavy | F97: Extra Heavy
E98: Extra Heavy
E99: Dual Heavy
D100: DO NOT FILL
D102: =MAX(E102:N102) -> 0 | E102: =IF(E84<>$D84,0,COUNTA(E103:E111)) -> 0 | F102: =IF(F84<>$D84,0,COUNTA(F103:F111)) -> 0 | G102: 0 | H102: 0 | I102: 0 | J102: 0 | K102: 0 | L102: 0 | M102: 0 | N102: 0
B103: Dependent (Output List) 1 -> | D103: Colours | E103: Black (050) | F103: Black (050)
E104: Monument (057) | F104: White (069)
E105: Surfmist (068) | F105: Bronze (080)
E106: White (069) | F106: Woodland Grey (352)
E107: Classic Cream (295) | F107: Paperbark (425)
E108: Woodland Grey (352)
E109: Paperbark (425)
D112: DO NOT FILL
D114: =D94 -> Booster | E114: =D103 -> Colours | G114: =SUBSTITUTE(" ","",$D85) ->  | H114: =IFERROR(INDEX(#REF!, MATCH(0, COUNTIF($D114:G$445,#REF!) + ( COUNTIF(#REF!,#REF!)<>1), 0)), "") ->  | I114: =IFERROR(INDEX(#REF!, MATCH(0, COUNTIF($D114:H$445,#REF!) + ( COUNTIF(#REF!,#REF!)<>1), 0)), "") -> 
C115: row | D115: =MATCH(D114,$D84:$D101,0) -> 11 | E115: =MATCH(E114,$D84:$D112,0) -> 20
C116: column | D116: =MATCH(OFFSET($D84,MATCH(D114,$D84:$D101,0)-2,0),OFFSET($D84,MATCH(D114,$D84:$D101,0)-2,1,1,11),0)+1 -> 2 | E116: =MATCH(OFFSET($D84,MATCH(E114,$D84:$D112,0)-2,0),OFFSET($D84,MATCH(E114,$D84:$D112,0)-2,1,1,11),0)+1 -> 2
C117: Size | D117: =OFFSET($D84,MATCH(D114,$D84:$D101,0)-2,0,) -> 0 | E117: =OFFSET($D84,MATCH(E114,$D84:$D112,0)-2,0,) -> 0
C118: Test →
C119: Data Validation Name | D119: ="L_"&SUBSTITUTE(D114," ","") -> L_Booster | E119: ="L_"&SUBSTITUTE(E114," ","") -> L_Colours
C124: Enter DEPENDENCIES | D124: SELECTION OPTIONS | E124: CONFIGURATIONS
C125: Ref Position → | D125: =COUNTA(D126:D137) -> 1 | E125: =SUM(COUNTIF(E126:E137,$C126:$C137)) -> 0 | F125: =SUM(COUNTIF(F126:F137,$C126:$C137)) -> 0 | G125: =SUM(COUNTIF(G126:G137,$C126:$C137)) -> 0 | H125: =SUM(COUNTIF(H126:H137,$C126:$C137)) -> 0 | I125: =SUM(COUNTIF(I126:I137,$C126:$C137)) -> 0 | J125: =SUM(COUNTIF(J126:J137,$C126:$C137)) -> 0 | K125: =SUM(COUNTIF(K126:K137,$C126:$C137)) -> 0 | L125: =SUM(COUNTIF(L126:L137,$C126:$C137)) -> 0 | M125: =SUM(COUNTIF(M126:M137,$C126:$C137)) -> 0 | N125: =SUM(COUNTIF(N126:N137,$C126:$C137)) -> 0
B126: Enter Selection 1 -> | C126: =i_InstallationType -> 0 | D126: Installation Type | E126: Open
D139: =MAX(E139:N139) -> 0 | E139: =IF(E125<>$D125,0,COUNTA(E140:E145)) -> 0 | F139: 0 | G139: 0 | H139: 0 | I139: 0 | J139: 0 | K139: 0 | L139: 0 | M139: 0 | N139: 0
B140: Dependent (Output List) 1 -> | D140: Bkt Fix Orientation | E140: Bracket - Face Fix Orientation
E141: Bracket - Top Fix Orientation
D146: DO NOT FILL
D148: =D140 -> Bkt Fix Orientation | G148: =SUBSTITUTE(" ","",$D126) ->  | H148: =IFERROR(INDEX(#REF!, MATCH(0, COUNTIF($D148:G$445,#REF!) + ( COUNTIF(#REF!,#REF!)<>1), 0)), "") ->  | I148: =IFERROR(INDEX(#REF!, MATCH(0, COUNTIF($D148:H$445,#REF!) + ( COUNTIF(#REF!,#REF!)<>1), 0)), "") -> 
C149: row | D149: =MATCH(D148,$D125:$D147,0) -> 16
C150: column | D150: =MATCH(OFFSET($D125,MATCH(D148,$D125:$D147,0)-2,0),OFFSET($D125,MATCH(D148,$D125:$D147,0)-2,1,1,11),0)+1 -> 2
C151: Size | D151: =OFFSET($D125,MATCH(D148,$D125:$D147,0)-2,0,) -> 0
C152: Test →
C153: Data Validation Name | D153: ="L_"&SUBSTITUTE(D148," ","") -> L_BktFixOrientation
C161: Enter DEPENDENCIES | D161: SELECTION OPTIONS | E161: CONFIGURATIONS
C162: Ref Position → | D162: =COUNTA(D163:D169) -> 1 | E162: =SUM(COUNTIF(E163:E169,$C163:$C169)) -> 0 | F162: =SUM(COUNTIF(F163:F169,$C163:$C169)) -> 0 | G162: =SUM(COUNTIF(G163:G169,$C163:$C169)) -> 0 | H162: =SUM(COUNTIF(H163:H169,$C163:$C169)) -> 0 | I162: =SUM(COUNTIF(I163:I169,$C163:$C169)) -> 0 | J162: =SUM(COUNTIF(J163:J169,$C163:$C169)) -> 0 | K162: =SUM(COUNTIF(K163:K169,$C163:$C169)) -> 0 | L162: =SUM(COUNTIF(L163:L169,$C163:$C169)) -> 0 | M162: =SUM(COUNTIF(M163:M169,$C163:$C169)) -> 0 | N162: =SUM(COUNTIF(N163:N169,$C163:$C169)) -> 0
B163: Enter Selection 1 -> | C163: =i_SystemType -> 0 | D163: System Type
D171: =MAX(E171:N171) -> 0 | E171: =IF(E162<>$D162,0,COUNTA(E172:E177)) -> 0 | F171: 0 | G171: 0 | H171: 0 | I171: 0 | J171: 0 | K171: 0 | L171: 0 | M171: 0 | N171: 0
B172: Dependent (Output List) 1 -> | D172: Installation Type
D178: DO NOT FILL
D180: =MAX(E180:N180) -> 0 | E180: =IF(E162<>$D162,0,COUNTA(E181:E185)) -> 0 | F180: 0 | G180: 0 | H180: 0 | I180: 0 | J180: 0 | K180: 0 | L180: 0 | M180: 0 | N180: 0
B181: Dependent (Output List) 1 ->
D186: DO NOT FILL
D188: =D172 -> Installation Type | E188: =D181 -> 0 | G188: =SUBSTITUTE(" ","",$D163) ->  | H188: =IFERROR(INDEX(#REF!, MATCH(0, COUNTIF($D188:G$445,#REF!) + ( COUNTIF(#REF!,#REF!)<>1), 0)), "") ->  | I188: =IFERROR(INDEX(#REF!, MATCH(0, COUNTIF($D188:H$445,#REF!) + ( COUNTIF(#REF!,#REF!)<>1), 0)), "") -> 
C189: row | D189: =MATCH(D188,$D162:$D179,0) -> 11 | E189: =MATCH(E188,$D162:$D186,0) -> 10
C190: column | D190: =MATCH(OFFSET($D162,MATCH(D188,$D162:$D179,0)-2,0),OFFSET($D162,MATCH(D188,$D162:$D179,0)-2,1,1,11),0)+1 -> 2 | E190: =MATCH(OFFSET($D162,MATCH(E188,$D162:$D186,0)-2,0),OFFSET($D162,MATCH(E188,$D162:$D186,0)-2,1,1,11),0)+1 -> 
C191: Size | D191: =OFFSET($D162,MATCH(D188,$D162:$D179,0)-2,0,) -> 0 | E191: =OFFSET($D162,MATCH(E188,$D162:$D186,0)-2,0,) -> 0
C192: Test →
C193: Data Validation Name | D193: ="L_"&SUBSTITUTE(D188," ","") -> L_InstallationType | E193: ="L_"&SUBSTITUTE(E188," ","") -> L_0
C201: Enter DEPENDENCIES | D201: SELECTION OPTIONS | E201: CONFIGURATIONS
C202: Ref Position → | D202: =COUNTA(D203:D211) -> 1 | E202: =SUM(COUNTIF(E203:E211,$C203:$C211)) -> 0 | F202: =SUM(COUNTIF(F203:F211,$C203:$C211)) -> 0 | G202: =SUM(COUNTIF(G203:G211,$C203:$C211)) -> 0 | H202: =SUM(COUNTIF(H203:H211,$C203:$C211)) -> 0 | I202: =SUM(COUNTIF(I203:I211,$C203:$C211)) -> 0 | J202: =SUM(COUNTIF(J203:J211,$C203:$C211)) -> 0 | K202: =SUM(COUNTIF(K203:K211,$C203:$C211)) -> 0 | L202: =SUM(COUNTIF(L203:L211,$C203:$C211)) -> 0 | M202: =SUM(COUNTIF(M203:M211,$C203:$C211)) -> 0 | N202: =SUM(COUNTIF(N203:N211,$C203:$C211)) -> 0
B203: Enter Selection 1 -> | C203: =i_InstallationType -> 0 | D203: Installation Type | E203: Open
C208: =i_Tube -> 0
D213: =MAX(E213:N213) -> 0 | E213: =IF(E202<>$D202,0,COUNTA(E214:E219)) -> 0 | F213: 0 | G213: 0 | H213: 0 | I213: 0 | J213: 0 | K213: 0 | L213: 0 | M213: 0 | N213: 0
B214: Dependent (Output List) 1 -> | D214: Idler Type | E214: Skyline Pin End 1.5"
E215: Skyline Heavy Duty Pin End 1.5"
E216: Single Limiter | Universal 1.5"
E217: Single Stop Limiter | Short 1.5"
D220: DO NOT FILL
D222: =MAX(E222:N222) -> 0 | E222: =IF(E202<>$D202,0,COUNTA(E223:E227)) -> 0 | F222: 0 | G222: 0 | H222: 0 | I222: 0 | J222: 0 | K222: 0 | L222: 0 | M222: 0 | N222: 0
B223: Dependent (Output List) 1 ->
D228: DO NOT FILL
D230: =D214 -> Idler Type | E230: =D223 -> 0 | G230: =SUBSTITUTE(" ","",$D203) ->  | H230: =IFERROR(INDEX(#REF!, MATCH(0, COUNTIF($D230:G$445,#REF!) + ( COUNTIF(#REF!,#REF!)<>1), 0)), "") ->  | I230: =IFERROR(INDEX(#REF!, MATCH(0, COUNTIF($D230:H$445,#REF!) + ( COUNTIF(#REF!,#REF!)<>1), 0)), "") -> 
C231: row | D231: =MATCH(D230,$D202:$D221,0) -> 13 | E231: =MATCH(E230,$D202:$D228,0) -> 12
C232: column | D232: =MATCH(OFFSET($D202,MATCH(D230,$D202:$D221,0)-2,0),OFFSET($D202,MATCH(D230,$D202:$D221,0)-2,1,1,11),0)+1 -> 2 | E232: =MATCH(OFFSET($D202,MATCH(E230,$D202:$D228,0)-2,0),OFFSET($D202,MATCH(E230,$D202:$D228,0)-2,1,1,11),0)+1 -> 
C233: Size | D233: =OFFSET($D202,MATCH(D230,$D202:$D221,0)-2,0,) -> 0 | E233: =OFFSET($D202,MATCH(E230,$D202:$D228,0)-2,0,) -> 0
C234: Test →
C235: Data Validation Name | D235: ="L_"&SUBSTITUTE(D230," ","") -> L_IdlerType | E235: ="L_"&SUBSTITUTE(E230," ","") -> L_0
D237: =OFFSET($D$202,$D$231-1,$D$232-1,$D$233) -> 
D238: =OFFSET(Ctrl_Selections!$D$202,Ctrl_Selections!$D$231-1,Ctrl_Selections!$D$232-1,Ctrl_Selections!$D$233) -> 
C243: Enter DEPENDENCIES | D243: SELECTION OPTIONS | E243: CONFIGURATIONS
C244: Ref Position → | D244: =COUNTA(D245:D253) -> 1 | E244: =SUM(COUNTIF(E245:E253,$C$245:$C$253)) -> 0 | F244: =SUM(COUNTIF(F245:F253,$C$245:$C$253)) -> 0 | G244: =SUM(COUNTIF(G245:G253,$C$245:$C$253)) -> 0 | H244: =SUM(COUNTIF(H245:H253,$C$245:$C$253)) -> 0 | I244: =SUM(COUNTIF(I245:I253,$C$245:$C$253)) -> 0 | J244: =SUM(COUNTIF(J245:J253,$C$245:$C$253)) -> 0 | K244: =SUM(COUNTIF(K245:K253,$C$245:$C$253)) -> 0 | L244: =SUM(COUNTIF(L245:L253,$C$245:$C$253)) -> 0 | M244: =SUM(COUNTIF(M245:M253,$C$245:$C$253)) -> 0 | N244: =SUM(COUNTIF(N245:N253,$C$245:$C$253)) -> 0
B245: Enter Selection 3-> | C245: =i_InstallationType -> 0 | D245: Installation Type | E245: Open
C249: =i_Tube -> 0
D255: =MAX(E255:N255) -> 0 | E255: =IF(E244<>$D244,0,COUNTA(E256:E262)) -> 0 | F255: 0 | G255: 0 | H255: 0 | I255: 0 | J255: 0 | K255: 0 | L255: 0 | M255: 0 | N255: 0
B256: Dependent (Output List) 1 -> | D256: Control Type | E256: Easy Spring Air - MICRO - LH
E257: Easy Spring Air - MINI - LH
E258: Easy Spring Air - SMALL - LH
E259: Easy Spring Air - LIGHT - LH
E260: Easy Spring Air - MEDIUM - LH
E261: Easy Spring Air - HEAVY - LH
D263: DO NOT FILL
D265: =MAX(E265:N265) -> 0 | E265: =IF(E244<>$D244,0,COUNTA(E266:E272)) -> 0 | F265: =IF(F244<>$D244,0,COUNTA(F266:F272)) -> 0 | G265: 0 | H265: 0 | I265: 0 | J265: 0 | K265: 0 | L265: 0 | M265: 0 | N265: 0
B266: Dependent (Output List) 1 -> | D266: Gear Ratio
D273: DO NOT FILL
D275: =D256 -> Control Type | E275: =D266 -> Gear Ratio
C276: row | D276: =MATCH(D275,$D244:$D264,0) -> 13 | E276: =MATCH(E275,$D244:$D273,0) -> 23
C277: column | D277: =MATCH(OFFSET($D244,MATCH(D275,$D244:$D264,0)-2,0),OFFSET($D244,MATCH(D275,$D244:$D264,0)-2,1,1,11),0)+1 -> 2 | E277: =MATCH(OFFSET($D244,MATCH(E275,$D244:$D272,0)-2,0),OFFSET($D244,MATCH(E275,$D244:$D272,0)-2,1,1,11),0)+1 -> 2
C278: Size | D278: =OFFSET($D244,MATCH(D275,$D244:$D264,0)-2,0,) -> 0 | E278: =OFFSET($D243,MATCH(E275,$D243:$D273,0)-2,0,) -> 0
C279: Test →
C280: Data Validation Name | D280: ="L_"&SUBSTITUTE(D275," ","") -> L_ControlType | E280: ="L_"&SUBSTITUTE(E275," ","") -> L_GearRatio
C288: Enter DEPENDENCIES | D288: SELECTION OPTIONS | E288: CONFIGURATIONS
C289: Ref Position → | D289: =COUNTA(D290:D298) -> 1 | E289: =SUM(COUNTIF(E290:E298,$C$290:$C$298)) -> 0 | F289: =SUM(COUNTIF(F290:F298,$C$290:$C$298)) -> 0 | G289: =SUM(COUNTIF(G290:G298,$C$290:$C$298)) -> 0 | H289: =SUM(COUNTIF(H290:H298,$C$290:$C$298)) -> 0 | I289: =SUM(COUNTIF(I290:I298,$C$290:$C$298)) -> 0 | J289: =SUM(COUNTIF(J290:J298,$C$290:$C$298)) -> 0 | K289: =SUM(COUNTIF(K290:K298,$C$290:$C$298)) -> 0 | L289: =SUM(COUNTIF(L290:L298,$C$290:$C$298)) -> 0 | M289: =SUM(COUNTIF(M290:M298,$C$290:$C$298)) -> 0 | N289: =SUM(COUNTIF(N290:N298,$C$290:$C$298)) -> 0
B290: Enter Selection 3-> | C290: =i_InstallationType -> 0 | D290: Installation Type | E290: Open
D300: =MAX(E300:N300) -> 0 | E300: =IF(E289<>$D289,0,COUNTA(E301:E307)) -> 0 | F300: 0 | G300: 0 | H300: 0 | I300: 0 | J300: 0 | K300: 0 | L300: 0 | M300: 0 | N300: 0
B301: Dependent (Output List) 1 -> | D301: Tube | E301: 1.5"
E302: 2"
D308: DO NOT FILL
D311: =D301 -> Tube
C312: row | D312: =MATCH(D311,$D289:$D309,0) -> 13
C313: column | D313: =MATCH(OFFSET($D289,MATCH(D311,$D289:$D309,0)-2,0),OFFSET($D289,MATCH(D311,$D289:$D309,0)-2,1,1,11),0)+1 -> 2
C314: Size | D314: =OFFSET($D289,MATCH(D311,$D289:$D309,0)-2,0,) -> 0
C315: Test →
C316: Data Validation Name | D316: ="L_"&SUBSTITUTE(D311," ","") -> L_Tube
D319: =OFFSET($D$134,OFFSET(INDIRECT(ADDRESS(ROW(),COLUMN(),4)),-3,0)-1,OFFSET(INDIRECT(ADDRESS(ROW(),COLUMN(),4)),-2,0)-1,OFFSET(INDIRECT(ADDRESS(ROW(),COLUMN(),4)),-1,0))
C327: Enter DEPENDENCIES | D327: SELECTION OPTIONS | E327: CONFIGURATIONS
C328: Ref Position → | D328: =COUNTA(D329:D341) -> 2 | E328: =SUM(COUNTIF(E329:E341,$C$329:$C$341)) -> 0 | F328: =SUM(COUNTIF(F329:F341,$C$329:$C$341)) -> 0 | G328: =SUM(COUNTIF(G329:G341,$C$329:$C$341)) -> 0 | H328: =SUM(COUNTIF(H329:H341,$C$329:$C$341)) -> 0 | I328: =SUM(COUNTIF(I329:I341,$C$383:$C$391)) -> 0 | J328: =SUM(COUNTIF(J329:J341,$C$383:$C$391)) -> 0 | K328: =SUM(COUNTIF(K329:K341,$C$383:$C$391)) -> 0 | L328: =SUM(COUNTIF(L329:L341,$C$383:$C$391)) -> 0 | M328: =SUM(COUNTIF(M329:M341,$C$383:$C$391)) -> 0 | N328: =SUM(COUNTIF(N329:N341,$C$383:$C$391)) -> 0
B329: Enter Selection 3-> | C329: =i_Location -> 0 | D329: i_Location
C333: =i_SystemType -> 0 | D333: i_SystemType
B341: Enter Selection 4->
D343: =MAX(E343:N343) -> 0 | E343: =IF(E328<>$D328,0,COUNTA(#REF!)) -> 0 | F343: =IF(F328<>$D328,0,COUNTA(F344:F350)) -> 0 | G343: 0 | H343: 0 | I343: =IF(I328<>$D328,0,COUNTA(E344:E350)) -> 0 | J343: 0 | K343: 0 | L343: 0 | M343: 0 | N343: 0
B344: Dependent (Output List) 1 ->
D351: DO NOT FILL
D353: =MAX(E353:N353) -> 0 | E353: =IF(E328<>$D328,0,COUNTA(E354:E360)) -> 0 | F353: =IF(F328<>$D328,0,COUNTA(F354:F360)) -> 0 | G353: 0 | H353: 0 | I353: 0 | J353: 0 | K353: 0 | L353: 0 | M353: 0 | N353: 0
B354: Dependent (Output List) 1 ->
D361: DO NOT FILL
D364: =D344 -> 0 | E364: =D354 -> 0
C365: row | D365: =MATCH(D364,$D328:$D362,0) -> 16 | E365: =MATCH(E364,$D328:$D362,0) -> 16
C366: column | D366: =MATCH(OFFSET($D328,MATCH(D364,$D328:$D362,0)-2,0),OFFSET($D328,MATCH(D364,$D328:$D362,0)-2,1,1,11),0)+1 ->  | E366: =MATCH(OFFSET($D328,MATCH(E364,$D328:$D362,0)-2,0),OFFSET($D328,MATCH(E364,$D328:$D362,0)-2,1,1,11),0)+1 -> 
C367: Size | D367: =OFFSET($D328,MATCH(D364,$D328:$D362,0)-2,0,) -> 0 | E367: =OFFSET($D328,MATCH(E364,$D328:$D362,0)-2,0,) -> 0
C368: Test → | E368: L-Fixing Rail
C369: Data Validation Name | D369: ="L_"&SUBSTITUTE(D364," ","") -> L_0 | E369: ="L_"&SUBSTITUTE(E364," ","") -> L_0
D372: =OFFSET($D$328,$D$365-1,$D$366-1,$D$367) -> 
D374: =OFFSET(Ctrl_Selections!$D$328,Ctrl_Selections!$D$365-1,Ctrl_Selections!$D$366-1,Ctrl_Selections!$D$367) -> 
G379: have not set up deductions for pivot arm / wire guide systems.
C381: Enter DEPENDENCIES | D381: SELECTION OPTIONS | E381: CONFIGURATIONS
C382: Ref Position → | D382: =COUNTA(D383:D391) -> 1 | E382: =SUM(COUNTIF(E383:E391,$C$383:$C$391)) -> 0 | F382: =SUM(COUNTIF(F383:F391,$C$383:$C$391)) -> 0 | G382: =SUM(COUNTIF(G383:G391,$C$383:$C$391)) -> 0 | H382: =SUM(COUNTIF(H383:H391,$C$383:$C$391)) -> 0 | I382: =SUM(COUNTIF(I383:I391,$C$383:$C$391)) -> 0 | J382: =SUM(COUNTIF(J383:J391,$C$383:$C$391)) -> 0 | K382: =SUM(COUNTIF(K383:K391,$C$383:$C$391)) -> 0 | L382: =SUM(COUNTIF(L383:L391,$C$383:$C$391)) -> 0 | M382: =SUM(COUNTIF(M383:M391,$C$383:$C$391)) -> 0 | N382: =SUM(COUNTIF(N383:N391,$C$383:$C$391)) -> 0
B383: Enter Selection 3-> | C383: =i_InstallationType -> 0 | D383: Installation Type | E383: Open
B391: Enter Selection 4->
D393: =MAX(E393:N393) -> 0 | E393: =IF(E382<>$D382,0,COUNTA(E394:E400)) -> 0 | F393: =IF(F382<>$D382,0,COUNTA(F394:F400)) -> 0 | G393: 0 | H393: 0 | I393: 0 | J393: 0 | K393: 0 | L393: 0 | M393: 0 | N393: 0
B394: Dependent (Output List) 1 -> | D394: Open Bkt Style | E394: Skyline 1.5"
E395: LX Skyline
D401: DO NOT FILL
D404: =D394 -> Open Bkt Style
C405: row | D405: =MATCH(D404,$D382:$D402,0) -> 13
C406: column | D406: =MATCH(OFFSET($D382,MATCH(D404,$D382:$D402,0)-2,0),OFFSET($D382,MATCH(D404,$D382:$D402,0)-2,1,1,11),0)+1 -> 2
C407: Size | D407: =OFFSET($D382,MATCH(D404,$D382:$D402,0)-2,0,) -> 0
C408: Test →
C409: Data Validation Name | D409: ="L_"&SUBSTITUTE(D404," ","") -> L_OpenBktStyle
D412: =OFFSET($D$134,OFFSET(INDIRECT(ADDRESS(ROW(),COLUMN(),4)),-3,0)-1,OFFSET(INDIRECT(ADDRESS(ROW(),COLUMN(),4)),-2,0)-1,OFFSET(INDIRECT(ADDRESS(ROW(),COLUMN(),4)),-1,0))
D414: =OFFSET($D$382,$D$405-1,$D$406-1,$D$407) -> 
C419: Enter DEPENDENCIES | D419: SELECTION OPTIONS | E419: CONFIGURATIONS
C420: Ref Position → | D420: =COUNTA(D421:D426) -> 2 | E420: =SUM(COUNTIF($E$421:$E$427,$C$421:$C$427)) -> 0 | F420: =SUM(COUNTIF($F$421:$F$427,$C$421:$C$427)) -> 0
B421: Enter Selection 1 -> | C421: =i_SystemType -> 0 | D421: System
B425: Enter Selection 2->
B426: Enter Selection 3-> | C426: =i_ControlType -> 0 | D426: Control
B427: Enter Selection 4->
D429: =MAX(E429:N429) -> 0 | E429: =IF(E420<>$D420,0,COUNTA(E430:E434)) -> 0 | F429: 0 | G429: 0 | H429: 0 | I429: 0 | J429: 0 | K429: 0 | L429: 0 | M429: 0 | N429: 0
B430: Dependent (Output List) 1 -> | D430: Gear Arm Length
D435: DO NOT FILL
D437: =D430 -> Gear Arm Length | H437: =IFERROR(INDEX(#REF!, MATCH(0, COUNTIF($D437:G$445,#REF!) + ( COUNTIF(#REF!,#REF!)<>1), 0)), "") ->  | I437: =IFERROR(INDEX(#REF!, MATCH(0, COUNTIF($D437:H$445,#REF!) + ( COUNTIF(#REF!,#REF!)<>1), 0)), "") -> 
... 180 more rows

Sheet Ctrl_Deductions (hidden)
I1: LXSKYLINE | J1: 4.89 | K1: 4.89 | L1: =K1+K3 -> 12.19 | AL1: =i_BktFixType -> 0
D2: Does | F2: Apply to | I2: SLB660 | J2: 4.57 | K2: 4.57 | L2: =K2+K3 -> 11.87 | Z2: assumes side fix baseline, top orien | AB2: open assumes bracket covers used | AJ2: assumes top/face is BASELINE | AL2: =i_ZipscreenSideGuideFix -> 
I3: MINI | J3: 339.9 | K3: 7.3 | X3: Enter DEPENDENCIES | Y3: SELECTION OPTIONS | Z3: CONFIGURATIONS
I4: LIGHT | J4: 541.9 | K4: 7.3 | Y4: =MAX(Z4:AU4) -> 0 | Z4: =SUM(COUNTIF(Z5:Z19,$X$5:$X$19)) -> 0 | AA4: =SUM(COUNTIF(AA5:AA19,$X$5:$X$19)) -> 0 | AB4: =SUM(COUNTIF(AB5:AB19,$X$5:$X$19)) -> 0 | AC4: =SUM(COUNTIF(AC5:AC19,$X$5:$X$19)) -> 0 | AD4: =SUM(COUNTIF(AD5:AD19,$X$5:$X$19)) -> 0 | AE4: =SUM(COUNTIF(AE5:AE19,$X$5:$X$19)) -> 0 | AF4: =SUM(COUNTIF(AF5:AF14,$X$5:$X$14)) -> 0 | AG4: =SUM(COUNTIF(AG5:AG14,$X$5:$X$14)) -> 0 | AH4: =SUM(COUNTIF(AH5:AH14,$X$5:$X$14)) -> 0 | AI4: =SUM(COUNTIF(AI5:AI14,$X$5:$X$14)) -> 0 | AJ4: =SUM(COUNTIF(AJ5:AJ14,$X$5:$X$14)) -> 0 | AK4: =SUM(COUNTIF(AK5:AK14,$X$5:$X$14)) -> 0 | AL4: =SUM(COUNTIF(AL5:AL14,$X$5:$X$14)) -> 0 | AM4: =SUM(COUNTIF(AM5:AM14,$X$5:$X$14)) -> 0 | AN4: =SUM(COUNTIF(AN5:AN14,$X$5:$X$14)) -> 0 | AO4: =SUM(COUNTIF(AO5:AO14,$X$5:$X$14)) -> 0 | AP4: =SUM(COUNTIF(AP5:AP14,$X$5:$X$14)) -> 0 | AQ4: =SUM(COUNTIF(AQ5:AQ14,$X$5:$X$14)) -> 0 | AR4: =SUM(COUNTIF(AR5:AR14,$X$5:$X$14)) -> 0 | AS4: =SUM(COUNTIF(AS5:AS14,$X$5:$X$14)) -> 0 | AT4: =SUM(COUNTIF(AT5:AT14,$X$5:$X$14)) -> 0 | AU4: =SUM(COUNTIF(AU5:AU14,$X$5:$X$14)) -> 0
I5: MED | J5: 851.9 | K5: 7.3 | X5: =INDIRECT("i_"&SUBSTITUTE($Y5," ","")) -> 0 | Y5: Installation Type | Z5: Open | AA5: Open | AB5: Open | AC5: Open | AD5: Open | AE5: Open
I6: HEAVY | J6: 951.9 | K6: 7.3
J7: 5
I8: SLB660 | J8: 4.57 | K8: 4.57 | L8: =K8+K9 -> 12.19
I9: SLPEV653xx | J9: 41.15 | K9: 7.62 | L9: =K8+K11 -> 18.57
I10: SLPEHD53xx | J10: 78.34 | K10: 9 | X10: =INDIRECT("i_"&SUBSTITUTE($Y10," ","")) -> 0 | Y10: Open Bkt Style | Z10: Skyline 1.5" | AA10: Skyline 1.5" | AB10: Skyline 1.5" | AC10: LX Skyline | AD10: LX Skyline | AE10: LX Skyline
I11: Universal Limiter | J11: 142.69 | K11: 14
H12: =J11-J12 -> 17.74 | I12: Short Limiter | J12: 124.95 | K12: 14
I13: LXSKYLINE | J13: 4.89 | K13: 4.89
H15: SLB660 | I15: MINIMUM SHADE WIDTH | J15: STD 1.5 | K15: HD 1.5 | L15: Universal | M15: Short | X15: =INDIRECT("i_"&SUBSTITUTE($Y15," ","")) -> 0 | Y15: Idler Type | Z15: Skyline Pin End 1.5" | AA15: Skyline Heavy Duty Pin End 1.5" | AB15: Single Limiter | Universal 1.5" | AC15: Skyline Pin End 1.5" | AD15: Skyline Heavy Duty Pin End 1.5" | AE15: Single Limiter | Universal 1.5"
I16: MINI | J16: =$J$2+$J$3+$J$7+$J$8+$J$9 -> 395.19 | K16: =$J$2+$J$3+$J$7+$J$8+$J$10 -> 432.38 | L16: =$J$2+$J$3+$J$7+$J$8+$J$11 -> 496.73 | M16: =$J$2+$J$3+$J$7+$J$8+$J$12 -> 478.99 | AB16: Single Stop Limiter | Short 1.5" | AE16: Single Stop Limiter | Short 1.5"
I17: LIGHT | J17: =$J$2+$J$4+$J$7+$J$8+$J$9 -> 597.19 | K17: =$J$2+$J$4+$J$7+$J$8+$J$10 -> 634.38 | L17: =$J$2+$J$4+$J$7+$J$8+$J$11 -> 698.73 | M17: =$J$2+$J$4+$J$7+$J$8+$J$12 -> 680.99
I18: MEDIUM | J18: =$J$2+$J$5+$J$7+$J$8+$J$9 -> 907.19 | K18: =$J$2+$J$5+$J$7+$J$8+$J$10 -> 944.38 | L18: =$J$2+$J$5+$J$7+$J$8+$J$11 -> 1008.73 | M18: =$J$2+$J$5+$J$7+$J$8+$J$12 -> 990.99
I19: HEAVY | J19: =$J$2+$J$6+$J$7+$J$8+$J$9 -> 1007.19 | K19: =$J$2+$J$6+$J$7+$J$8+$J$10 -> 1044.38 | L19: =$J$2+$J$6+$J$7+$J$8+$J$11 -> 1108.73 | M19: =$J$2+$J$6+$J$7+$J$8+$J$12 -> 1090.99
AJ21: open bkt assumes TOP FIX for heights, modifier for face fix
H22: SLB660 | I22: TUBE DEDUCTION | J22: STD 1.5 | K22: HD 1.5 | L22: Universal | M22: Short | AJ22: assumes top/face is BASELINE for box190- modifier subtracts 6mm (accounts for L fixing side channels
I23: ALL | J23: =$K$2+$K$3+$K$8+$K$9 -> 24.06 | K23: =$K$2+$K$3+$K$8+$K$10 -> 25.44 | L23: =$K$2+$K$3+$K$8+$K$11 -> 30.44 | M23: =$K$2+$K$3+$K$8+$K$12 -> 30.44 | Z23: 24.06 | AA23: 25.44 | AB23: 30.44 | AC23: 24.7 | AD23: 26.08 | AE23: 31.08
X24: Type | Y24: Deduction | Z24: =IF(Z4<>$Y$4,0,1) -> 1 | AA24: 1 | AB24: 1 | AC24: 1 | AD24: 1 | AE24: 1 | AF24: 1 | AG24: 1 | AH24: 1 | AI24: 1 | AJ24: 1 | AK24: 1 | AL24: 1 | AM24: 1 | AN24: 1 | AO24: 1 | AP24: 1 | AQ24: 1 | AR24: 1 | AS24: 1 | AT24: 1 | AU24: 1
X25: Fabric | Y25: =INDEX(Z25:AU25,0,MATCH(1,$Z$24:$AU$24,0)) -> 24 | Z25: 24 | AA25: 26 | AB25: 31 | AC25: 25 | AD25: 26 | AE25: 31
D26: HAS FORMULAS | H26: LXSKYLINE | I26: MINIMUM SHADE WIDTH | J26: STD 1.5 | K26: HD 1.5 | L26: Universal | M26: Short | X26: Tube | Y26: 24 | Z26: 24 | AA26: 26 | AB26: 31 | AC26: 25 | AD26: 26 | AE26: 31
I27: MINI | J27: =$J$1+$J$3+$J$7+$J$13+$J$9 -> 395.83 | K27: =$J$1+$J$3+$J$7+$J$13+$J$10 -> 433.02 | L27: =$J$1+$J$3+$J$7+$J$13+$J$11 -> 497.37 | M27: =$J$1+$J$3+$J$7+$J$13+$J$12 -> 479.63 | X27: Box | Y27: 0
I28: LIGHT | J28: =$J$1+$J$4+$J$7+$J$13+$J$9 -> 597.83 | K28: =$J$1+$J$4+$J$7+$J$13+$J$10 -> 635.02 | L28: =$J$1+$J$4+$J$7+$J$13+$J$11 -> 699.37 | M28: =$J$1+$J$4+$J$7+$J$13+$J$12 -> 681.63 | X28: ControlType | Y28: 0
I29: MEDIUM | J29: =$J$1+$J$5+$J$7+$J$13+$J$9 -> 907.83 | K29: =$J$1+$J$5+$J$7+$J$13+$J$10 -> 945.02 | L29: =$J$1+$J$5+$J$7+$J$13+$J$11 -> 1009.37 | M29: =$J$1+$J$5+$J$7+$J$13+$J$12 -> 991.63 | X29: Idler | Y29: 0
I30: HEAVY | J30: =$J$1+$J$6+$J$7+$J$13+$J$9 -> 1007.83 | K30: =$J$1+$J$6+$J$7+$J$13+$J$10 -> 1045.02 | L30: =$J$1+$J$6+$J$7+$J$13+$J$11 -> 1109.37 | M30: =$J$1+$J$6+$J$7+$J$13+$J$12 -> 1091.63 | X30: wb | Y30: 24 | Z30: 24 | AA30: 26 | AB30: 31 | AC30: 25 | AD30: 26 | AE30: 31
X31: Ballast | Y31: =INDEX(Z31:AU31,0,MATCH(1,$Z$24:$AU$24,0)) -> 0 | Z31: =(((($G$40*$G$37/1000)-($G$40*$G$38/1000))*1000)/$G$39) -> 0 | AA31: =(((($G$40*$G$37/1000)-($G$40*$G$38/1000))*1000)/$G$39) -> 0 | AB31: 0 | AC31: 0 | AD31: 0 | AE31: 0
X32: TubeSpline | Y32: 24 | Z32: 24 | AA32: 26 | AB32: 31 | AC32: 25 | AD32: 26 | AE32: 31
H33: LXSKYLINE | I33: TUBE DEDUCTION | J33: STD 1.5 | K33: HD 1.5 | L33: Universal | M33: Short | X33: wbSpline | Y33: 24 | Z33: 24 | AA33: 26 | AB33: 31 | AC33: 25 | AD33: 26 | AE33: 31
D34: =COUNTA(D43:D52) -> 6 | I34: ALL | J34: =$K$1+$K$3+$K$13+$K$9 -> 24.7 | K34: =$K$1+$K$3+$K$13+$K$10 -> 26.08 | L34: =$K$1+$K$3+$K$13+$K$11 -> 31.08 | M34: =$K$1+$K$3+$K$13+$K$12 -> 31.08 | X34: wbSeal | Y34: 24 | Z34: 24 | AA34: 26 | AB34: 31 | AC34: 25 | AD34: 26 | AE34: 31
X35: Brush | Y35: 0
G36: RA VAULT: | H36: Ballast calculation for D30 weight bar on Rising Sun.xlsx | OPEN | WEB | BROWSE | X36: FabricDrop | Y36: =INDEX(Z36:AU36,0,MATCH(1,$Z$24:$AU$24,0)) -> -150 | Z36: -150 | AA36: -150 | AB36: -150 | AC36: -150 | AD36: -150 | AE36: -150
G37: 0.35 | H37: REQUIRED WEIGHT OF WEIGHT BAR (kg/m)
G38: 0.306 | H38: D30 (kg/m) | AJ38: top/face vs. recess has diff rail HEIGHTS?
G39: 0.23 | H39: Ballast (kg/m)
G40: =IF(i_Units="Metric",i_Width,CONVERT(i_Width,"in","mm")) -> 0 | H40: Width (mm) | Q40: Lookup
Q41: Deduction
D42: =X25 -> Fabric | E42: =X26 -> Tube | F42: =X27 -> Box | G42: =X28 -> ControlType | H42: =X29 -> Idler | I42: =X30 -> wb | J42: =X31 -> Ballast | K42: =X32 -> TubeSpline | L42: =X33 -> wbSpline | M42: =X34 -> wbSeal | N42: =X35 -> Brush | O42: =X36 -> FabricDrop | Q42: Modifiers | S42: QTY | T42: ON/OFF | V42: Comments | Z42: =IF(Z4<>$Y$4,0,1) -> 1 | AA42: 1 | AB42: 1 | AC42: 1 | AD42: 1 | AE42: 1 | AF42: 1 | AG42: 1 | AH42: 1 | AI42: 1 | AJ42: 1 | AK42: 1 | AL42: 1 | AM42: 1 | AN42: 1 | AO42: 1 | AP42: 1 | AQ42: 1 | AR42: 1 | AS42: 1 | AT42: 1 | AU42: 1
D43: 1 | E43: 1 | F43: 1 | G43: 0 | H43: 0 | I43: 1 | J43: 1 | K43: 1 | L43: 1 | M43: 1 | N43: 0 | O43: 0 | Q43: =INDEX($Z$43:$AU$49,0,MATCH(1,$Z$42:$AU$42,0)) -> 3 | S43: 1 | T43: =IFERROR(IF(ISBLANK(X43),"",IF(FIND(Y43,INDIRECT("i_"&$X43))>0,1,0)),0) -> 0 | X43: OpenBktCovers | Y43: Yes | Z43: 3 | AA43: 3 | AB43: 3 | AC43: 2 | AD43: 2 | AE43: 2
D44: 0 | E44: 0 | F44: 0 | G44: 0 | H44: 0 | I44: 0 | J44: 0 | K44: 0 | L44: 0 | M44: 0 | N44: 0 | O44: 1 | Q44: =INDEX($Z$43:$AU$49,0,MATCH(1,$Z$42:$AU$42,0)) -> -140 | S44: 1 | T44: =IFERROR(IF(ISBLANK(X44),"",IF(FIND(Y44,INDIRECT("i_"&$X44))>0,1,0)),0) -> 0 | X44: WeightBar | Y44: Fabric Wrap | Z44: -140 | AA44: -140 | AB44: -140 | AC44: -140 | AD44: -140 | AE44: -140
D45: 0 | E45: 0 | F45: 0 | G45: 1 | H45: 1 | I45: 0 | J45: 0 | K45: 0 | L45: 0 | M45: 0 | N45: 0 | O45: 0 | Q45: 0 | S45: 0 | T45: =IFERROR(IF(ISBLANK(X45),"",IF(FIND(Y45,INDIRECT("i_"&$X45))>0,1,0)),0) -> 
D46: 1 | E46: 1 | F46: 0 | G46: 0 | H46: 0 | I46: 1 | J46: 1 | K46: 1 | L46: 1 | M46: 1 | N46: 0 | O46: 0 | Q46: 0 | S46: 0
D47: 1 | E47: 1 | F47: 0 | G47: 0 | H47: 0 | I47: 1 | J47: 1 | K47: 1 | L47: 1 | M47: 1 | N47: 0 | O47: 0 | Q47: 0 | S47: 0
D48: 1 | E48: 1 | F48: 1 | G48: 0 | H48: 0 | I48: 1 | J48: 1 | K48: 1 | L48: 1 | M48: 1 | N48: 0 | O48: 0 | Q48: 0 | S48: 0 | T48: =IFERROR(IF(ISBLANK(X48),"",IF(FIND(Y48,INDIRECT("i_"&$X48))>0,1,0)),0) -> 
X53: Type | Y53: Deduction | Z53: =IF(Z4<>$Y$4,0,1) -> 1 | AA53: 1 | AB53: 1 | AC53: 1 | AD53: 1 | AE53: 1 | AF53: 1 | AG53: 1 | AH53: 1 | AI53: 1 | AJ53: 1 | AK53: 1 | AL53: 1 | AM53: 1 | AN53: 1 | AO53: 1 | AP53: 1 | AQ53: 1 | AR53: 1 | AS53: 1 | AT53: 1 | AU53: 1
X54: Fabric | Y54: =INDEX(Z54:AU54,0,MATCH(1,$Z$24:$AU$24,0)) -> 24 | Z54: =IFERROR(IF(Z$53=0,"",Z25+SUMPRODUCT($T$43:$T$48,$S$43:$S$48,$Q$43:$Q$48,OFFSET($D$42,1,MATCH($X54,$D$42:$O$42,0)-1,$D$34,1))),"") -> 24 | AA54: 26 | AB54: 31 | AC54: 25 | AD54: 26 | AE54: 31 | AF54: 0 | AG54: 0 | AH54: 0 | AI54: 0 | AJ54: 0 | AK54: 0 | AL54: 0 | AM54: 0 | AN54: 0 | AO54: 0 | AP54: 0 | AQ54: 0 | AR54: 0 | AS54: 0 | AT54: 0 | AU54: 0
X55: Tube | Y55: =INDEX(Z55:AU55,0,MATCH(1,$Z$24:$AU$24,0)) -> 24 | Z55: =IFERROR(IF(Z$53=0,"",Z26+SUMPRODUCT($T$43:$T$48,$S$43:$S$48,$Q$43:$Q$48,OFFSET($D$42,1,MATCH($X55,$D$42:$O$42,0)-1,$D$34,1))),"") -> 24 | AA55: =IFERROR(IF(AA$53=0,"",AA26+SUMPRODUCT($T$43:$T$48,$S$43:$S$48,$Q$43:$Q$48,OFFSET($D$42,1,MATCH($X55,$D$42:$O$42,0)-1,$D$34,1))),"") -> 26 | AB55: 31 | AC55: 25 | AD55: 26 | AE55: 31 | AF55: 0 | AG55: 0 | AH55: 0 | AI55: 0 | AJ55: 0 | AK55: 0 | AL55: 0 | AM55: 0 | AN55: 0 | AO55: 0 | AP55: 0 | AQ55: 0 | AR55: 0 | AS55: 0 | AT55: 0 | AU55: 0
X56: Box | Y56: =INDEX(Z56:AU56,0,MATCH(1,$Z$24:$AU$24,0)) -> 0 | Z56: =IFERROR(IF(Z$53=0,"",Z27+SUMPRODUCT($T$43:$T$48,$S$43:$S$48,$Q$43:$Q$48,OFFSET($D$42,1,MATCH($X56,$D$42:$O$42,0)-1,$D$34,1))),"") -> 0 | AA56: 0 | AB56: 0 | AC56: 0 | AD56: 0 | AE56: 0 | AF56: 0 | AG56: 0 | AH56: 0 | AI56: 0 | AJ56: 0 | AK56: 0 | AL56: 0 | AM56: 0 | AN56: 0 | AO56: 0 | AP56: 0 | AQ56: 0 | AR56: 0 | AS56: 0 | AT56: 0 | AU56: 0
X57: wb | Y57: =INDEX(Z57:AU57,0,MATCH(1,$Z$24:$AU$24,0)) -> 24 | Z57: =IFERROR(IF(Z$53=0,"",Z30+SUMPRODUCT($T$43:$T$48,$S$43:$S$48,$Q$43:$Q$48,OFFSET($D$42,1,MATCH($X57,$D$42:$O$42,0)-1,$D$34,1))),"") -> 24 | AA57: 26 | AB57: 31 | AC57: 25 | AD57: 26 | AE57: 31 | AF57: 0 | AG57: 0 | AH57: 0 | AI57: 0 | AJ57: 0 | AK57: 0 | AL57: 0 | AM57: 0 | AN57: 0 | AO57: 0 | AP57: 0 | AQ57: 0 | AR57: 0 | AS57: 0 | AT57: 0 | AU57: 0
X58: Ballast | Y58: =INDEX(Z58:AU58,0,MATCH(1,$Z$24:$AU$24,0)) -> 0 | Z58: =IFERROR(IF(Z$53=0,"",Z31+SUMPRODUCT($T$43:$T$48,$S$43:$S$48,$Q$43:$Q$48,OFFSET($D$42,1,MATCH($X58,$D$42:$O$42,0)-1,$D$34,1))),"") -> 0 | AA58: 0 | AB58: 0 | AC58: 0 | AD58: 0 | AE58: 0 | AF58: 0 | AG58: 0 | AH58: 0 | AI58: 0 | AJ58: 0 | AK58: 0 | AL58: 0 | AM58: 0 | AN58: 0 | AO58: 0 | AP58: 0 | AQ58: 0 | AR58: 0 | AS58: 0 | AT58: 0 | AU58: 0
X59: TubeSpline | Y59: =INDEX(Z59:AU59,0,MATCH(1,$Z$24:$AU$24,0)) -> 24 | Z59: =IFERROR(IF(Z$53=0,"",Z32+SUMPRODUCT($T$43:$T$48,$S$43:$S$48,$Q$43:$Q$48,OFFSET($D$42,1,MATCH($X59,$D$42:$O$42,0)-1,$D$34,1))),"") -> 24 | AA59: 26 | AB59: 31 | AC59: 25 | AD59: 26 | AE59: 31 | AF59: 0 | AG59: 0 | AH59: 0 | AI59: 0 | AJ59: 0 | AK59: 0 | AL59: 0 | AM59: 0 | AN59: 0 | AO59: 0 | AP59: 0 | AQ59: 0 | AR59: 0 | AS59: 0 | AT59: 0 | AU59: 0
X60: wbSpline | Y60: =INDEX(Z60:AU60,0,MATCH(1,$Z$24:$AU$24,0)) -> 24 | Z60: =IFERROR(IF(Z$53=0,"",Z33+SUMPRODUCT($T$43:$T$48,$S$43:$S$48,$Q$43:$Q$48,OFFSET($D$42,1,MATCH($X60,$D$42:$O$42,0)-1,$D$34,1))),"") -> 24 | AA60: 26 | AB60: 31 | AC60: 25 | AD60: 26 | AE60: 31 | AF60: 0 | AG60: 0 | AH60: 0 | AI60: 0 | AJ60: 0 | AK60: 0 | AL60: 0 | AM60: 0 | AN60: 0 | AO60: 0 | AP60: 0 | AQ60: 0 | AR60: 0 | AS60: 0 | AT60: 0 | AU60: 0
X61: wbSeal | Y61: =INDEX(Z61:AU61,0,MATCH(1,$Z$24:$AU$24,0)) -> 24 | Z61: =IFERROR(IF(Z$53=0,"",Z34+SUMPRODUCT($T$43:$T$48,$S$43:$S$48,$Q$43:$Q$48,OFFSET($D$42,1,MATCH($X61,$D$42:$O$42,0)-1,$D$34,1))),"") -> 24 | AA61: 26 | AB61: 31 | AC61: 25 | AD61: 26 | AE61: 31 | AF61: 0 | AG61: 0 | AH61: 0 | AI61: 0 | AJ61: 0 | AK61: 0 | AL61: 0 | AM61: 0 | AN61: 0 | AO61: 0 | AP61: 0 | AQ61: 0 | AR61: 0 | AS61: 0 | AT61: 0 | AU61: 0
X62: Brush | Y62: =INDEX(Z62:AU62,0,MATCH(1,$Z$24:$AU$24,0)) -> 0 | AJ62: =IFERROR(IF(AJ$53=0,"",AJ35+SUMPRODUCT($T$43:$T$48,$S$43:$S$48,$Q$43:$Q$48,OFFSET($D$42,1,MATCH($X62,$D$42:$O$42,0)-1,$D$34,1))),"") -> 0 | AK62: 0 | AL62: 0 | AM62: 0 | AN62: 0 | AO62: 0 | AP62: 0 | AQ62: 0 | AR62: 0 | AS62: 0 | AT62: 0 | AU62: 0
X63: FabricDrop | Y63: =INDEX(Z63:AU63,0,MATCH(1,$Z$24:$AU$24,0)) -> -150 | Z63: =IFERROR(IF(Z$53=0,"",Z36+SUMPRODUCT($T$43:$T$48,$S$43:$S$48,$Q$43:$Q$48,OFFSET($D$42,1,MATCH($X63,$D$42:$O$42,0)-1,$D$34,1))),"") -> -150 | AA63: =IFERROR(IF(AA$53=0,"",AA36+SUMPRODUCT($T$43:$T$48,$S$43:$S$48,$Q$43:$Q$48,OFFSET($D$42,1,MATCH($X63,$D$42:$O$42,0)-1,$D$34,1))),"") -> -150 | AB63: -150 | AC63: -150 | AD63: -150 | AE63: -150 | AF63: 0 | AG63: 0 | AH63: 0 | AI63: 0 | AJ63: =IFERROR(IF(AJ$53=0,"",AJ36+SUMPRODUCT($T$43:$T$48,$S$43:$S$48,$Q$43:$Q$48,OFFSET($D$42,1,MATCH($X63,$D$42:$O$42,0)-1,$D$34,1))),"") -> 0 | AK63: 0 | AL63: 0 | AM63: 0 | AN63: 0 | AO63: 0 | AP63: 0 | AQ63: 0 | AR63: 0 | AS63: 0 | AT63: 0 | AU63: 0
Y72: removed 19-Apr-20; changed everything to base mm
Y73: =IFERROR(CONVERT(INDEX(AA71:AT71,0,MATCH(1,$AA$24:$AT$24,0)),"mm",INDEX(T_UnitSelection[Units],MATCH(i_Units,T_UnitSelection[UnitSelection],0))),"")
X76: =IFERROR(CONVERT(IF(AO22="Y",i_Width-INDEX(INDIRECT("T_DeductionCovers"&i_BracketCovers&"[Deduction]"),MATCH(AP22,INDIRECT("T_DeductionCovers"&i_BracketCovers&"[Type]"),0)),""),"mm",AM22),"")/(o_nScreens)

Sheet Ctrl_Recommendations (hidden)
C2: Absolute Min | E2: Absolute Max | G2: ="Current Value ("&i_Units&")" -> Current Value () | H2: Outside Specs (0 = No, 1 = Yes) | V2: sorted by priority
C3: mm | D3: ="Min ("&i_Units&")" -> Min () | E3: mm | F3: ="Max ("&i_Units&")" -> Max () | M3: FORMULA drive min-max | V3: Warning cells are NAMED.
B4: Width | C4: =o_MinWidthReqd ->  | D4: =IF(i_Units="Metric",C4,CONVERT(C4,"mm","in")) ->  | E4: 3000 | F4: =IF(i_Units="Metric",E4,CONVERT(E4,"mm","in")) -> 118.1102362 | G4: =i_Width -> 0 | H4: =IF(AND(AND(i_Width<>"",i_Width>=0),OR(i_Width<MinWidth,i_Width>MaxWidth)),1,0) -> 
B5: Drop | C5: 500 | D5: =IF(i_Units="Metric",C5,CONVERT(C5,"mm","in")) -> 19.68503937 | E5: 3000 | F5: =IF(i_Units="Metric",E5,CONVERT(E5,"mm","in")) -> 118.1102362 | G5: =i_Drop -> 0 | H5: =IF(AND(AND(i_Drop<>"",i_Drop>=0),OR(i_Drop<MinDrop,i_Drop>MaxDrop)),1,0) -> 0 | K5: # | L5: Dim | M5: Min | N5: Max | P5: i_installationType | V5: on / off | W5: Warning
K6: w_BlindDrop | L6: o_dropmm | N6: 3000 | T6: =IFERROR(PRODUCT(IF(o_Dropmm>N6,"1","0"),Q6),"-") -> 0 | V6: =IFERROR(IF(T6>0,"on","off"),"-") -> off | W6: ="Warning! Blind Drop is too large, recommended limit is "&IF(i_Units="Metric",ROUND(E5/1000,2) &" m", ROUND(CONVERT(E5,"mm","in"),0)&" in")&". Refer Specifications Manual." -> Warning! Blind Drop is too large, recommended limit is 118 in. Refer Specifications Manual.
K7: w_BlindDrop | L7: o_dropmm | N7: 3000 | P7: Open | Q7: =IFERROR(IF(ISBLANK(P7),"",IF(FIND(P7,INDIRECT($P$5))>0,0,1)),1) -> 1 | T7: =IFERROR(PRODUCT(IF(o_Dropmm>N7,"1","0"),Q7),"-") -> 0 | V7: =IFERROR(IF(T7>0,"on","off"),"-") -> off | W7: ="Warning! Blind Drop is greater than "&IF(i_Units="Metric",ROUND(N7/1000,2) &" m", ROUND(CONVERT(N7,"mm","in"),0)&" in") -> Warning! Blind Drop is greater than 118 in
K8: w_BlindDrop | L8: o_dropmm | M8: =C5 -> 500 | T8: =IFERROR(PRODUCT(IF(AND(o_Dropmm<>0,o_Dropmm<M8),"1","0"),Q8),"-") -> 0 | V8: =IFERROR(IF(T8>0,"on","off"),"-") -> off | W8: ="Warning! Blind drop recommended to be greater than "&IF(i_Units="Metric",ROUND(M8,2) &" mm", ROUND(CONVERT(M8,"mm","in"),1)&" in")&"." -> Warning! Blind drop recommended to be greater than 19.7 in.
T9: =SUM($T$6:$T$8) -> 0 | V9: w_BlindDrop
K12: w_BlindWidth | L12: o_widthmm | N12: =IFERROR(INDEX(T_Limit[Limit],MATCH("Width_Max",T_Limit[Type],0),0),"") -> 3000 | Q12: =IFERROR(IF(ISBLANK(P12),"",IF(FIND(P12,INDIRECT($P$5))>0,0,1)),1) ->  | T12: =IFERROR(PRODUCT(IF(o_Widthmm>N12,"1","0")),"-") -> 0 | V12: =IFERROR(IF(o_Widthmm>N12,"on","off"),"-") -> off | W12: ="Warning! Blind Width is too wide, recommended limit is "&IF(i_Units="Metric",ROUND(N12/1000,2) &" m", ROUND(CONVERT(N12,"mm","in"),1)&" in")&". Refer Specifications Manual." -> Warning! Blind Width is too wide, recommended limit is 118.1 in. Refer Specifications Manual.
K13: w_ControlWidth | L13: o_widthmm | M13: =o_MinWidthReqd ->  | Q13: =IFERROR(IF(ISBLANK(P13),"",IF(FIND(P13,INDIRECT($P$5))>0,0,1)),1) ->  | T13: =IFERROR(PRODUCT(IF(o_Widthmm<M13,"1","0")),"-") -> - | V13: =IFERROR(IF(AND(i_ControlType<>"",o_Widthmm<M13),"on","off"),"-") -> - | W13: ="Warning! Blind width too small for selected Control Type. Minimum Width: "&IF(i_Units="Imperial",ROUND(CONVERT(o_MinWidthReqd,"mm","in"),1)&" in",o_MinWidthReqd&" mm") -> 
B14: Width Range | C14: 400mm - 2400mm | D14: 15.75in - 94.49in | T14: =SUM(T12:T13) -> 0
B15: Drop Range | C15: 500mm - 3400mm | D15: 19.69in - 133.86in
B17: Blind Width | C17: mm | D17: in
C18: =IF(i_Units="Metric",i_Width,CONVERT(i_Width,"in","mm")) -> 0 | D18: =IF(i_Units="Imperial",i_Width,CONVERT(i_Width,"mm","in")) -> 0
B20: Blind Drop | C20: mm | D20: in
C21: =IF(i_Units="Metric",i_Drop,CONVERT(i_Drop,"in","mm")) -> 0 | D21: =IF(i_Units="Imperial",i_Drop,CONVERT(i_Drop,"mm","in")) -> 0 | K21: Removed from inputs page, Control Type: | W21: =IFERROR(IF(o_SystemSpecChart="X", "Outside Spring specifications.", "Recommended Spring: "&o_SpringSize),"") -> 
B23: Blind Area | C23: m² | D23: yd²
C24: =ROUND((o_Widthmm*o_Dropmm)/(1000*1000),2) -> 0 | D24: =ROUND((D18*D21)*0.000772,2) -> 0
B27: Min Width Required | C27: =INDEX(H40:H63,MATCH(1,J40:J63,0)) ->  | D27: mm
B30: Control Selection | C30: =i_ControlType -> 0
B31: Tube Selection | C31: =i_Tube -> 0
B32: Width Input | C32: =ROUND((IF(i_Units="Metric",i_Width,CONVERT(i_Width,"in","mm"))),-2)/1000 -> 0 | D32: m | E32: *round up 100mm
B33: Drop Input | C33: =ROUND((IF(i_Units="Metric",i_Drop,CONVERT(i_Drop,"in","mm"))),-2)/1000 -> 0 | D33: m
B38: T_MinWidth
B39: Description | C39: Booster_In | D39: BoosterID | E39: MinWidth | F39: System | H39: Min Width | K39: i_ControlType | N39: i_IdlerType | Q39: i_OpenBktStyle | T39: i_OpenBktCovers
C40: =IFERROR(IF(AND(T_MinWidth[[#This Row],[System]]=1,FIND(T_MinWidth[[#This Row],[Description]],i_Booster)>0),1,""),"") ->  | H40: =ROUND(SUM(M40+P40+S40+V40+I40),0) -> 395 | I40: 5 | J40: =L40*O40 -> 0 | K40: MINI | L40: =IFERROR(IF(ISBLANK(K40),"",IF(FIND(K40,INDIRECT($K$39))>0,1,0)),0) -> 0 | M40: 340 | O40: =IF(i_IdlerType="Skyline Pin End 1.5""",1,0) -> 0 | P40: 41.15 | Q40: LX | R40: =IFERROR(IF(ISBLANK(Q40),"",IF(FIND(Q40,INDIRECT($Q$39))>0,1,0)),0) -> 0 | S40: =IF(R40=1,4.89,4.57)*2 -> 9.14 | T40: Yes | U40: =IFERROR(IF(ISBLANK(T40),"",IF(FIND(T40,INDIRECT($T$39))>0,1,0)),0) -> 0 | V40: =IF(AND(R40=1,U40=1),2,IF(AND(R40=0,U40=1),3,0)) -> 0
C41: =IFERROR(IF(AND(T_MinWidth[[#This Row],[System]]=1,FIND(T_MinWidth[[#This Row],[Description]],i_Booster)>0),1,""),"") ->  | H41: =ROUND(SUM(M41+P41+S41+V41+I41),0) -> 432 | I41: 5 | J41: =L41*O41 -> 0 | K41: MINI | L41: 0 | M41: 340 | N41: Heavy | O41: =IFERROR(IF(ISBLANK(N41),"",IF(FIND(N41,INDIRECT($N$39))>0,1,0)),0) -> 0 | P41: 78.34 | Q41: LX | R41: 0 | S41: =IF(R41=1,4.89,4.57)*2 -> 9.14 | T41: Yes | U41: =IFERROR(IF(ISBLANK(T41),"",IF(FIND(T41,INDIRECT($T$39))>0,1,0)),0) -> 0 | V41: =IF(AND(R41=1,U41=1),2,IF(AND(R41=0,U41=1),3,0)) -> 0
C42: =IFERROR(IF(AND(T_MinWidth[[#This Row],[System]]=1,FIND(T_MinWidth[[#This Row],[Description]],i_Booster)>0),1,""),"") ->  | H42: 497 | I42: 5 | J42: 0 | K42: MINI | L42: 0 | M42: 340 | N42: Universal | O42: =IFERROR(IF(ISBLANK(N42),"",IF(FIND(N42,INDIRECT($N$39))>0,1,0)),0) -> 0 | P42: 142.69 | Q42: LX | R42: 0 | S42: 9.14 | T42: Yes | U42: 0 | V42: 0
C43: =IFERROR(IF(AND(T_MinWidth[[#This Row],[System]]=1,FIND(T_MinWidth[[#This Row],[Description]],i_Booster)>0),1,""),"") ->  | H43: 479 | I43: 5 | J43: 0 | K43: MINI | L43: 0 | M43: 340 | N43: Short | O43: =IFERROR(IF(ISBLANK(N43),"",IF(FIND(N43,INDIRECT($N$39))>0,1,0)),0) -> 0 | P43: 124.95 | Q43: LX | R43: 0 | S43: 9.14 | T43: Yes | U43: 0 | V43: 0
C44: =IFERROR(IF(AND(T_MinWidth[[#This Row],[System]]=1,FIND(T_MinWidth[[#This Row],[Description]],i_Booster)>0),1,""),"") ->  | H44: =ROUND(SUM(M44+P44+S44+V44+I44),0) -> 395 | I44: 5 | J44: =L44*O44 -> 0 | K44: MICRO | L44: 0 | M44: 340 | O44: =IF(i_IdlerType="Skyline Pin End 1.5""",1,0) -> 0 | P44: 41.15 | Q44: LX | R44: =IFERROR(IF(ISBLANK(Q44),"",IF(FIND(Q44,INDIRECT($Q$39))>0,1,0)),0) -> 0 | S44: =IF(R44=1,4.89,4.57)*2 -> 9.14 | T44: Yes | U44: =IFERROR(IF(ISBLANK(T44),"",IF(FIND(T44,INDIRECT($T$39))>0,1,0)),0) -> 0 | V44: =IF(AND(R44=1,U44=1),2,IF(AND(R44=0,U44=1),3,0)) -> 0
C45: =IFERROR(IF(AND(T_MinWidth[[#This Row],[System]]=1,FIND(T_MinWidth[[#This Row],[Description]],i_Booster)>0),1,""),"") ->  | H45: 432 | I45: 5 | J45: 0 | K45: MICRO | L45: 0 | M45: 340 | N45: Heavy | O45: =IFERROR(IF(ISBLANK(N45),"",IF(FIND(N45,INDIRECT($N$39))>0,1,0)),0) -> 0 | P45: 78.34 | Q45: LX | R45: 0 | S45: =IF(R45=1,4.89,4.57)*2 -> 9.14 | T45: Yes | U45: =IFERROR(IF(ISBLANK(T45),"",IF(FIND(T45,INDIRECT($T$39))>0,1,0)),0) -> 0 | V45: =IF(AND(R45=1,U45=1),2,IF(AND(R45=0,U45=1),3,0)) -> 0
C46: =IFERROR(IF(AND(T_MinWidth[[#This Row],[System]]=1,FIND(T_MinWidth[[#This Row],[Description]],i_Booster)>0),1,""),"") ->  | H46: 497 | I46: 5 | J46: 0 | K46: MICRO | L46: 0 | M46: 340 | N46: Universal | O46: =IFERROR(IF(ISBLANK(N46),"",IF(FIND(N46,INDIRECT($N$39))>0,1,0)),0) -> 0 | P46: 142.69 | Q46: LX | R46: 0 | S46: 9.14 | T46: Yes | U46: 0 | V46: 0
C47: =IFERROR(IF(AND(i_SystemType=T_MinWidth[[#This Row],[System]],FIND(T_MinWidth[[#This Row],[Description]],i_Control)>0),1,""),"") ->  | H47: 479 | I47: 5 | J47: 0 | K47: MICRO | L47: 0 | M47: 340 | N47: Short | O47: =IFERROR(IF(ISBLANK(N47),"",IF(FIND(N47,INDIRECT($N$39))>0,1,0)),0) -> 0 | P47: 124.95 | Q47: LX | R47: 0 | S47: 9.14 | T47: Yes | U47: 0 | V47: 0
C48: =IFERROR(IF(AND(i_SystemType=T_MinWidth[[#This Row],[System]],FIND(T_MinWidth[[#This Row],[Description]],i_Control)>0),1,""),"") ->  | H48: 597 | I48: 5 | J48: 0 | K48: SMALL | L48: 0 | M48: 542 | O48: =IF(i_IdlerType="Skyline Pin End 1.5""",1,0) -> 0 | P48: 41.15 | Q48: LX | R48: 0 | S48: =IF(R48=1,4.89,4.57)*2 -> 9.14 | T48: Yes | U48: =IFERROR(IF(ISBLANK(T48),"",IF(FIND(T48,INDIRECT($T$39))>0,1,0)),0) -> 0 | V48: =IF(AND(R48=1,U48=1),2,IF(AND(R48=0,U48=1),3,0)) -> 0
C49: =IFERROR(IF(AND(i_SystemType=T_MinWidth[[#This Row],[System]],FIND(T_MinWidth[[#This Row],[Description]],i_Control)>0),1,""),"") ->  | H49: 634 | I49: 5 | J49: 0 | K49: SMALL | L49: 0 | M49: 542 | N49: Heavy | O49: =IFERROR(IF(ISBLANK(N49),"",IF(FIND(N49,INDIRECT($N$39))>0,1,0)),0) -> 0 | P49: 78.34 | Q49: LX | R49: 0 | S49: =IF(R49=1,4.89,4.57)*2 -> 9.14 | T49: Yes | U49: =IFERROR(IF(ISBLANK(T49),"",IF(FIND(T49,INDIRECT($T$39))>0,1,0)),0) -> 0 | V49: =IF(AND(R49=1,U49=1),2,IF(AND(R49=0,U49=1),3,0)) -> 0
H50: 699 | I50: 5 | J50: 0 | K50: SMALL | L50: 0 | M50: 542 | N50: Universal | O50: =IFERROR(IF(ISBLANK(N50),"",IF(FIND(N50,INDIRECT($N$39))>0,1,0)),0) -> 0 | P50: 142.69 | Q50: LX | R50: 0 | S50: 9.14 | T50: Yes | U50: 0 | V50: 0
C51: =IFERROR(IF(AND(i_SystemType=T_MinWidth[[#This Row],[System]],FIND(T_MinWidth[[#This Row],[Description]],i_Control)>0),1,""),"") ->  | H51: 681 | I51: 5 | J51: 0 | K51: SMALL | L51: 0 | M51: 542 | N51: Short | O51: =IFERROR(IF(ISBLANK(N51),"",IF(FIND(N51,INDIRECT($N$39))>0,1,0)),0) -> 0 | P51: 124.95 | Q51: LX | R51: 0 | S51: 9.14 | T51: Yes | U51: 0 | V51: 0
H52: 597 | I52: 5 | J52: 0 | K52: LIGHT | L52: 0 | M52: 542 | O52: =IF(i_IdlerType="Skyline Pin End 1.5""",1,0) -> 0 | P52: 41.15 | Q52: LX | R52: 0 | S52: 9.14 | T52: Yes | U52: 0 | V52: 0
H53: 634 | I53: 5 | J53: =L53*O53 -> 0 | K53: LIGHT | L53: 0 | M53: 542 | N53: Heavy | O53: =IFERROR(IF(ISBLANK(N53),"",IF(FIND(N53,INDIRECT($N$39))>0,1,0)),0) -> 0 | P53: 78.34 | Q53: LX | R53: 0 | S53: 9.14 | T53: Yes | U53: 0 | V53: 0
B54: T_ConvertTube | H54: 699 | I54: 5 | J54: 0 | K54: LIGHT | L54: 0 | M54: 542 | N54: Universal | O54: =IFERROR(IF(ISBLANK(N54),"",IF(FIND(N54,INDIRECT($N$39))>0,1,0)),0) -> 0 | P54: 142.69 | Q54: LX | R54: 0 | S54: 9.14 | T54: Yes | U54: 0 | V54: 0
B55: Input | C55: Output | H55: 681 | I55: 5 | J55: 0 | K55: LIGHT | L55: 0 | M55: 542 | N55: Short | O55: =IFERROR(IF(ISBLANK(N55),"",IF(FIND(N55,INDIRECT($N$39))>0,1,0)),0) -> 0 | P55: 124.95 | Q55: LX | R55: 0 | S55: 9.14 | T55: Yes | U55: 0 | V55: 0
H56: 907 | I56: 5 | J56: 0 | K56: MEDIUM | L56: 0 | M56: 852 | O56: =IF(i_IdlerType="Skyline Pin End 1.5""",1,0) -> 0 | P56: 41.15 | Q56: LX | R56: 0 | S56: 9.14 | T56: Yes | U56: 0 | V56: 0
H57: 944 | I57: 5 | J57: 0 | K57: MEDIUM | L57: 0 | M57: 852 | N57: Heavy | O57: =IFERROR(IF(ISBLANK(N57),"",IF(FIND(N57,INDIRECT($N$39))>0,1,0)),0) -> 0 | P57: 78.34 | Q57: LX | R57: 0 | S57: 9.14 | T57: Yes | U57: 0 | V57: 0
H58: 1009 | I58: 5 | J58: 0 | K58: MEDIUM | L58: 0 | M58: 852 | N58: Universal | O58: =IFERROR(IF(ISBLANK(N58),"",IF(FIND(N58,INDIRECT($N$39))>0,1,0)),0) -> 0 | P58: 142.69 | Q58: LX | R58: 0 | S58: 9.14 | T58: Yes | U58: 0 | V58: 0
H59: 991 | I59: 5 | J59: 0 | K59: MEDIUM | L59: 0 | M59: 852 | N59: Short | O59: =IFERROR(IF(ISBLANK(N59),"",IF(FIND(N59,INDIRECT($N$39))>0,1,0)),0) -> 0 | P59: 124.95 | Q59: LX | R59: 0 | S59: 9.14 | T59: Yes | U59: 0 | V59: 0
H60: 1007 | I60: 5 | J60: 0 | K60: HEAVY | L60: 0 | M60: 952 | O60: =IF(i_IdlerType="Skyline Pin End 1.5""",1,0) -> 0 | P60: 41.15 | Q60: LX | R60: 0 | S60: 9.14 | T60: Yes | U60: 0 | V60: 0
B61: T_ConvertBooster | H61: 1044 | I61: 5 | J61: 0 | K61: HEAVY | L61: 0 | M61: 952 | N61: Heavy | O61: =IFERROR(IF(ISBLANK(N61),"",IF(FIND(N61,INDIRECT($N$39))>0,1,0)),0) -> 0 | P61: 78.34 | Q61: LX | R61: 0 | S61: 9.14 | T61: Yes | U61: 0 | V61: 0
B62: ID | C62: D_Show | D62: D_Booster | H62: 1109 | I62: 5 | J62: 0 | K62: HEAVY | L62: 0 | M62: 952 | N62: Universal | O62: =IFERROR(IF(ISBLANK(N62),"",IF(FIND(N62,INDIRECT($N$39))>0,1,0)),0) -> 0 | P62: 142.69 | Q62: LX | R62: 0 | S62: 9.14 | T62: Yes | U62: 0 | V62: 0
B63: X | C63: Compact | D63: Compact | H63: 1091 | I63: 5 | J63: 0 | K63: HEAVY | L63: 0 | M63: 952 | N63: Short | O63: =IFERROR(IF(ISBLANK(N63),"",IF(FIND(N63,INDIRECT($N$39))>0,1,0)),0) -> 0 | P63: 124.95 | Q63: LX | R63: 0 | S63: 9.14 | T63: Yes | U63: 0 | V63: 0
B64: A | C64: Short | D64: Short | G64: ="Charts"&"_"&i_SystemType&"_"&i_WeightBar&"_"&"b"&i_wbBallast
B65: B | C65: Light | D65: Light
B66: C | C66: Standard | D66: Standard
B67: D | C67: Heavy | D67: Heavy
B68: E | C68: Extra Heavy | D68: Extra Heavy
B69: F | C69: Dual Heavy | D69: Dual Heavy
B70: G
B71: H
B73: T_ConvertSystemType
B74: Input | C74: Output
B75: Zipscreen | C75: _Zipscreen_
B79: o_BoosterTextRec | C79: ="Recommended Spring Size: "&o_BoosterRec&", Estimated Pre-turns: "&o_BoosterPreturnRec
B81: =Indirect("Chart"&INDEX(T_ConvertControlType[Output],MATCH(i_ControlType,T_ConvertControlType[Input],0))&INDEX(T_ConvertTube[Output],MATCH(i_Tube,T_ConvertTube[Input],0)))
B82: ="Chart"&INDEX(T_ConvertSystemType[Output],MATCH(i_ControlType,T_ConvertSystemType[Input],0))&INDEX(T_ConvertTube[Output],MATCH(i_Tube,T_ConvertTube[Input],0)) -> 
B84: =IF(i_Units="","Blind Width","Blind Width ("&IFERROR(INDIRECT("o_WidthRange"&i_Units)&")",""))
B86: Fabric roll diameter
B87: =((-Tube_OD+SQRT(Tube_OD^2-4*Fabric_Thickness*-Z6*1000/PI()))/(2*Fabric_Thickness)+IF(pwa="Yes",1,0))*Fabric_Thickness*2+Tube_OD
B90: Rec booster
B91: '=INDEX(T_ConvertBooster[D_Show],MATCH(LEFT(INDEX(INDIRECT("Chart"&INDEX(T_ConvertControlType[Output],MATCH(i_ControlType,T_ConvertControlType[Input],0))&INDEX(T_ConvertTube[Output],MATCH(i_Tube,T_ConvertTube[Input],0))),MATCH(C23,W12:W46,0),MATCH(C22,X11:BX11,0)),1),T_ConvertBooster[ID],0))
B93: rec preturns
B94: =MID(INDEX(INDIRECT("Chart"&INDEX(T_ConvertControlType[Output],MATCH(i_ControlType,T_ConvertControlType[Input],0))&INDEX(T_ConvertTube[Output],MATCH(i_Tube,T_ConvertTube[Input],0))),MATCH(C23,W12:W46,0),MATCH(C22,X11:BX11,0)),3,2)
B96: =INDEX(T_ConvertBooster[D_Booster],MATCH(o_BoosterRec,T_ConvertBooster[D_Show],0))
B103: Max Width F56 <= | C103: 4000 | D103: mm | E103: =IF(o_Widthmm<=C103,TRUE,FALSE) -> TRUE
B104: SystemType | C104: Zipscreen | E104: =IF(i_SystemType=C104,TRUE,FALSE) -> FALSE
C105: F56 | E105: =IF(AND(E103=TRUE,E104=TRUE),"Preferred",0) -> 0
C106: F72 | E106: =IF(AND(E103=FALSE,E104=TRUE),"Preferred",0) -> 0
C108: =IF(i_Location="US","Recommended Hem Bar: ","Recommended Weight Bar: ")&INDEX(C105:C106,MATCH("Preferred",E105:E106,0)) -> 
D114: &"Width Range: "&INDIRECT("o_WidthRange"&i_Units)&"; "&"Drop Range: "&INDIRECT("o_DropRange"&i_Units)
D118: width drop
D119: =IF(SUM(o_SizeWarningTrigger)>0, Warning2, IF(AND(o_BlindOutOfSpec="Yes",i_Tube<>"",i_Width<>"",i_Drop<>""),Warning1,""))
D122: weight bar rec:
D123: =IFERROR(o_wbRec,"")
D126: for booster rec
D127: =IFERROR(IF(o_BoosterWarningTrigger1=1,o_BoosterWarning,o_BoosterTextRec),IFERROR(o_BoosterTextRec,"If no booster recommendation is made, the blind may be outside specifications."))
B133: SLB660 | E133: IDLER | F133: SLB660
B134: 4.57 | C134: 952 | D134: 5 | E134: 41.58 | F134: 4.57 | G134: =SUM(B134:F134) -> 1007.72
B135: 4.57 | C135: =C134 -> 952 | D135: 5 | E135: 78.34 | F135: 4.57 | G135: =SUM(B135:F135) -> 1044.48
B136: 4.57 | C136: =C134 -> 952 | D136: 5 | E136: 142.69 | F136: 4.57 | G136: 1108.83
B137: 4.57 | C137: =C134 -> 952 | D137: 5 | E137: 124.95 | F137: 4.57 | G137: 1091.09
B139: LX Skyline
B140: 4.89 | C140: =(B140-B134)*2 -> 0.64
B142: HEAVY | C142: 952
B143: LIGHT | C143: 542
B144: MED | C144: 852
B145: MINI | C145: 340
B148: STD 1.5" | C148: 41.15
B149: HD 1.5" | C149: 78.34
B150: Universal Limiter | C150: 142.69
B151: Short Limiter | C151: 124.95

Sheet Calc_Torque (hidden)
B4: Fabric Density | C4: 0.39 | D4: kg/m² | F4: Total Fabric Length | G4: =IF(C17="Yes",C7+PI()*C8/1000,C7) -> 4.135873882 | H4: m | L4: mm | M4: Nm | O4: Nm
B5: Fabric Thickness | C5: 0.6 | D5: mm | F5: Fabric mass per metre of drop | G5: =C6*C4 -> 1.56 | H5: kg/m | L5: Diameter | M5: Holding Capacity | N5: Gear Ratio | O5: Friction
B6: Width | C6: 4 | D6: m | F6: Blind mass per metre of width | G6: =C10+C11 -> 0.29 | H6: kg/m | K6: RB09 | L6: 46 | M6: 1 | N6: 1 | O6: 0.2
B7: Drop | C7: 4 | D7: m | F7: TOTAL Fabric + Weight Bar mass | G7: =((C4*G4)+G6)*C6*g -> 74.67335954 | H7: N
B8: Tube OD | C8: 43.25 | D8: mm | G8: =G7/g -> 7.611963256 | H8: kg
B9: Tube Mass | C9: 0.41 | D9: kg/m | F9: Tube Rotations | G9: =(-C8+SQRT(C8^2+4*C5*C7*1000/PI()))/(2*C5) -> 22.44822685 | H9: Turns | L9: mm | M9: kg/m | N9: (mm⁴) | O9: (Nm²)
B10: Weight Bar Mass | C10: 0.29 | D10: kg/m | F10: TOTAL Fabric + wb + tube mass | G10: =((C4*G4)+G6+C9)*C6*g -> 90.76175954 | H10: N | L10: OD | M10: Mass/m | N10: I_min | O10: EI
B11: Ballast Mass | C11: 0 | D11: kg/m | G11: =G10/g -> 9.251963256 | H11: kg | K11: S45 LIGHT | L11: 43.25 | M11: 0.41 | N11: 33442 | O11: 2274
B12: Booster | C12: 0 | D12: Nm | G12: =CONVERT(G11,"kg","lbm") -> 20.39708749 | H12: lbs
B13: Control Capacity | C13: 1 | D13: Nm | F13: Drop (function of # turns) | G13: =G9*PI()*C8+PI()*C5*G9^2 -> 4000 | H13: mm
F14: Control Capacity | G14: =ROUND(((C13+C12)/((C8/2/1000)))/g,2) -> 4.71 | H14: kg | L14: (mm²) | M14: kg/m | N14: (mm⁴) | O14: (mm⁴) | P14: (Nm²)
F15: Friction | L15: CSA | M15: Mass/m | N15: I_y | O15: I_x | P15: EI
F16: Friction additive | H16: Nm | K16: D30 | L16: 107 | M16: 0.29 | N16: 9647 | O16: 2486 | P16: 656
B17: Pre-wrap | C17: Yes | F17: T_Max | H17: Nm
B19: Max Roll Diameter | C19: 105 | D19: mm | M19: kg/m
B20: Max Area | C20: 50 | D20: m² | M20: Mass/m
B21: Link System Capacity | C21: 3 | D21: Nm | K21: BALLAST | M21: 0.97
M24: T_Max
M25: Nm
K26: BOOSTER | M26: 0

Sheet Ctrl_SpringData (hidden)
E3: =IF(AND(o_Widthmm>D4,o_Widthmm<=E4),1,0) -> 0 | F3: 0 | G3: 0 | H3: 0 | I3: 0 | J3: 0 | K3: 0 | L3: 0 | M3: 0 | N3: 0 | O3: 0 | P3: 0 | Q3: 0 | R3: 0 | S3: 0 | T3: 0 | U3: 0 | V3: 0 | W3: 0 | X3: 0 | Y3: 0
C4: Up to | D4: 400 | E4: 500 | F4: 600 | G4: 700 | H4: 800 | I4: 900 | J4: 1000 | K4: 1100 | L4: 1200 | M4: 1300 | N4: 1400 | O4: 1500 | P4: 1600 | Q4: 1700 | R4: 1800 | S4: 1900 | T4: 2000 | U4: 2100 | V4: 2200 | W4: 2300 | X4: 2400 | Y4: 4000
C5: 800 | D5: 8/3/Mini | E5: 8/3/Mini | F5: 14/8/L | G5: 14/8/L | H5: 14/7/L | I5: 16/7/L | J5: 15/6/L | K5: 10/6/M | L5: 10/6/M | M5: 10/6/M | N5: 11/6/M | O5: 12/6/M | P5: 12/6/M | Q5: 12/6/M | R5: 13/6/M | S5: 13/6/M | T5: 14/7/M | U5: 14/7/M | V5: 14/7/M | W5: 16/9/M | X5: 16/9/M
B6: =IF(AND(o_Dropmm>C5,o_Dropmm<=C6),1,0) -> 0 | C6: 1000 | D6: 8/4/Mini | E6: 8/3/Mini | F6: 14/8/L | G6: 14/8/L | H6: 15/7/L | I6: 17/7/L | J6: 17/7/L | K6: 10/8/M | L6: 11/8/M | M6: 11/8/M | N6: 11/8/M | O6: 12/8/M | P6: 12/8/M | Q6: 12/8/M | R6: 13/8/M | S6: 13/8/M | T6: 14/8/M | U6: 14/8/M | V6: 14/8/M | W6: 16/9/M | X6: 16/9/M
B7: 0 | C7: 1200 | D7: 9/5/Mini | E7: 9/4/Mini | F7: 15/9/L | G7: 15/9/L | H7: 16/8/L | I7: 17/8/L | J7: 17/7/L | K7: 10/12/M | L7: 11/10/M | M7: 11/10/M | N7: 11/10/M | O7: 12/10/M | P7: 12/10/M | Q7: 12/10/M | R7: 14/10/M | S7: 14/10/M | T7: 14/9/M | U7: 14/9/M | V7: 15/9/M | W7: 16/10/M | X7: 16/10/M
B8: 0 | C8: 1400 | D8: X | E8: 9/4/Mini | F8: 15/9/L | G8: 15/9/L | H8: 17/8/L | I8: 18/8/L | J8: 18/8/L | K8: 10/14/M | L8: 11/12/M | M8: 11/12/M | N8: 11/12/M | O8: 12/12/M | P8: 14/12/M | Q8: 14/12/M | R8: 16/12/M | S8: 16/12/M | T8: 14/10/M | U8: 14/10/M | V8: 16/10/M | W8: 16/10/M | X8: 16/10/M
B9: 0 | C9: 1600 | D9: X | E9: 9/5/Mini | F9: 16/10/L | G9: 16/10/L | H9: 17/9/L | I9: 18/9/L | J9: 18/8/L | K9: 11/16/M | L9: 11/14/M | M9: 11/14/M | N9: 11/14/M | O9: 12/14/M | P9: 15/14/M | Q9: 15/14/M | R9: 16/14/M | S9: 16/14/M | T9: 14/11/M | U9: 14/11/M | V9: 16/11/M | W9: 17/11/M | X9: 17/11/M
B10: 0 | C10: 1800 | D10: X | E10: 9/5/Mini | F10: 16/10/L | G10: 16/10/L | H10: 17/9/L | I10: 18/9/L | J10: 19/9/L | K10: 11/18/M | L10: 11/16/M | M10: 11/16/M | N10: 11/16/M | O10: 12/16/M | P10: 16/16/M | Q10: 16/16/M | R10: 17/16/M | S10: 17/16/M | T10: 16/12/M | U10: 16/12/M | V10: 17/12/M | W10: 17/11/M | X10: 17/11/M
B11: 0 | C11: 2000 | D11: X | E11: X | F11: 17/11/L | G11: 17/11/L | H11: 17/10/L | I11: 19/10/L | J11: 19/9/L | K11: 11/20/M | L11: 12/18/M | M11: 12/18/M | N11: 14/18/M | O11: 14/18/M | P11: 17/18/M | Q11: 17/18/M | R11: 17/18/M | S11: 17/18/M | T11: 17/13/M | U11: 17/13/M | V11: 17/13/M | W11: 18/12/M | X11: 18/12/M
B12: 0 | C12: 2200 | D12: X | E12: X | F12: 18/11/L | G12: 18/11/L | H12: 17/10/L | I12: 20/10/L | J12: 20/10/L | K12: 12/22/M | L12: 12/20/M | M12: 12/20/M | N12: 15/20/M | O12: 15/20/M | P12: 17/20/M | Q12: 17/20/M | R12: 19/20/M | S12: 19/20/M | T12: 18/14/M | U12: 18/14/M | V12: 17/14/M | W12: 18/12/M | X12: 18/12/M
B13: 0 | C13: 2400 | D13: X | E13: X | F13: 18/12/L | G13: 18/12/L | H13: 18/11/L | I13: 20/11/L | J13: 20/10/L | K13: 12/23/M | L13: 13/22/M | M13: 13/22/M | N13: 15/22/M | O13: 15/22/M | P13: 19/22/M | Q13: 19/22/M | R13: 19/22/M | S13: 19/22/M | T13: 18/15/M | U13: 18/15/M | V13: 18/15/M | W13: 18/13/M | X13: 18/13/M
B14: 0 | C14: 2600 | D14: X | E14: X | F14: 18/12/L | G14: 18/12/L | H14: 18/11/L | I14: 22/11/L | J14: 22/11/L | K14: 12/24/M | L14: 13/24/M | M14: 13/24/M | N14: 15/22/M | O14: 15/22/M | P14: 19/22/M | Q14: 19/22/M | R14: 19/22/M | S14: 19/22/M | T14: 19/16/M | U14: 19/16/M | V14: 18/16/M | W14: 18/13/M | X14: 18/13/M
B15: 0 | C15: 2800 | D15: X | E15: X | F15: 18/13/L | G15: 18/13/L | H15: 19/12/L | I15: 22/12/L | J15: 22/11/L | K15: 12/25/M | L15: 13/24/M | M15: 13/24/M | N15: 15/24/M | O15: 15/24/M | P15: 20/24/M | Q15: 20/24/M | R15: 19/24/M | S15: 21/24/M | T15: 19/17/M | U15: 19/17/M | V15: 18/17/M | W15: 18/14/M | X15: 18/14/M
B16: 0 | C16: 3000 | D16: X | E16: X | F16: X | G16: 18/13/L | H16: 19/12/L | I16: 22/12/L | J16: 22/12/L | K16: X | L16: 14/25/M | M16: 14/25/M | N16: 15/24/M | O16: 15/24/M | P16: 21/24/M | Q16: 20/24/M | R16: 20/24/M | S16: 21/24/M | T16: 19/18/M | U16: 19/18/M | V16: 20/18/M | W16: 18/14/M | X16: 18/14/M
B17: 0 | C17: 3200 | D17: X | E17: X | F17: X | G17: X | H17: 19/13/L | I17: 22/13/L | J17: 22/13/L | K17: X | L17: X | M17: X | N17: X | O17: 15/25/M | P17: 21/25/M | Q17: 21/25/M | R17: 20/25/M | S17: 21/25/M | T17: 19/19/M | U17: 19/19/M | V17: 20/19/M | W17: 18/14/M | X17: 18/14/M
B18: 0 | C18: 3400 | D18: X | E18: X | F18: X | G18: X | H18: 19/13/L | I18: X | J18: X | K18: X | L18: X | M18: X | N18: X | O18: 15/25/M | P18: 21/25/M | Q18: 21/25/M | R18: 21/25/M | S18: 21/25/M | T18: 20/20/M | U18: 20/20/M | V18: 21/20/M | W18: X | X18: X
C20: Weight Bar requirement (g/m) | D20: 500 | E20: 500 | F20: 350 | G20: 350 | H20: 350 | I20: 350 | J20: 350 | K20: 350 | L20: 350 | M20: 350 | N20: 350 | O20: 350 | P20: 350 | Q20: 350 | R20: 350 | S20: 350 | T20: 350 | U20: 350 | V20: 350 | W20: 350 | X20: 350 | Y20: 350
C22: Cell Out | D22: =IFERROR(IF(AND(i_Width<>"",i_Drop<>"",SUM(BlindSize)>0),INDEX(D5:X18,MATCH(1,B5:B18,0),MATCH(1,D3:X3,0))),"X") -> FALSE
C24: Position | D24: =_xlfn.TEXTSPLIT(o_SystemSpecChart,,"/") -> FALSE | F24: Warning: | G24: =IF(o_SystemSpecChart="X","Outside Spring Capacity, refer system specifications.","") ->  | L24: Mini | M24: MINI
C25: Preturns | L25: L | M25: LIGHT
C26: Spring | G26: =INDEX($M$24:$M$26,MATCH($D$26,$L$24:$L$26,0)) ->  | L26: M | M26: MEDIUM
C28: Weight lookup | D28: =IFERROR(INDEX($D$20:$Y$20,,MATCH(1,$D$3:$Y$3,0))/1000,"") ->  | E28: kg/m | H28: grams:pounds
C29: Total Rec wb mass | D29: =(D28/1000)*o_Widthmm ->  | E29: kg | H29: 2.204
C30: Total Rec wb mass | D30: =(D29)*c_kgPounds ->  | E30: lbs
C32: D30 is 306 g / m
H33: =IF(o_SystemSpecChart="X", "Outside spring specifications.", "Recommended Spring: "&o_SpringSize) -> 
B40: NOTES FOR BOM | C40: =IF(o_SystemSpecChart="X", "Spring outside specifications.", "Recommended Spring Position: "&o_SpringPosn&"; Recommended Spring Pre-turns: "&o_SpringPreturns) -> Recommended Spring Position: FALSE; Recommended Spring Pre-turns:

Sheet Ctrl_Limitations (hidden)
D2: Does | F2: Apply to
Y3: Enter DEPENDENCIES | Z3: SELECTION OPTIONS | AA3: CONFIGURATIONS
Z4: =MAX(AA4:AP4) -> 1 | AA4: 1 | AB4: =SUM(COUNTIF(AB5:AB19,$Y$5:$Y$19)) -> 0 | AC4: =SUM(COUNTIF(AC5:AC19,$Y$5:$Y$19)) -> 0 | AD4: =SUM(COUNTIF(AD5:AD19,$Y$5:$Y$19)) -> 0 | AE4: =SUM(COUNTIF(AE5:AE19,$Y$5:$Y$19)) -> 0 | AF4: =SUM(COUNTIF(AF5:AF19,$Y$5:$Y$19)) -> 0 | AG4: =SUM(COUNTIF(AG5:AG19,$Y$5:$Y$19)) -> 0 | AH4: =SUM(COUNTIF(AH5:AH19,$Y$5:$Y$19)) -> 0 | AI4: =SUM(COUNTIF(AI5:AI19,$Y$5:$Y$19)) -> 0 | AJ4: =SUM(COUNTIF(AJ5:AJ19,$Y$5:$Y$19)) -> 0 | AK4: =SUM(COUNTIF(AK5:AK19,$Y$5:$Y$19)) -> 0 | AL4: =SUM(COUNTIF(AL5:AL19,$Y$5:$Y$19)) -> 0 | AM4: =SUM(COUNTIF(AM5:AM19,$Y$5:$Y$19)) -> 0 | AN4: =SUM(COUNTIF(AN5:AN19,$Y$5:$Y$19)) -> 0 | AO4: =SUM(COUNTIF(AO5:AO19,$Y$5:$Y$19)) -> 0 | AP4: =SUM(COUNTIF(AP5:AP19,$Y$5:$Y$19)) -> 0
Y5: =INDIRECT("i_"&SUBSTITUTE($Z5," ","")) -> 0 | Z5: System Type
Y10: =INDIRECT("i_"&SUBSTITUTE($Z10," ","")) -> 0 | Z10: Installation Type
Y24: Type | Z24: Limitation Value | AA24: =IF(AA4<>$Z$4,0,1) -> 1 | AB24: 0 | AC24: 0 | AD24: 0 | AE24: 0 | AF24: 0 | AG24: 0 | AH24: 0 | AI24: 0 | AJ24: 0 | AK24: 0 | AL24: 0 | AM24: 0 | AN24: 0 | AO24: 0 | AP24: 0
Y25: Width_Max | Z25: =INDEX(AA25:AP25,0,MATCH(1,$AA$24:$AP$24,0)) -> 3000 | AA25: =Ctrl_Recommendations!E4 -> 3000
Y26: Drop_Max | Z26: 3000 | AA26: =Ctrl_Recommendations!E5 -> 3000
Y27: Area_Max | Z27: 0
Y28: Drop_Max_hard | Z28: 3000 | AA28: =AA26 -> 3000
Z29: 0
Z30: 0
Z31: 0
Z32: 0
Z33: 0
D34: =COUNTA($D$44:$D$69) -> 16 | Z34: 0
Z35: 0
Z36: 0
W37: weight bar, | Z37: 0
W38: tubes?
R41: Lookup | Y41: Recommendations?
R42: Deduction
D43: =Y25 -> Width_Max | E43: =Y26 -> Drop_Max | F43: =Y27 -> Area_Max | G43: =Y28 -> Drop_Max_hard | H43: =Y29 -> 0 | I43: =Y30 -> 0 | J43: =Y31 -> 0 | K43: =Y32 -> 0 | L43: =Y33 -> 0 | M43: =Y34 -> 0 | N43: =Y35 -> 0 | O43: =Y36 -> 0 | P43: =Y37 -> 0 | R43: Modifiers | T43: QTY | U43: ON/OFF | W43: Comments | AA43: =IF(AA4<>$Z$4,0,1) -> 1 | AB43: 0 | AC43: 0 | AD43: 0 | AE43: 0 | AF43: 0 | AG43: 0 | AH43: 0 | AI43: 0 | AJ43: 0 | AK43: 0 | AL43: 0 | AM43: 0 | AN43: 0 | AO43: 0 | AP43: 0
D44: 0 | E44: 0 | F44: 1 | G44: 0 | H44: 0 | I44: 0 | J44: 0 | K44: 0 | L44: 0 | M44: 0 | N44: 0 | O44: 0 | P44: 0 | R44: =INDEX($AA$44:$AP$59,0,MATCH(1,$AA$43:$AP$43,0)) -> 0 | T44: 1 | U44: =IFERROR(IF(ISBLANK(Y44),"",IF(FIND(Z44,INDIRECT("i_"&$Y44))>0,1,0)),0) -> 0 | Y44: Tube | Z44: AL HD
D45: 0 | E45: 1 | F45: 0 | G45: 0 | H45: 0 | I45: 0 | J45: 0 | K45: 0 | L45: 0 | M45: 0 | N45: 0 | O45: 0 | P45: 0 | R45: 0 | T45: 1 | U45: 0 | W45: if box120 cover | Y45: InstallationType | Z45: Cover
D46: 0 | E46: 1 | F46: 0 | G46: 0 | H46: 0 | I46: 0 | J46: 0 | K46: 0 | L46: 0 | M46: 0 | N46: 0 | O46: 0 | P46: 0 | R46: 0 | T46: 1 | U46: 0 | Y46: InstallationType | Z46: Box 190
D47: 0 | E47: 1 | F47: 0 | G47: 0 | H47: 0 | I47: 0 | J47: 0 | K47: 0 | L47: 0 | M47: 0 | N47: 0 | O47: 0 | P47: 0 | R47: 0 | T47: 1 | U47: 0 | Y47: InstallationType | Z47: Box 190
D48: 0 | E48: 0 | F48: 0 | G48: 0 | H48: 0 | I48: 0 | J48: 0 | K48: 0 | L48: 0 | M48: 0 | N48: 0 | O48: 0 | P48: 0 | R48: 0 | T48: 1
D49: 0 | E49: 0 | F49: 0 | G49: 0 | H49: 0 | I49: 0 | J49: 0 | K49: 0 | L49: 0 | M49: 0 | N49: 0 | O49: 0 | P49: 0 | R49: 0 | T49: 1
D50: 0 | E50: 0 | F50: 0 | G50: 0 | H50: 0 | I50: 0 | J50: 0 | K50: 0 | L50: 0 | M50: 0 | N50: 0 | O50: 0 | P50: 0 | R50: 0 | T50: 1
D51: 0 | E51: 0 | F51: 0 | G51: 0 | H51: 0 | I51: 0 | J51: 0 | K51: 0 | L51: 0 | M51: 0 | N51: 0 | O51: 0 | P51: 0 | R51: 0 | T51: 1
D52: 0 | E52: 0 | F52: 0 | G52: 0 | H52: 0 | I52: 0 | J52: 0 | K52: 0 | L52: 0 | M52: 0 | N52: 0 | O52: 0 | P52: 0 | R52: 0 | T52: 1
D53: 0 | E53: 0 | F53: 0 | G53: 0 | H53: 0 | I53: 0 | J53: 0 | K53: 0 | L53: 0 | M53: 0 | N53: 0 | O53: 0 | P53: 0 | R53: 0 | T53: 1
D54: 0 | E54: 0 | F54: 0 | G54: 0 | H54: 0 | I54: 0 | J54: 0 | K54: 0 | L54: 0 | M54: 0 | N54: 0 | O54: 0 | P54: 0 | R54: 0 | T54: 1
D55: 0 | E55: 0 | F55: 0 | G55: 0 | H55: 0 | I55: 0 | J55: 0 | K55: 0 | L55: 0 | M55: 0 | N55: 0 | O55: 0 | P55: 0 | R55: 0 | T55: 1
D56: 0 | E56: 0 | F56: 0 | G56: 0 | H56: 0 | I56: 0 | J56: 0 | K56: 0 | L56: 0 | M56: 0 | N56: 0 | O56: 0 | P56: 0 | R56: 0 | T56: 1
D57: 0 | E57: 0 | F57: 0 | G57: 0 | H57: 0 | I57: 0 | J57: 0 | K57: 0 | L57: 0 | M57: 0 | N57: 0 | O57: 0 | P57: 0 | R57: 0 | T57: 1
D58: 0 | E58: 0 | F58: 0 | G58: 0 | H58: 0 | I58: 0 | J58: 0 | K58: 0 | L58: 0 | M58: 0 | N58: 0 | O58: 0 | P58: 0 | R58: 0 | T58: 1
D59: 0 | E59: 0 | F59: 0 | G59: 0 | H59: 0 | I59: 0 | J59: 0 | K59: 0 | L59: 0 | M59: 0 | N59: 0 | O59: 0 | P59: 0 | R59: 0 | T59: 1
Y63: Type | Z63: Limit | AA63: =IF(AA4<>$Z$4,0,1) -> 1 | AB63: 0 | AC63: 0 | AD63: 0 | AE63: 0 | AF63: 0 | AG63: 0 | AH63: 0 | AI63: 0 | AJ63: 0 | AK63: 0 | AL63: 0 | AM63: 0 | AN63: 0 | AO63: 0 | AP63: 0
Y64: =Y25 -> Width_Max | Z64: =INDEX(AA64:AP64,0,MATCH(1,$AA$24:$AP$24,0)) -> 3000 | AA64: =IFERROR(IF(AA$63=0,"",AA25+SUMPRODUCT($U$44:$U$59,$T$44:$T$59,$R$44:$R$59,OFFSET($D$43,1,MATCH($Y64,$D$43:$P$43,0)-1,$D$34,1))),"") -> 3000
Y65: Drop_Max | Z65: =INDEX(AA65:AP65,0,MATCH(1,$AA$24:$AP$24,0)) -> 3000 | AA65: =IFERROR(IF(AA$63=0,"",AA26+SUMPRODUCT($U$44:$U$59,$T$44:$T$59,$R$44:$R$59,OFFSET($D$43,1,MATCH($Y65,$D$43:$P$43,0)-1,$D$34,1))),"") -> 3000
Y66: Area_Max | Z66: =INDEX(AA66:AP66,0,MATCH(1,$AA$24:$AP$24,0)) -> 0 | AA66: =IFERROR(IF(AA$63=0,"",AA27+SUMPRODUCT($U$44:$U$59,$T$44:$T$59,$R$44:$R$59,OFFSET($D$43,1,MATCH($Y66,$D$43:$P$43,0)-1,$D$34,1))),"") -> 0
Y67: Drop_Max_hard | Z67: =INDEX(AA67:AP67,0,MATCH(1,$AA$24:$AP$24,0)) -> 3000 | AA67: =IFERROR(IF(AA$63=0,"",AA28+SUMPRODUCT($U$44:$U$59,$T$44:$T$59,$R$44:$R$59,OFFSET($D$43,1,MATCH($Y67,$D$43:$P$43,0)-1,$D$34,1))),"") -> 3000
Y68: 0 | Z68: =INDEX(AA68:AP68,0,MATCH(1,$AA$24:$AP$24,0)) -> 0 | AA68: =IFERROR(IF(AA$63=0,"",AA29+SUMPRODUCT($U$44:$U$59,$T$44:$T$59,$R$44:$R$59,OFFSET($D$43,1,MATCH($Y68,$D$43:$P$43,0)-1,$D$34,1))),"") -> 0
Y69: 0 | Z69: =INDEX(AA69:AP69,0,MATCH(1,$AA$24:$AP$24,0)) -> 0 | AA69: =IFERROR(IF(AA$63=0,"",AA30+SUMPRODUCT($U$44:$U$59,$T$44:$T$59,$R$44:$R$59,OFFSET($D$43,1,MATCH($Y69,$D$43:$P$43,0)-1,$D$34,1))),"") -> 0
Y70: 0 | Z70: =INDEX(AA70:AP70,0,MATCH(1,$AA$24:$AP$24,0)) -> 0 | AA70: =IFERROR(IF(AA$63=0,"",AA31+SUMPRODUCT($U$44:$U$59,$T$44:$T$59,$R$44:$R$59,OFFSET($D$43,1,MATCH($Y70,$D$43:$P$43,0)-1,$D$34,1))),"") -> 0
Y71: 0 | Z71: =INDEX(AA71:AP71,0,MATCH(1,$AA$24:$AP$24,0)) -> 0 | AA71: =IFERROR(IF(AA$63=0,"",AA32+SUMPRODUCT($U$44:$U$59,$T$44:$T$59,$R$44:$R$59,OFFSET($D$43,1,MATCH($Y71,$D$43:$P$43,0)-1,$D$34,1))),"") -> 0
Y72: 0 | Z72: =INDEX(AA72:AP72,0,MATCH(1,$AA$24:$AP$24,0)) -> 0 | AA72: =IFERROR(IF(AA$63=0,"",AA33+SUMPRODUCT($U$44:$U$59,$T$44:$T$59,$R$44:$R$59,OFFSET($D$43,1,MATCH($Y72,$D$43:$P$43,0)-1,$D$34,1))),"") -> 0
Y73: 0 | Z73: =INDEX(AA73:AP73,0,MATCH(1,$AA$24:$AP$24,0)) -> 0 | AA73: =IFERROR(IF(AA$63=0,"",AA34+SUMPRODUCT($U$44:$U$59,$T$44:$T$59,$R$44:$R$59,OFFSET($D$43,1,MATCH($Y73,$D$43:$P$43,0)-1,$D$34,1))),"") -> 0
Y74: =Y36 -> 0 | Z74: =INDEX(AA74:AP74,0,MATCH(1,$AA$24:$AP$24,0)) -> 0 | AA74: =IFERROR(IF(AA$63=0,"",AA36+SUMPRODUCT($U$44:$U$59,$T$44:$T$59,$R$44:$R$59,OFFSET($D$43,1,MATCH($Y74,$D$43:$P$43,0)-1,$D$34,1))),"") -> 0
Y75: =Y37 -> 0 | Z75: =INDEX(AA75:AP75,0,MATCH(1,$AA$24:$AP$24,0)) -> 0 | AA75: =IFERROR(IF(AA$63=0,"",AA37+SUMPRODUCT($U$44:$U$59,$T$44:$T$59,$R$44:$R$59,OFFSET($D$43,1,MATCH($Y75,$D$43:$P$43,0)-1,$D$34,1))),"") -> 0
Y76: =Y38 -> 0

Sheet Calc_Reference (hidden)
B2: Input Constants
B3: Maximum User Effort | D3: kg | AZ3: Selected Fabric | BA3: =i_FabricSelection -> 0
B4: Tube Deflection Limit (internal) | D4: mm/m | AZ4: lookup thickness | BA4: =INDEX(T_FabricData[Thickness],MATCH(i_FabricSelection,T_FabricData[DESCRIPTION],0)) ->  | BB4: mm | BK4: #6 zip | BL4: 1.45 | BM4: mm
B5: Tube Deflection Limit (external) | D5: mm/m | AZ5: lookup density | BA5: =INDEX(T_FabricData[Density],MATCH(i_FabricSelection,T_FabricData[DESCRIPTION],0)) ->  | BB5: gsm
B6: Zip Thickness | D6: mm
N7: Live Data | Q7: Bottom Tube | U7: Top Tube | Z7: Boosters | AD7: No Boosters | AI7: Bottom Booster Only (motor) | AO7: Including Both Boosters (as nominated in inputs) | AT7: * Safety Factor | AZ7: Deflection Limit internal | BA7: =o_BlindWidthm*Deflection_Limit_Int -> 0 | BB7: mm
N8: Bottom Tube # Rotations | O8: Lift Height (m) | Q8: Load (N) | R8: Active Diameter (mm) | S8: Radius (mm) | U8: Top Tube # Rotations | V8: Load (N) | W8: Active Spool Diameter (mm) | X8: Spool Radius (mm) | Z8: Spring Booster Top Torque (Nm) | AA8: Spring Booster Bottom Torque (Nm) | AB8: Booster Equivalent Force (N) | AD8: Top Tube/Spool Torque Required (Nm) | AE8: Control Torque Required @ Ratio + FRICTION (Nm) | AF8: User Effort LIFTING (kg) | AG8: User Effort LOWERING (kg) | AI8: Top Tube Load (N) | AJ8: Top Tube Torque (Nm) | AK8: Control Torque Required (Nm) | AL8: User Effort LIFTING (kg) | AM8: User Effort LOWERING (kg) | AO8: Top Tube/Spool Torque Required (Nm) | AP8: Control Torque Required @ Ratio (Nm) | AQ8: User Effort LIFTING (kg) | AR8: User Effort LOWERING (kg) | AT8: User Effort LIFTING (kg) | AU8: User Effort LOWERING (kg) | AZ8: Deflection Limit external | BA8: =o_BlindWidthm*Deflection_Limit_Ext -> 0 | BB8: mm
B9: Material Data | E9: kg/m³ | F9: GPa | N9: 0 | O9: 0 | Q9: =9.81*((BT_UnitMass*o_BlindWidthm)+Fabric_TotalMass-Fabric_UnitMassLift*N9) ->  | R9: =S9*2 ->  | S9: =(Fabric_Roll_Diameter*0.5)-Fabric_Thickness*N9 ->  | U9: =N9*(Spool_OD/R9) ->  | V9: =9.81*((wb_UnitMass*o_BlindWidthm)+Fabric_UnitMassLift*N9) ->  | W9: =IF(D12>2.14,Spool_OD+8.4,IF(D12>1.38,Spool_OD+5.6,IF(D12>0.67,Spool_OD+2.8,Spool_OD))) ->  | X9: =W9/2 ->  | Z9: =(BoosterTop_Preturns+Rotations_Max-U9)*Booster_k ->  | AA9: =(Booster_PreTurns+N9)*BoosterBottom_k ->  | AB9: =(Z9/(X9/1000)-(AA9/(S9/1000))) ->  | AD9: =V9*X9/1000 ->  | AE9: =(AD9/Control_Ratio)+Control_Friction ->  | AF9: =(AE9/((Control_D/1000)/2))/9.81 ->  | AG9: =(Control_Friction/(Control_D/2/1000))/9.81 ->  | AI9: =(V9+((Booster_PreTurns+N9)*BoosterBottom_k/(S9/1000))) ->  | AJ9: =(AI9*X9/1000) ->  | AK9: =IF(AJ9<0,Control_Friction,(AJ9/Control_Ratio)+Control_Friction) ->  | AL9: =(AJ9/((Control_D/1000)/2))/9.81 ->  | AM9: =(Control_Friction/(Control_D/2/1000))/9.81 ->  | AO9: =(V9-AB9)*X9/1000 ->  | AP9: =IF(AO9<0,Control_Friction,(AO9/Control_Ratio)+Control_Friction) ->  | AQ9: =(AP9/((Control_D/1000)/2))/9.81 ->  | AR9: =IF((((Control_Friction-(AO9/Control_Ratio))/(Control_D/2/1000)))/9.81<(Control_Friction/(Control_D/2/1000))/9.81,(Control_Friction/(Control_D/2/1000))/9.81,(((Control_Friction-(AO9/Control_Ratio))/(Control_D/2/1000)))/9.81) ->  | AZ9: Fabric Thickness | BA9: =IF(i_Units="Metric",i_FabricThickness,CONVERT(i_FabricThickness,"in","mm")) ->  | BB9: mm
B10: Material | E10: Density | F10: Young's Modulus | N10: =Rotations_Bottom_Max ->  | O10: =(PI()/1000)*($N$10*BT_OD+Fabric_Thickness*$N$10^2) ->  | Q10: =9.81*((BT_UnitMass*o_BlindWidthm)+Fabric_TotalMass-Fabric_UnitMassLift*O10) ->  | R10: =S10*2 ->  | S10: =(Fabric_Roll_Diameter*0.5)-Fabric_Thickness*N10 ->  | U10: =N10*(Spool_OD/R10) ->  | V10: =9.81*((wb_UnitMass*o_BlindWidthm)+Fabric_UnitMassLift*O10) ->  | W10: =IF(O10>2.14,Spool_OD+8.4,IF(O10>1.38,Spool_OD+5.6,IF(O10>0.67,Spool_OD+2.8,Spool_OD))) ->  | X10: =W10/2 ->  | Z10: =(BoosterTop_Preturns+Rotations_Max-U10)*Booster_k ->  | AA10: =(Booster_PreTurns+N10)*BoosterBottom_k ->  | AB10: =(Z10/(X10/1000)-(AA10/(S10/1000))) ->  | AD10: =V10*X10/1000 ->  | AE10: =(AD10/Control_Ratio)+Control_Friction ->  | AF10: =(AE10/((Control_D/1000)/2))/9.81 ->  | AG10: =(Control_Friction/(Control_D/2/1000))/9.81 ->  | AI10: =(V10+((Booster_PreTurns+N10)*BoosterBottom_k/(S10/1000))) ->  | AJ10: =(AI10*X10/1000) ->  | AK10: =IF(AJ10<0,Control_Friction,(AJ10/Control_Ratio)+Control_Friction) ->  | AL10: =(AJ10/((Control_D/1000)/2))/9.81 ->  | AM10: =(Control_Friction/(Control_D/2/1000))/9.81 ->  | AO10: =(V10-AB10)*X10/1000 ->  | AP10: =IF(AB12<0,Control_Friction,(AO10/Control_Ratio)+Control_Friction) ->  | AQ10: =(AP10/((Control_D/1000)/2))/9.81 ->  | AR10: =IF((((Control_Friction-(AO10/Control_Ratio))/(Control_D/2/1000)))/9.81<(Control_Friction/(Control_D/2/1000))/9.81,(Control_Friction/(Control_D/2/1000))/9.81,(((Control_Friction-(AO10/Control_Ratio))/(Control_D/2/1000)))/9.81) ->  | AZ10: Fabric Density | BA10: =i_FabricDensity/1000 ->  | BB10: kg/m²
B11: Aluminium | E11: 2710 | F11: =68*10^9 -> 68000000000 | BG11: Tube
B12: Steel | E12: 7860 | F12: =2*10^11 -> 200000000000 | BG12: Unit Mass | BH12: =INDEX(T_refTubes[Mass/m],MATCH(i_Tube,T_refTubes[OptionCode],0)) ->  | BI12: kg/m
AZ13: Blind width (m) | BA13: =o_Widthmm/1000 -> 0 | BB13: m | BG13: OD | BH13: =INDEX(T_refTubes[Tube OD],MATCH(i_Tube,T_refTubes[OptionCode],0)) ->  | BI13: mm
B14: Tubes | E14: mm | F14: kg/m | G14: (mm⁴) | H14: (Nm²) | AZ14: Blind Drop (m) | BA14: =o_Dropmm/1000 -> 0 | BB14: m | BG14: IE | BH14: =INDEX(T_refTubes[EI],MATCH(i_Tube,T_refTubes[OptionCode],0)) ->  | BI14: Nm²
B15: OptionCode | C15: Codes | D15: Description | E15: Tube OD | F15: Mass/m | G15: I_min | H15: EI
B16: 63 AL | C16: RE01-0363 | D16: 63 STD Aluminium Tube
B17: 63 STEEL
B18: 78 AL STD | C18: RE01-0378 | D18: 78 STD Aluminium Tube - 80mm | AZ18: Tube Max Rotations | BA18: =(-Tube_OD+SQRT(Tube_OD^2+4*Fabric_Thickness*o_BlindDropm*1000/PI()))/(2*Fabric_Thickness) -> 
B19: 78 AL HD | C19: RE01-0379 | D19: 78 HD Aluminium Tube - 81.6mm | AZ19: Max Roll Diameter | BA19: =(Rotations_Max)*Fabric_Thickness*2+Tube_OD ->  | BB19: mm | BC19: no prewrap
B20: 78 STEEL | C20: AW92-0901 | D20: 78 STEEL Tube - 78mm | AZ20: Max Zip Diameter | BA20: =((-Tube_OD+SQRT(Tube_OD^2+4*ZipThickness*o_BlindDropm*1000/PI()))/(2*ZipThickness))*ZipThickness*2+Tube_OD ->  | BB20: mm
B21: S100 110 STD | C21: RB93-0110 | D21: S100 Aluminium Tube - 110 STD
B22: S100 130 HD | C22: RB93-0130 | D22: S100 Aluminium Tube - 130 HD | BG22: Weight Bar & Ballast
AZ23: Booster Max Preturns | BA23: =ROUNDDOWN(BH28-Rotations_Max,0) ->  | BB23: Turns | BG23: Unit Mass | BH23: =IFERROR(INDEX(T_refWeightBar[Mass/m],MATCH(1,T_refWeightBar[Codes],0)),0.00001) -> 1e-05 | BI23: kg/m
BG26: Booster
BG27: k | BH27: =IFERROR(INDEX(T_refBoosters[Spring Rate],MATCH(i_Booster,T_refBoosters[Input],0)),0.00001) -> 1e-05 | BI27: Nm/Turn
AZ28: Fabric Lift Unit Mass | BA28: =o_BlindWidthm*Fabric_Density ->  | BB28: kg/m | BG28: Max Turns | BH28: =IFERROR(INDEX(T_refBoosters[Max Turns],MATCH(i_Booster,T_refBoosters[Input],0)),0.00001) -> 1e-05 | BI28: Turns
AZ29: Fabric Total Mass | BA29: =Fabric_UnitMassLift*o_BlindDropm ->  | BB29: kg
B31: Boosters | E31: (Nm/Turn) | G31: (Nm)
B32: Input | C32: Codes | D32: Description | E32: Spring Rate | F32: Max Turns | G32: T_Max | H32: MinWidth | I32: BoosterCount | AZ32: Fabric Area Mass | BA32: =Fabric_Density*(o_Dropmm/1000)*(o_Widthmm/1000) ->  | BB32: kg/m²
B33: Short | D33: Short RE01 Spring
D34: X-Light RE01 Spring
B35: Light | D35: Light RE01 Spring
D36: Medium Light RE01 Spring | AZ36: Torque @ Midpoint | BA36: =(((((g*(wb_UnitMass*o_BlindWidthm+Fabric_Density*o_BlindWidthm*((o_BlindDropm-((PI()/1000)*((Rotations_Max/2)*Tube_OD+Fabric_Thickness*(Rotations_Max/2)^2)))))*((((Fabric_Roll_Diameter*0.5)-Fabric_Thickness*(Rotations_Max/2)))/1000)))))) ->  | BB36: Nm
B37: Standard | C37: RB10-6040-xxx031/2 | D37: Standard RE01 Spring
B38: Heavy | C38: RB10-6040-xxx041/2 | D38: Heavy Duty RE01 Spring | AZ38: # preturns recommended | BA38: =ROUNDUP((BA36-(Booster_k*(Rotations_Max/2)))/Booster_k,0) ->  | BB38: Turns
B39: Extra Heavy | D39: X-Heavy RE01 Spring
B40: Dual Heavy | D40: Dual Heavy RE01 Springs
D41: Dual X-Heavy RE01 Springs
B46: Weight Bar | E46: (mm²) | F46: kg/m | G46: (mm⁴) | H46: (mm⁴) | I46: (Nm²)
B47: Column1 | C47: Codes | D47: Description | E47: CSA | F47: Mass/m | G47: I_y | H47: I_x | I47: EI
C48: =IF(AND(i_WeightBar="F56",i_wbBallast="No"),1,"") ->  | D48: F56 HD External Weight Bar
C49: =IF(AND(i_WeightBar="F56",i_wbBallast="Yes"),1,"") ->  | D49: F56 HD External Weight Bar + 1x12mm Ballast
C50: =IF(AND(i_WeightBar="F72",i_wbBallast="No"),1,"") ->  | D50: F72 HD External Weight Bar
C51: =IF(AND(i_WeightBar="F72",i_wbBallast="Yes"),1,"") ->  | D51: F72 HD External Weight Bar + 1x12mm Ballast
B53: Controls | E53: (mm) | F53: (Nm) | H53: (Nm)
B54: Selection | C54: Codes | D54: Description | E54: Diameter | F54: Holding Capacity | G54: Gear Ratio | H54: Friction

Sheet Calc_Fabric (hidden)
C2: DESCRIPTION | D2: Thickness | E2: Density | F2: Weight (kg/m²) | G2: Code
C3: =IF(i_Location="US","Default (16.90 oz/yd², 0.033'')","Default 573 gsm, 0.85 mm Thick") -> Default 573 gsm, 0.85 mm Thick | D3: 0.85 | E3: 573 | F3: =E3/1000 -> 0.573 | G3: NOT SUPPLIED
C4: X-Weave Exterior Screen 5% 126" Graphite | G4: 066003200GRA | L4: PVC (1000 gsm, 0.75 mm Thick) | M4: 0.75 | N4: 1000 | O4: =N4/1000 -> 1
C5: X-Weave Exterior Screen 5% 126" Mahogany | G5: 066003200MAH
C6: X-Weave Exterior Screen 5% 126" Onyx | G6: 066003200ONY
C7: X-Weave Exterior Screen 5% 126" Sand | G7: 066003200SAN
C8: X-Weave Exterior Screen 5% 126" Slate | G8: 066003200SLA
C9: X-Weave Exterior Screen 5% 126" Stone Gray | G9: 066003200STO
H130: ← Manually type in "Custom" Fabric Density in red cell

Sheet PriceList_AU (hidden)
K1: Custom Currency:
B2: No. | C2: ColourOptions | D2: Part Number | E2: Description | F2: Colour Code | G2: Colour Description | H2: Colour | I2: Base Unit of Measure | J2: AU | K2: AUD_Original | L2: CustomPricing | M2: QTY_Inner | N2: QTY_Outer | R2: Last Update: | S2: 2022-06-29
B3: AW05-0701-069160 | C3: Y | D3: =IF(AND(OR(T_NAV_AU[[#This Row],[ColourOptions]]="M",T_NAV_AU[[#This Row],[ColourOptions]]="Y"),MID(T_NAV_AU[[#This Row],[No.]],11,3)="069"),REPLACE(T_NAV_AU[[#This Row],[No.]],11,3,"xxx"),T_NAV_AU[[#This Row],[No.]]) -> AW05-0701-xxx160 | E3: Pivot Arms - 1.6m | 2 Arms LH + RH | F3: 069 | G3: Pure White | H3: =IF(T_NAV_AU[[#This Row],[ColourOptions]]="M","as per catalogue",IF(T_NAV_AU[[#This Row],[Colour Description]]="Pure White", "Powdercoat, as per catalogue", T_NAV_AU[[#This Row],[Colour Description]])) -> Powdercoat, as per catalogue | I3: PAIR | J3: =IF(T_NAV_AU[[#This Row],[CustomPricing]]<>"",T_NAV_AU[[#This Row],[CustomPricing]],T_NAV_AU[[#This Row],[AUD_Original]]) -> 373.41 | K3: 373.41 | M3: 1 | N3: 0
B4: AW05-0801-050000 | C4: N | D4: =IF(AND(OR(T_NAV_AU[[#This Row],[ColourOptions]]="M",T_NAV_AU[[#This Row],[ColourOptions]]="Y"),MID(T_NAV_AU[[#This Row],[No.]],11,3)="069"),REPLACE(T_NAV_AU[[#This Row],[No.]],11,3,"xxx"),T_NAV_AU[[#This Row],[No.]]) -> AW05-0801-050000 | E4: Pivot Arm Cover Cap for Terminal Bar | F4: 055 | G4: Black, Shadelab | H4: =IF(T_NAV_AU[[#This Row],[ColourOptions]]="M","as per catalogue",IF(T_NAV_AU[[#This Row],[Colour Description]]="Pure White", "Powdercoat, as per catalogue", T_NAV_AU[[#This Row],[Colour Description]])) -> Black, Shadelab | I4: KIT | J4: =IF(T_NAV_AU[[#This Row],[CustomPricing]]<>"",T_NAV_AU[[#This Row],[CustomPricing]],T_NAV_AU[[#This Row],[AUD_Original]]) -> 6.43 | K4: 6.43 | M4: 1 | N4: 0
B5: AW91-1501-050000 | C5: N | D5: =IF(AND(OR(T_NAV_AU[[#This Row],[ColourOptions]]="M",T_NAV_AU[[#This Row],[ColourOptions]]="Y"),MID(T_NAV_AU[[#This Row],[No.]],11,3)="069"),REPLACE(T_NAV_AU[[#This Row],[No.]],11,3,"xxx"),T_NAV_AU[[#This Row],[No.]]) -> AW91-1501-050000 | E5: Fabric Brush T Slot Fit - 7 x 4.8mm | 350m Roll | F5: 050 | G5: Black, Satin | H5: =IF(T_NAV_AU[[#This Row],[ColourOptions]]="M","as per catalogue",IF(T_NAV_AU[[#This Row],[Colour Description]]="Pure White", "Powdercoat, as per catalogue", T_NAV_AU[[#This Row],[Colour Description]])) -> Black, Satin | I5: METRE | J5: =IF(T_NAV_AU[[#This Row],[CustomPricing]]<>"",T_NAV_AU[[#This Row],[CustomPricing]],T_NAV_AU[[#This Row],[AUD_Original]]) -> 1.59 | K5: 1.59 | M5: 350 | N5: 1400
B6: AW92-0901-000700 | C6: N | D6: =IF(AND(OR(T_NAV_AU[[#This Row],[ColourOptions]]="M",T_NAV_AU[[#This Row],[ColourOptions]]="Y"),MID(T_NAV_AU[[#This Row],[No.]],11,3)="069"),REPLACE(T_NAV_AU[[#This Row],[No.]],11,3,"xxx"),T_NAV_AU[[#This Row],[No.]]) -> AW92-0901-000700 | E6: 78mm Awning Tube - 7m | F6: 000 | G6: Mill Finish | H6: =IF(T_NAV_AU[[#This Row],[ColourOptions]]="M","as per catalogue",IF(T_NAV_AU[[#This Row],[Colour Description]]="Pure White", "Powdercoat, as per catalogue", T_NAV_AU[[#This Row],[Colour Description]])) -> Mill Finish | I6: LENGTH | J6: =IF(T_NAV_AU[[#This Row],[CustomPricing]]<>"",T_NAV_AU[[#This Row],[CustomPricing]],T_NAV_AU[[#This Row],[AUD_Original]]) -> 140.15 | K6: 140.15 | M6: 0 | N6: 28
B7: HD82-2366-010008 | C7: N | D7: =IF(AND(OR(T_NAV_AU[[#This Row],[ColourOptions]]="M",T_NAV_AU[[#This Row],[ColourOptions]]="Y"),MID(T_NAV_AU[[#This Row],[No.]],11,3)="069"),REPLACE(T_NAV_AU[[#This Row],[No.]],11,3,"xxx"),T_NAV_AU[[#This Row],[No.]]) -> HD82-2366-010008 | E7: Channel Lock Screw Set | F7: 010 | G7: S/S 304, Natural | H7: =IF(T_NAV_AU[[#This Row],[ColourOptions]]="M","as per catalogue",IF(T_NAV_AU[[#This Row],[Colour Description]]="Pure White", "Powdercoat, as per catalogue", T_NAV_AU[[#This Row],[Colour Description]])) -> S/S 304, Natural | I7: PIECE | J7: =IF(T_NAV_AU[[#This Row],[CustomPricing]]<>"",T_NAV_AU[[#This Row],[CustomPricing]],T_NAV_AU[[#This Row],[AUD_Original]]) -> 0.43 | K7: 0.43 | M7: 100 | N7: 10000
B8: HD82-2366-010016 | C8: N | D8: =IF(AND(OR(T_NAV_AU[[#This Row],[ColourOptions]]="M",T_NAV_AU[[#This Row],[ColourOptions]]="Y"),MID(T_NAV_AU[[#This Row],[No.]],11,3)="069"),REPLACE(T_NAV_AU[[#This Row],[No.]],11,3,"xxx"),T_NAV_AU[[#This Row],[No.]]) -> HD82-2366-010016 | E8: Screw Self Tapper, Thread Cutting Type 25 Phillips | F8: 010 | G8: S/S 304, Natural | H8: =IF(T_NAV_AU[[#This Row],[ColourOptions]]="M","as per catalogue",IF(T_NAV_AU[[#This Row],[Colour Description]]="Pure White", "Powdercoat, as per catalogue", T_NAV_AU[[#This Row],[Colour Description]])) -> S/S 304, Natural | I8: PIECE | J8: =IF(T_NAV_AU[[#This Row],[CustomPricing]]<>"",T_NAV_AU[[#This Row],[CustomPricing]],T_NAV_AU[[#This Row],[AUD_Original]]) -> 0.38 | K8: 0.38 | M8: 1000 | N8: 10000
B9: HD86-0332-010009 | C9: N | D9: =IF(AND(OR(T_NAV_AU[[#This Row],[ColourOptions]]="M",T_NAV_AU[[#This Row],[ColourOptions]]="Y"),MID(T_NAV_AU[[#This Row],[No.]],11,3)="069"),REPLACE(T_NAV_AU[[#This Row],[No.]],11,3,"xxx"),T_NAV_AU[[#This Row],[No.]]) -> HD86-0332-010009 | E9: Blind Rivet, S/S 4.0mm OD, Grip range 3.2-4.8mm | F9: 010 | G9: S/S 304, Natural | H9: =IF(T_NAV_AU[[#This Row],[ColourOptions]]="M","as per catalogue",IF(T_NAV_AU[[#This Row],[Colour Description]]="Pure White", "Powdercoat, as per catalogue", T_NAV_AU[[#This Row],[Colour Description]])) -> S/S 304, Natural | I9: PIECE | J9: =IF(T_NAV_AU[[#This Row],[CustomPricing]]<>"",T_NAV_AU[[#This Row],[CustomPricing]],T_NAV_AU[[#This Row],[AUD_Original]]) -> 0.67 | K9: 0.67 | M9: 100 | N9: 1000
B10: MT01-1145-050001 | C10: N | D10: =IF(AND(OR(T_NAV_AU[[#This Row],[ColourOptions]]="M",T_NAV_AU[[#This Row],[ColourOptions]]="Y"),MID(T_NAV_AU[[#This Row],[No.]],11,3)="069"),REPLACE(T_NAV_AU[[#This Row],[No.]],11,3,"xxx"),T_NAV_AU[[#This Row],[No.]]) -> MT01-1145-050001 | E10: AUTOMATE | FT 15Nm Motor [Ø45/240V/15rpm] | F10: 050 | G10: Black, Satin | H10: =IF(T_NAV_AU[[#This Row],[ColourOptions]]="M","as per catalogue",IF(T_NAV_AU[[#This Row],[Colour Description]]="Pure White", "Powdercoat, as per catalogue", T_NAV_AU[[#This Row],[Colour Description]])) -> Black, Satin | I10: PIECE | J10: =IF(T_NAV_AU[[#This Row],[CustomPricing]]<>"",T_NAV_AU[[#This Row],[CustomPricing]],T_NAV_AU[[#This Row],[AUD_Original]]) -> 263.72 | K10: 263.72 | M10: 1 | N10: 10
B11: MT01-1145-050012 | C11: N | D11: =IF(AND(OR(T_NAV_AU[[#This Row],[ColourOptions]]="M",T_NAV_AU[[#This Row],[ColourOptions]]="Y"),MID(T_NAV_AU[[#This Row],[No.]],11,3)="069"),REPLACE(T_NAV_AU[[#This Row],[No.]],11,3,"xxx"),T_NAV_AU[[#This Row],[No.]]) -> MT01-1145-050012 | E11: AUTOMATE | FT 15Nm Motor LC [Ø45/240V/15rpm] | F11: 050 | G11: Black, Satin | H11: =IF(T_NAV_AU[[#This Row],[ColourOptions]]="M","as per catalogue",IF(T_NAV_AU[[#This Row],[Colour Description]]="Pure White", "Powdercoat, as per catalogue", T_NAV_AU[[#This Row],[Colour Description]])) -> Black, Satin | I11: PIECE | J11: =IF(T_NAV_AU[[#This Row],[CustomPricing]]<>"",T_NAV_AU[[#This Row],[CustomPricing]],T_NAV_AU[[#This Row],[AUD_Original]]) -> 263.72 | K11: 263.72 | M11: 1 | N11: 10
B12: MT01-1145-069013 | C12: N | D12: =IF(AND(OR(T_NAV_AU[[#This Row],[ColourOptions]]="M",T_NAV_AU[[#This Row],[ColourOptions]]="Y"),MID(T_NAV_AU[[#This Row],[No.]],11,3)="069"),REPLACE(T_NAV_AU[[#This Row],[No.]],11,3,"xxx"),T_NAV_AU[[#This Row],[No.]]) -> MT01-1145-069013 | E12: AUTOMATE | AX30 30Nm Motor AU [Ø45/240V/15rpm] | F12: 069 | G12: Pure White | H12: =IF(T_NAV_AU[[#This Row],[ColourOptions]]="M","as per catalogue",IF(T_NAV_AU[[#This Row],[Colour Description]]="Pure White", "Powdercoat, as per catalogue", T_NAV_AU[[#This Row],[Colour Description]])) -> Powdercoat, as per catalogue | I12: PIECE | J12: =IF(T_NAV_AU[[#This Row],[CustomPricing]]<>"",T_NAV_AU[[#This Row],[CustomPricing]],T_NAV_AU[[#This Row],[AUD_Original]]) -> 256.62 | K12: 256.62 | M12: 1 | N12: 10
B13: MT01-1145-069015 | C13: N | D13: =IF(AND(OR(T_NAV_AU[[#This Row],[ColourOptions]]="M",T_NAV_AU[[#This Row],[ColourOptions]]="Y"),MID(T_NAV_AU[[#This Row],[No.]],11,3)="069"),REPLACE(T_NAV_AU[[#This Row],[No.]],11,3,"xxx"),T_NAV_AU[[#This Row],[No.]]) -> MT01-1145-069015 | E13: AUTOMATE | AX50 50Nm Motor AU [Ø45/240V/12rpm] | F13: 069 | G13: Pure White | H13: =IF(T_NAV_AU[[#This Row],[ColourOptions]]="M","as per catalogue",IF(T_NAV_AU[[#This Row],[Colour Description]]="Pure White", "Powdercoat, as per catalogue", T_NAV_AU[[#This Row],[Colour Description]])) -> Powdercoat, as per catalogue | I13: PIECE | J13: =IF(T_NAV_AU[[#This Row],[CustomPricing]]<>"",T_NAV_AU[[#This Row],[CustomPricing]],T_NAV_AU[[#This Row],[AUD_Original]]) -> 325.42 | K13: 325.42 | M13: 1 | N13: 10
B14: MT02-0101-050004 | C14: N | D14: =IF(AND(OR(T_NAV_AU[[#This Row],[ColourOptions]]="M",T_NAV_AU[[#This Row],[ColourOptions]]="Y"),MID(T_NAV_AU[[#This Row],[No.]],11,3)="069"),REPLACE(T_NAV_AU[[#This Row],[No.]],11,3,"xxx"),T_NAV_AU[[#This Row],[No.]]) -> MT02-0101-050004 | E14: AUTOMATE | PUSH 5 Channel Remote | Black | F14: 050 | G14: Black, Satin | H14: =IF(T_NAV_AU[[#This Row],[ColourOptions]]="M","as per catalogue",IF(T_NAV_AU[[#This Row],[Colour Description]]="Pure White", "Powdercoat, as per catalogue", T_NAV_AU[[#This Row],[Colour Description]])) -> Black, Satin | I14: PIECE | J14: =IF(T_NAV_AU[[#This Row],[CustomPricing]]<>"",T_NAV_AU[[#This Row],[CustomPricing]],T_NAV_AU[[#This Row],[AUD_Original]]) -> 60.06 | K14: 60.06 | M14: 1 | N14: 100
B15: MT02-0101-050008 | C15: N | D15: =IF(AND(OR(T_NAV_AU[[#This Row],[ColourOptions]]="M",T_NAV_AU[[#This Row],[ColourOptions]]="Y"),MID(T_NAV_AU[[#This Row],[No.]],11,3)="069"),REPLACE(T_NAV_AU[[#This Row],[No.]],11,3,"xxx"),T_NAV_AU[[#This Row],[No.]]) -> MT02-0101-050008 | E15: AUTOMATE | PUSH 15 Channel Remote | Black | F15: 050 | G15: Black, Satin | H15: =IF(T_NAV_AU[[#This Row],[ColourOptions]]="M","as per catalogue",IF(T_NAV_AU[[#This Row],[Colour Description]]="Pure White", "Powdercoat, as per catalogue", T_NAV_AU[[#This Row],[Colour Description]])) -> Black, Satin | I15: PIECE | J15: =IF(T_NAV_AU[[#This Row],[CustomPricing]]<>"",T_NAV_AU[[#This Row],[CustomPricing]],T_NAV_AU[[#This Row],[AUD_Original]]) -> 67.05 | K15: 67.05 | M15: 1 | N15: 100
B16: MT02-0101-067004 | C16: N | D16: =IF(AND(OR(T_NAV_AU[[#This Row],[ColourOptions]]="M",T_NAV_AU[[#This Row],[ColourOptions]]="Y"),MID(T_NAV_AU[[#This Row],[No.]],11,3)="069"),REPLACE(T_NAV_AU[[#This Row],[No.]],11,3,"xxx"),T_NAV_AU[[#This Row],[No.]]) -> MT02-0101-067004 | E16: AUTOMATE | PUSH 5 Channel Remote | White | F16: 067 | G16: White / Platinum | H16: =IF(T_NAV_AU[[#This Row],[ColourOptions]]="M","as per catalogue",IF(T_NAV_AU[[#This Row],[Colour Description]]="Pure White", "Powdercoat, as per catalogue", T_NAV_AU[[#This Row],[Colour Description]])) -> White / Platinum | I16: PIECE | J16: =IF(T_NAV_AU[[#This Row],[CustomPricing]]<>"",T_NAV_AU[[#This Row],[CustomPricing]],T_NAV_AU[[#This Row],[AUD_Original]]) -> 60.06 | K16: 60.06 | M16: 1 | N16: 100
B17: MT02-0101-067008 | C17: N | D17: =IF(AND(OR(T_NAV_AU[[#This Row],[ColourOptions]]="M",T_NAV_AU[[#This Row],[ColourOptions]]="Y"),MID(T_NAV_AU[[#This Row],[No.]],11,3)="069"),REPLACE(T_NAV_AU[[#This Row],[No.]],11,3,"xxx"),T_NAV_AU[[#This Row],[No.]]) -> MT02-0101-067008 | E17: AUTOMATE | PUSH 15 Channel Remote | White | F17: 067 | G17: White / Platinum | H17: =IF(T_NAV_AU[[#This Row],[ColourOptions]]="M","as per catalogue",IF(T_NAV_AU[[#This Row],[Colour Description]]="Pure White", "Powdercoat, as per catalogue", T_NAV_AU[[#This Row],[Colour Description]])) -> White / Platinum | I17: PIECE | J17: =IF(T_NAV_AU[[#This Row],[CustomPricing]]<>"",T_NAV_AU[[#This Row],[CustomPricing]],T_NAV_AU[[#This Row],[AUD_Original]]) -> 67.05 | K17: 67.05 | M17: 1 | N17: 100
B18: MT02-0301-072001 | C18: N | D18: =IF(AND(OR(T_NAV_AU[[#This Row],[ColourOptions]]="M",T_NAV_AU[[#This Row],[ColourOptions]]="Y"),MID(T_NAV_AU[[#This Row],[No.]],11,3)="069"),REPLACE(T_NAV_AU[[#This Row],[No.]],11,3,"xxx"),T_NAV_AU[[#This Row],[No.]]) -> MT02-0301-072001 | E18: AUTOMATE | Solar Powered Sun & Wind Sensor | F18: 072 | G18: Vivid White | H18: =IF(T_NAV_AU[[#This Row],[ColourOptions]]="M","as per catalogue",IF(T_NAV_AU[[#This Row],[Colour Description]]="Pure White", "Powdercoat, as per catalogue", T_NAV_AU[[#This Row],[Colour Description]])) -> Vivid White | I18: PIECE | J18: =IF(T_NAV_AU[[#This Row],[CustomPricing]]<>"",T_NAV_AU[[#This Row],[CustomPricing]],T_NAV_AU[[#This Row],[AUD_Original]]) -> 183.46 | K18: 183.46 | M18: 1 | N18: 10
B19: MT02-0301-050002 | C19: N | D19: =IF(AND(OR(T_NAV_AU[[#This Row],[ColourOptions]]="M",T_NAV_AU[[#This Row],[ColourOptions]]="Y"),MID(T_NAV_AU[[#This Row],[No.]],11,3)="069"),REPLACE(T_NAV_AU[[#This Row],[No.]],11,3,"xxx"),T_NAV_AU[[#This Row],[No.]]) -> MT02-0301-050002 | E19: AUTOMATE | Motion Sensor | Black | F19: 050 | G19: Black, Satin | H19: =IF(T_NAV_AU[[#This Row],[ColourOptions]]="M","as per catalogue",IF(T_NAV_AU[[#This Row],[Colour Description]]="Pure White", "Powdercoat, as per catalogue", T_NAV_AU[[#This Row],[Colour Description]])) -> Black, Satin | I19: PIECE | J19: =IF(T_NAV_AU[[#This Row],[CustomPricing]]<>"",T_NAV_AU[[#This Row],[CustomPricing]],T_NAV_AU[[#This Row],[AUD_Original]]) -> 113.52 | K19: 113.52 | M19: 1 | N19: 25
B20: MT03-0198-025008 | C20: N | D20: =IF(AND(OR(T_NAV_AU[[#This Row],[ColourOptions]]="M",T_NAV_AU[[#This Row],[ColourOptions]]="Y"),MID(T_NAV_AU[[#This Row],[No.]],11,3)="069"),REPLACE(T_NAV_AU[[#This Row],[No.]],11,3,"xxx"),T_NAV_AU[[#This Row],[No.]]) -> MT03-0198-025008 | E20: Drive AX Motor Adaptor kit for Extreme | F20: 025 | G20: Silver ZINC Plated | H20: =IF(T_NAV_AU[[#This Row],[ColourOptions]]="M","as per catalogue",IF(T_NAV_AU[[#This Row],[Colour Description]]="Pure White", "Powdercoat, as per catalogue", T_NAV_AU[[#This Row],[Colour Description]])) -> Silver ZINC Plated | I20: SET | J20: =IF(T_NAV_AU[[#This Row],[CustomPricing]]<>"",T_NAV_AU[[#This Row],[CustomPricing]],T_NAV_AU[[#This Row],[AUD_Original]]) -> 7.64 | K20: 7.64 | M20: 1 | N20: 100
B21: RB05-9101-340100 | C21: N | D21: =IF(AND(OR(T_NAV_AU[[#This Row],[ColourOptions]]="M",T_NAV_AU[[#This Row],[ColourOptions]]="Y"),MID(T_NAV_AU[[#This Row],[No.]],11,3)="069"),REPLACE(T_NAV_AU[[#This Row],[No.]],11,3,"xxx"),T_NAV_AU[[#This Row],[No.]]) -> RB05-9101-340100 | E21: Crank Control Arm | 100cm | F21: 340 | G21: GREY AC | H21: =IF(T_NAV_AU[[#This Row],[ColourOptions]]="M","as per catalogue",IF(T_NAV_AU[[#This Row],[Colour Description]]="Pure White", "Powdercoat, as per catalogue", T_NAV_AU[[#This Row],[Colour Description]])) -> GREY AC | I21: PIECE | J21: =IF(T_NAV_AU[[#This Row],[CustomPricing]]<>"",T_NAV_AU[[#This Row],[CustomPricing]],T_NAV_AU[[#This Row],[AUD_Original]]) -> 44.64 | K21: 44.64 | M21: 5 | N21: 100
B22: RB05-9101-340150 | C22: N | D22: =IF(AND(OR(T_NAV_AU[[#This Row],[ColourOptions]]="M",T_NAV_AU[[#This Row],[ColourOptions]]="Y"),MID(T_NAV_AU[[#This Row],[No.]],11,3)="069"),REPLACE(T_NAV_AU[[#This Row],[No.]],11,3,"xxx"),T_NAV_AU[[#This Row],[No.]]) -> RB05-9101-340150 | E22: Crank Control Arm | 150cm | F22: 340 | G22: GREY AC | H22: =IF(T_NAV_AU[[#This Row],[ColourOptions]]="M","as per catalogue",IF(T_NAV_AU[[#This Row],[Colour Description]]="Pure White", "Powdercoat, as per catalogue", T_NAV_AU[[#This Row],[Colour Description]])) -> GREY AC | I22: PIECE | J22: =IF(T_NAV_AU[[#This Row],[CustomPricing]]<>"",T_NAV_AU[[#This Row],[CustomPricing]],T_NAV_AU[[#This Row],[AUD_Original]]) -> 48.8 | K22: 48.8 | M22: 5 | N22: 100
B23: RB05-9101-340200 | C23: N | D23: =IF(AND(OR(T_NAV_AU[[#This Row],[ColourOptions]]="M",T_NAV_AU[[#This Row],[ColourOptions]]="Y"),MID(T_NAV_AU[[#This Row],[No.]],11,3)="069"),REPLACE(T_NAV_AU[[#This Row],[No.]],11,3,"xxx"),T_NAV_AU[[#This Row],[No.]]) -> RB05-9101-340200 | E23: Crank Control Arm | 200cm | F23: 340 | G23: GREY AC | H23: =IF(T_NAV_AU[[#This Row],[ColourOptions]]="M","as per catalogue",IF(T_NAV_AU[[#This Row],[Colour Description]]="Pure White", "Powdercoat, as per catalogue", T_NAV_AU[[#This Row],[Colour Description]])) -> GREY AC | I23: PIECE | J23: =IF(T_NAV_AU[[#This Row],[CustomPricing]]<>"",T_NAV_AU[[#This Row],[CustomPricing]],T_NAV_AU[[#This Row],[AUD_Original]]) -> 55.83 | K23: 55.83 | M23: 5 | N23: 100
B24: RB05-9102-069000 | C24: M | D24: =IF(AND(OR(T_NAV_AU[[#This Row],[ColourOptions]]="M",T_NAV_AU[[#This Row],[ColourOptions]]="Y"),MID(T_NAV_AU[[#This Row],[No.]],11,3)="069"),REPLACE(T_NAV_AU[[#This Row],[No.]],11,3,"xxx"),T_NAV_AU[[#This Row],[No.]]) -> RB05-9102-xxx000 | E24: Crank Arm Support | F24: 069 | G24: Pure White | H24: =IF(T_NAV_AU[[#This Row],[ColourOptions]]="M","as per catalogue",IF(T_NAV_AU[[#This Row],[Colour Description]]="Pure White", "Powdercoat, as per catalogue", T_NAV_AU[[#This Row],[Colour Description]])) -> as per catalogue | I24: PIECE | J24: =IF(T_NAV_AU[[#This Row],[CustomPricing]]<>"",T_NAV_AU[[#This Row],[CustomPricing]],T_NAV_AU[[#This Row],[AUD_Original]]) -> 3.37 | K24: 3.37 | M24: 5 | N24: 100
B25: RB56-0762-014050 | C25: N | D25: =IF(AND(OR(T_NAV_AU[[#This Row],[ColourOptions]]="M",T_NAV_AU[[#This Row],[ColourOptions]]="Y"),MID(T_NAV_AU[[#This Row],[No.]],11,3)="069"),REPLACE(T_NAV_AU[[#This Row],[No.]],11,3,"xxx"),T_NAV_AU[[#This Row],[No.]]) -> RB56-0762-014050 | E25: Univ Zamak Adap & Lock Ring & M8 x 16mm S/Screws | F25: 014 | G25: Cast Silver | H25: =IF(T_NAV_AU[[#This Row],[ColourOptions]]="M","as per catalogue",IF(T_NAV_AU[[#This Row],[Colour Description]]="Pure White", "Powdercoat, as per catalogue", T_NAV_AU[[#This Row],[Colour Description]])) -> Cast Silver | I25: SET | J25: =IF(T_NAV_AU[[#This Row],[CustomPricing]]<>"",T_NAV_AU[[#This Row],[CustomPricing]],T_NAV_AU[[#This Row],[AUD_Original]]) -> 45.64 | K25: 45.64 | M25: 1 | N25: 20
B26: RB56-0763-014050 | C26: N | D26: =IF(AND(OR(T_NAV_AU[[#This Row],[ColourOptions]]="M",T_NAV_AU[[#This Row],[ColourOptions]]="Y"),MID(T_NAV_AU[[#This Row],[No.]],11,3)="069"),REPLACE(T_NAV_AU[[#This Row],[No.]],11,3,"xxx"),T_NAV_AU[[#This Row],[No.]]) -> RB56-0763-014050 | E26: Univ Zamak Adap & Lock Ring & M6 x 10mm S/Screws | F26: 014 | G26: Cast Silver | H26: =IF(T_NAV_AU[[#This Row],[ColourOptions]]="M","as per catalogue",IF(T_NAV_AU[[#This Row],[Colour Description]]="Pure White", "Powdercoat, as per catalogue", T_NAV_AU[[#This Row],[Colour Description]])) -> Cast Silver | I26: SET | J26: =IF(T_NAV_AU[[#This Row],[CustomPricing]]<>"",T_NAV_AU[[#This Row],[CustomPricing]],T_NAV_AU[[#This Row],[AUD_Original]]) -> 45.64 | K26: 45.64 | M26: 1 | N26: 20
B27: RB56-0764-014050 | C27: N | D27: =IF(AND(OR(T_NAV_AU[[#This Row],[ColourOptions]]="M",T_NAV_AU[[#This Row],[ColourOptions]]="Y"),MID(T_NAV_AU[[#This Row],[No.]],11,3)="069"),REPLACE(T_NAV_AU[[#This Row],[No.]],11,3,"xxx"),T_NAV_AU[[#This Row],[No.]]) -> RB56-0764-014050 | E27: Univ Zamak Adap & Lock Ring & M6 x 12mm S/Screws | F27: 014 | G27: Cast Silver | H27: =IF(T_NAV_AU[[#This Row],[ColourOptions]]="M","as per catalogue",IF(T_NAV_AU[[#This Row],[Colour Description]]="Pure White", "Powdercoat, as per catalogue", T_NAV_AU[[#This Row],[Colour Description]])) -> Cast Silver | I27: SET | J27: =IF(T_NAV_AU[[#This Row],[CustomPricing]]<>"",T_NAV_AU[[#This Row],[CustomPricing]],T_NAV_AU[[#This Row],[AUD_Original]]) -> 45.64 | K27: 45.64 | M27: 1 | N27: 20
B28: RB80-0202-073100 | C28: N | D28: =IF(AND(OR(T_NAV_AU[[#This Row],[ColourOptions]]="M",T_NAV_AU[[#This Row],[ColourOptions]]="Y"),MID(T_NAV_AU[[#This Row],[No.]],11,3)="069"),REPLACE(T_NAV_AU[[#This Row],[No.]],11,3,"xxx"),T_NAV_AU[[#This Row],[No.]]) -> RB80-0202-073100 | E28: Extreme Bearing Idler | Universal | S100 | F28: 073 | G28: Grey Cloud | H28: =IF(T_NAV_AU[[#This Row],[ColourOptions]]="M","as per catalogue",IF(T_NAV_AU[[#This Row],[Colour Description]]="Pure White", "Powdercoat, as per catalogue", T_NAV_AU[[#This Row],[Colour Description]])) -> Grey Cloud | I28: PIECE | J28: =IF(T_NAV_AU[[#This Row],[CustomPricing]]<>"",T_NAV_AU[[#This Row],[CustomPricing]],T_NAV_AU[[#This Row],[AUD_Original]]) -> 91.66 | K28: 91.66 | M28: 1 | N28: 12
B29: RB80-0301-073100 | C29: N | D29: =IF(AND(OR(T_NAV_AU[[#This Row],[ColourOptions]]="M",T_NAV_AU[[#This Row],[ColourOptions]]="Y"),MID(T_NAV_AU[[#This Row],[No.]],11,3)="069"),REPLACE(T_NAV_AU[[#This Row],[No.]],11,3,"xxx"),T_NAV_AU[[#This Row],[No.]]) -> RB80-0301-073100 | E29: Extreme Universal Drive Wheel | S100 | F29: 073 | G29: Grey Cloud | H29: =IF(T_NAV_AU[[#This Row],[ColourOptions]]="M","as per catalogue",IF(T_NAV_AU[[#This Row],[Colour Description]]="Pure White", "Powdercoat, as per catalogue", T_NAV_AU[[#This Row],[Colour Description]])) -> Grey Cloud | I29: PIECE | J29: =IF(T_NAV_AU[[#This Row],[CustomPricing]]<>"",T_NAV_AU[[#This Row],[CustomPricing]],T_NAV_AU[[#This Row],[AUD_Original]]) -> 15.37 | K29: 15.37 | M29: 1 | N29: 8
B30: RB80-0411-025050 | C30: N | D30: =IF(AND(OR(T_NAV_AU[[#This Row],[ColourOptions]]="M",T_NAV_AU[[#This Row],[ColourOptions]]="Y"),MID(T_NAV_AU[[#This Row],[No.]],11,3)="069"),REPLACE(T_NAV_AU[[#This Row],[No.]],11,3,"xxx"),T_NAV_AU[[#This Row],[No.]]) -> RB80-0411-025050 | E30: Zamak Adaptor Spacer | F30: 025 | G30: Silver ZINC Plated | H30: =IF(T_NAV_AU[[#This Row],[ColourOptions]]="M","as per catalogue",IF(T_NAV_AU[[#This Row],[Colour Description]]="Pure White", "Powdercoat, as per catalogue", T_NAV_AU[[#This Row],[Colour Description]])) -> Silver ZINC Plated | I30: PIECE | J30: =IF(T_NAV_AU[[#This Row],[CustomPricing]]<>"",T_NAV_AU[[#This Row],[CustomPricing]],T_NAV_AU[[#This Row],[AUD_Original]]) -> 16.75 | K30: 16.75 | M30: 1 | N30: 20
B31: RB80-0476-025100 | C31: N | D31: =IF(AND(OR(T_NAV_AU[[#This Row],[ColourOptions]]="M",T_NAV_AU[[#This Row],[ColourOptions]]="Y"),MID(T_NAV_AU[[#This Row],[No.]],11,3)="069"),REPLACE(T_NAV_AU[[#This Row],[No.]],11,3,"xxx"),T_NAV_AU[[#This Row],[No.]]) -> RB80-0476-025100 | E31: MOTOR Ext Wire Guide Brkt. Adap Kit - Top/Face Fix | F31: 025 | G31: Silver ZINC Plated | H31: =IF(T_NAV_AU[[#This Row],[ColourOptions]]="M","as per catalogue",IF(T_NAV_AU[[#This Row],[Colour Description]]="Pure White", "Powdercoat, as per catalogue", T_NAV_AU[[#This Row],[Colour Description]])) -> Silver ZINC Plated | I31: KIT | J31: =IF(T_NAV_AU[[#This Row],[CustomPricing]]<>"",T_NAV_AU[[#This Row],[CustomPricing]],T_NAV_AU[[#This Row],[AUD_Original]]) -> 51.66 | K31: 51.66 | M31: 1 | N31: 20
B32: RB80-0476-069100 | C32: Y | D32: =IF(AND(OR(T_NAV_AU[[#This Row],[ColourOptions]]="M",T_NAV_AU[[#This Row],[ColourOptions]]="Y"),MID(T_NAV_AU[[#This Row],[No.]],11,3)="069"),REPLACE(T_NAV_AU[[#This Row],[No.]],11,3,"xxx"),T_NAV_AU[[#This Row],[No.]]) -> RB80-0476-xxx100 | E32: MOTOR Ext Wire Guide Brkt. Adap Kit - Top/Face Fix | F32: 069 | G32: Pure White | H32: =IF(T_NAV_AU[[#This Row],[ColourOptions]]="M","as per catalogue",IF(T_NAV_AU[[#This Row],[Colour Description]]="Pure White", "Powdercoat, as per catalogue", T_NAV_AU[[#This Row],[Colour Description]])) -> Powdercoat, as per catalogue | I32: KIT | J32: =IF(T_NAV_AU[[#This Row],[CustomPricing]]<>"",T_NAV_AU[[#This Row],[CustomPricing]],T_NAV_AU[[#This Row],[AUD_Original]]) -> 58.69 | K32: 58.69 | M32: 1 | N32: 20
B33: RB80-0478-025100 | C33: N | D33: =IF(AND(OR(T_NAV_AU[[#This Row],[ColourOptions]]="M",T_NAV_AU[[#This Row],[ColourOptions]]="Y"),MID(T_NAV_AU[[#This Row],[No.]],11,3)="069"),REPLACE(T_NAV_AU[[#This Row],[No.]],11,3,"xxx"),T_NAV_AU[[#This Row],[No.]]) -> RB80-0478-025100 | E33: Motor Extreme Recess Fix Bracket Kit | S100 | F33: 025 | G33: Silver ZINC Plated | H33: =IF(T_NAV_AU[[#This Row],[ColourOptions]]="M","as per catalogue",IF(T_NAV_AU[[#This Row],[Colour Description]]="Pure White", "Powdercoat, as per catalogue", T_NAV_AU[[#This Row],[Colour Description]])) -> Silver ZINC Plated | I33: KIT | J33: =IF(T_NAV_AU[[#This Row],[CustomPricing]]<>"",T_NAV_AU[[#This Row],[CustomPricing]],T_NAV_AU[[#This Row],[AUD_Original]]) -> 94.04 | K33: 94.04 | M33: 1 | N33: 10
B34: RB80-0478-069100 | C34: N | D34: =IF(AND(OR(T_NAV_AU[[#This Row],[ColourOptions]]="M",T_NAV_AU[[#This Row],[ColourOptions]]="Y"),MID(T_NAV_AU[[#This Row],[No.]],11,3)="069"),REPLACE(T_NAV_AU[[#This Row],[No.]],11,3,"xxx"),T_NAV_AU[[#This Row],[No.]]) -> RB80-0478-069100 | E34: Motor Extreme Recess Fix Bracket Kit | S100 | F34: 069 | G34: Pure White | H34: =IF(T_NAV_AU[[#This Row],[ColourOptions]]="M","as per catalogue",IF(T_NAV_AU[[#This Row],[Colour Description]]="Pure White", "Powdercoat, as per catalogue", T_NAV_AU[[#This Row],[Colour Description]])) -> Powdercoat, as per catalogue | I34: KIT | J34: =IF(T_NAV_AU[[#This Row],[CustomPricing]]<>"",T_NAV_AU[[#This Row],[CustomPricing]],T_NAV_AU[[#This Row],[AUD_Original]]) -> 110.7 | K34: 110.7 | M34: 1 | N34: 10
B35: RB80-0481-012000 | C35: N | D35: =IF(AND(OR(T_NAV_AU[[#This Row],[ColourOptions]]="M",T_NAV_AU[[#This Row],[ColourOptions]]="Y"),MID(T_NAV_AU[[#This Row],[No.]],11,3)="069"),REPLACE(T_NAV_AU[[#This Row],[No.]],11,3,"xxx"),T_NAV_AU[[#This Row],[No.]]) -> RB80-0481-012000 | E35: Box 190 Wire Guide Adaptor Plate with Screws | F35: 012 | G35: S/S 304, Satin | H35: =IF(T_NAV_AU[[#This Row],[ColourOptions]]="M","as per catalogue",IF(T_NAV_AU[[#This Row],[Colour Description]]="Pure White", "Powdercoat, as per catalogue", T_NAV_AU[[#This Row],[Colour Description]])) -> S/S 304, Satin | I35: SET | J35: =IF(T_NAV_AU[[#This Row],[CustomPricing]]<>"",T_NAV_AU[[#This Row],[CustomPricing]],T_NAV_AU[[#This Row],[AUD_Original]]) -> 14.28 | K35: 14.28 | M35: 2 | N35: 100
B36: RB80-0501-050110 | C36: N | D36: =IF(AND(OR(T_NAV_AU[[#This Row],[ColourOptions]]="M",T_NAV_AU[[#This Row],[ColourOptions]]="Y"),MID(T_NAV_AU[[#This Row],[No.]],11,3)="069"),REPLACE(T_NAV_AU[[#This Row],[No.]],11,3,"xxx"),T_NAV_AU[[#This Row],[No.]]) -> RB80-0501-050110 | E36: Extreme Zipscreen Reducer Set + Screws | 110mm | F36: 050 | G36: Black, Satin | H36: =IF(T_NAV_AU[[#This Row],[ColourOptions]]="M","as per catalogue",IF(T_NAV_AU[[#This Row],[Colour Description]]="Pure White", "Powdercoat, as per catalogue", T_NAV_AU[[#This Row],[Colour Description]])) -> Black, Satin | I36: SET | J36: =IF(T_NAV_AU[[#This Row],[CustomPricing]]<>"",T_NAV_AU[[#This Row],[CustomPricing]],T_NAV_AU[[#This Row],[AUD_Original]]) -> 9.29 | K36: 9.29 | M36: 2 | N36: 100
B37: RB80-0501-050130 | C37: N | D37: =IF(AND(OR(T_NAV_AU[[#This Row],[ColourOptions]]="M",T_NAV_AU[[#This Row],[ColourOptions]]="Y"),MID(T_NAV_AU[[#This Row],[No.]],11,3)="069"),REPLACE(T_NAV_AU[[#This Row],[No.]],11,3,"xxx"),T_NAV_AU[[#This Row],[No.]]) -> RB80-0501-050130 | E37: Extreme Zipscreen Reducer Set + Screws | 130mm | F37: 050 | G37: Black, Satin | H37: =IF(T_NAV_AU[[#This Row],[ColourOptions]]="M","as per catalogue",IF(T_NAV_AU[[#This Row],[Colour Description]]="Pure White", "Powdercoat, as per catalogue", T_NAV_AU[[#This Row],[Colour Description]])) -> Black, Satin | I37: SET | J37: =IF(T_NAV_AU[[#This Row],[CustomPricing]]<>"",T_NAV_AU[[#This Row],[CustomPricing]],T_NAV_AU[[#This Row],[AUD_Original]]) -> 11.28 | K37: 11.28 | M37: 2 | N37: 100
B38: RB80-0501-050160 | C38: N | D38: =IF(AND(OR(T_NAV_AU[[#This Row],[ColourOptions]]="M",T_NAV_AU[[#This Row],[ColourOptions]]="Y"),MID(T_NAV_AU[[#This Row],[No.]],11,3)="069"),REPLACE(T_NAV_AU[[#This Row],[No.]],11,3,"xxx"),T_NAV_AU[[#This Row],[No.]]) -> RB80-0501-050160 | E38: Extreme Zipscreen Reducer Set + Screws | 160mm | F38: 050 | G38: Black, Satin | H38: =IF(T_NAV_AU[[#This Row],[ColourOptions]]="M","as per catalogue",IF(T_NAV_AU[[#This Row],[Colour Description]]="Pure White", "Powdercoat, as per catalogue", T_NAV_AU[[#This Row],[Colour Description]])) -> Black, Satin | I38: SET | J38: =IF(T_NAV_AU[[#This Row],[CustomPricing]]<>"",T_NAV_AU[[#This Row],[CustomPricing]],T_NAV_AU[[#This Row],[AUD_Original]]) -> 13.25 | K38: 13.25 | M38: 2 | N38: 100
B39: RB80-0601-073110 | C39: N | D39: =IF(AND(OR(T_NAV_AU[[#This Row],[ColourOptions]]="M",T_NAV_AU[[#This Row],[ColourOptions]]="Y"),MID(T_NAV_AU[[#This Row],[No.]],11,3)="069"),REPLACE(T_NAV_AU[[#This Row],[No.]],11,3,"xxx"),T_NAV_AU[[#This Row],[No.]]) -> RB80-0601-073110 | E39: Extreme W/G Tube End Plate Set + Screws | 110mm | F39: 073 | G39: Grey Cloud | H39: =IF(T_NAV_AU[[#This Row],[ColourOptions]]="M","as per catalogue",IF(T_NAV_AU[[#This Row],[Colour Description]]="Pure White", "Powdercoat, as per catalogue", T_NAV_AU[[#This Row],[Colour Description]])) -> Grey Cloud | I39: SET | J39: =IF(T_NAV_AU[[#This Row],[CustomPricing]]<>"",T_NAV_AU[[#This Row],[CustomPricing]],T_NAV_AU[[#This Row],[AUD_Original]]) -> 5.58 | K39: 5.58 | M39: 1 | N39: 40
B40: RB80-0601-073130 | C40: N | D40: =IF(AND(OR(T_NAV_AU[[#This Row],[ColourOptions]]="M",T_NAV_AU[[#This Row],[ColourOptions]]="Y"),MID(T_NAV_AU[[#This Row],[No.]],11,3)="069"),REPLACE(T_NAV_AU[[#This Row],[No.]],11,3,"xxx"),T_NAV_AU[[#This Row],[No.]]) -> RB80-0601-073130 | E40: Extreme W/G Tube End Plate Set + Screws | 130mm | F40: 073 | G40: Grey Cloud | H40: =IF(T_NAV_AU[[#This Row],[ColourOptions]]="M","as per catalogue",IF(T_NAV_AU[[#This Row],[Colour Description]]="Pure White", "Powdercoat, as per catalogue", T_NAV_AU[[#This Row],[Colour Description]])) -> Grey Cloud | I40: SET | J40: =IF(T_NAV_AU[[#This Row],[CustomPricing]]<>"",T_NAV_AU[[#This Row],[CustomPricing]],T_NAV_AU[[#This Row],[AUD_Original]]) -> 8.36 | K40: 8.36 | M40: 1 | N40: 40
B41: RB80-0601-073160 | C41: N | D41: =IF(AND(OR(T_NAV_AU[[#This Row],[ColourOptions]]="M",T_NAV_AU[[#This Row],[ColourOptions]]="Y"),MID(T_NAV_AU[[#This Row],[No.]],11,3)="069"),REPLACE(T_NAV_AU[[#This Row],[No.]],11,3,"xxx"),T_NAV_AU[[#This Row],[No.]]) -> RB80-0601-073160 | E41: Extreme W/G Tube End Plate Set + Screws | 160mm | F41: 073 | G41: Grey Cloud | H41: =IF(T_NAV_AU[[#This Row],[ColourOptions]]="M","as per catalogue",IF(T_NAV_AU[[#This Row],[Colour Description]]="Pure White", "Powdercoat, as per catalogue", T_NAV_AU[[#This Row],[Colour Description]])) -> Grey Cloud | I41: SET | J41: =IF(T_NAV_AU[[#This Row],[CustomPricing]]<>"",T_NAV_AU[[#This Row],[CustomPricing]],T_NAV_AU[[#This Row],[AUD_Original]]) -> 11.14 | K41: 11.14 | M41: 1 | N41: 40
B42: RB80-0701-073100 | C42: N | D42: =IF(AND(OR(T_NAV_AU[[#This Row],[ColourOptions]]="M",T_NAV_AU[[#This Row],[ColourOptions]]="Y"),MID(T_NAV_AU[[#This Row],[No.]],11,3)="069"),REPLACE(T_NAV_AU[[#This Row],[No.]],11,3,"xxx"),T_NAV_AU[[#This Row],[No.]]) -> RB80-0701-073100 | E42: Extreme Universal Crown Wheel | S100 | F42: 073 | G42: Grey Cloud | H42: =IF(T_NAV_AU[[#This Row],[ColourOptions]]="M","as per catalogue",IF(T_NAV_AU[[#This Row],[Colour Description]]="Pure White", "Powdercoat, as per catalogue", T_NAV_AU[[#This Row],[Colour Description]])) -> Grey Cloud | I42: PIECE | J42: =IF(T_NAV_AU[[#This Row],[CustomPricing]]<>"",T_NAV_AU[[#This Row],[CustomPricing]],T_NAV_AU[[#This Row],[AUD_Original]]) -> 28.62 | K42: 28.62 | M42: 1 | N42: 12
B43: RB80-1201-000109 | C43: N | D43: =IF(AND(OR(T_NAV_AU[[#This Row],[ColourOptions]]="M",T_NAV_AU[[#This Row],[ColourOptions]]="Y"),MID(T_NAV_AU[[#This Row],[No.]],11,3)="069"),REPLACE(T_NAV_AU[[#This Row],[No.]],11,3,"xxx"),T_NAV_AU[[#This Row],[No.]]) -> RB80-1201-000109 | E43: Extreme Top/Face Fix Brkt Set 2pc + Adapter | S100 | F43: 000 | G43: Mill Finish | H43: =IF(T_NAV_AU[[#This Row],[ColourOptions]]="M","as per catalogue",IF(T_NAV_AU[[#This Row],[Colour Description]]="Pure White", "Powdercoat, as per catalogue", T_NAV_AU[[#This Row],[Colour Description]])) -> Mill Finish | I43: SET | J43: =IF(T_NAV_AU[[#This Row],[CustomPricing]]<>"",T_NAV_AU[[#This Row],[CustomPricing]],T_NAV_AU[[#This Row],[AUD_Original]]) -> 94.09 | K43: 94.09 | M43: 1 | N43: 12
B44: RB80-1201-069109 | C44: Y | D44: =IF(AND(OR(T_NAV_AU[[#This Row],[ColourOptions]]="M",T_NAV_AU[[#This Row],[ColourOptions]]="Y"),MID(T_NAV_AU[[#This Row],[No.]],11,3)="069"),REPLACE(T_NAV_AU[[#This Row],[No.]],11,3,"xxx"),T_NAV_AU[[#This Row],[No.]]) -> RB80-1201-xxx109 | E44: Extreme Top/Face Fix Brkt Set 2pc + Adapter | S100 | F44: 069 | G44: Pure White | H44: =IF(T_NAV_AU[[#This Row],[ColourOptions]]="M","as per catalogue",IF(T_NAV_AU[[#This Row],[Colour Description]]="Pure White", "Powdercoat, as per catalogue", T_NAV_AU[[#This Row],[Colour Description]])) -> Powdercoat, as per catalogue | I44: SET | J44: =IF(T_NAV_AU[[#This Row],[CustomPricing]]<>"",T_NAV_AU[[#This Row],[CustomPricing]],T_NAV_AU[[#This Row],[AUD_Original]]) -> 121.3 | K44: 121.3 | M44: 1 | N44: 12
B45: RB80-1503-025110 | C45: N | D45: =IF(AND(OR(T_NAV_AU[[#This Row],[ColourOptions]]="M",T_NAV_AU[[#This Row],[ColourOptions]]="Y"),MID(T_NAV_AU[[#This Row],[No.]],11,3)="069"),REPLACE(T_NAV_AU[[#This Row],[No.]],11,3,"xxx"),T_NAV_AU[[#This Row],[No.]]) -> RB80-1503-025110 | E45: Extreme Bracket Adaptor Kit (Motor & Idler Plate) | F45: 025 | G45: Silver ZINC Plated | H45: =IF(T_NAV_AU[[#This Row],[ColourOptions]]="M","as per catalogue",IF(T_NAV_AU[[#This Row],[Colour Description]]="Pure White", "Powdercoat, as per catalogue", T_NAV_AU[[#This Row],[Colour Description]])) -> Silver ZINC Plated | I45: KIT | J45: =IF(T_NAV_AU[[#This Row],[CustomPricing]]<>"",T_NAV_AU[[#This Row],[CustomPricing]],T_NAV_AU[[#This Row],[AUD_Original]]) -> 96.7 | K45: 96.7 | M45: 1 | N45: 10
B46: RB80-1503-069110 | C46: Y | D46: =IF(AND(OR(T_NAV_AU[[#This Row],[ColourOptions]]="M",T_NAV_AU[[#This Row],[ColourOptions]]="Y"),MID(T_NAV_AU[[#This Row],[No.]],11,3)="069"),REPLACE(T_NAV_AU[[#This Row],[No.]],11,3,"xxx"),T_NAV_AU[[#This Row],[No.]]) -> RB80-1503-xxx110 | E46: Extreme Bracket Adaptor Kit (Motor & Idler Plate) | F46: 069 | G46: Pure White | H46: =IF(T_NAV_AU[[#This Row],[ColourOptions]]="M","as per catalogue",IF(T_NAV_AU[[#This Row],[Colour Description]]="Pure White", "Powdercoat, as per catalogue", T_NAV_AU[[#This Row],[Colour Description]])) -> Powdercoat, as per catalogue | I46: KIT | J46: =IF(T_NAV_AU[[#This Row],[CustomPricing]]<>"",T_NAV_AU[[#This Row],[CustomPricing]],T_NAV_AU[[#This Row],[AUD_Original]]) -> 112.46 | K46: 112.46 | M46: 1 | N46: 10
B47: RB91-3602-006040 | C47: N | D47: =IF(AND(OR(T_NAV_AU[[#This Row],[ColourOptions]]="M",T_NAV_AU[[#This Row],[ColourOptions]]="Y"),MID(T_NAV_AU[[#This Row],[No.]],11,3)="069"),REPLACE(T_NAV_AU[[#This Row],[No.]],11,3,"xxx"),T_NAV_AU[[#This Row],[No.]]) -> RB91-3602-006040 | E47: Wire Tensioning Guide (1x19) - 4mm | 50m Roll | F47: 006 | G47: S/S 316, Natural | H47: =IF(T_NAV_AU[[#This Row],[ColourOptions]]="M","as per catalogue",IF(T_NAV_AU[[#This Row],[Colour Description]]="Pure White", "Powdercoat, as per catalogue", T_NAV_AU[[#This Row],[Colour Description]])) -> S/S 316, Natural | I47: METRE | J47: =IF(T_NAV_AU[[#This Row],[CustomPricing]]<>"",T_NAV_AU[[#This Row],[CustomPricing]],T_NAV_AU[[#This Row],[AUD_Original]]) -> 4.9 | K47: 4.9 | M47: 50 | N47: 300
B48: RB91-3602-006041 | C48: N | D48: =IF(AND(OR(T_NAV_AU[[#This Row],[ColourOptions]]="M",T_NAV_AU[[#This Row],[ColourOptions]]="Y"),MID(T_NAV_AU[[#This Row],[No.]],11,3)="069"),REPLACE(T_NAV_AU[[#This Row],[No.]],11,3,"xxx"),T_NAV_AU[[#This Row],[No.]]) -> RB91-3602-006041 | E48: Wire Tensioning Guide (7x7) - 4mm PVC | 50m Roll | F48: 006 | G48: S/S 316, Natural | H48: =IF(T_NAV_AU[[#This Row],[ColourOptions]]="M","as per catalogue",IF(T_NAV_AU[[#This Row],[Colour Description]]="Pure White", "Powdercoat, as per catalogue", T_NAV_AU[[#This Row],[Colour Description]])) -> S/S 316, Natural | I48: METRE | J48: =IF(T_NAV_AU[[#This Row],[CustomPricing]]<>"",T_NAV_AU[[#This Row],[CustomPricing]],T_NAV_AU[[#This Row],[AUD_Original]]) -> 8.81 | K48: 8.81 | M48: 50 | N48: 300
B49: RB91-3602-010032 | C49: N | D49: =IF(AND(OR(T_NAV_AU[[#This Row],[ColourOptions]]="M",T_NAV_AU[[#This Row],[ColourOptions]]="Y"),MID(T_NAV_AU[[#This Row],[No.]],11,3)="069"),REPLACE(T_NAV_AU[[#This Row],[No.]],11,3,"xxx"),T_NAV_AU[[#This Row],[No.]]) -> RB91-3602-010032 | E49: Wire Tensioning Guide (1x19) - 3.2mm | 50m Roll | F49: 006 | G49: S/S 316, Natural | H49: =IF(T_NAV_AU[[#This Row],[ColourOptions]]="M","as per catalogue",IF(T_NAV_AU[[#This Row],[Colour Description]]="Pure White", "Powdercoat, as per catalogue", T_NAV_AU[[#This Row],[Colour Description]])) -> S/S 316, Natural | I49: METRE | J49: =IF(T_NAV_AU[[#This Row],[CustomPricing]]<>"",T_NAV_AU[[#This Row],[CustomPricing]],T_NAV_AU[[#This Row],[AUD_Original]]) -> 3.91 | K49: 3.91 | M49: 50 | N49: 300
B50: RB93-0110-000600 | C50: N | D50: =IF(AND(OR(T_NAV_AU[[#This Row],[ColourOptions]]="M",T_NAV_AU[[#This Row],[ColourOptions]]="Y"),MID(T_NAV_AU[[#This Row],[No.]],11,3)="069"),REPLACE(T_NAV_AU[[#This Row],[No.]],11,3,"xxx"),T_NAV_AU[[#This Row],[No.]]) -> RB93-0110-000600 | E50: S100 / STD Alum. Tube | 110mm x 6m | F50: 000 | G50: Mill Finish | H50: =IF(T_NAV_AU[[#This Row],[ColourOptions]]="M","as per catalogue",IF(T_NAV_AU[[#This Row],[Colour Description]]="Pure White", "Powdercoat, as per catalogue", T_NAV_AU[[#This Row],[Colour Description]])) -> Mill Finish | I50: LENGTH | J50: =IF(T_NAV_AU[[#This Row],[CustomPricing]]<>"",T_NAV_AU[[#This Row],[CustomPricing]],T_NAV_AU[[#This Row],[AUD_Original]]) -> 389.05 | K50: 389.05 | M50: 2 | N50: 12
B51: RB93-0130-000700 | C51: N | D51: =IF(AND(OR(T_NAV_AU[[#This Row],[ColourOptions]]="M",T_NAV_AU[[#This Row],[ColourOptions]]="Y"),MID(T_NAV_AU[[#This Row],[No.]],11,3)="069"),REPLACE(T_NAV_AU[[#This Row],[No.]],11,3,"xxx"),T_NAV_AU[[#This Row],[No.]]) -> RB93-0130-000700 | E51: S100 / HD Alum. Tube | 130mm x 7m | F51: 000 | G51: Mill Finish | H51: =IF(T_NAV_AU[[#This Row],[ColourOptions]]="M","as per catalogue",IF(T_NAV_AU[[#This Row],[Colour Description]]="Pure White", "Powdercoat, as per catalogue", T_NAV_AU[[#This Row],[Colour Description]])) -> Mill Finish | I51: LENGTH | J51: =IF(T_NAV_AU[[#This Row],[CustomPricing]]<>"",T_NAV_AU[[#This Row],[CustomPricing]],T_NAV_AU[[#This Row],[AUD_Original]]) -> 711.64 | K51: 711.64 | M51: 1 | N51: 9
B52: RB93-0160-000700 | C52: N | D52: =IF(AND(OR(T_NAV_AU[[#This Row],[ColourOptions]]="M",T_NAV_AU[[#This Row],[ColourOptions]]="Y"),MID(T_NAV_AU[[#This Row],[No.]],11,3)="069"),REPLACE(T_NAV_AU[[#This Row],[No.]],11,3,"xxx"),T_NAV_AU[[#This Row],[No.]]) -> RB93-0160-000700 | E52: S100 / XHD Alum. Tube | 160mm x 7m | F52: 000 | G52: Mill Finish | H52: =IF(T_NAV_AU[[#This Row],[ColourOptions]]="M","as per catalogue",IF(T_NAV_AU[[#This Row],[Colour Description]]="Pure White", "Powdercoat, as per catalogue", T_NAV_AU[[#This Row],[Colour Description]])) -> Mill Finish | I52: LENGTH | J52: =IF(T_NAV_AU[[#This Row],[CustomPricing]]<>"",T_NAV_AU[[#This Row],[CustomPricing]],T_NAV_AU[[#This Row],[AUD_Original]]) -> 1072.39 | K52: 1072.39 | M52: 1 | N52: 6
B53: RC91-0201-050000 | C53: N | D53: =IF(AND(OR(T_NAV_AU[[#This Row],[ColourOptions]]="M",T_NAV_AU[[#This Row],[ColourOptions]]="Y"),MID(T_NAV_AU[[#This Row],[No.]],11,3)="069"),REPLACE(T_NAV_AU[[#This Row],[No.]],11,3,"xxx"),T_NAV_AU[[#This Row],[No.]]) -> RC91-0201-050000 | E53: CF dim-OUT Side Guide Side Guide Lock | F53: 050 | G53: Black, Satin | H53: =IF(T_NAV_AU[[#This Row],[ColourOptions]]="M","as per catalogue",IF(T_NAV_AU[[#This Row],[Colour Description]]="Pure White", "Powdercoat, as per catalogue", T_NAV_AU[[#This Row],[Colour Description]])) -> Black, Satin | I53: Piece | J53: =IF(T_NAV_AU[[#This Row],[CustomPricing]]<>"",T_NAV_AU[[#This Row],[CustomPricing]],T_NAV_AU[[#This Row],[AUD_Original]]) -> 0.3 | K53: 0.3 | M53: 200 | N53: 5000
B54: RE01-0101-000580 | C54: N | D54: =IF(AND(OR(T_NAV_AU[[#This Row],[ColourOptions]]="M",T_NAV_AU[[#This Row],[ColourOptions]]="Y"),MID(T_NAV_AU[[#This Row],[No.]],11,3)="069"),REPLACE(T_NAV_AU[[#This Row],[No.]],11,3,"xxx"),T_NAV_AU[[#This Row],[No.]]) -> RE01-0101-000580 | E54: BOX 120 - Back Extrusion | 5.8m | F54: 000 | G54: Mill Finish | H54: =IF(T_NAV_AU[[#This Row],[ColourOptions]]="M","as per catalogue",IF(T_NAV_AU[[#This Row],[Colour Description]]="Pure White", "Powdercoat, as per catalogue", T_NAV_AU[[#This Row],[Colour Description]])) -> Mill Finish | I54: LENGTH | J54: =IF(T_NAV_AU[[#This Row],[CustomPricing]]<>"",T_NAV_AU[[#This Row],[CustomPricing]],T_NAV_AU[[#This Row],[AUD_Original]]) -> 164.6 | K54: 164.6 | M54: 1 | N54: 16
B55: RE01-0101-018580 | C55: N | D55: =IF(AND(OR(T_NAV_AU[[#This Row],[ColourOptions]]="M",T_NAV_AU[[#This Row],[ColourOptions]]="Y"),MID(T_NAV_AU[[#This Row],[No.]],11,3)="069"),REPLACE(T_NAV_AU[[#This Row],[No.]],11,3,"xxx"),T_NAV_AU[[#This Row],[No.]]) -> RE01-0101-018580 | E55: BOX 120 - Back Extrusion | 5.8m | F55: 018 | G55: Anodised 20 | H55: =IF(T_NAV_AU[[#This Row],[ColourOptions]]="M","as per catalogue",IF(T_NAV_AU[[#This Row],[Colour Description]]="Pure White", "Powdercoat, as per catalogue", T_NAV_AU[[#This Row],[Colour Description]])) -> Anodised 20 | I55: LENGTH | J55: =IF(T_NAV_AU[[#This Row],[CustomPricing]]<>"",T_NAV_AU[[#This Row],[CustomPricing]],T_NAV_AU[[#This Row],[AUD_Original]]) -> 199.51 | K55: 199.51 | M55: 1 | N55: 16
B56: RE01-0101-069580-PF | C56: Y | D56: =IF(AND(OR(T_NAV_AU[[#This Row],[ColourOptions]]="M",T_NAV_AU[[#This Row],[ColourOptions]]="Y"),MID(T_NAV_AU[[#This Row],[No.]],11,3)="069"),REPLACE(T_NAV_AU[[#This Row],[No.]],11,3,"xxx"),T_NAV_AU[[#This Row],[No.]]) -> RE01-0101-xxx580-PF | E56: BOX 120 - Back Extrusion w/ PF | 5.8m | F56: 069 | G56: Pure White | H56: =IF(T_NAV_AU[[#This Row],[ColourOptions]]="M","as per catalogue",IF(T_NAV_AU[[#This Row],[Colour Description]]="Pure White", "Powdercoat, as per catalogue", T_NAV_AU[[#This Row],[Colour Description]])) -> Powdercoat, as per catalogue | I56: LENGTH | J56: =IF(T_NAV_AU[[#This Row],[CustomPricing]]<>"",T_NAV_AU[[#This Row],[CustomPricing]],T_NAV_AU[[#This Row],[AUD_Original]]) -> 199.51 | K56: 199.51 | M56: 1 | N56: 16
B57: RE01-0102-000580 | C57: N | D57: =IF(AND(OR(T_NAV_AU[[#This Row],[ColourOptions]]="M",T_NAV_AU[[#This Row],[ColourOptions]]="Y"),MID(T_NAV_AU[[#This Row],[No.]],11,3)="069"),REPLACE(T_NAV_AU[[#This Row],[No.]],11,3,"xxx"),T_NAV_AU[[#This Row],[No.]]) -> RE01-0102-000580 | E57: BOX 120 - Front Cover FULL | 5.8m | F57: 000 | G57: Mill Finish | H57: =IF(T_NAV_AU[[#This Row],[ColourOptions]]="M","as per catalogue",IF(T_NAV_AU[[#This Row],[Colour Description]]="Pure White", "Powdercoat, as per catalogue", T_NAV_AU[[#This Row],[Colour Description]])) -> Mill Finish | I57: LENGTH | J57: =IF(T_NAV_AU[[#This Row],[CustomPricing]]<>"",T_NAV_AU[[#This Row],[CustomPricing]],T_NAV_AU[[#This Row],[AUD_Original]]) -> 112.23 | K57: 112.23 | M57: 2 | N57: 32
B58: RE01-0102-018580 | C58: N | D58: =IF(AND(OR(T_NAV_AU[[#This Row],[ColourOptions]]="M",T_NAV_AU[[#This Row],[ColourOptions]]="Y"),MID(T_NAV_AU[[#This Row],[No.]],11,3)="069"),REPLACE(T_NAV_AU[[#This Row],[No.]],11,3,"xxx"),T_NAV_AU[[#This Row],[No.]]) -> RE01-0102-018580 | E58: BOX 120 - Front Cover FULL | 5.8m | F58: 018 | G58: Anodised 20 | H58: =IF(T_NAV_AU[[#This Row],[ColourOptions]]="M","as per catalogue",IF(T_NAV_AU[[#This Row],[Colour Description]]="Pure White", "Powdercoat, as per catalogue", T_NAV_AU[[#This Row],[Colour Description]])) -> Anodised 20 | I58: LENGTH | J58: =IF(T_NAV_AU[[#This Row],[CustomPricing]]<>"",T_NAV_AU[[#This Row],[CustomPricing]],T_NAV_AU[[#This Row],[AUD_Original]]) -> 143.41 | K58: 143.41 | M58: 2 | N58: 32
B59: RE01-0102-069580-PF | C59: Y | D59: =IF(AND(OR(T_NAV_AU[[#This Row],[ColourOptions]]="M",T_NAV_AU[[#This Row],[ColourOptions]]="Y"),MID(T_NAV_AU[[#This Row],[No.]],11,3)="069"),REPLACE(T_NAV_AU[[#This Row],[No.]],11,3,"xxx"),T_NAV_AU[[#This Row],[No.]]) -> RE01-0102-xxx580-PF | E59: BOX 120 - Front Cover FULL w/ PF | 5.8m | F59: 069 | G59: Pure White | H59: =IF(T_NAV_AU[[#This Row],[ColourOptions]]="M","as per catalogue",IF(T_NAV_AU[[#This Row],[Colour Description]]="Pure White", "Powdercoat, as per catalogue", T_NAV_AU[[#This Row],[Colour Description]])) -> Powdercoat, as per catalogue | I59: LENGTH | J59: =IF(T_NAV_AU[[#This Row],[CustomPricing]]<>"",T_NAV_AU[[#This Row],[CustomPricing]],T_NAV_AU[[#This Row],[AUD_Original]]) -> 143.41 | K59: 143.41 | M59: 2 | N59: 32
B60: RE01-0103-000580 | C60: N | D60: =IF(AND(OR(T_NAV_AU[[#This Row],[ColourOptions]]="M",T_NAV_AU[[#This Row],[ColourOptions]]="Y"),MID(T_NAV_AU[[#This Row],[No.]],11,3)="069"),REPLACE(T_NAV_AU[[#This Row],[No.]],11,3,"xxx"),T_NAV_AU[[#This Row],[No.]]) -> RE01-0103-000580 | E60: BOX 120 - Front Cover SEMI | 5.8m | F60: 000 | G60: Mill Finish | H60: =IF(T_NAV_AU[[#This Row],[ColourOptions]]="M","as per catalogue",IF(T_NAV_AU[[#This Row],[Colour Description]]="Pure White", "Powdercoat, as per catalogue", T_NAV_AU[[#This Row],[Colour Description]])) -> Mill Finish | I60: LENGTH | J60: =IF(T_NAV_AU[[#This Row],[CustomPricing]]<>"",T_NAV_AU[[#This Row],[CustomPricing]],T_NAV_AU[[#This Row],[AUD_Original]]) -> 93.53 | K60: 93.53 | M60: 4 | N60: 64
B61: RE01-0103-018580 | C61: N | D61: =IF(AND(OR(T_NAV_AU[[#This Row],[ColourOptions]]="M",T_NAV_AU[[#This Row],[ColourOptions]]="Y"),MID(T_NAV_AU[[#This Row],[No.]],11,3)="069"),REPLACE(T_NAV_AU[[#This Row],[No.]],11,3,"xxx"),T_NAV_AU[[#This Row],[No.]]) -> RE01-0103-018580 | E61: BOX 120 - Front Cover SEMI | 5.8m | F61: 018 | G61: Anodised 20 | H61: =IF(T_NAV_AU[[#This Row],[ColourOptions]]="M","as per catalogue",IF(T_NAV_AU[[#This Row],[Colour Description]]="Pure White", "Powdercoat, as per catalogue", T_NAV_AU[[#This Row],[Colour Description]])) -> Anodised 20 | I61: LENGTH | J61: =IF(T_NAV_AU[[#This Row],[CustomPricing]]<>"",T_NAV_AU[[#This Row],[CustomPricing]],T_NAV_AU[[#This Row],[AUD_Original]]) -> 124.7 | K61: 124.7 | M61: 4 | N61: 64
B62: RE01-0103-069580-PF | C62: Y | D62: =IF(AND(OR(T_NAV_AU[[#This Row],[ColourOptions]]="M",T_NAV_AU[[#This Row],[ColourOptions]]="Y"),MID(T_NAV_AU[[#This Row],[No.]],11,3)="069"),REPLACE(T_NAV_AU[[#This Row],[No.]],11,3,"xxx"),T_NAV_AU[[#This Row],[No.]]) -> RE01-0103-xxx580-PF | E62: BOX 120 - Front Cover SEMI with P/F | 5.8m | F62: 069 | G62: Pure White | H62: =IF(T_NAV_AU[[#This Row],[ColourOptions]]="M","as per catalogue",IF(T_NAV_AU[[#This Row],[Colour Description]]="Pure White", "Powdercoat, as per catalogue", T_NAV_AU[[#This Row],[Colour Description]])) -> Powdercoat, as per catalogue | I62: LENGTH | J62: =IF(T_NAV_AU[[#This Row],[CustomPricing]]<>"",T_NAV_AU[[#This Row],[CustomPricing]],T_NAV_AU[[#This Row],[AUD_Original]]) -> 124.7 | K62: 124.7 | M62: 4 | N62: 64
B63: RE01-0106-000700 | C63: N | D63: =IF(AND(OR(T_NAV_AU[[#This Row],[ColourOptions]]="M",T_NAV_AU[[#This Row],[ColourOptions]]="Y"),MID(T_NAV_AU[[#This Row],[No.]],11,3)="069"),REPLACE(T_NAV_AU[[#This Row],[No.]],11,3,"xxx"),T_NAV_AU[[#This Row],[No.]]) -> RE01-0106-000700 | E63: BOX 190 - Universal Extrusion | 7m | F63: 000 | G63: Mill Finish | H63: =IF(T_NAV_AU[[#This Row],[ColourOptions]]="M","as per catalogue",IF(T_NAV_AU[[#This Row],[Colour Description]]="Pure White", "Powdercoat, as per catalogue", T_NAV_AU[[#This Row],[Colour Description]])) -> Mill Finish | I63: LENGTH | J63: =IF(T_NAV_AU[[#This Row],[CustomPricing]]<>"",T_NAV_AU[[#This Row],[CustomPricing]],T_NAV_AU[[#This Row],[AUD_Original]]) -> 249.39 | K63: 249.39 | M63: 1 | N63: 24
B64: RE01-0106-018700 | C64: N | D64: =IF(AND(OR(T_NAV_AU[[#This Row],[ColourOptions]]="M",T_NAV_AU[[#This Row],[ColourOptions]]="Y"),MID(T_NAV_AU[[#This Row],[No.]],11,3)="069"),REPLACE(T_NAV_AU[[#This Row],[No.]],11,3,"xxx"),T_NAV_AU[[#This Row],[No.]]) -> RE01-0106-018700 | E64: BOX 190 - Universal Extrusion | 7m | F64: 018 | G64: Anodised 20 | H64: =IF(T_NAV_AU[[#This Row],[ColourOptions]]="M","as per catalogue",IF(T_NAV_AU[[#This Row],[Colour Description]]="Pure White", "Powdercoat, as per catalogue", T_NAV_AU[[#This Row],[Colour Description]])) -> Anodised 20 | I64: LENGTH | J64: =IF(T_NAV_AU[[#This Row],[CustomPricing]]<>"",T_NAV_AU[[#This Row],[CustomPricing]],T_NAV_AU[[#This Row],[AUD_Original]]) -> 374.09 | K64: 374.09 | M64: 1 | N64: 24
B65: RE01-0106-069700-PF | C65: Y | D65: =IF(AND(OR(T_NAV_AU[[#This Row],[ColourOptions]]="M",T_NAV_AU[[#This Row],[ColourOptions]]="Y"),MID(T_NAV_AU[[#This Row],[No.]],11,3)="069"),REPLACE(T_NAV_AU[[#This Row],[No.]],11,3,"xxx"),T_NAV_AU[[#This Row],[No.]]) -> RE01-0106-xxx700-PF | E65: BOX 190 - Universal Extrusion w/ PF | 7m | F65: 069 | G65: Pure White | H65: =IF(T_NAV_AU[[#This Row],[ColourOptions]]="M","as per catalogue",IF(T_NAV_AU[[#This Row],[Colour Description]]="Pure White", "Powdercoat, as per catalogue", T_NAV_AU[[#This Row],[Colour Description]])) -> Powdercoat, as per catalogue | I65: LENGTH | J65: =IF(T_NAV_AU[[#This Row],[CustomPricing]]<>"",T_NAV_AU[[#This Row],[CustomPricing]],T_NAV_AU[[#This Row],[AUD_Original]]) -> 311.74 | K65: 311.74 | M65: 1 | N65: 24
B66: RE01-0107-000700 | C66: N | D66: =IF(AND(OR(T_NAV_AU[[#This Row],[ColourOptions]]="M",T_NAV_AU[[#This Row],[ColourOptions]]="Y"),MID(T_NAV_AU[[#This Row],[No.]],11,3)="069"),REPLACE(T_NAV_AU[[#This Row],[No.]],11,3,"xxx"),T_NAV_AU[[#This Row],[No.]]) -> RE01-0107-000700 | E66: BOX 190 - Front Cover | 7m | F66: 000 | G66: Mill Finish | H66: =IF(T_NAV_AU[[#This Row],[ColourOptions]]="M","as per catalogue",IF(T_NAV_AU[[#This Row],[Colour Description]]="Pure White", "Powdercoat, as per catalogue", T_NAV_AU[[#This Row],[Colour Description]])) -> Mill Finish | I66: LENGTH | J66: =IF(T_NAV_AU[[#This Row],[CustomPricing]]<>"",T_NAV_AU[[#This Row],[CustomPricing]],T_NAV_AU[[#This Row],[AUD_Original]]) -> 342.92 | K66: 342.92 | M66: 1 | N66: 12
B67: RE01-0107-018700 | C67: N | D67: =IF(AND(OR(T_NAV_AU[[#This Row],[ColourOptions]]="M",T_NAV_AU[[#This Row],[ColourOptions]]="Y"),MID(T_NAV_AU[[#This Row],[No.]],11,3)="069"),REPLACE(T_NAV_AU[[#This Row],[No.]],11,3,"xxx"),T_NAV_AU[[#This Row],[No.]]) -> RE01-0107-018700 | E67: BOX 190 - Front Cover | 7m | F67: 018 | G67: Anodised 20 | H67: =IF(T_NAV_AU[[#This Row],[ColourOptions]]="M","as per catalogue",IF(T_NAV_AU[[#This Row],[Colour Description]]="Pure White", "Powdercoat, as per catalogue", T_NAV_AU[[#This Row],[Colour Description]])) -> Anodised 20 | I67: LENGTH | J67: =IF(T_NAV_AU[[#This Row],[CustomPricing]]<>"",T_NAV_AU[[#This Row],[CustomPricing]],T_NAV_AU[[#This Row],[AUD_Original]]) -> 498.78 | K67: 498.78 | M67: 1 | N67: 12
B68: RE01-0107-069700-PF | C68: Y | D68: =IF(AND(OR(T_NAV_AU[[#This Row],[ColourOptions]]="M",T_NAV_AU[[#This Row],[ColourOptions]]="Y"),MID(T_NAV_AU[[#This Row],[No.]],11,3)="069"),REPLACE(T_NAV_AU[[#This Row],[No.]],11,3,"xxx"),T_NAV_AU[[#This Row],[No.]]) -> RE01-0107-xxx700-PF | E68: BOX 190 - Front Cover w/ PF | 7m | F68: 069 | G68: Pure White | H68: =IF(T_NAV_AU[[#This Row],[ColourOptions]]="M","as per catalogue",IF(T_NAV_AU[[#This Row],[Colour Description]]="Pure White", "Powdercoat, as per catalogue", T_NAV_AU[[#This Row],[Colour Description]])) -> Powdercoat, as per catalogue | I68: LENGTH | J68: =IF(T_NAV_AU[[#This Row],[CustomPricing]]<>"",T_NAV_AU[[#This Row],[CustomPricing]],T_NAV_AU[[#This Row],[AUD_Original]]) -> 436.44 | K68: 436.44 | M68: 1 | N68: 12
B69: RE01-0203-050063 | C69: N | D69: =IF(AND(OR(T_NAV_AU[[#This Row],[ColourOptions]]="M",T_NAV_AU[[#This Row],[ColourOptions]]="Y"),MID(T_NAV_AU[[#This Row],[No.]],11,3)="069"),REPLACE(T_NAV_AU[[#This Row],[No.]],11,3,"xxx"),T_NAV_AU[[#This Row],[No.]]) -> RE01-0203-050063 | E69: Bearing Idler | 63mm | F69: 050 | G69: Black, Satin | H69: =IF(T_NAV_AU[[#This Row],[ColourOptions]]="M","as per catalogue",IF(T_NAV_AU[[#This Row],[Colour Description]]="Pure White", "Powdercoat, as per catalogue", T_NAV_AU[[#This Row],[Colour Description]])) -> Black, Satin | I69: PIECE | J69: =IF(T_NAV_AU[[#This Row],[CustomPricing]]<>"",T_NAV_AU[[#This Row],[CustomPricing]],T_NAV_AU[[#This Row],[AUD_Original]]) -> 20.24 | K69: 20.24 | M69: 10 | N69: 50
B70: RE01-0214-050000 | C70: N | D70: =IF(AND(OR(T_NAV_AU[[#This Row],[ColourOptions]]="M",T_NAV_AU[[#This Row],[ColourOptions]]="Y"),MID(T_NAV_AU[[#This Row],[No.]],11,3)="069"),REPLACE(T_NAV_AU[[#This Row],[No.]],11,3,"xxx"),T_NAV_AU[[#This Row],[No.]]) -> RE01-0214-050000 | E70: External - Idler/Spring Adaptor Kit MKII | F70: 050 | G70: Black, Satin | H70: =IF(T_NAV_AU[[#This Row],[ColourOptions]]="M","as per catalogue",IF(T_NAV_AU[[#This Row],[Colour Description]]="Pure White", "Powdercoat, as per catalogue", T_NAV_AU[[#This Row],[Colour Description]])) -> Black, Satin | I70: SET | J70: =IF(T_NAV_AU[[#This Row],[CustomPricing]]<>"",T_NAV_AU[[#This Row],[CustomPricing]],T_NAV_AU[[#This Row],[AUD_Original]]) -> 4.76 | K70: 4.76 | M70: 5 | N70: 200
B71: RE01-0378-000580 | C71: N | D71: =IF(AND(OR(T_NAV_AU[[#This Row],[ColourOptions]]="M",T_NAV_AU[[#This Row],[ColourOptions]]="Y"),MID(T_NAV_AU[[#This Row],[No.]],11,3)="069"),REPLACE(T_NAV_AU[[#This Row],[No.]],11,3,"xxx"),T_NAV_AU[[#This Row],[No.]]) -> RE01-0378-000580 | E71: 78 STD Alum. Tube | 80mm x 5.8m | F71: 000 | G71: Mill Finish | H71: =IF(T_NAV_AU[[#This Row],[ColourOptions]]="M","as per catalogue",IF(T_NAV_AU[[#This Row],[Colour Description]]="Pure White", "Powdercoat, as per catalogue", T_NAV_AU[[#This Row],[Colour Description]])) -> Mill Finish | I71: LENGTH | J71: =IF(T_NAV_AU[[#This Row],[CustomPricing]]<>"",T_NAV_AU[[#This Row],[CustomPricing]],T_NAV_AU[[#This Row],[AUD_Original]]) -> 143.41 | K71: 143.41 | M71: 2 | N71: 20
B72: RE01-0379-000600 | C72: N | D72: =IF(AND(OR(T_NAV_AU[[#This Row],[ColourOptions]]="M",T_NAV_AU[[#This Row],[ColourOptions]]="Y"),MID(T_NAV_AU[[#This Row],[No.]],11,3)="069"),REPLACE(T_NAV_AU[[#This Row],[No.]],11,3,"xxx"),T_NAV_AU[[#This Row],[No.]]) -> RE01-0379-000600 | E72: 78 HD Alum. Tube | 82mm x 6m | F72: 000 | G72: Mill Finish | H72: =IF(T_NAV_AU[[#This Row],[ColourOptions]]="M","as per catalogue",IF(T_NAV_AU[[#This Row],[Colour Description]]="Pure White", "Powdercoat, as per catalogue", T_NAV_AU[[#This Row],[Colour Description]])) -> Mill Finish | I72: LENGTH | J72: =IF(T_NAV_AU[[#This Row],[CustomPricing]]<>"",T_NAV_AU[[#This Row],[CustomPricing]],T_NAV_AU[[#This Row],[AUD_Original]]) -> 220.49 | K72: 220.49 | M72: 2 | N72: 20
B73: RE01-0405-050078 | C73: N | D73: =IF(AND(OR(T_NAV_AU[[#This Row],[ColourOptions]]="M",T_NAV_AU[[#This Row],[ColourOptions]]="Y"),MID(T_NAV_AU[[#This Row],[No.]],11,3)="069"),REPLACE(T_NAV_AU[[#This Row],[No.]],11,3,"xxx"),T_NAV_AU[[#This Row],[No.]]) -> RE01-0405-050078 | E73: 78mm Booster Tail Adaptor | F73: 050 | G73: Black, Satin | H73: =IF(T_NAV_AU[[#This Row],[ColourOptions]]="M","as per catalogue",IF(T_NAV_AU[[#This Row],[Colour Description]]="Pure White", "Powdercoat, as per catalogue", T_NAV_AU[[#This Row],[Colour Description]])) -> Black, Satin | I73: PIECE | J73: =IF(T_NAV_AU[[#This Row],[CustomPricing]]<>"",T_NAV_AU[[#This Row],[CustomPricing]],T_NAV_AU[[#This Row],[AUD_Original]]) -> 2.38 | K73: 2.38 | M73: 4 | N73: 200
B74: RE01-0411-050011 | C74: N | D74: =IF(AND(OR(T_NAV_AU[[#This Row],[ColourOptions]]="M",T_NAV_AU[[#This Row],[ColourOptions]]="Y"),MID(T_NAV_AU[[#This Row],[No.]],11,3)="069"),REPLACE(T_NAV_AU[[#This Row],[No.]],11,3,"xxx"),T_NAV_AU[[#This Row],[No.]]) -> RE01-0411-050011 | E74: External Booster Short LH | 63mm | F74: 050 | G74: Black, Satin | H74: =IF(T_NAV_AU[[#This Row],[ColourOptions]]="M","as per catalogue",IF(T_NAV_AU[[#This Row],[Colour Description]]="Pure White", "Powdercoat, as per catalogue", T_NAV_AU[[#This Row],[Colour Description]])) -> Black, Satin | I74: PIECE | J74: =IF(T_NAV_AU[[#This Row],[CustomPricing]]<>"",T_NAV_AU[[#This Row],[CustomPricing]],T_NAV_AU[[#This Row],[AUD_Original]]) -> 40 | K74: 40 | M74: 4 | N74: 40
B75: RE01-0411-050031 | C75: N | D75: =IF(AND(OR(T_NAV_AU[[#This Row],[ColourOptions]]="M",T_NAV_AU[[#This Row],[ColourOptions]]="Y"),MID(T_NAV_AU[[#This Row],[No.]],11,3)="069"),REPLACE(T_NAV_AU[[#This Row],[No.]],11,3,"xxx"),T_NAV_AU[[#This Row],[No.]]) -> RE01-0411-050031 | E75: External Booster Light LH | 63mm | F75: 050 | G75: Black, Satin | H75: =IF(T_NAV_AU[[#This Row],[ColourOptions]]="M","as per catalogue",IF(T_NAV_AU[[#This Row],[Colour Description]]="Pure White", "Powdercoat, as per catalogue", T_NAV_AU[[#This Row],[Colour Description]])) -> Black, Satin | I75: PIECE | J75: =IF(T_NAV_AU[[#This Row],[CustomPricing]]<>"",T_NAV_AU[[#This Row],[CustomPricing]],T_NAV_AU[[#This Row],[AUD_Original]]) -> 40 | K75: 40 | M75: 4 | N75: 40
B76: RE01-0411-050051 | C76: N | D76: =IF(AND(OR(T_NAV_AU[[#This Row],[ColourOptions]]="M",T_NAV_AU[[#This Row],[ColourOptions]]="Y"),MID(T_NAV_AU[[#This Row],[No.]],11,3)="069"),REPLACE(T_NAV_AU[[#This Row],[No.]],11,3,"xxx"),T_NAV_AU[[#This Row],[No.]]) -> RE01-0411-050051 | E76: External Booster Standard LH | 63mm | F76: 050 | G76: Black, Satin | H76: =IF(T_NAV_AU[[#This Row],[ColourOptions]]="M","as per catalogue",IF(T_NAV_AU[[#This Row],[Colour Description]]="Pure White", "Powdercoat, as per catalogue", T_NAV_AU[[#This Row],[Colour Description]])) -> Black, Satin | I76: PIECE | J76: =IF(T_NAV_AU[[#This Row],[CustomPricing]]<>"",T_NAV_AU[[#This Row],[CustomPricing]],T_NAV_AU[[#This Row],[AUD_Original]]) -> 41.24 | K76: 41.24 | M76: 4 | N76: 40
B77: RE01-0411-050061 | C77: N | D77: =IF(AND(OR(T_NAV_AU[[#This Row],[ColourOptions]]="M",T_NAV_AU[[#This Row],[ColourOptions]]="Y"),MID(T_NAV_AU[[#This Row],[No.]],11,3)="069"),REPLACE(T_NAV_AU[[#This Row],[No.]],11,3,"xxx"),T_NAV_AU[[#This Row],[No.]]) -> RE01-0411-050061 | E77: External Booster Heavy Duty LH | 63mm | F77: 050 | G77: Black, Satin | H77: =IF(T_NAV_AU[[#This Row],[ColourOptions]]="M","as per catalogue",IF(T_NAV_AU[[#This Row],[Colour Description]]="Pure White", "Powdercoat, as per catalogue", T_NAV_AU[[#This Row],[Colour Description]])) -> Black, Satin | I77: PIECE | J77: =IF(T_NAV_AU[[#This Row],[CustomPricing]]<>"",T_NAV_AU[[#This Row],[CustomPricing]],T_NAV_AU[[#This Row],[AUD_Original]]) -> 42.49 | K77: 42.49 | M77: 4 | N77: 40
B78: RE01-0411-050062 | C78: N | D78: =IF(AND(OR(T_NAV_AU[[#This Row],[ColourOptions]]="M",T_NAV_AU[[#This Row],[ColourOptions]]="Y"),MID(T_NAV_AU[[#This Row],[No.]],11,3)="069"),REPLACE(T_NAV_AU[[#This Row],[No.]],11,3,"xxx"),T_NAV_AU[[#This Row],[No.]]) -> RE01-0411-050062 | E78: External Booster Heavy Duty RH | 63mm | F78: 050 | G78: Black, Satin | H78: =IF(T_NAV_AU[[#This Row],[ColourOptions]]="M","as per catalogue",IF(T_NAV_AU[[#This Row],[Colour Description]]="Pure White", "Powdercoat, as per catalogue", T_NAV_AU[[#This Row],[Colour Description]])) -> Black, Satin | I78: PIECE | J78: =IF(T_NAV_AU[[#This Row],[CustomPricing]]<>"",T_NAV_AU[[#This Row],[CustomPricing]],T_NAV_AU[[#This Row],[AUD_Original]]) -> 42.49 | K78: 42.49 | M78: 4 | N78: 40
B79: RE01-0411-050071 | C79: N | D79: =IF(AND(OR(T_NAV_AU[[#This Row],[ColourOptions]]="M",T_NAV_AU[[#This Row],[ColourOptions]]="Y"),MID(T_NAV_AU[[#This Row],[No.]],11,3)="069"),REPLACE(T_NAV_AU[[#This Row],[No.]],11,3,"xxx"),T_NAV_AU[[#This Row],[No.]]) -> RE01-0411-050071 | E79: External Booster Extra Heavy Duty LH | 63mm | F79: 050 | G79: Black, Satin | H79: =IF(T_NAV_AU[[#This Row],[ColourOptions]]="M","as per catalogue",IF(T_NAV_AU[[#This Row],[Colour Description]]="Pure White", "Powdercoat, as per catalogue", T_NAV_AU[[#This Row],[Colour Description]])) -> Black, Satin | I79: PIECE | J79: =IF(T_NAV_AU[[#This Row],[CustomPricing]]<>"",T_NAV_AU[[#This Row],[CustomPricing]],T_NAV_AU[[#This Row],[AUD_Original]]) -> 43.74 | K79: 43.74 | M79: 4 | N79: 40
B80: RE01-0411-050101 | C80: N | D80: =IF(AND(OR(T_NAV_AU[[#This Row],[ColourOptions]]="M",T_NAV_AU[[#This Row],[ColourOptions]]="Y"),MID(T_NAV_AU[[#This Row],[No.]],11,3)="069"),REPLACE(T_NAV_AU[[#This Row],[No.]],11,3,"xxx"),T_NAV_AU[[#This Row],[No.]]) -> RE01-0411-050101 | E80: External Booster COMPACT LH | 63mm | F80: 050 | G80: Black, Satin | H80: =IF(T_NAV_AU[[#This Row],[ColourOptions]]="M","as per catalogue",IF(T_NAV_AU[[#This Row],[Colour Description]]="Pure White", "Powdercoat, as per catalogue", T_NAV_AU[[#This Row],[Colour Description]])) -> Black, Satin | I80: PIECE | J80: =IF(T_NAV_AU[[#This Row],[CustomPricing]]<>"",T_NAV_AU[[#This Row],[CustomPricing]],T_NAV_AU[[#This Row],[AUD_Original]]) -> 38.08 | K80: 38.08 | M80: 4 | N80: 40
B81: RE01-0501-050063 | C81: N | D81: =IF(AND(OR(T_NAV_AU[[#This Row],[ColourOptions]]="M",T_NAV_AU[[#This Row],[ColourOptions]]="Y"),MID(T_NAV_AU[[#This Row],[No.]],11,3)="069"),REPLACE(T_NAV_AU[[#This Row],[No.]],11,3,"xxx"),T_NAV_AU[[#This Row],[No.]]) -> RE01-0501-050063 | E81: Crank Housing 13mm square shaft | 63mm tube | F81: 050 | G81: Black, Satin | H81: =IF(T_NAV_AU[[#This Row],[ColourOptions]]="M","as per catalogue",IF(T_NAV_AU[[#This Row],[Colour Description]]="Pure White", "Powdercoat, as per catalogue", T_NAV_AU[[#This Row],[Colour Description]])) -> Black, Satin | I81: PIECE | J81: =IF(T_NAV_AU[[#This Row],[CustomPricing]]<>"",T_NAV_AU[[#This Row],[CustomPricing]],T_NAV_AU[[#This Row],[AUD_Original]]) -> 5.95 | K81: 5.95 | M81: 5 | N81: 100
B82: RE01-0513-000002 | C82: N | D82: =IF(AND(OR(T_NAV_AU[[#This Row],[ColourOptions]]="M",T_NAV_AU[[#This Row],[ColourOptions]]="Y"),MID(T_NAV_AU[[#This Row],[No.]],11,3)="069"),REPLACE(T_NAV_AU[[#This Row],[No.]],11,3,"xxx"),T_NAV_AU[[#This Row],[No.]]) -> RE01-0513-000002 | E82: Gear 5:1 (7.5Nm)+Screws Univ Joint | F82: 000 | G82: Mill Finish | H82: =IF(T_NAV_AU[[#This Row],[ColourOptions]]="M","as per catalogue",IF(T_NAV_AU[[#This Row],[Colour Description]]="Pure White", "Powdercoat, as per catalogue", T_NAV_AU[[#This Row],[Colour Description]])) -> Mill Finish | I82: SET | J82: =IF(T_NAV_AU[[#This Row],[CustomPricing]]<>"",T_NAV_AU[[#This Row],[CustomPricing]],T_NAV_AU[[#This Row],[AUD_Original]]) -> 55.55 | K82: 55.55 | M82: 5 | N82: 50
B83: RE01-0513-069002 | C83: Y | D83: =IF(AND(OR(T_NAV_AU[[#This Row],[ColourOptions]]="M",T_NAV_AU[[#This Row],[ColourOptions]]="Y"),MID(T_NAV_AU[[#This Row],[No.]],11,3)="069"),REPLACE(T_NAV_AU[[#This Row],[No.]],11,3,"xxx"),T_NAV_AU[[#This Row],[No.]]) -> RE01-0513-xxx002 | E83: Gear 5:1 (7.5Nm)+Screws Univ Joint | F83: 069 | G83: Pure White | H83: =IF(T_NAV_AU[[#This Row],[ColourOptions]]="M","as per catalogue",IF(T_NAV_AU[[#This Row],[Colour Description]]="Pure White", "Powdercoat, as per catalogue", T_NAV_AU[[#This Row],[Colour Description]])) -> Powdercoat, as per catalogue | I83: SET | J83: =IF(T_NAV_AU[[#This Row],[CustomPricing]]<>"",T_NAV_AU[[#This Row],[CustomPricing]],T_NAV_AU[[#This Row],[AUD_Original]]) -> 60.99 | K83: 60.99 | M83: 5 | N83: 50
B84: RE01-0517-000002 | C84: N | D84: =IF(AND(OR(T_NAV_AU[[#This Row],[ColourOptions]]="M",T_NAV_AU[[#This Row],[ColourOptions]]="Y"),MID(T_NAV_AU[[#This Row],[No.]],11,3)="069"),REPLACE(T_NAV_AU[[#This Row],[No.]],11,3,"xxx"),T_NAV_AU[[#This Row],[No.]]) -> RE01-0517-000002 | E84: Gear 8:1 (20Nm)+Screws Univ Joint | F84: 000 | G84: Mill Finish | H84: =IF(T_NAV_AU[[#This Row],[ColourOptions]]="M","as per catalogue",IF(T_NAV_AU[[#This Row],[Colour Description]]="Pure White", "Powdercoat, as per catalogue", T_NAV_AU[[#This Row],[Colour Description]])) -> Mill Finish | I84: SET | J84: =IF(T_NAV_AU[[#This Row],[CustomPricing]]<>"",T_NAV_AU[[#This Row],[CustomPricing]],T_NAV_AU[[#This Row],[AUD_Original]]) -> 102.02 | K84: 102.02 | M84: 5 | N84: 50
B85: RE01-0517-050002 | C85: N | D85: =IF(AND(OR(T_NAV_AU[[#This Row],[ColourOptions]]="M",T_NAV_AU[[#This Row],[ColourOptions]]="Y"),MID(T_NAV_AU[[#This Row],[No.]],11,3)="069"),REPLACE(T_NAV_AU[[#This Row],[No.]],11,3,"xxx"),T_NAV_AU[[#This Row],[No.]]) -> RE01-0517-050002 | E85: Gear 8:1 (20Nm)+Screws Univ Joint | F85: 050 | G85: Black, Satin | H85: =IF(T_NAV_AU[[#This Row],[ColourOptions]]="M","as per catalogue",IF(T_NAV_AU[[#This Row],[Colour Description]]="Pure White", "Powdercoat, as per catalogue", T_NAV_AU[[#This Row],[Colour Description]])) -> Black, Satin | I85: SET | J85: =IF(T_NAV_AU[[#This Row],[CustomPricing]]<>"",T_NAV_AU[[#This Row],[CustomPricing]],T_NAV_AU[[#This Row],[AUD_Original]]) -> 117.89 | K85: 117.89 | M85: 5 | N85: 50
B86: RE01-0601-025000 | C86: N | D86: =IF(AND(OR(T_NAV_AU[[#This Row],[ColourOptions]]="M",T_NAV_AU[[#This Row],[ColourOptions]]="Y"),MID(T_NAV_AU[[#This Row],[No.]],11,3)="069"),REPLACE(T_NAV_AU[[#This Row],[No.]],11,3,"xxx"),T_NAV_AU[[#This Row],[No.]]) -> RE01-0601-025000 | E86: UNIVERSAL | M50 Motor Bracket + Screws | F86: 025 | G86: Silver ZINC Plated | H86: =IF(T_NAV_AU[[#This Row],[ColourOptions]]="M","as per catalogue",IF(T_NAV_AU[[#This Row],[Colour Description]]="Pure White", "Powdercoat, as per catalogue", T_NAV_AU[[#This Row],[Colour Description]])) -> Silver ZINC Plated | I86: SET | J86: =IF(T_NAV_AU[[#This Row],[CustomPricing]]<>"",T_NAV_AU[[#This Row],[CustomPricing]],T_NAV_AU[[#This Row],[AUD_Original]]) -> 4.59 | K86: 4.59 | M86: 5 | N86: 100
B87: RE01-0602-025000 | C87: N | D87: =IF(AND(OR(T_NAV_AU[[#This Row],[ColourOptions]]="M",T_NAV_AU[[#This Row],[ColourOptions]]="Y"),MID(T_NAV_AU[[#This Row],[No.]],11,3)="069"),REPLACE(T_NAV_AU[[#This Row],[No.]],11,3,"xxx"),T_NAV_AU[[#This Row],[No.]]) -> RE01-0602-025000 | E87: SOMFY | Round Head Adaptor Set + screws | F87: 025 | G87: Silver ZINC Plated | H87: =IF(T_NAV_AU[[#This Row],[ColourOptions]]="M","as per catalogue",IF(T_NAV_AU[[#This Row],[Colour Description]]="Pure White", "Powdercoat, as per catalogue", T_NAV_AU[[#This Row],[Colour Description]])) -> Silver ZINC Plated | I87: SET | J87: =IF(T_NAV_AU[[#This Row],[CustomPricing]]<>"",T_NAV_AU[[#This Row],[CustomPricing]],T_NAV_AU[[#This Row],[AUD_Original]]) -> 24.36 | K87: 24.36 | M87: 5 | N87: 100
B88: RE01-0603-025000 | C88: N | D88: =IF(AND(OR(T_NAV_AU[[#This Row],[ColourOptions]]="M",T_NAV_AU[[#This Row],[ColourOptions]]="Y"),MID(T_NAV_AU[[#This Row],[No.]],11,3)="069"),REPLACE(T_NAV_AU[[#This Row],[No.]],11,3,"xxx"),T_NAV_AU[[#This Row],[No.]]) -> RE01-0603-025000 | E88: 10mm Square Shaft + Screws | F88: 025 | G88: Silver ZINC Plated | H88: =IF(T_NAV_AU[[#This Row],[ColourOptions]]="M","as per catalogue",IF(T_NAV_AU[[#This Row],[Colour Description]]="Pure White", "Powdercoat, as per catalogue", T_NAV_AU[[#This Row],[Colour Description]])) -> Silver ZINC Plated | I88: SET | J88: =IF(T_NAV_AU[[#This Row],[CustomPricing]]<>"",T_NAV_AU[[#This Row],[CustomPricing]],T_NAV_AU[[#This Row],[AUD_Original]]) -> 3.98 | K88: 3.98 | M88: 1 | N88: 100
B89: RE01-0604-025000 | C89: N | D89: =IF(AND(OR(T_NAV_AU[[#This Row],[ColourOptions]]="M",T_NAV_AU[[#This Row],[ColourOptions]]="Y"),MID(T_NAV_AU[[#This Row],[No.]],11,3)="069"),REPLACE(T_NAV_AU[[#This Row],[No.]],11,3,"xxx"),T_NAV_AU[[#This Row],[No.]]) -> RE01-0604-025000 | E89: M50 Motor Bracket & Somfy Round H Adaptor + Screws | F89: 025 | G89: Silver ZINC Plated | H89: =IF(T_NAV_AU[[#This Row],[ColourOptions]]="M","as per catalogue",IF(T_NAV_AU[[#This Row],[Colour Description]]="Pure White", "Powdercoat, as per catalogue", T_NAV_AU[[#This Row],[Colour Description]])) -> Silver ZINC Plated | I89: SET | J89: =IF(T_NAV_AU[[#This Row],[CustomPricing]]<>"",T_NAV_AU[[#This Row],[CustomPricing]],T_NAV_AU[[#This Row],[AUD_Original]]) -> 30.16 | K89: 30.16 | M89: 5 | N89: 100
B90: RE01-0663-050003 | C90: N | D90: =IF(AND(OR(T_NAV_AU[[#This Row],[ColourOptions]]="M",T_NAV_AU[[#This Row],[ColourOptions]]="Y"),MID(T_NAV_AU[[#This Row],[No.]],11,3)="069"),REPLACE(T_NAV_AU[[#This Row],[No.]],11,3,"xxx"),T_NAV_AU[[#This Row],[No.]]) -> RE01-0663-050003 | E90: SOMFY | M50 Drive Wheel to 63mm Tube | F90: 050 | G90: Black, Satin | H90: =IF(T_NAV_AU[[#This Row],[ColourOptions]]="M","as per catalogue",IF(T_NAV_AU[[#This Row],[Colour Description]]="Pure White", "Powdercoat, as per catalogue", T_NAV_AU[[#This Row],[Colour Description]])) -> Black, Satin | I90: PIECE | J90: =IF(T_NAV_AU[[#This Row],[CustomPricing]]<>"",T_NAV_AU[[#This Row],[CustomPricing]],T_NAV_AU[[#This Row],[AUD_Original]]) -> 11.36 | K90: 11.36 | M90: 5 | N90: 100
B91: RE01-0663-050518 | C91: N | D91: =IF(AND(OR(T_NAV_AU[[#This Row],[ColourOptions]]="M",T_NAV_AU[[#This Row],[ColourOptions]]="Y"),MID(T_NAV_AU[[#This Row],[No.]],11,3)="069"),REPLACE(T_NAV_AU[[#This Row],[No.]],11,3,"xxx"),T_NAV_AU[[#This Row],[No.]]) -> RE01-0663-050518 | E91: Crown 45mm Motor to 63mm Tube | F91: 050 | G91: Black, Satin | H91: =IF(T_NAV_AU[[#This Row],[ColourOptions]]="M","as per catalogue",IF(T_NAV_AU[[#This Row],[Colour Description]]="Pure White", "Powdercoat, as per catalogue", T_NAV_AU[[#This Row],[Colour Description]])) -> Black, Satin | I91: PIECE | J91: =IF(T_NAV_AU[[#This Row],[CustomPricing]]<>"",T_NAV_AU[[#This Row],[CustomPricing]],T_NAV_AU[[#This Row],[AUD_Original]]) -> 2.05 | K91: 2.05 | M91: 5 | N91: 200
B92: RE01-0664-050003 | C92: N | D92: =IF(AND(OR(T_NAV_AU[[#This Row],[ColourOptions]]="M",T_NAV_AU[[#This Row],[ColourOptions]]="Y"),MID(T_NAV_AU[[#This Row],[No.]],11,3)="069"),REPLACE(T_NAV_AU[[#This Row],[No.]],11,3,"xxx"),T_NAV_AU[[#This Row],[No.]]) -> RE01-0664-050003 | E92: SOMFY | M50 Crown Wheel to 63mm Tube | F92: 050 | G92: Black, Satin | H92: =IF(T_NAV_AU[[#This Row],[ColourOptions]]="M","as per catalogue",IF(T_NAV_AU[[#This Row],[Colour Description]]="Pure White", "Powdercoat, as per catalogue", T_NAV_AU[[#This Row],[Colour Description]])) -> Black, Satin | I92: PIECE | J92: =IF(T_NAV_AU[[#This Row],[CustomPricing]]<>"",T_NAV_AU[[#This Row],[CustomPricing]],T_NAV_AU[[#This Row],[AUD_Original]]) -> 8.03 | K92: 8.03 | M92: 5 | N92: 100
B93: RE01-0664-050508 | C93: N | D93: =IF(AND(OR(T_NAV_AU[[#This Row],[ColourOptions]]="M",T_NAV_AU[[#This Row],[ColourOptions]]="Y"),MID(T_NAV_AU[[#This Row],[No.]],11,3)="069"),REPLACE(T_NAV_AU[[#This Row],[No.]],11,3,"xxx"),T_NAV_AU[[#This Row],[No.]]) -> RE01-0664-050508 | E93: Drive Wheel 45mm Motor to 63mm Tube | F93: 050 | G93: Black, Satin | H93: =IF(T_NAV_AU[[#This Row],[ColourOptions]]="M","as per catalogue",IF(T_NAV_AU[[#This Row],[Colour Description]]="Pure White", "Powdercoat, as per catalogue", T_NAV_AU[[#This Row],[Colour Description]])) -> Black, Satin | I93: PIECE | J93: =IF(T_NAV_AU[[#This Row],[CustomPricing]]<>"",T_NAV_AU[[#This Row],[CustomPricing]],T_NAV_AU[[#This Row],[AUD_Original]]) -> 4.13 | K93: 4.13 | M93: 5 | N93: 50
B94: RE01-0666-050508 | C94: N | D94: =IF(AND(OR(T_NAV_AU[[#This Row],[ColourOptions]]="M",T_NAV_AU[[#This Row],[ColourOptions]]="Y"),MID(T_NAV_AU[[#This Row],[No.]],11,3)="069"),REPLACE(T_NAV_AU[[#This Row],[No.]],11,3,"xxx"),T_NAV_AU[[#This Row],[No.]]) -> RE01-0666-050508 | E94: Drive Wheel FT 45mm Motor to 63mm Tube | Impct Det | F94: 050 | G94: Black, Satin | H94: =IF(T_NAV_AU[[#This Row],[ColourOptions]]="M","as per catalogue",IF(T_NAV_AU[[#This Row],[Colour Description]]="Pure White", "Powdercoat, as per catalogue", T_NAV_AU[[#This Row],[Colour Description]])) -> Black, Satin | I94: PIECE | J94: =IF(T_NAV_AU[[#This Row],[CustomPricing]]<>"",T_NAV_AU[[#This Row],[CustomPricing]],T_NAV_AU[[#This Row],[AUD_Original]]) -> 4.13 | K94: 4.13 | M94: 5 | N94: 100
B95: RE01-0666-050518 | C95: N | D95: =IF(AND(OR(T_NAV_AU[[#This Row],[ColourOptions]]="M",T_NAV_AU[[#This Row],[ColourOptions]]="Y"),MID(T_NAV_AU[[#This Row],[No.]],11,3)="069"),REPLACE(T_NAV_AU[[#This Row],[No.]],11,3,"xxx"),T_NAV_AU[[#This Row],[No.]]) -> RE01-0666-050518 | E95: Drive Wheel & Insert 45mm Motor to 63mm Tube | F95: 050 | G95: Black, Satin | H95: =IF(T_NAV_AU[[#This Row],[ColourOptions]]="M","as per catalogue",IF(T_NAV_AU[[#This Row],[Colour Description]]="Pure White", "Powdercoat, as per catalogue", T_NAV_AU[[#This Row],[Colour Description]])) -> Black, Satin | I95: SET | J95: =IF(T_NAV_AU[[#This Row],[CustomPricing]]<>"",T_NAV_AU[[#This Row],[CustomPricing]],T_NAV_AU[[#This Row],[AUD_Original]]) -> 5.04 | K95: 5.04 | M95: 5 | N95: 100
B96: RE01-0678-050003 | C96: N | D96: =IF(AND(OR(T_NAV_AU[[#This Row],[ColourOptions]]="M",T_NAV_AU[[#This Row],[ColourOptions]]="Y"),MID(T_NAV_AU[[#This Row],[No.]],11,3)="069"),REPLACE(T_NAV_AU[[#This Row],[No.]],11,3,"xxx"),T_NAV_AU[[#This Row],[No.]]) -> RE01-0678-050003 | E96: SOMFY | Drive Wheel 78mm Tube | F96: 050 | G96: Black, Satin | H96: =IF(T_NAV_AU[[#This Row],[ColourOptions]]="M","as per catalogue",IF(T_NAV_AU[[#This Row],[Colour Description]]="Pure White", "Powdercoat, as per catalogue", T_NAV_AU[[#This Row],[Colour Description]])) -> Black, Satin | I96: PIECE | J96: =IF(T_NAV_AU[[#This Row],[CustomPricing]]<>"",T_NAV_AU[[#This Row],[CustomPricing]],T_NAV_AU[[#This Row],[AUD_Original]]) -> 14.57 | K96: 14.57 | M96: 5 | N96: 100
B97: RE01-0678-050508 | C97: N | D97: =IF(AND(OR(T_NAV_AU[[#This Row],[ColourOptions]]="M",T_NAV_AU[[#This Row],[ColourOptions]]="Y"),MID(T_NAV_AU[[#This Row],[No.]],11,3)="069"),REPLACE(T_NAV_AU[[#This Row],[No.]],11,3,"xxx"),T_NAV_AU[[#This Row],[No.]]) -> RE01-0678-050508 | E97: Crown Wheel 45mm Motor to 78mm Tube | F97: 050 | G97: Black, Satin | H97: =IF(T_NAV_AU[[#This Row],[ColourOptions]]="M","as per catalogue",IF(T_NAV_AU[[#This Row],[Colour Description]]="Pure White", "Powdercoat, as per catalogue", T_NAV_AU[[#This Row],[Colour Description]])) -> Black, Satin | I97: PIECE | J97: =IF(T_NAV_AU[[#This Row],[CustomPricing]]<>"",T_NAV_AU[[#This Row],[CustomPricing]],T_NAV_AU[[#This Row],[AUD_Original]]) -> 1.78 | K97: 1.78 | M97: 5 | N97: 50
B98: RE01-0679-050508 | C98: N | D98: =IF(AND(OR(T_NAV_AU[[#This Row],[ColourOptions]]="M",T_NAV_AU[[#This Row],[ColourOptions]]="Y"),MID(T_NAV_AU[[#This Row],[No.]],11,3)="069"),REPLACE(T_NAV_AU[[#This Row],[No.]],11,3,"xxx"),T_NAV_AU[[#This Row],[No.]]) -> RE01-0679-050508 | E98: Drive Wheel 45mm Motor to 78mm Tube | F98: 050 | G98: Black, Satin | H98: =IF(T_NAV_AU[[#This Row],[ColourOptions]]="M","as per catalogue",IF(T_NAV_AU[[#This Row],[Colour Description]]="Pure White", "Powdercoat, as per catalogue", T_NAV_AU[[#This Row],[Colour Description]])) -> Black, Satin | I98: PIECE | J98: =IF(T_NAV_AU[[#This Row],[CustomPricing]]<>"",T_NAV_AU[[#This Row],[CustomPricing]],T_NAV_AU[[#This Row],[AUD_Original]]) -> 4.62 | K98: 4.62 | M98: 5 | N98: 50
B99: RE01-0680-050508 | C99: N | D99: =IF(AND(OR(T_NAV_AU[[#This Row],[ColourOptions]]="M",T_NAV_AU[[#This Row],[ColourOptions]]="Y"),MID(T_NAV_AU[[#This Row],[No.]],11,3)="069"),REPLACE(T_NAV_AU[[#This Row],[No.]],11,3,"xxx"),T_NAV_AU[[#This Row],[No.]]) -> RE01-0680-050508 | E99: Drive Wheel Impact Detect 45mm Motor to 78mm Tube | F99: 050 | G99: Black, Satin | H99: =IF(T_NAV_AU[[#This Row],[ColourOptions]]="M","as per catalogue",IF(T_NAV_AU[[#This Row],[Colour Description]]="Pure White", "Powdercoat, as per catalogue", T_NAV_AU[[#This Row],[Colour Description]])) -> Black, Satin | I99: PIECE | J99: =IF(T_NAV_AU[[#This Row],[CustomPricing]]<>"",T_NAV_AU[[#This Row],[CustomPricing]],T_NAV_AU[[#This Row],[AUD_Original]]) -> 4.13 | K99: 4.13 | M99: 5 | N99: 100
B100: RE01-0701-050078 | C100: N | D100: =IF(AND(OR(T_NAV_AU[[#This Row],[ColourOptions]]="M",T_NAV_AU[[#This Row],[ColourOptions]]="Y"),MID(T_NAV_AU[[#This Row],[No.]],11,3)="069"),REPLACE(T_NAV_AU[[#This Row],[No.]],11,3,"xxx"),T_NAV_AU[[#This Row],[No.]]) -> RE01-0701-050078 | E100: 78mm Tube Adaptor | F100: 050 | G100: Black, Satin | H100: =IF(T_NAV_AU[[#This Row],[ColourOptions]]="M","as per catalogue",IF(T_NAV_AU[[#This Row],[Colour Description]]="Pure White", "Powdercoat, as per catalogue", T_NAV_AU[[#This Row],[Colour Description]])) -> Black, Satin | I100: PIECE | J100: =IF(T_NAV_AU[[#This Row],[CustomPricing]]<>"",T_NAV_AU[[#This Row],[CustomPricing]],T_NAV_AU[[#This Row],[AUD_Original]]) -> 2.09 | K100: 2.09 | M100: 5 | N100: 100
B101: RE01-1101-000120 | C101: N | D101: =IF(AND(OR(T_NAV_AU[[#This Row],[ColourOptions]]="M",T_NAV_AU[[#This Row],[ColourOptions]]="Y"),MID(T_NAV_AU[[#This Row],[No.]],11,3)="069"),REPLACE(T_NAV_AU[[#This Row],[No.]],11,3,"xxx"),T_NAV_AU[[#This Row],[No.]]) -> RE01-1101-000120 | E101: BOX 120 End Plate Set + Screws | F101: 000 | G101: Mill Finish | H101: =IF(T_NAV_AU[[#This Row],[ColourOptions]]="M","as per catalogue",IF(T_NAV_AU[[#This Row],[Colour Description]]="Pure White", "Powdercoat, as per catalogue", T_NAV_AU[[#This Row],[Colour Description]])) -> Mill Finish | I101: PAIR | J101: =IF(T_NAV_AU[[#This Row],[CustomPricing]]<>"",T_NAV_AU[[#This Row],[CustomPricing]],T_NAV_AU[[#This Row],[AUD_Original]]) -> 40 | K101: 40 | M101: 4 | N101: 16
B102: RE01-1101-069120 | C102: Y | D102: =IF(AND(OR(T_NAV_AU[[#This Row],[ColourOptions]]="M",T_NAV_AU[[#This Row],[ColourOptions]]="Y"),MID(T_NAV_AU[[#This Row],[No.]],11,3)="069"),REPLACE(T_NAV_AU[[#This Row],[No.]],11,3,"xxx"),T_NAV_AU[[#This Row],[No.]]) -> RE01-1101-xxx120 | E102: BOX 120 End Plate Set + Screws | F102: 069 | G102: Pure White | H102: =IF(T_NAV_AU[[#This Row],[ColourOptions]]="M","as per catalogue",IF(T_NAV_AU[[#This Row],[Colour Description]]="Pure White", "Powdercoat, as per catalogue", T_NAV_AU[[#This Row],[Colour Description]])) -> Powdercoat, as per catalogue | I102: PAIR | J102: =IF(T_NAV_AU[[#This Row],[CustomPricing]]<>"",T_NAV_AU[[#This Row],[CustomPricing]],T_NAV_AU[[#This Row],[AUD_Original]]) -> 43.74 | K102: 43.74 | M102: 4 | N102: 16
B103: RE01-1105-000001 | C103: N | D103: =IF(AND(OR(T_NAV_AU[[#This Row],[ColourOptions]]="M",T_NAV_AU[[#This Row],[ColourOptions]]="Y"),MID(T_NAV_AU[[#This Row],[No.]],11,3)="069"),REPLACE(T_NAV_AU[[#This Row],[No.]],11,3,"xxx"),T_NAV_AU[[#This Row],[No.]]) -> RE01-1105-000001 | E103: BOX 190 – End Plates & Screws Only | F103: 000 | G103: Mill Finish | H103: =IF(T_NAV_AU[[#This Row],[ColourOptions]]="M","as per catalogue",IF(T_NAV_AU[[#This Row],[Colour Description]]="Pure White", "Powdercoat, as per catalogue", T_NAV_AU[[#This Row],[Colour Description]])) -> Mill Finish | I103: SET | J103: =IF(T_NAV_AU[[#This Row],[CustomPricing]]<>"",T_NAV_AU[[#This Row],[CustomPricing]],T_NAV_AU[[#This Row],[AUD_Original]]) -> 261.86 | K103: 261.86 | M103: 1 | N103: 5
B104: RE01-1105-018001 | C104: N | D104: =IF(AND(OR(T_NAV_AU[[#This Row],[ColourOptions]]="M",T_NAV_AU[[#This Row],[ColourOptions]]="Y"),MID(T_NAV_AU[[#This Row],[No.]],11,3)="069"),REPLACE(T_NAV_AU[[#This Row],[No.]],11,3,"xxx"),T_NAV_AU[[#This Row],[No.]]) -> RE01-1105-018001 | E104: BOX 190 – End Plates & Screws Only | F104: 018 | G104: Anodised 20 | H104: =IF(T_NAV_AU[[#This Row],[ColourOptions]]="M","as per catalogue",IF(T_NAV_AU[[#This Row],[Colour Description]]="Pure White", "Powdercoat, as per catalogue", T_NAV_AU[[#This Row],[Colour Description]])) -> Anodised 20 | I104: SET | J104: =IF(T_NAV_AU[[#This Row],[CustomPricing]]<>"",T_NAV_AU[[#This Row],[CustomPricing]],T_NAV_AU[[#This Row],[AUD_Original]]) -> 321.38 | K104: 321.38 | M104: 1 | N104: 5
B105: RE01-1105-020100 | C105: N | D105: =IF(AND(OR(T_NAV_AU[[#This Row],[ColourOptions]]="M",T_NAV_AU[[#This Row],[ColourOptions]]="Y"),MID(T_NAV_AU[[#This Row],[No.]],11,3)="069"),REPLACE(T_NAV_AU[[#This Row],[No.]],11,3,"xxx"),T_NAV_AU[[#This Row],[No.]]) -> RE01-1105-020100 | E105: BOX 190 - Universal Bracket Extrusion | 100mm | F105: 020 | G105: Anodised 15 | H105: =IF(T_NAV_AU[[#This Row],[ColourOptions]]="M","as per catalogue",IF(T_NAV_AU[[#This Row],[Colour Description]]="Pure White", "Powdercoat, as per catalogue", T_NAV_AU[[#This Row],[Colour Description]])) -> Anodised 15 | I105: PIECE | J105: =IF(T_NAV_AU[[#This Row],[CustomPricing]]<>"",T_NAV_AU[[#This Row],[CustomPricing]],T_NAV_AU[[#This Row],[AUD_Original]]) -> 41.66 | K105: 41.66 | M105: 2 | N105: 10
B106: RE01-1105-069001 | C106: Y | D106: =IF(AND(OR(T_NAV_AU[[#This Row],[ColourOptions]]="M",T_NAV_AU[[#This Row],[ColourOptions]]="Y"),MID(T_NAV_AU[[#This Row],[No.]],11,3)="069"),REPLACE(T_NAV_AU[[#This Row],[No.]],11,3,"xxx"),T_NAV_AU[[#This Row],[No.]]) -> RE01-1105-xxx001 | E106: BOX 190 – End Plates & Screws Only | F106: 069 | G106: Pure White | H106: =IF(T_NAV_AU[[#This Row],[ColourOptions]]="M","as per catalogue",IF(T_NAV_AU[[#This Row],[Colour Description]]="Pure White", "Powdercoat, as per catalogue", T_NAV_AU[[#This Row],[Colour Description]])) -> Powdercoat, as per catalogue | I106: SET | J106: =IF(T_NAV_AU[[#This Row],[CustomPricing]]<>"",T_NAV_AU[[#This Row],[CustomPricing]],T_NAV_AU[[#This Row],[AUD_Original]]) -> 267.81 | K106: 267.81 | M106: 1 | N106: 5
B107: RE01-3020-025000 | C107: N | D107: =IF(AND(OR(T_NAV_AU[[#This Row],[ColourOptions]]="M",T_NAV_AU[[#This Row],[ColourOptions]]="Y"),MID(T_NAV_AU[[#This Row],[No.]],11,3)="069"),REPLACE(T_NAV_AU[[#This Row],[No.]],11,3,"xxx"),T_NAV_AU[[#This Row],[No.]]) -> RE01-3020-025000 | E107: Open Blind External Brackets | F107: 025 | G107: Silver ZINC Plated | H107: =IF(T_NAV_AU[[#This Row],[ColourOptions]]="M","as per catalogue",IF(T_NAV_AU[[#This Row],[Colour Description]]="Pure White", "Powdercoat, as per catalogue", T_NAV_AU[[#This Row],[Colour Description]])) -> Silver ZINC Plated | I107: SET | J107: =IF(T_NAV_AU[[#This Row],[CustomPricing]]<>"",T_NAV_AU[[#This Row],[CustomPricing]],T_NAV_AU[[#This Row],[AUD_Original]]) -> 19.04 | K107: 19.04 | M107: 2 | N107: 20
B108: RE01-3020-069000 | C108: Y | D108: =IF(AND(OR(T_NAV_AU[[#This Row],[ColourOptions]]="M",T_NAV_AU[[#This Row],[ColourOptions]]="Y"),MID(T_NAV_AU[[#This Row],[No.]],11,3)="069"),REPLACE(T_NAV_AU[[#This Row],[No.]],11,3,"xxx"),T_NAV_AU[[#This Row],[No.]]) -> RE01-3020-xxx000 | E108: Open Blind External Brackets | F108: 069 | G108: Pure White | H108: =IF(T_NAV_AU[[#This Row],[ColourOptions]]="M","as per catalogue",IF(T_NAV_AU[[#This Row],[Colour Description]]="Pure White", "Powdercoat, as per catalogue", T_NAV_AU[[#This Row],[Colour Description]])) -> Powdercoat, as per catalogue | I108: SET | J108: =IF(T_NAV_AU[[#This Row],[CustomPricing]]<>"",T_NAV_AU[[#This Row],[CustomPricing]],T_NAV_AU[[#This Row],[AUD_Original]]) -> 19.04 | K108: 19.04 | M108: 2 | N108: 20
B109: RE01-3021-012000 | C109: N | D109: =IF(AND(OR(T_NAV_AU[[#This Row],[ColourOptions]]="M",T_NAV_AU[[#This Row],[ColourOptions]]="Y"),MID(T_NAV_AU[[#This Row],[No.]],11,3)="069"),REPLACE(T_NAV_AU[[#This Row],[No.]],11,3,"xxx"),T_NAV_AU[[#This Row],[No.]]) -> RE01-3021-012000 | E109: Open Blind External Brackets - Stainless 304 | F109: 012 | G109: S/S 304, Satin | H109: =IF(T_NAV_AU[[#This Row],[ColourOptions]]="M","as per catalogue",IF(T_NAV_AU[[#This Row],[Colour Description]]="Pure White", "Powdercoat, as per catalogue", T_NAV_AU[[#This Row],[Colour Description]])) -> S/S 304, Satin | I109: SET | J109: =IF(T_NAV_AU[[#This Row],[CustomPricing]]<>"",T_NAV_AU[[#This Row],[CustomPricing]],T_NAV_AU[[#This Row],[AUD_Original]]) -> 47.61 | K109: 47.61 | M109: 2 | N109: 20
B110: RE01-3030-025000 | C110: N | D110: =IF(AND(OR(T_NAV_AU[[#This Row],[ColourOptions]]="M",T_NAV_AU[[#This Row],[ColourOptions]]="Y"),MID(T_NAV_AU[[#This Row],[No.]],11,3)="069"),REPLACE(T_NAV_AU[[#This Row],[No.]],11,3,"xxx"),T_NAV_AU[[#This Row],[No.]]) -> RE01-3030-025000 | E110: Open Blind External Brackets | SQUARE | F110: 025 | G110: Silver ZINC Plated | H110: =IF(T_NAV_AU[[#This Row],[ColourOptions]]="M","as per catalogue",IF(T_NAV_AU[[#This Row],[Colour Description]]="Pure White", "Powdercoat, as per catalogue", T_NAV_AU[[#This Row],[Colour Description]])) -> Silver ZINC Plated | I110: SET | J110: =IF(T_NAV_AU[[#This Row],[CustomPricing]]<>"",T_NAV_AU[[#This Row],[CustomPricing]],T_NAV_AU[[#This Row],[AUD_Original]]) -> 22.56 | K110: 22.56 | M110: 2 | N110: 16
B111: RE01-3030-069000 | C111: Y | D111: =IF(AND(OR(T_NAV_AU[[#This Row],[ColourOptions]]="M",T_NAV_AU[[#This Row],[ColourOptions]]="Y"),MID(T_NAV_AU[[#This Row],[No.]],11,3)="069"),REPLACE(T_NAV_AU[[#This Row],[No.]],11,3,"xxx"),T_NAV_AU[[#This Row],[No.]]) -> RE01-3030-xxx000 | E111: Open Blind External Brackets | SQUARE | F111: 069 | G111: Pure White | H111: =IF(T_NAV_AU[[#This Row],[ColourOptions]]="M","as per catalogue",IF(T_NAV_AU[[#This Row],[Colour Description]]="Pure White", "Powdercoat, as per catalogue", T_NAV_AU[[#This Row],[Colour Description]])) -> Powdercoat, as per catalogue | I111: SET | J111: =IF(T_NAV_AU[[#This Row],[CustomPricing]]<>"",T_NAV_AU[[#This Row],[CustomPricing]],T_NAV_AU[[#This Row],[AUD_Original]]) -> 22.56 | K111: 22.56 | M111: 2 | N111: 16
B112: RE01-3031-012000 | C112: N | D112: =IF(AND(OR(T_NAV_AU[[#This Row],[ColourOptions]]="M",T_NAV_AU[[#This Row],[ColourOptions]]="Y"),MID(T_NAV_AU[[#This Row],[No.]],11,3)="069"),REPLACE(T_NAV_AU[[#This Row],[No.]],11,3,"xxx"),T_NAV_AU[[#This Row],[No.]]) -> RE01-3031-012000 | E112: Open Blind External Brackets | SQUARE - SS304 | F112: 012 | G112: S/S 304, Satin | H112: =IF(T_NAV_AU[[#This Row],[ColourOptions]]="M","as per catalogue",IF(T_NAV_AU[[#This Row],[Colour Description]]="Pure White", "Powdercoat, as per catalogue", T_NAV_AU[[#This Row],[Colour Description]])) -> S/S 304, Satin | I112: SET | J112: =IF(T_NAV_AU[[#This Row],[CustomPricing]]<>"",T_NAV_AU[[#This Row],[CustomPricing]],T_NAV_AU[[#This Row],[AUD_Original]]) -> 56.57 | K112: 56.57 | M112: 2 | N112: 16
B113: RE15-0101-000580 | C113: N | D113: =IF(AND(OR(T_NAV_AU[[#This Row],[ColourOptions]]="M",T_NAV_AU[[#This Row],[ColourOptions]]="Y"),MID(T_NAV_AU[[#This Row],[No.]],11,3)="069"),REPLACE(T_NAV_AU[[#This Row],[No.]],11,3,"xxx"),T_NAV_AU[[#This Row],[No.]]) -> RE15-0101-000580 | E113: F56 HD Weight Bar | 26mm x 56mm x 5.8m | F113: 000 | G113: Mill Finish | H113: =IF(T_NAV_AU[[#This Row],[ColourOptions]]="M","as per catalogue",IF(T_NAV_AU[[#This Row],[Colour Description]]="Pure White", "Powdercoat, as per catalogue", T_NAV_AU[[#This Row],[Colour Description]])) -> Mill Finish | I113: LENGTH | J113: =IF(T_NAV_AU[[#This Row],[CustomPricing]]<>"",T_NAV_AU[[#This Row],[CustomPricing]],T_NAV_AU[[#This Row],[AUD_Original]]) -> 118.47 | K113: 118.47 | M113: 2 | N113: 48
B114: RE15-0101-018580 | C114: N | D114: =IF(AND(OR(T_NAV_AU[[#This Row],[ColourOptions]]="M",T_NAV_AU[[#This Row],[ColourOptions]]="Y"),MID(T_NAV_AU[[#This Row],[No.]],11,3)="069"),REPLACE(T_NAV_AU[[#This Row],[No.]],11,3,"xxx"),T_NAV_AU[[#This Row],[No.]]) -> RE15-0101-018580 | E114: F56 HD Weight Bar | 26mm x 56mm x 5.8m | F114: 018 | G114: Anodised 20 | H114: =IF(T_NAV_AU[[#This Row],[ColourOptions]]="M","as per catalogue",IF(T_NAV_AU[[#This Row],[Colour Description]]="Pure White", "Powdercoat, as per catalogue", T_NAV_AU[[#This Row],[Colour Description]])) -> Anodised 20 | I114: LENGTH | J114: =IF(T_NAV_AU[[#This Row],[CustomPricing]]<>"",T_NAV_AU[[#This Row],[CustomPricing]],T_NAV_AU[[#This Row],[AUD_Original]]) -> 162.1 | K114: 162.1 | M114: 2 | N114: 48
B115: RE15-0101-069580-PF | C115: Y | D115: =IF(AND(OR(T_NAV_AU[[#This Row],[ColourOptions]]="M",T_NAV_AU[[#This Row],[ColourOptions]]="Y"),MID(T_NAV_AU[[#This Row],[No.]],11,3)="069"),REPLACE(T_NAV_AU[[#This Row],[No.]],11,3,"xxx"),T_NAV_AU[[#This Row],[No.]]) -> RE15-0101-xxx580-PF | E115: F56 HD Weight Bar w/ PF | 26mm x 56mm x 5.8m | F115: 069 | G115: Pure White | H115: =IF(T_NAV_AU[[#This Row],[ColourOptions]]="M","as per catalogue",IF(T_NAV_AU[[#This Row],[Colour Description]]="Pure White", "Powdercoat, as per catalogue", T_NAV_AU[[#This Row],[Colour Description]])) -> Powdercoat, as per catalogue | I115: LENGTH | J115: =IF(T_NAV_AU[[#This Row],[CustomPricing]]<>"",T_NAV_AU[[#This Row],[CustomPricing]],T_NAV_AU[[#This Row],[AUD_Original]]) -> 162.1 | K115: 162.1 | M115: 2 | N115: 48
B116: RE15-0112-000700 | C116: N | D116: =IF(AND(OR(T_NAV_AU[[#This Row],[ColourOptions]]="M",T_NAV_AU[[#This Row],[ColourOptions]]="Y"),MID(T_NAV_AU[[#This Row],[No.]],11,3)="069"),REPLACE(T_NAV_AU[[#This Row],[No.]],11,3,"xxx"),T_NAV_AU[[#This Row],[No.]]) -> RE15-0112-000700 | E116: F72 HD Weight Bar | 31mm x 72mm x 7m | F116: 000 | G116: Mill Finish | H116: =IF(T_NAV_AU[[#This Row],[ColourOptions]]="M","as per catalogue",IF(T_NAV_AU[[#This Row],[Colour Description]]="Pure White", "Powdercoat, as per catalogue", T_NAV_AU[[#This Row],[Colour Description]])) -> Mill Finish | I116: LENGTH | J116: =IF(T_NAV_AU[[#This Row],[CustomPricing]]<>"",T_NAV_AU[[#This Row],[CustomPricing]],T_NAV_AU[[#This Row],[AUD_Original]]) -> 271.84 | K116: 271.84 | M116: 1 | N116: 36
B117: RE15-0112-018700 | C117: N | D117: =IF(AND(OR(T_NAV_AU[[#This Row],[ColourOptions]]="M",T_NAV_AU[[#This Row],[ColourOptions]]="Y"),MID(T_NAV_AU[[#This Row],[No.]],11,3)="069"),REPLACE(T_NAV_AU[[#This Row],[No.]],11,3,"xxx"),T_NAV_AU[[#This Row],[No.]]) -> RE15-0112-018700 | E117: F72 HD Weight Bar | 31mm x 72mm x 7m | F117: 018 | G117: Anodised 20 | H117: =IF(T_NAV_AU[[#This Row],[ColourOptions]]="M","as per catalogue",IF(T_NAV_AU[[#This Row],[Colour Description]]="Pure White", "Powdercoat, as per catalogue", T_NAV_AU[[#This Row],[Colour Description]])) -> Anodised 20 | I117: LENGTH | J117: =IF(T_NAV_AU[[#This Row],[CustomPricing]]<>"",T_NAV_AU[[#This Row],[CustomPricing]],T_NAV_AU[[#This Row],[AUD_Original]]) -> 409 | K117: 409 | M117: 1 | N117: 36
B118: RE15-0112-069700-PF | C118: Y | D118: =IF(AND(OR(T_NAV_AU[[#This Row],[ColourOptions]]="M",T_NAV_AU[[#This Row],[ColourOptions]]="Y"),MID(T_NAV_AU[[#This Row],[No.]],11,3)="069"),REPLACE(T_NAV_AU[[#This Row],[No.]],11,3,"xxx"),T_NAV_AU[[#This Row],[No.]]) -> RE15-0112-xxx700-PF | E118: F72 HD Weight Bar w/ PF | 31mm x 72mm x 7m | F118: 069 | G118: Pure White | H118: =IF(T_NAV_AU[[#This Row],[ColourOptions]]="M","as per catalogue",IF(T_NAV_AU[[#This Row],[Colour Description]]="Pure White", "Powdercoat, as per catalogue", T_NAV_AU[[#This Row],[Colour Description]])) -> Powdercoat, as per catalogue | I118: LENGTH | J118: =IF(T_NAV_AU[[#This Row],[CustomPricing]]<>"",T_NAV_AU[[#This Row],[CustomPricing]],T_NAV_AU[[#This Row],[AUD_Original]]) -> 346.65 | K118: 346.65 | M118: 1 | N118: 36
B119: RE15-0411-016000 | C119: N | D119: =IF(AND(OR(T_NAV_AU[[#This Row],[ColourOptions]]="M",T_NAV_AU[[#This Row],[ColourOptions]]="Y"),MID(T_NAV_AU[[#This Row],[No.]],11,3)="069"),REPLACE(T_NAV_AU[[#This Row],[No.]],11,3,"xxx"),T_NAV_AU[[#This Row],[No.]]) -> RE15-0411-016000 | E119: Wire Guide Ultra Lock Set | F119: 016 | G119: S/S 316, Satin | H119: =IF(T_NAV_AU[[#This Row],[ColourOptions]]="M","as per catalogue",IF(T_NAV_AU[[#This Row],[Colour Description]]="Pure White", "Powdercoat, as per catalogue", T_NAV_AU[[#This Row],[Colour Description]])) -> S/S 316, Satin | I119: SET | J119: =IF(T_NAV_AU[[#This Row],[CustomPricing]]<>"",T_NAV_AU[[#This Row],[CustomPricing]],T_NAV_AU[[#This Row],[AUD_Original]]) -> 29.75 | K119: 29.75 | M119: 5 | N119: 200
B120: RE15-0422-050001 | C120: N | D120: =IF(AND(OR(T_NAV_AU[[#This Row],[ColourOptions]]="M",T_NAV_AU[[#This Row],[ColourOptions]]="Y"),MID(T_NAV_AU[[#This Row],[No.]],11,3)="069"),REPLACE(T_NAV_AU[[#This Row],[No.]],11,3,"xxx"),T_NAV_AU[[#This Row],[No.]]) -> RE15-0422-050001 | E120: ULTRA Lock V2 - Kit Assembly (Pin & Latch Only) | F120: 050 | G120: Black, Satin | H120: =IF(T_NAV_AU[[#This Row],[ColourOptions]]="M","as per catalogue",IF(T_NAV_AU[[#This Row],[Colour Description]]="Pure White", "Powdercoat, as per catalogue", T_NAV_AU[[#This Row],[Colour Description]])) -> Black, Satin | I120: KIT | J120: =IF(T_NAV_AU[[#This Row],[CustomPricing]]<>"",T_NAV_AU[[#This Row],[CustomPricing]],T_NAV_AU[[#This Row],[AUD_Original]]) -> 41.94 | K120: 41.94 | M120: 5 | N120: 50
B121: RE15-0501-050000 | C121: N | D121: =IF(AND(OR(T_NAV_AU[[#This Row],[ColourOptions]]="M",T_NAV_AU[[#This Row],[ColourOptions]]="Y"),MID(T_NAV_AU[[#This Row],[No.]],11,3)="069"),REPLACE(T_NAV_AU[[#This Row],[No.]],11,3,"xxx"),T_NAV_AU[[#This Row],[No.]]) -> RE15-0501-050000 | E121: F56 Weight Bar Plain End Cap Set + Screws | F121: 050 | G121: Black, Satin | H121: =IF(T_NAV_AU[[#This Row],[ColourOptions]]="M","as per catalogue",IF(T_NAV_AU[[#This Row],[Colour Description]]="Pure White", "Powdercoat, as per catalogue", T_NAV_AU[[#This Row],[Colour Description]])) -> Black, Satin | I121: SET | J121: =IF(T_NAV_AU[[#This Row],[CustomPricing]]<>"",T_NAV_AU[[#This Row],[CustomPricing]],T_NAV_AU[[#This Row],[AUD_Original]]) -> 2.98 | K121: 2.98 | M121: 5 | N121: 200
B122: RE15-0512-069000 | C122: M | D122: =IF(AND(OR(T_NAV_AU[[#This Row],[ColourOptions]]="M",T_NAV_AU[[#This Row],[ColourOptions]]="Y"),MID(T_NAV_AU[[#This Row],[No.]],11,3)="069"),REPLACE(T_NAV_AU[[#This Row],[No.]],11,3,"xxx"),T_NAV_AU[[#This Row],[No.]]) -> RE15-0512-xxx000 | E122: F72 Multi-Bar End Cap | Zip | F122: 069 | G122: Pure White | H122: =IF(T_NAV_AU[[#This Row],[ColourOptions]]="M","as per catalogue",IF(T_NAV_AU[[#This Row],[Colour Description]]="Pure White", "Powdercoat, as per catalogue", T_NAV_AU[[#This Row],[Colour Description]])) -> as per catalogue | I122: SET | J122: =IF(T_NAV_AU[[#This Row],[CustomPricing]]<>"",T_NAV_AU[[#This Row],[CustomPricing]],T_NAV_AU[[#This Row],[AUD_Original]]) -> 11.34 | K122: 11.34 | M122: 5 | N122: 200
B123: RE15-0522-069000 | C123: M | D123: =IF(AND(OR(T_NAV_AU[[#This Row],[ColourOptions]]="M",T_NAV_AU[[#This Row],[ColourOptions]]="Y"),MID(T_NAV_AU[[#This Row],[No.]],11,3)="069"),REPLACE(T_NAV_AU[[#This Row],[No.]],11,3,"xxx"),T_NAV_AU[[#This Row],[No.]]) -> RE15-0522-xxx000 | E123: F72 Multi-Bar End Caps | Wire Guide + screws | F123: 069 | G123: Pure White | H123: =IF(T_NAV_AU[[#This Row],[ColourOptions]]="M","as per catalogue",IF(T_NAV_AU[[#This Row],[Colour Description]]="Pure White", "Powdercoat, as per catalogue", T_NAV_AU[[#This Row],[Colour Description]])) -> as per catalogue | I123: SET | J123: =IF(T_NAV_AU[[#This Row],[CustomPricing]]<>"",T_NAV_AU[[#This Row],[CustomPricing]],T_NAV_AU[[#This Row],[AUD_Original]]) -> 45.23 | K123: 45.23 | M123: 5 | N123: 200
B124: RE15-0540-050000 | C124: N | D124: =IF(AND(OR(T_NAV_AU[[#This Row],[ColourOptions]]="M",T_NAV_AU[[#This Row],[ColourOptions]]="Y"),MID(T_NAV_AU[[#This Row],[No.]],11,3)="069"),REPLACE(T_NAV_AU[[#This Row],[No.]],11,3,"xxx"),T_NAV_AU[[#This Row],[No.]]) -> RE15-0540-050000 | E124: F72 Plain End Cap Set + Screws | F124: 050 | G124: Black, Satin | H124: =IF(T_NAV_AU[[#This Row],[ColourOptions]]="M","as per catalogue",IF(T_NAV_AU[[#This Row],[Colour Description]]="Pure White", "Powdercoat, as per catalogue", T_NAV_AU[[#This Row],[Colour Description]])) -> Black, Satin | I124: SET | J124: =IF(T_NAV_AU[[#This Row],[CustomPricing]]<>"",T_NAV_AU[[#This Row],[CustomPricing]],T_NAV_AU[[#This Row],[AUD_Original]]) -> 6.69 | K124: 6.69 | M124: 5 | N124: 200
B125: RE15-0601-069001 | C125: M | D125: =IF(AND(OR(T_NAV_AU[[#This Row],[ColourOptions]]="M",T_NAV_AU[[#This Row],[ColourOptions]]="Y"),MID(T_NAV_AU[[#This Row],[No.]],11,3)="069"),REPLACE(T_NAV_AU[[#This Row],[No.]],11,3,"xxx"),T_NAV_AU[[#This Row],[No.]]) -> RE15-0601-xxx001 | E125: F56 Wire Guide End Cap Set + screws | F125: 069 | G125: Pure White | H125: =IF(T_NAV_AU[[#This Row],[ColourOptions]]="M","as per catalogue",IF(T_NAV_AU[[#This Row],[Colour Description]]="Pure White", "Powdercoat, as per catalogue", T_NAV_AU[[#This Row],[Colour Description]])) -> as per catalogue | I125: SET | J125: =IF(T_NAV_AU[[#This Row],[CustomPricing]]<>"",T_NAV_AU[[#This Row],[CustomPricing]],T_NAV_AU[[#This Row],[AUD_Original]]) -> 5.37 | K125: 5.37 | M125: 5 | N125: 200
B126: RE20-0301-050078 | C126: N | D126: =IF(AND(OR(T_NAV_AU[[#This Row],[ColourOptions]]="M",T_NAV_AU[[#This Row],[ColourOptions]]="Y"),MID(T_NAV_AU[[#This Row],[No.]],11,3)="069"),REPLACE(T_NAV_AU[[#This Row],[No.]],11,3,"xxx"),T_NAV_AU[[#This Row],[No.]]) -> RE20-0301-050078 | E126: ZIP Tube Reducer - 63/78 | F126: 050 | G126: Black, Satin | H126: =IF(T_NAV_AU[[#This Row],[ColourOptions]]="M","as per catalogue",IF(T_NAV_AU[[#This Row],[Colour Description]]="Pure White", "Powdercoat, as per catalogue", T_NAV_AU[[#This Row],[Colour Description]])) -> Black, Satin | I126: PIECE | J126: =IF(T_NAV_AU[[#This Row],[CustomPricing]]<>"",T_NAV_AU[[#This Row],[CustomPricing]],T_NAV_AU[[#This Row],[AUD_Original]]) -> 4.76 | K126: 4.76 | M126: 4 | N126: 100
B127: RE20-0303-069002 | C127: M | D127: =IF(AND(OR(T_NAV_AU[[#This Row],[ColourOptions]]="M",T_NAV_AU[[#This Row],[ColourOptions]]="Y"),MID(T_NAV_AU[[#This Row],[No.]],11,3)="069"),REPLACE(T_NAV_AU[[#This Row],[No.]],11,3,"xxx"),T_NAV_AU[[#This Row],[No.]]) -> RE20-0303-xxx002 | E127: F56 | Zipscreen - Lock End Cap Set (2 piece) | F127: 069 | G127: Pure White | H127: =IF(T_NAV_AU[[#This Row],[ColourOptions]]="M","as per catalogue",IF(T_NAV_AU[[#This Row],[Colour Description]]="Pure White", "Powdercoat, as per catalogue", T_NAV_AU[[#This Row],[Colour Description]])) -> as per catalogue | I127: SET | J127: =IF(T_NAV_AU[[#This Row],[CustomPricing]]<>"",T_NAV_AU[[#This Row],[CustomPricing]],T_NAV_AU[[#This Row],[AUD_Original]]) -> 4.53 | K127: 4.53 | M127: 10 | N127: 200
B128: RE24-1312-009001 | C128: N | D128: =IF(AND(OR(T_NAV_AU[[#This Row],[ColourOptions]]="M",T_NAV_AU[[#This Row],[ColourOptions]]="Y"),MID(T_NAV_AU[[#This Row],[No.]],11,3)="069"),REPLACE(T_NAV_AU[[#This Row],[No.]],11,3,"xxx"),T_NAV_AU[[#This Row],[No.]]) -> RE24-1312-009001 | E128: Swaged RH Stud Terminal ONLY + Nuts & Washers | F128: 009 | G128: S/S 316, Polished | H128: =IF(T_NAV_AU[[#This Row],[ColourOptions]]="M","as per catalogue",IF(T_NAV_AU[[#This Row],[Colour Description]]="Pure White", "Powdercoat, as per catalogue", T_NAV_AU[[#This Row],[Colour Description]])) -> S/S 316, Polished | I128: PIECE | J128: =IF(T_NAV_AU[[#This Row],[CustomPricing]]<>"",T_NAV_AU[[#This Row],[CustomPricing]],T_NAV_AU[[#This Row],[AUD_Original]]) -> 6.78 | K128: 6.78 | M128: 10 | N128: 50
B129: RE24-1312-009002 | C129: N | D129: =IF(AND(OR(T_NAV_AU[[#This Row],[ColourOptions]]="M",T_NAV_AU[[#This Row],[ColourOptions]]="Y"),MID(T_NAV_AU[[#This Row],[No.]],11,3)="069"),REPLACE(T_NAV_AU[[#This Row],[No.]],11,3,"xxx"),T_NAV_AU[[#This Row],[No.]]) -> RE24-1312-009002 | E129: Dome Head Terminal for 3.2mm Wire | F129: 009 | G129: S/S 316, Polished | H129: =IF(T_NAV_AU[[#This Row],[ColourOptions]]="M","as per catalogue",IF(T_NAV_AU[[#This Row],[Colour Description]]="Pure White", "Powdercoat, as per catalogue", T_NAV_AU[[#This Row],[Colour Description]])) -> S/S 316, Polished | I129: PIECE | J129: =IF(T_NAV_AU[[#This Row],[CustomPricing]]<>"",T_NAV_AU[[#This Row],[CustomPricing]],T_NAV_AU[[#This Row],[AUD_Original]]) -> 5.6 | K129: 5.6 | M129: 20 | N129: 200
B130: RE24-1312-009420 | C130: N | D130: =IF(AND(OR(T_NAV_AU[[#This Row],[ColourOptions]]="M",T_NAV_AU[[#This Row],[ColourOptions]]="Y"),MID(T_NAV_AU[[#This Row],[No.]],11,3)="069"),REPLACE(T_NAV_AU[[#This Row],[No.]],11,3,"xxx"),T_NAV_AU[[#This Row],[No.]]) -> RE24-1312-009420 | E130: Swaged Dome Terminal + 4.2 metres Wire Rope | F130: 009 | G130: S/S 316, Polished | H130: =IF(T_NAV_AU[[#This Row],[ColourOptions]]="M","as per catalogue",IF(T_NAV_AU[[#This Row],[Colour Description]]="Pure White", "Powdercoat, as per catalogue", T_NAV_AU[[#This Row],[Colour Description]])) -> S/S 316, Polished | I130: SET | J130: =IF(T_NAV_AU[[#This Row],[CustomPricing]]<>"",T_NAV_AU[[#This Row],[CustomPricing]],T_NAV_AU[[#This Row],[AUD_Original]]) -> 29.75 | K130: 29.75 | M130: 4 | N130: 40
B131: RE24-1314-009400 | C131: N | D131: =IF(AND(OR(T_NAV_AU[[#This Row],[ColourOptions]]="M",T_NAV_AU[[#This Row],[ColourOptions]]="Y"),MID(T_NAV_AU[[#This Row],[No.]],11,3)="069"),REPLACE(T_NAV_AU[[#This Row],[No.]],11,3,"xxx"),T_NAV_AU[[#This Row],[No.]]) -> RE24-1314-009400 | E131: Machined Swage Fork Terminal - 4mm S/Steel Wire | F131: 009 | G131: S/S 316, Polished | H131: =IF(T_NAV_AU[[#This Row],[ColourOptions]]="M","as per catalogue",IF(T_NAV_AU[[#This Row],[Colour Description]]="Pure White", "Powdercoat, as per catalogue", T_NAV_AU[[#This Row],[Colour Description]])) -> S/S 316, Polished | I131: PIECE | J131: =IF(T_NAV_AU[[#This Row],[CustomPricing]]<>"",T_NAV_AU[[#This Row],[CustomPricing]],T_NAV_AU[[#This Row],[AUD_Original]]) -> 88.08 | K131: 88.08 | M131: 2 | N131: 40
B132: RE24-1401-009040 | C132: N | D132: =IF(AND(OR(T_NAV_AU[[#This Row],[ColourOptions]]="M",T_NAV_AU[[#This Row],[ColourOptions]]="Y"),MID(T_NAV_AU[[#This Row],[No.]],11,3)="069"),REPLACE(T_NAV_AU[[#This Row],[No.]],11,3,"xxx"),T_NAV_AU[[#This Row],[No.]]) -> RE24-1401-009040 | E132: Threaded Stud Terminal Kit - 4mm S/S Wire | F132: 009 | G132: S/S 316, Polished | H132: =IF(T_NAV_AU[[#This Row],[ColourOptions]]="M","as per catalogue",IF(T_NAV_AU[[#This Row],[Colour Description]]="Pure White", "Powdercoat, as per catalogue", T_NAV_AU[[#This Row],[Colour Description]])) -> S/S 316, Polished | I132: SET | J132: =IF(T_NAV_AU[[#This Row],[CustomPricing]]<>"",T_NAV_AU[[#This Row],[CustomPricing]],T_NAV_AU[[#This Row],[AUD_Original]]) -> 27.98 | K132: 27.98 | M132: 2 | N132: 40
B133: RE24-2205-009000 | C133: N | D133: =IF(AND(OR(T_NAV_AU[[#This Row],[ColourOptions]]="M",T_NAV_AU[[#This Row],[ColourOptions]]="Y"),MID(T_NAV_AU[[#This Row],[No.]],11,3)="069"),REPLACE(T_NAV_AU[[#This Row],[No.]],11,3,"xxx"),T_NAV_AU[[#This Row],[No.]]) -> RE24-2205-009000 | E133: Bottom Wire Guide Swivel Bracket - Floor/Face Fix | F133: 009 | G133: S/S 316, Polished | H133: =IF(T_NAV_AU[[#This Row],[ColourOptions]]="M","as per catalogue",IF(T_NAV_AU[[#This Row],[Colour Description]]="Pure White", "Powdercoat, as per catalogue", T_NAV_AU[[#This Row],[Colour Description]])) -> S/S 316, Polished | I133: SET | J133: =IF(T_NAV_AU[[#This Row],[CustomPricing]]<>"",T_NAV_AU[[#This Row],[CustomPricing]],T_NAV_AU[[#This Row],[AUD_Original]]) -> 32.14 | K133: 32.14 | M133: 4 | N133: 200
B134: RE24-2301-009090 | C134: N | D134: =IF(AND(OR(T_NAV_AU[[#This Row],[ColourOptions]]="M",T_NAV_AU[[#This Row],[ColourOptions]]="Y"),MID(T_NAV_AU[[#This Row],[No.]],11,3)="069"),REPLACE(T_NAV_AU[[#This Row],[No.]],11,3,"xxx"),T_NAV_AU[[#This Row],[No.]]) -> RE24-2301-009090 | E134: Wall Mounting 'L' Bracket - LH & RH Set 90 x 38mm | F134: 009 | G134: S/S 316, Polished | H134: =IF(T_NAV_AU[[#This Row],[ColourOptions]]="M","as per catalogue",IF(T_NAV_AU[[#This Row],[Colour Description]]="Pure White", "Powdercoat, as per catalogue", T_NAV_AU[[#This Row],[Colour Description]])) -> S/S 316, Polished | I134: PAIR | J134: =IF(T_NAV_AU[[#This Row],[CustomPricing]]<>"",T_NAV_AU[[#This Row],[CustomPricing]],T_NAV_AU[[#This Row],[AUD_Original]]) -> 127.36 | K134: 127.36 | M134: 1 | N134: 40
B135: RE24-2601-009040 | C135: N | D135: =IF(AND(OR(T_NAV_AU[[#This Row],[ColourOptions]]="M",T_NAV_AU[[#This Row],[ColourOptions]]="Y"),MID(T_NAV_AU[[#This Row],[No.]],11,3)="069"),REPLACE(T_NAV_AU[[#This Row],[No.]],11,3,"xxx"),T_NAV_AU[[#This Row],[No.]]) -> RE24-2601-009040 | E135: Tensioning Bracket & Terminal - 4mm S/S Wire | F135: 009 | G135: S/S 316, Polished | H135: =IF(T_NAV_AU[[#This Row],[ColourOptions]]="M","as per catalogue",IF(T_NAV_AU[[#This Row],[Colour Description]]="Pure White", "Powdercoat, as per catalogue", T_NAV_AU[[#This Row],[Colour Description]])) -> S/S 316, Polished | I135: SET | J135: =IF(T_NAV_AU[[#This Row],[CustomPricing]]<>"",T_NAV_AU[[#This Row],[CustomPricing]],T_NAV_AU[[#This Row],[AUD_Original]]) -> 83.32 | K135: 83.32 | M135: 2 | N135: 40
B136: RE24-2601-009902 | C136: N | D136: =IF(AND(OR(T_NAV_AU[[#This Row],[ColourOptions]]="M",T_NAV_AU[[#This Row],[ColourOptions]]="Y"),MID(T_NAV_AU[[#This Row],[No.]],11,3)="069"),REPLACE(T_NAV_AU[[#This Row],[No.]],11,3,"xxx"),T_NAV_AU[[#This Row],[No.]]) -> RE24-2601-009902 | E136: Flat Head Stud Terminal - 4mm S/Steel Wire | F136: 009 | G136: S/S 316, Polished | H136: =IF(T_NAV_AU[[#This Row],[ColourOptions]]="M","as per catalogue",IF(T_NAV_AU[[#This Row],[Colour Description]]="Pure White", "Powdercoat, as per catalogue", T_NAV_AU[[#This Row],[Colour Description]])) -> S/S 316, Polished | I136: PIECE | J136: =IF(T_NAV_AU[[#This Row],[CustomPricing]]<>"",T_NAV_AU[[#This Row],[CustomPricing]],T_NAV_AU[[#This Row],[AUD_Original]]) -> 6.8 | K136: 6.8 | M136: 0 | N136: 1
B137: RE24-4004-010032 | C137: N | D137: =IF(AND(OR(T_NAV_AU[[#This Row],[ColourOptions]]="M",T_NAV_AU[[#This Row],[ColourOptions]]="Y"),MID(T_NAV_AU[[#This Row],[No.]],11,3)="069"),REPLACE(T_NAV_AU[[#This Row],[No.]],11,3,"xxx"),T_NAV_AU[[#This Row],[No.]]) -> RE24-4004-010032 | E137: Wire Guide Top Saddle Terminal Kit w/ Spring | F137: 010 | G137: S/S 304, Natural | H137: =IF(T_NAV_AU[[#This Row],[ColourOptions]]="M","as per catalogue",IF(T_NAV_AU[[#This Row],[Colour Description]]="Pure White", "Powdercoat, as per catalogue", T_NAV_AU[[#This Row],[Colour Description]])) -> S/S 304, Natural | I137: SET | J137: =IF(T_NAV_AU[[#This Row],[CustomPricing]]<>"",T_NAV_AU[[#This Row],[CustomPricing]],T_NAV_AU[[#This Row],[AUD_Original]]) -> 5.83 | K137: 5.83 | M137: 4 | N137: 400
B138: RE24-9101-009050 | C138: N | D138: =IF(AND(OR(T_NAV_AU[[#This Row],[ColourOptions]]="M",T_NAV_AU[[#This Row],[ColourOptions]]="Y"),MID(T_NAV_AU[[#This Row],[No.]],11,3)="069"),REPLACE(T_NAV_AU[[#This Row],[No.]],11,3,"xxx"),T_NAV_AU[[#This Row],[No.]]) -> RE24-9101-009050 | E138: Spring Compression 14.5 ID x 50mm Long | F138: 009 | G138: S/S 316, Polished | H138: =IF(T_NAV_AU[[#This Row],[ColourOptions]]="M","as per catalogue",IF(T_NAV_AU[[#This Row],[Colour Description]]="Pure White", "Powdercoat, as per catalogue", T_NAV_AU[[#This Row],[Colour Description]])) -> S/S 316, Polished | I138: PIECE | J138: =IF(T_NAV_AU[[#This Row],[CustomPricing]]<>"",T_NAV_AU[[#This Row],[CustomPricing]],T_NAV_AU[[#This Row],[AUD_Original]]) -> 5.3 | K138: 5.3 | M138: 2 | N138: 500
B139: RE29-0102-000500 | C139: N | D139: =IF(AND(OR(T_NAV_AU[[#This Row],[ColourOptions]]="M",T_NAV_AU[[#This Row],[ColourOptions]]="Y"),MID(T_NAV_AU[[#This Row],[No.]],11,3)="069"),REPLACE(T_NAV_AU[[#This Row],[No.]],11,3,"xxx"),T_NAV_AU[[#This Row],[No.]]) -> RE29-0102-000500 | E139: Pivot Arm Terminal Bar - 5.0 metre | F139: 000 | G139: Mill Finish | H139: =IF(T_NAV_AU[[#This Row],[ColourOptions]]="M","as per catalogue",IF(T_NAV_AU[[#This Row],[Colour Description]]="Pure White", "Powdercoat, as per catalogue", T_NAV_AU[[#This Row],[Colour Description]])) -> Mill Finish | I139: LENGTH | J139: =IF(T_NAV_AU[[#This Row],[CustomPricing]]<>"",T_NAV_AU[[#This Row],[CustomPricing]],T_NAV_AU[[#This Row],[AUD_Original]]) -> 235.67 | K139: 235.67 | M139: 1 | N139: 10
B140: RE29-0102-069500 | C140: Y | D140: =IF(AND(OR(T_NAV_AU[[#This Row],[ColourOptions]]="M",T_NAV_AU[[#This Row],[ColourOptions]]="Y"),MID(T_NAV_AU[[#This Row],[No.]],11,3)="069"),REPLACE(T_NAV_AU[[#This Row],[No.]],11,3,"xxx"),T_NAV_AU[[#This Row],[No.]]) -> RE29-0102-xxx500 | E140: Pivot Arm Terminal Bar | 5m | F140: 069 | G140: Pure White | H140: =IF(T_NAV_AU[[#This Row],[ColourOptions]]="M","as per catalogue",IF(T_NAV_AU[[#This Row],[Colour Description]]="Pure White", "Powdercoat, as per catalogue", T_NAV_AU[[#This Row],[Colour Description]])) -> Powdercoat, as per catalogue | I140: LENGTH | J140: =IF(T_NAV_AU[[#This Row],[CustomPricing]]<>"",T_NAV_AU[[#This Row],[CustomPricing]],T_NAV_AU[[#This Row],[AUD_Original]]) -> 243.16 | K140: 243.16 | M140: 1 | N140: 10
B141: RE91-0100-025025 | C141: N | D141: =IF(AND(OR(T_NAV_AU[[#This Row],[ColourOptions]]="M",T_NAV_AU[[#This Row],[ColourOptions]]="Y"),MID(T_NAV_AU[[#This Row],[No.]],11,3)="069"),REPLACE(T_NAV_AU[[#This Row],[No.]],11,3,"xxx"),T_NAV_AU[[#This Row],[No.]]) -> RE91-0100-025025 | E141: 25mm Cam Buckle & Strap Assembly | F141: 025 | G141: Silver ZINC Plated | H141: =IF(T_NAV_AU[[#This Row],[ColourOptions]]="M","as per catalogue",IF(T_NAV_AU[[#This Row],[Colour Description]]="Pure White", "Powdercoat, as per catalogue", T_NAV_AU[[#This Row],[Colour Description]])) -> Silver ZINC Plated | I141: PIECE | J141: =IF(T_NAV_AU[[#This Row],[CustomPricing]]<>"",T_NAV_AU[[#This Row],[CustomPricing]],T_NAV_AU[[#This Row],[AUD_Original]]) -> 11.28 | K141: 11.28 | M141: 2 | N141: 100
B142: RE91-0101-000580 | C142: N | D142: =IF(AND(OR(T_NAV_AU[[#This Row],[ColourOptions]]="M",T_NAV_AU[[#This Row],[ColourOptions]]="Y"),MID(T_NAV_AU[[#This Row],[No.]],11,3)="069"),REPLACE(T_NAV_AU[[#This Row],[No.]],11,3,"xxx"),T_NAV_AU[[#This Row],[No.]]) -> RE91-0101-000580 | E142: Channel Guide System Side Guide | 5.8m | F142: 000 | G142: Mill Finish | H142: =IF(T_NAV_AU[[#This Row],[ColourOptions]]="M","as per catalogue",IF(T_NAV_AU[[#This Row],[Colour Description]]="Pure White", "Powdercoat, as per catalogue", T_NAV_AU[[#This Row],[Colour Description]])) -> Mill Finish | I142: LENGTH | J142: =IF(T_NAV_AU[[#This Row],[CustomPricing]]<>"",T_NAV_AU[[#This Row],[CustomPricing]],T_NAV_AU[[#This Row],[AUD_Original]]) -> 144.64 | K142: 144.64 | M142: 4 | N142: 48
B143: RE91-0101-018580 | C143: N | D143: =IF(AND(OR(T_NAV_AU[[#This Row],[ColourOptions]]="M",T_NAV_AU[[#This Row],[ColourOptions]]="Y"),MID(T_NAV_AU[[#This Row],[No.]],11,3)="069"),REPLACE(T_NAV_AU[[#This Row],[No.]],11,3,"xxx"),T_NAV_AU[[#This Row],[No.]]) -> RE91-0101-018580 | E143: Channel Guide System Side Guide | 5.8m | F143: 018 | G143: Anodised 20 | H143: =IF(T_NAV_AU[[#This Row],[ColourOptions]]="M","as per catalogue",IF(T_NAV_AU[[#This Row],[Colour Description]]="Pure White", "Powdercoat, as per catalogue", T_NAV_AU[[#This Row],[Colour Description]])) -> Anodised 20 | I143: LENGTH | J143: =IF(T_NAV_AU[[#This Row],[CustomPricing]]<>"",T_NAV_AU[[#This Row],[CustomPricing]],T_NAV_AU[[#This Row],[AUD_Original]]) -> 177.07 | K143: 177.07 | M143: 4 | N143: 48
B144: RE91-0101-069580 | C144: Y | D144: =IF(AND(OR(T_NAV_AU[[#This Row],[ColourOptions]]="M",T_NAV_AU[[#This Row],[ColourOptions]]="Y"),MID(T_NAV_AU[[#This Row],[No.]],11,3)="069"),REPLACE(T_NAV_AU[[#This Row],[No.]],11,3,"xxx"),T_NAV_AU[[#This Row],[No.]]) -> RE91-0101-xxx580 | E144: Channel Guide System Side Guide | 5.8m | F144: 069 | G144: Pure White | H144: =IF(T_NAV_AU[[#This Row],[ColourOptions]]="M","as per catalogue",IF(T_NAV_AU[[#This Row],[Colour Description]]="Pure White", "Powdercoat, as per catalogue", T_NAV_AU[[#This Row],[Colour Description]])) -> Powdercoat, as per catalogue | I144: LENGTH | J144: =IF(T_NAV_AU[[#This Row],[CustomPricing]]<>"",T_NAV_AU[[#This Row],[CustomPricing]],T_NAV_AU[[#This Row],[AUD_Original]]) -> 155.88 | K144: 155.88 | M144: 4 | N144: 48
B145: RE91-1001-050000 | C145: N | D145: =IF(AND(OR(T_NAV_AU[[#This Row],[ColourOptions]]="M",T_NAV_AU[[#This Row],[ColourOptions]]="Y"),MID(T_NAV_AU[[#This Row],[No.]],11,3)="069"),REPLACE(T_NAV_AU[[#This Row],[No.]],11,3,"xxx"),T_NAV_AU[[#This Row],[No.]]) -> RE91-1001-050000 | E145: Channel Guide Funnel & Bottom Cap Set + Screws | F145: 050 | G145: Black, Satin | H145: =IF(T_NAV_AU[[#This Row],[ColourOptions]]="M","as per catalogue",IF(T_NAV_AU[[#This Row],[Colour Description]]="Pure White", "Powdercoat, as per catalogue", T_NAV_AU[[#This Row],[Colour Description]])) -> Black, Satin | I145: SET | J145: =IF(T_NAV_AU[[#This Row],[CustomPricing]]<>"",T_NAV_AU[[#This Row],[CustomPricing]],T_NAV_AU[[#This Row],[AUD_Original]]) -> 3.57 | K145: 3.57 | M145: 10 | N145: 500
B146: RE91-1101-013025 | C146: N | D146: =IF(AND(OR(T_NAV_AU[[#This Row],[ColourOptions]]="M",T_NAV_AU[[#This Row],[ColourOptions]]="Y"),MID(T_NAV_AU[[#This Row],[No.]],11,3)="069"),REPLACE(T_NAV_AU[[#This Row],[No.]],11,3,"xxx"),T_NAV_AU[[#This Row],[No.]]) -> RE91-1101-013025 | E146: 25mm Footmans Loop - S/Steel | F146: 013 | G146: S/S 304, Polished | H146: =IF(T_NAV_AU[[#This Row],[ColourOptions]]="M","as per catalogue",IF(T_NAV_AU[[#This Row],[Colour Description]]="Pure White", "Powdercoat, as per catalogue", T_NAV_AU[[#This Row],[Colour Description]])) -> S/S 304, Polished | I146: PIECE | J146: =IF(T_NAV_AU[[#This Row],[CustomPricing]]<>"",T_NAV_AU[[#This Row],[CustomPricing]],T_NAV_AU[[#This Row],[AUD_Original]]) -> 4.48 | K146: 4.48 | M146: 10 | N146: 200
B147: RE91-1102-050025 | C147: N | D147: =IF(AND(OR(T_NAV_AU[[#This Row],[ColourOptions]]="M",T_NAV_AU[[#This Row],[ColourOptions]]="Y"),MID(T_NAV_AU[[#This Row],[No.]],11,3)="069"),REPLACE(T_NAV_AU[[#This Row],[No.]],11,3,"xxx"),T_NAV_AU[[#This Row],[No.]]) -> RE91-1102-050025 | E147: 25mm Strap Down Loop | F56 | F147: 050 | G147: Black, Satin | H147: =IF(T_NAV_AU[[#This Row],[ColourOptions]]="M","as per catalogue",IF(T_NAV_AU[[#This Row],[Colour Description]]="Pure White", "Powdercoat, as per catalogue", T_NAV_AU[[#This Row],[Colour Description]])) -> Black, Satin | I147: PIECE | J147: =IF(T_NAV_AU[[#This Row],[CustomPricing]]<>"",T_NAV_AU[[#This Row],[CustomPricing]],T_NAV_AU[[#This Row],[AUD_Original]]) -> 2.38 | K147: 2.38 | M147: 10 | N147: 1000
B148: RE91-1103-009050 | C148: N | D148: =IF(AND(OR(T_NAV_AU[[#This Row],[ColourOptions]]="M",T_NAV_AU[[#This Row],[ColourOptions]]="Y"),MID(T_NAV_AU[[#This Row],[No.]],11,3)="069"),REPLACE(T_NAV_AU[[#This Row],[No.]],11,3,"xxx"),T_NAV_AU[[#This Row],[No.]]) -> RE91-1103-009050 | E148: Strap Down Spring Clip - 50mm | F148: 009 | G148: S/S 316, Polished | H148: =IF(T_NAV_AU[[#This Row],[ColourOptions]]="M","as per catalogue",IF(T_NAV_AU[[#This Row],[Colour Description]]="Pure White", "Powdercoat, as per catalogue", T_NAV_AU[[#This Row],[Colour Description]])) -> S/S 316, Polished | I148: PIECE | J148: =IF(T_NAV_AU[[#This Row],[CustomPricing]]<>"",T_NAV_AU[[#This Row],[CustomPricing]],T_NAV_AU[[#This Row],[AUD_Original]]) -> 3.1 | K148: 3.1 | M148: 10 | N148: 200
B149: RE91-1104-013030 | C149: N | D149: =IF(AND(OR(T_NAV_AU[[#This Row],[ColourOptions]]="M",T_NAV_AU[[#This Row],[ColourOptions]]="Y"),MID(T_NAV_AU[[#This Row],[No.]],11,3)="069"),REPLACE(T_NAV_AU[[#This Row],[No.]],11,3,"xxx"),T_NAV_AU[[#This Row],[No.]]) -> RE91-1104-013030 | E149: Strap Down Pad Eye Saddle - 30mm | F149: 009 | G149: S/S 316, Polished | H149: =IF(T_NAV_AU[[#This Row],[ColourOptions]]="M","as per catalogue",IF(T_NAV_AU[[#This Row],[Colour Description]]="Pure White", "Powdercoat, as per catalogue", T_NAV_AU[[#This Row],[Colour Description]])) -> S/S 316, Polished | I149: PIECE | J149: =IF(T_NAV_AU[[#This Row],[CustomPricing]]<>"",T_NAV_AU[[#This Row],[CustomPricing]],T_NAV_AU[[#This Row],[AUD_Original]]) -> 3.93 | K149: 3.93 | M149: 10 | N149: 100
B150: RE91-1105-009000 | C150: N | D150: =IF(AND(OR(T_NAV_AU[[#This Row],[ColourOptions]]="M",T_NAV_AU[[#This Row],[ColourOptions]]="Y"),MID(T_NAV_AU[[#This Row],[No.]],11,3)="069"),REPLACE(T_NAV_AU[[#This Row],[No.]],11,3,"xxx"),T_NAV_AU[[#This Row],[No.]]) -> RE91-1105-009000 | E150: Flush Mount Strap Down Loop | F150: 009 | G150: S/S 316, Polished | H150: =IF(T_NAV_AU[[#This Row],[ColourOptions]]="M","as per catalogue",IF(T_NAV_AU[[#This Row],[Colour Description]]="Pure White", "Powdercoat, as per catalogue", T_NAV_AU[[#This Row],[Colour Description]])) -> S/S 316, Polished | I150: PIECE | J150: =IF(T_NAV_AU[[#This Row],[CustomPricing]]<>"",T_NAV_AU[[#This Row],[CustomPricing]],T_NAV_AU[[#This Row],[AUD_Original]]) -> 28.34 | K150: 28.34 | M150: 4 | N150: 100
B151: RE91-1111-013025 | C151: N | D151: =IF(AND(OR(T_NAV_AU[[#This Row],[ColourOptions]]="M",T_NAV_AU[[#This Row],[ColourOptions]]="Y"),MID(T_NAV_AU[[#This Row],[No.]],11,3)="069"),REPLACE(T_NAV_AU[[#This Row],[No.]],11,3,"xxx"),T_NAV_AU[[#This Row],[No.]]) -> RE91-1111-013025 | E151: 25mm Footmans Loop Kit | F72 | F151: 013 | G151: S/S 304, Polished | H151: =IF(T_NAV_AU[[#This Row],[ColourOptions]]="M","as per catalogue",IF(T_NAV_AU[[#This Row],[Colour Description]]="Pure White", "Powdercoat, as per catalogue", T_NAV_AU[[#This Row],[Colour Description]])) -> S/S 304, Polished | I151: KIT | J151: =IF(T_NAV_AU[[#This Row],[CustomPricing]]<>"",T_NAV_AU[[#This Row],[CustomPricing]],T_NAV_AU[[#This Row],[AUD_Original]]) -> 9.07 | K151: 9.07 | M151: 5 | N151: 100
B152: RE91-2001-050000 | C152: N | D152: =IF(AND(OR(T_NAV_AU[[#This Row],[ColourOptions]]="M",T_NAV_AU[[#This Row],[ColourOptions]]="Y"),MID(T_NAV_AU[[#This Row],[No.]],11,3)="069"),REPLACE(T_NAV_AU[[#This Row],[No.]],11,3,"xxx"),T_NAV_AU[[#This Row],[No.]]) -> RE91-2001-050000 | E152: Channel Guide Weight Bar End Cap Set + Screws | F152: 050 | G152: Black, Satin | H152: =IF(T_NAV_AU[[#This Row],[ColourOptions]]="M","as per catalogue",IF(T_NAV_AU[[#This Row],[Colour Description]]="Pure White", "Powdercoat, as per catalogue", T_NAV_AU[[#This Row],[Colour Description]])) -> Black, Satin | I152: SET | J152: =IF(T_NAV_AU[[#This Row],[CustomPricing]]<>"",T_NAV_AU[[#This Row],[CustomPricing]],T_NAV_AU[[#This Row],[AUD_Original]]) -> 5.24 | K152: 5.24 | M152: 10 | N152: 200
